Workbook

Sheet INTRO
A3: This is the main workbook for Republic Services' General Rate Case submission to the Washington Utilities & Transporation Commission
A5: The subject company of this filing is : | B5: 4183 - Rabanco Ltd., DBA SeaTac Disposal
A7: This file will need to be submitted through the WUTC eFile web portal is it's size before adding 'filing/division/test period specific' tabs is too large for email.
A8: This file is to be completed seperately from the Payroll model in order to keep the pay data confidential. Once both models are complete, this model
A9: will be transferred to a protected folder with the Payroll model which will then be moved into this model right after the "PF Adj" tab.
A11: Tab Color Legend
A12: Auditor Narrative & Internal Instructions
A13: SQL Source Data | C13: *Print Margin for All SQL Tabs are set to first 100 pages to avoid extremely large accidental print jobs
A14: Reference Tables
A15: Cost of Service
A16: Oracle Essbase Data Extraction from Lawson
A18: Note to auditor: Detailed SQL data is available upon request. We summarize some of the SQL data reports within this model as the filesize of full
A19: reports with every transaction is often 15+ MB and discusstions with WUTC staff has concluded that summarizing when possible is the best option. | F19: Even tabs with N/A
F20: should be checked
A21: Table of Contents | B21: Tab # | C21: Formula Driven / Hardcode / HC with Formulas / Written | D21: Source of Hardcode (if any) | E21: Supporting Documentation (filename) | F21: Needs to be Updated for new Filing?
A22: G Cert Financial | B22: 2 | C22: Formulas | E22: *Lawson PDFs | F22: Regulated Rev %
A23: RS Cap Structure | B23: 3 | C23: Hardcode | D23: Annual Reports | E23: *Annual Report | F23: 2014 Annual Report
A24: Combined LG | B24: 4 | C24: Formulas | F24: N/A
A25: MSW | B25: 5 | C25: Formulas | F25: N/A
A26: RCY | B26: 6 | C26: Formulas | F26: N/A
A27: YW | B27: 7 | C27: Formulas | F27: N/A
A28: MF RCY | B28: 8 | C28: Formulas | F28: N/A
A29: Alloc Summary | B29: 9 | C29: Formulas | F29: N/A
A30: Proforma | B30: 10 | C30: Formulas | F30: Allocations Method
A31: PR Restate | B31: 11 | C31: Formulas | F31: Specific
A32: PF Adj | B32: 12 | C32: Formulas | F32: Specific
A33: PR Narrative | B33: 13 | C33: Written | F33: Moved into WB
A34: Summary & PF | B34: 14 | C34: Formulas | F34: Moved into WB
A35: PR vs. GL | B35: 15 | C35: Formulas | F35: Moved into WB
A36: Summary Calc & Lookup | B36: 16 | C36: Formulas & Hardcode ee Data | D36: Payroll employee reports | F36: Moved into WB
A37: Alloc Impact | B37: 17 | C37: Formulas | F37: Moved into WB
A38: PA340 | B38: 18 | C38: Hardcode | D38: PA340 from Lawson | F38: Moved into WB
A39: PR Instructions | B39: 19 | C39: Written | F39: Moved into WB
A40: Summary PR Data | B40: 20 | C40: Hardcode | D40: PR295 from Lawson | F40: Moved into WB
A41: Lookup Data | B41: 21 | C41: Hardcode Tables | F41: Moved into WB
A42: Union Wage & Pension | B42: 22 | C42: Hardcode | D42: Union Contracts | F42: Moved into WB
A43: H&W | B43: 23 | C43: Hardcode | D43: Union Contracts | F43: Moved into WB
A44: L&I | B44: 24 | C44: Hardcode | D44: WA Dept. of Labor & Industries | F44: Moved into WB
A45: Rev Narrative & Instructions | B45: 25 | C45: Written | F45: N/A
A46: Revenue Lookup | B46: 26 | C46: Formulas | F46: Check Rev Codes
A47: SQL Revenue Analysis | B47: 27 | C47: Hardcode with Formulas | D47: SQL Extract from Infopro | F47: Update Data
A48: Rev Ref Tables | B48: 28 | C48: Hardcode Tables | D48: Lookup info for Infopro | F48: N/A
A49: Price Out Summ | B49: 29 | C49: Formulas | F49: N/A
A50: Residential Price Out | B50: 30 | C50: Formulas and Hardcode Rate Data | D50: Tariff Pages | F50: Update Rates
A51: Commercial (+MF) Price Out | B51: 31 | C51: Formulas and Hardcode Rate Data | D51: Tariff Pages | F51: Update Rates
A52: Commercial Lift Instructions | B52: 32 | C52: Written | F52: N/A
A53: Commercial Lifts | B53: 33 | C53: Hardcode with Formulas | D53: SQL Extract from Infopro | F53: Update Data
A54: IND (+MF) Price Out | B54: 34 | C54: Formulas and Hardcode Rate Data | D54: Tariff Pages | F54: Update Rates
A55: Truck Hrs Sum | B55: 35 | C55: Formulas | F55: N/A
A56: RESI WUTC Hrs | B56: 36 | C56: Formulas with Hardcode | D56: See "Route Detail Residential" | E56: Truck Hrs Route Detail Residential | F56: Update External Model Inputs
A57: RES Rt Hr Instructions | B57: 37 | C57: Written | F57: N/A
A58: RES Pivot | B58: 38 | C58: Formulas - Pivot | F58: N/A
A59: RES Route Detail | B59: 39 | C59: Hardcode with Formulas | D59: SQL Extract from Infopro | F59: Update Data
A60: Sample Routes | B60: 40 | C60: Formulas | F60: Update Route #s
A61: COM WUTC Hrs | B61: 41 | C61: Formulas | F61: N/A
A62: COM Rt Hr Instructions | B62: 42 | C62: Written | F62: N/A
A63: COM Pivot | B63: 43 | C63: Formulas - Pivot | F63: N/A
A64: COM Route Detail | B64: 44 | C64: Hardcode with Formulas | D64: SQL Extract from Infopro | F64: Update Data
A65: IND Hrs Sum | B65: 45 | C65: Formulas | F65: N/A
A66: IND Data | B66: 46 | C66: Hardcode with Formulas | D66: Report from Infopro | F66: Update data
A67: Route Analysis - IND | B67: 47 | C67: Hardcode | D67: SQL Extract from Infopro | F67: Update data
A68: Route Analysis - COM | B68: 48 | C68: Hardcode | D68: SQL Extract from Infopro | F68: Update data
A69: Route Analysis - RESI | B69: 49 | C69: Hardcode | D69: SQL Extract from Infopro | F69: Update data
A70: Contract Ref | B70: 50 | C70: Hardcode Tables | D70: Lookup info for Infopro | F70: Add SeaTac Info
A71: Fuel Calc | B71: 51 | C71: Formulas | F71: Update Alloc Links
A72: Fuel Invoice Data Entry | B72: 52 | C72: Hardcode with Formulas | D72: Fuel Invoices | F72: Update Invoice Data
A73: =HYPERLINK("#'Disposal Instructions'!$A$1","Disposal Narrative") -> Disposal Narrative | B73: 53 | C73: Written | F73: N/A
A74: Disposal Summary (with IC) | B74: 54 | C74: Formulas | F74: Check Rates &…
A75: Summary Disposal Data | B75: 55 | C75: Hardcode with Formulas | F75: Update Data
A76: Industrial Summary Data Confirmation | B76: 56 | C76: Hardcode with Formulas | F76: Update Data
A77: Non-Regulated Operations | B77: 57 | C77: Written | F77: Update Co. Info
A78: Disposal Ref Tables | B78: 58 | C78: Hardcode Tables | D78: Lookup info for Infopro | F78: N/A
A79: Ave Inv. Narrative | B79: 59 | C79: Written | F79: N/A
A80: Ave Inv. Summary | B80: 60 | C80: Formulas | F80: Allocations Method
A81: AM260 Asset Listing | B81: 61 | C81: Formulas | F81: ?
A82: AM260 Data | B82: 62 | C82: Hardcode with Formulas | D82: Report from Lawson | F82: Update data
A83: Asset Type Tables | B83: 63 | C83: Hardcode Tables | D83: Lookup info for Lawson | F83: N/A
A84: =HYPERLINK("#'"&"Cont Count Narrative"&"'!$A$1","Container Count Narrative") -> Container Count Narrative | B84: 64 | C84: Written | F84: N/A
A85: Container Counts | B85: 65 | C85: Formulas | F85: Check Formulas
A86: Container Data | B86: 66 | C86: Hardcode with Formulas | D86: SQL Extract from Infopro | F86: Update Data
A87: Container Ref Tables | B87: 67 | C87: Hardcode Tables | D87: Lookup info for Infopro | F87: N/A
A88: Cost of Service | B88: 68 | C88: Formulas | F88: Check
A89: Meeks Data | B89: 69 | C89: Hardcode | D89: WUTC Data | F89: N/A
A90: Essbase Narrative | B90: 70 | C90: Written | F90: N/A
A91: P&L - ITD3 (Acct Desc) | B91: 71 | C91: Hardcode | D91: Essbase Extract from Lawson | F91: Update Essbase
A92: P&L - ITD3 (Acct #) | B92: 72 | C92: Hardcode | D92: Essbase Extract from Lawson | F92: Update Essbase
A93: BS - BTD3 | B93: 73 | C93: Hardcode | D93: Essbase Extract from Lawson | F93: Update Essbase
A94: STATS - XOST (IND, COM, RES) | B94: 74 | C94: Hardcode | D94: Essbase Extract from Lawson | F94: Update Essbase
A95: P&L - ITD2 Aff. Co. MRF | B95: 75 | C95: Hardcode | D95: Essbase Extract from Lawson | F95: Update Essbase
A96: BS - BTD2 Aff. Co. MRF | B96: 76 | C96: Hardcode | D96: Essbase Extract from Lawson | F96: Update Essbase
A97: G-12 FS | B97: 77 | C97: Hardcode | D97: Essbase Extract from Lawson | F97: Update Essbase
A98: MGmt Fee2014 Budget Pull | B98: 78 | C98: Hardcode | D98: Essbase Extract from Lawson | F98: Update Timeline
A99: Mgmt Fee - 2014 A53 Division Expense | B99: 79 | C99: Hardcode | D99: Essbase Extract from Lawson | F99: Update Company
A100: Mgmt Fee - Account Detail | B100: 80 | C100: Hardcode | D100: Essbase Extract from Lawson | F100: Update test period
A101: Filing Specific Tabs > | B101: 81 | C101: Written | F101: N/A
A102: 176 v 183 CNG Trucks | B102: 82 | C102: Hardcode | D102: JE Backup from Fleet management system - Doissier | F102: Adjust related tabs
A103: Fuel Allocations | B103: 83 | C103: Hardcode with Formulas | D103: Essbase Extract from Lawson | F103: Adjust related tabs
A104: SeaTac Contract Financials | B104: 84 | C104: Hardcode with Formulas | D104: Linked to other tabs | F104: Adjust related tabs
A108: Tons Master Report > | B108: 85 | C108: Written | F108: N/A
A109: Division Tons (XXX Tons) | B109: 86 | C109: Hardcode with Formulas | D109: Billing and County / Municipality Reporting Document | F109: Replace Data & Calculate Drive Bys
A110: MSW Tons | B110: 87 | C110: Hardcode with Formulas | F110: Replace Data
A111: Recycle Tons | B111: 88 | C111: Hardcode with Formulas | F111: Replace Data
A112: YW Tons | B112: 89 | C112: Hardcode with Formulas | F112: Replace Data

Sheet G Cert Financial
A1: If this rate case pertains to G Certificate # 60, of which the only company is Division 4176, tariff # 27, Fiorito Enterprises, Inc. & Rabanco Companies, dba Kent-Meridian Disposal Company the only financials you need are in the Essbase Data workbook or provided in PDF form.
A2: If this rate case pertains to G Certificate # 12 (varios division info below) this tab will be populated with summarized financial data for each operating division to calculate total Certificate financial data.
A3: See Source Data: 4XXXITD2
A5: Division # | B5: 4183 | E5: 4172 | H5: 4197 | K5: 4487 | N5: 4175 | Q5: 4584 | T5: TOTAL
A6: Division Name | B6: Sea Tac Disposal | E6: Eastside Disposal | H6: Lynnwood Disposal | K6: Tri-County Disposal | N6: AW of Seattle | Q6: Robanco Recycling MRF | T6: Regulated / Unregulated
A7: Certificate & Tariff Number | B7: G-12 / Tariff 27 | E7: G-12 / Tariff 11 | H7: G-12 / Tariff 4 | K7: G-12 / Tariff 8 | N7: G-12 | Q7: G-12 | T7: G-12
A8: Regulated / Unregulated % | B8: =+Proforma!K20/Proforma!F20 -> 0.4602720114 | C8: =1-B8 -> 0.5397279886 | E8: 0.127 | F8: =1-E8 -> 0.873 | H8: 0.5036 | I8: =1-H8 -> 0.4964 | K8: 0.9121 | L8: =1-K8 -> 0.0879 | N8: 0 | O8: =1-N8 -> 1 | Q8: 0 | R8: =1-Q8 -> 1 | T8: =+T59/SUM(T59:U59) -> 0.05034401923 | U8: =1-T8 -> 0.9496559808
A11: Industrial O/S Total | B11: ='G-12 FS'!B6*B$8 -> 1016050.198 | C11: ='G-12 FS'!B6*C$8 -> 1191449.222 | E11: ='G-12 FS'!E6*E$8 -> 1001350.442 | F11: ='G-12 FS'!E6*F$8 -> 6883298.708 | H11: ='G-12 FS'!H6*H$8 -> 1324745.886 | I11: ='G-12 FS'!H6*I$8 -> 1305805.914 | K11: ='G-12 FS'!K6*K$8 -> 374452.3574 | L11: ='G-12 FS'!K6*L$8 -> 36086.35261 | N11: ='G-12 FS'!N6*N$8 -> 0 | O11: ='G-12 FS'!N6*O$8 -> 5327187.41 | Q11: ='G-12 FS'!Q6*Q$8 -> 0 | R11: ='G-12 FS'!Q6*R$8 -> 0 | T11: =+B11+E11+H11+K11+N11+Q11 -> 3716598.884 | U11: 14743827.61
A12: Commercial O/S Total | B12: ='G-12 FS'!B7*B$8 -> 896815.4541 | C12: ='G-12 FS'!B7*C$8 -> 1051631.186 | E12: ='G-12 FS'!E7*E$8 -> 1767783.321 | F12: ='G-12 FS'!E7*F$8 -> 12151770.39 | H12: ='G-12 FS'!H7*H$8 -> 3279945.435 | I12: ='G-12 FS'!H7*I$8 -> 3233051.855 | K12: ='G-12 FS'!K7*K$8 -> 630316.2 | L12: ='G-12 FS'!K7*L$8 -> 60744.21004 | N12: ='G-12 FS'!N7*N$8 -> 0 | O12: ='G-12 FS'!N7*O$8 -> 7104057.15 | Q12: ='G-12 FS'!Q7*Q$8 -> 0 | R12: ='G-12 FS'!Q7*R$8 -> 0 | T12: 6574860.41 | U12: 23601254.79
A13: Residential O/S Total | B13: ='G-12 FS'!B8*B$8 -> 1809588.299 | C13: ='G-12 FS'!B8*C$8 -> 2121974.461 | E13: ='G-12 FS'!E8*E$8 -> 2673895.239 | F13: ='G-12 FS'!E8*F$8 -> 18380397.98 | H13: ='G-12 FS'!H8*H$8 -> 4756875.611 | I13: ='G-12 FS'!H8*I$8 -> 4688866.269 | K13: ='G-12 FS'!K8*K$8 -> 497779.706 | L13: ='G-12 FS'!K8*L$8 -> 47971.534 | N13: ='G-12 FS'!N8*N$8 -> 0 | O13: ='G-12 FS'!N8*O$8 -> 0 | Q13: ='G-12 FS'!Q8*Q$8 -> 0 | R13: ='G-12 FS'!Q8*R$8 -> 0 | T13: 9738138.855 | U13: 25239210.24
A15: Industrial SOM RCY Revenue I/C | B15: ='G-12 FS'!B17*B$8 -> 19838.55678 | C15: ='G-12 FS'!B17*C$8 -> 23263.25322 | E15: ='G-12 FS'!E17*E$8 -> 23817.52412 | F15: ='G-12 FS'!E17*F$8 -> 163722.0359 | H15: ='G-12 FS'!H17*H$8 -> 8411.993392 | I15: ='G-12 FS'!H17*I$8 -> 8291.726608 | K15: ='G-12 FS'!K17*K$8 -> 0 | L15: ='G-12 FS'!K17*L$8 -> 0 | N15: ='G-12 FS'!N17*N$8 -> 0 | O15: ='G-12 FS'!N17*O$8 -> 33443.84 | Q15: ='G-12 FS'!Q17*Q$8 -> 0 | R15: ='G-12 FS'!Q17*R$8 -> 0 | T15: =+B15+E15+H15+K15+N15+Q15 -> 52068.0743 | U15: 228720.8557
A16: Commercial SOM RCY Revenue I/C | B16: ='G-12 FS'!B18*B$8 -> 36422.33686 | C16: ='G-12 FS'!B18*C$8 -> 42709.86314 | E16: ='G-12 FS'!E18*E$8 -> 109964.4575 | F16: ='G-12 FS'!E18*F$8 -> 755897.4125 | H16: ='G-12 FS'!H18*H$8 -> 145754.1027 | I16: ='G-12 FS'!H18*I$8 -> 143670.2473 | K16: ='G-12 FS'!K18*K$8 -> 0 | L16: ='G-12 FS'!K18*L$8 -> 0 | N16: ='G-12 FS'!N18*N$8 -> 0 | O16: ='G-12 FS'!N18*O$8 -> 980936.83 | Q16: ='G-12 FS'!Q18*Q$8 -> 0 | R16: ='G-12 FS'!Q18*R$8 -> 0 | T16: 292140.897 | U16: 1923214.353
A17: Residential SOM RCY Revenue I/C | B17: ='G-12 FS'!B19*B$8 -> 103628.545 | C17: ='G-12 FS'!B19*C$8 -> 121517.765 | E17: ='G-12 FS'!E19*E$8 -> 214774.3634 | F17: ='G-12 FS'!E19*F$8 -> 1476362.357 | H17: ='G-12 FS'!H19*H$8 -> 320473.4946 | I17: ='G-12 FS'!H19*I$8 -> 315891.6654 | K17: ='G-12 FS'!K19*K$8 -> 0 | L17: ='G-12 FS'!K19*L$8 -> 0 | N17: ='G-12 FS'!N19*N$8 -> 0 | O17: ='G-12 FS'!N19*O$8 -> 0 | Q17: ='G-12 FS'!Q19*Q$8 -> 0 | R17: ='G-12 FS'!Q19*R$8 -> 0 | T17: 638876.403 | U17: 1913771.787
A19: Total Revenue | B19: =SUM(B10:B18) -> 3882343.39 | C19: =SUM(C10:C18) -> 4552545.75 | E19: =SUM(E10:E18) -> 5791585.347 | F19: =SUM(F10:F18) -> 39811448.88 | H19: =SUM(H10:H18) -> 9836206.523 | I19: =SUM(I10:I18) -> 9695577.677 | K19: =SUM(K10:K18) -> 1502548.263 | L19: =SUM(L10:L18) -> 144802.0966 | N19: =SUM(N10:N18) -> 0 | O19: =SUM(O10:O18) -> 13445625.23 | Q19: ='G-12 FS'!$Q29*Q$8 -> 0 | R19: ='G-12 FS'!$Q29*R$8 -> 28889083.45 | T19: =+B19+E19+H19+K19+N19+Q19 -> 21012683.52 | U19: =+C19+F19+I19+L19+O19+R19 -> 96539083.09 | W19: 29877097 | X19: 29229596
A21: Tipping & Disposal Costs | B21: =SUM('G-12 FS'!B31*B$8) -> 1112384.707 | C21: =SUM('G-12 FS'!B31*C$8) -> 1304413.793 | E21: =SUM('G-12 FS'!E31*E$8) -> 1524308.72 | F21: =SUM('G-12 FS'!E31*F$8) -> 10478122.15 | H21: =SUM('G-12 FS'!H31*H$8) -> 2718312.545 | I21: =SUM('G-12 FS'!H31*I$8) -> 2679448.665 | K21: =SUM('G-12 FS'!K31*K$8) -> 88982.0863 | L21: =SUM('G-12 FS'!K31*L$8) -> 8575.293702 | N21: =SUM('G-12 FS'!N31*N$8) -> 0 | O21: =SUM('G-12 FS'!N31*O$8) -> 153269.88 | Q21: =SUM('G-12 FS'!Q31*Q$8) -> 0 | R21: =SUM('G-12 FS'!Q31*R$8) -> 876441.49 | T21: =+B21+E21+H21+K21+N21+Q21 -> 5443988.059 | U21: =+C21+F21+I21+L21+O21+R21 -> 15500271.27
A22: Cost of Goods Sold | B22: =SUM('G-12 FS'!B32*B$8) -> 491168.4606 | C22: =SUM('G-12 FS'!B32*C$8) -> 575958.0394 | E22: =SUM('G-12 FS'!E32*E$8) -> 759082.8379 | F22: =SUM('G-12 FS'!E32*F$8) -> 5217947.382 | H22: =SUM('G-12 FS'!H32*H$8) -> 939051.9919 | I22: =SUM('G-12 FS'!H32*I$8) -> 925626.3081 | K22: =SUM('G-12 FS'!K32*K$8) -> 0 | L22: =SUM('G-12 FS'!K32*L$8) -> 0 | N22: =SUM('G-12 FS'!N32*N$8) -> 0 | O22: =SUM('G-12 FS'!N32*O$8) -> 3178269.94 | Q22: =SUM('G-12 FS'!Q32*Q$8) -> 0 | R22: =SUM('G-12 FS'!Q32*R$8) -> 9008232.59 | T22: 2189303.29 | U22: 18906034.26
A23: Transportation | B23: =SUM('G-12 FS'!B33*B$8) -> 0 | C23: =SUM('G-12 FS'!B33*C$8) -> 0 | E23: =SUM('G-12 FS'!E33*E$8) -> 0 | F23: =SUM('G-12 FS'!E33*F$8) -> 0 | H23: =SUM('G-12 FS'!H33*H$8) -> 0 | I23: =SUM('G-12 FS'!H33*I$8) -> 0 | K23: =SUM('G-12 FS'!K33*K$8) -> 0 | L23: =SUM('G-12 FS'!K33*L$8) -> 0 | N23: =SUM('G-12 FS'!N33*N$8) -> 0 | O23: =SUM('G-12 FS'!N33*O$8) -> 4567.07 | Q23: =SUM('G-12 FS'!Q33*Q$8) -> 0 | R23: =SUM('G-12 FS'!Q33*R$8) -> 0 | T23: 0 | U23: 4567.07
A24: Subcontract | B24: =SUM('G-12 FS'!B34*B$8) -> 0 | C24: =SUM('G-12 FS'!B34*C$8) -> 0 | E24: =SUM('G-12 FS'!E34*E$8) -> 0 | F24: =SUM('G-12 FS'!E34*F$8) -> 0 | H24: =SUM('G-12 FS'!H34*H$8) -> 0 | I24: =SUM('G-12 FS'!H34*I$8) -> 0 | K24: =SUM('G-12 FS'!K34*K$8) -> 0 | L24: =SUM('G-12 FS'!K34*L$8) -> 0 | N24: =SUM('G-12 FS'!N34*N$8) -> 0 | O24: =SUM('G-12 FS'!N34*O$8) -> 0 | Q24: =SUM('G-12 FS'!Q34*Q$8) -> 0 | R24: =SUM('G-12 FS'!Q34*R$8) -> 3835.5 | T24: 0 | U24: 3835.5
A25: Franchise Fees / Taxes | B25: =SUM('G-12 FS'!B35*B$8) -> 88957.23652 | C25: =SUM('G-12 FS'!B35*C$8) -> 104313.7735 | E25: =SUM('G-12 FS'!E35*E$8) -> 231778.763 | F25: =SUM('G-12 FS'!E35*F$8) -> 1593250.867 | H25: =SUM('G-12 FS'!H35*H$8) -> 300971.7961 | I25: =SUM('G-12 FS'!H35*I$8) -> 296668.7839 | K25: =SUM('G-12 FS'!K35*K$8) -> 0 | L25: =SUM('G-12 FS'!K35*L$8) -> 0 | N25: =SUM('G-12 FS'!N35*N$8) -> 0 | O25: =SUM('G-12 FS'!N35*O$8) -> 4373.45 | Q25: =SUM('G-12 FS'!Q35*Q$8) -> 0 | R25: =SUM('G-12 FS'!Q35*R$8) -> 0 | T25: 621707.7956 | U25: 1998606.874
A26: COGS Other | B26: =SUM('G-12 FS'!B36*B$8) -> 0 | C26: =SUM('G-12 FS'!B36*C$8) -> 0 | E26: =SUM('G-12 FS'!E36*E$8) -> 0 | F26: =SUM('G-12 FS'!E36*F$8) -> 0 | H26: =SUM('G-12 FS'!H36*H$8) -> 0 | I26: =SUM('G-12 FS'!H36*I$8) -> 0 | K26: =SUM('G-12 FS'!K36*K$8) -> 0 | L26: =SUM('G-12 FS'!K36*L$8) -> 0 | N26: =SUM('G-12 FS'!N36*N$8) -> 0 | O26: =SUM('G-12 FS'!N36*O$8) -> 33227.72 | Q26: =SUM('G-12 FS'!Q36*Q$8) -> 0 | R26: =SUM('G-12 FS'!Q36*R$8) -> 0 | T26: 0 | U26: 33227.72
A27: Total Revenue Reductions | B27: =SUM(B20:B26) -> 1692510.404 | C27: =SUM(C20:C26) -> 1984685.606 | E27: =SUM(E20:E26) -> 2515170.321 | F27: =SUM(F20:F26) -> 17289320.4 | H27: =SUM(H20:H26) -> 3958336.333 | I27: =SUM(I20:I26) -> 3901743.757 | K27: =SUM(K20:K26) -> 88982.0863 | L27: =SUM(L20:L26) -> 8575.293702 | N27: =SUM(N20:N26) -> 0 | O27: =SUM(O20:O26) -> 3373708.06 | Q27: =SUM(Q20:Q26) -> 0 | R27: =SUM(R20:R26) -> 9888509.58 | T27: 8254999.145 | U27: 36446542.7
A29: Net Revenue | B29: =+B19-B27 -> 2189832.987 | C29: =+C19-C27 -> 2567860.143 | E29: =+E19-E27 -> 3276415.026 | F29: =+F19-F27 -> 22522128.48 | H29: =+H19-H27 -> 5877870.19 | I29: =+I19-I27 -> 5793833.92 | K29: =+K19-K27 -> 1413566.177 | L29: =+L19-L27 -> 136226.8029 | N29: =+N19-N27 -> 0 | O29: =+O19-O27 -> 10071917.17 | Q29: =+Q19-Q27 -> 0 | R29: =+R19-R27 -> 19000573.87 | T29: =+B29+E29+H29+K29+N29+Q29 -> 12757684.38 | U29: =+C29+F29+I29+L29+O29+R29 -> 60092540.39
A31: Operating Labor | B31: ='G-12 FS'!B41*B$8 -> 765476.9507 | C31: ='G-12 FS'!B41*C$8 -> 897619.9393 | E31: ='G-12 FS'!E41*E$8 -> 1235978.07 | F31: ='G-12 FS'!E41*F$8 -> 8496132.72 | H31: ='G-12 FS'!H41*H$8 -> 1902916.104 | I31: ='G-12 FS'!H41*I$8 -> 1875709.996 | K31: ='G-12 FS'!K41*K$8 -> 522032.2717 | L31: ='G-12 FS'!K41*L$8 -> 50308.77829 | N31: ='G-12 FS'!N41*N$8 -> 0 | O31: ='G-12 FS'!N41*O$8 -> 2253434.2 | Q31: ='G-12 FS'!Q41*Q$8 -> 0 | R31: ='G-12 FS'!Q41*R$8 -> 5782236.03 | T31: =+B31+E31+H31+K31+N31+Q31 -> 4426403.397 | U31: 19355441.66
A32: Supervisor Labor | B32: ='G-12 FS'!B42*B$8 -> 84654.07984 | C32: ='G-12 FS'!B42*C$8 -> 99267.77016 | E32: ='G-12 FS'!E42*E$8 -> 148783.7791 | F32: ='G-12 FS'!E42*F$8 -> 1022742.041 | H32: ='G-12 FS'!H42*H$8 -> 220939.1855 | I32: ='G-12 FS'!H42*I$8 -> 217780.4045 | K32: ='G-12 FS'!K42*K$8 -> 0 | L32: ='G-12 FS'!K42*L$8 -> 0 | N32: ='G-12 FS'!N42*N$8 -> 0 | O32: ='G-12 FS'!N42*O$8 -> 466721.24 | Q32: ='G-12 FS'!Q42*Q$8 -> 0 | R32: ='G-12 FS'!Q42*R$8 -> 367503.82 | T32: 454377.0445 | U32: 2174015.275
A33: Equipment Operating | B33: ='G-12 FS'!B43*B$8 -> 148666.3822 | C33: ='G-12 FS'!B43*C$8 -> 174330.4078 | E33: ='G-12 FS'!E43*E$8 -> 192291.9052 | F33: ='G-12 FS'!E43*F$8 -> 1321817.585 | H33: ='G-12 FS'!H43*H$8 -> 516507.2982 | I33: ='G-12 FS'!H43*I$8 -> 509122.7618 | K33: ='G-12 FS'!K43*K$8 -> 222401.0735 | L33: ='G-12 FS'!K43*L$8 -> 21433.01651 | N33: ='G-12 FS'!N43*N$8 -> 0 | O33: ='G-12 FS'!N43*O$8 -> 529497.48 | Q33: ='G-12 FS'!Q43*Q$8 -> 0 | R33: ='G-12 FS'!Q43*R$8 -> 645735.7 | T33: 1079866.659 | U33: 3201936.951
A34: Equipment Maintenance | B34: ='G-12 FS'!B44*B$8 -> 345484.1715 | C34: ='G-12 FS'!B44*C$8 -> 405124.5185 | E34: ='G-12 FS'!E44*E$8 -> 321399.789 | F34: ='G-12 FS'!E44*F$8 -> 2209307.211 | H34: ='G-12 FS'!H44*H$8 -> 578050.552 | I34: ='G-12 FS'!H44*I$8 -> 569786.128 | K34: ='G-12 FS'!K44*K$8 -> 28720.04974 | L34: ='G-12 FS'!K44*L$8 -> 2767.780257 | N34: ='G-12 FS'!N44*N$8 -> 0 | O34: ='G-12 FS'!N44*O$8 -> 622655.29 | Q34: ='G-12 FS'!Q44*Q$8 -> 0 | R34: ='G-12 FS'!Q44*R$8 -> 3016978.96
A35: Container Maintenance | B35: ='G-12 FS'!B45*B$8 -> 27789.07918 | C35: ='G-12 FS'!B45*C$8 -> 32586.26082 | E35: ='G-12 FS'!E45*E$8 -> 39085.28124 | F35: ='G-12 FS'!E45*F$8 -> 268672.8388 | H35: ='G-12 FS'!H45*H$8 -> 8776.53936 | I35: ='G-12 FS'!H45*I$8 -> 8651.06064 | K35: ='G-12 FS'!K45*K$8 -> 1700.227368 | L35: ='G-12 FS'!K45*L$8 -> 163.852632 | N35: ='G-12 FS'!N45*N$8 -> 0 | O35: ='G-12 FS'!N45*O$8 -> 259600.55 | Q35: ='G-12 FS'!Q45*Q$8 -> 0 | R35: ='G-12 FS'!Q45*R$8 -> 0 | T35: =+B35+E35+H35+K35+N35+Q35 -> 77351.12715 | U35: 569674.5629
A36: Insurance Expense | B36: ='G-12 FS'!B46*B$8 -> 299041.9799 | C36: ='G-12 FS'!B46*C$8 -> 350665.0901 | E36: ='G-12 FS'!E46*E$8 -> 169638.1012 | F36: ='G-12 FS'!E46*F$8 -> 1166094.979 | H36: ='G-12 FS'!H46*H$8 -> 149466.9642 | I36: ='G-12 FS'!H46*I$8 -> 147330.0258 | K36: ='G-12 FS'!K46*K$8 -> 75532.48772 | L36: ='G-12 FS'!K46*L$8 -> 7279.142277 | N36: ='G-12 FS'!N46*N$8 -> 0 | O36: ='G-12 FS'!N46*O$8 -> 629988 | Q36: ='G-12 FS'!Q46*Q$8 -> 0 | R36: ='G-12 FS'!Q46*R$8 -> 488464.65 | T36: 693679.533 | U36: 2789821.887
A37: Occupancy / Facilty Expense | B37: ='G-12 FS'!B47*B$8 -> 40070.57249 | C37: ='G-12 FS'!B47*C$8 -> 46987.88751 | E37: ='G-12 FS'!E47*E$8 -> 133583.8413 | F37: ='G-12 FS'!E47*F$8 -> 918257.4287 | H37: ='G-12 FS'!H47*H$8 -> 201989.6844 | I37: ='G-12 FS'!H47*I$8 -> 199101.8256 | K37: ='G-12 FS'!K47*K$8 -> 373.50495 | L37: ='G-12 FS'!K47*L$8 -> 35.99505 | N37: ='G-12 FS'!N47*N$8 -> 0 | O37: ='G-12 FS'!N47*O$8 -> 512693.75 | Q37: ='G-12 FS'!Q47*Q$8 -> 0 | R37: ='G-12 FS'!Q47*R$8 -> 737197.61 | T37: 376017.6032 | U37: 2414274.497
A38: Other Operating Expense | B38: ='G-12 FS'!B48*B$8 -> 183262.8246 | C38: ='G-12 FS'!B48*C$8 -> 214899.1754 | E38: ='G-12 FS'!E48*E$8 -> 341915.7589 | F38: ='G-12 FS'!E48*F$8 -> 2350334.311 | H38: ='G-12 FS'!H48*H$8 -> 230410.0281 | I38: ='G-12 FS'!H48*I$8 -> 227115.8419 | K38: ='G-12 FS'!K48*K$8 -> 25525.86642 | L38: ='G-12 FS'!K48*L$8 -> 2459.953578 | N38: ='G-12 FS'!N48*N$8 -> 0 | O38: ='G-12 FS'!N48*O$8 -> 277287.53 | Q38: ='G-12 FS'!Q48*Q$8 -> 0 | R38: ='G-12 FS'!Q48*R$8 -> 434564.09 | T38: 781114.478 | U38: 3506660.902
A39: Pre-DD&A GOE | B39: =SUM(B30:B38) -> 1894446.04 | C39: =SUM(C30:C38) -> 2221481.05 | E39: =SUM(E30:E38) -> 2582676.526 | F39: =SUM(F30:F38) -> 17753359.11 | H39: =SUM(H30:H38) -> 3809056.356 | I39: =SUM(I30:I38) -> 3754598.044 | K39: =SUM(K30:K38) -> 876285.4814 | L39: =SUM(L30:L38) -> 84448.5186 | N39: =SUM(N30:N38) -> 0 | O39: =SUM(O30:O38) -> 5551878.04 | Q39: =SUM(Q30:Q38) -> 0 | R39: =SUM(R30:R38) -> 11472680.86 | T39: 9162464.404 | U39: 40838445.63
A41: Depreciation Total | B41: ='G-12 FS'!B51*B$8 -> 296463.7617 | C41: ='G-12 FS'!B51*C$8 -> 347641.7983 | E41: ='G-12 FS'!E51*E$8 -> 387556.1642 | F41: ='G-12 FS'!E51*F$8 -> 2664067.176 | H41: ='G-12 FS'!H51*H$8 -> 557998.7461 | I41: ='G-12 FS'!H51*I$8 -> 550021.0039 | K41: ='G-12 FS'!K51*K$8 -> 148357.2242 | L41: ='G-12 FS'!K51*L$8 -> 14297.33582 | N41: ='G-12 FS'!N51*N$8 -> 0 | O41: ='G-12 FS'!N51*O$8 -> 309563.6 | Q41: ='G-12 FS'!Q51*Q$8 -> 0 | R41: ='G-12 FS'!Q51*R$8 -> 1695158.34 | T41: =+B41+E41+H41+K41+N41+Q41 -> 1390375.896 | U41: 5580749.254
A42: Amortization Total | T42: 0 | U42: 0
A43: Total DD&A | B43: =SUM(B40:B42) -> 296463.7617 | C43: =SUM(C40:C42) -> 347641.7983 | E43: =SUM(E40:E42) -> 387556.1642 | F43: =SUM(F40:F42) -> 2664067.176 | H43: =SUM(H40:H42) -> 557998.7461 | I43: =SUM(I40:I42) -> 550021.0039 | K43: =SUM(K40:K42) -> 148357.2242 | L43: =SUM(L40:L42) -> 14297.33582 | N43: =SUM(N40:N42) -> 0 | O43: =SUM(O40:O42) -> 309563.6 | Q43: =SUM(Q40:Q42) -> 0 | R43: =SUM(R40:R42) -> 1695158.34 | T43: 1390375.896 | U43: 5580749.254
A45: GOE | B45: =+B39+B43 -> 2190909.802 | C45: =+C39+C43 -> 2569122.848 | E45: =+E39+E43 -> 2970232.69 | F45: =+F39+F43 -> 20417426.29 | H45: =+H39+H43 -> 4367055.102 | I45: =+I39+I43 -> 4304619.048 | K45: =+K39+K43 -> 1024642.706 | L45: =+L39+L43 -> 98745.85442 | N45: =+N39+N43 -> 0 | O45: =+O39+O43 -> 5861441.64 | Q45: =+Q39+Q43 -> 0 | R45: =+R39+R43 -> 13167839.2 | T45: =+B45+E45+H45+K45+N45+Q45 -> 10552840.3 | U45: =+C45+F45+I45+L45+O45+R45 -> 46419194.88
A47: Gross Operating Profit | B47: =+B29-B45 -> -1076.815576 | C47: =+C29-C45 -> -1262.704424 | E47: =+E29-E45 -> 306182.3353 | F47: =+F29-F45 -> 2104702.195 | H47: =+H29-H45 -> 1510815.088 | I47: =+I29-I45 -> 1489214.872 | K47: =+K29-K45 -> 388923.4715 | L47: =+L29-L45 -> 37480.94852 | N47: =+N29-N45 -> 0 | O47: =+O29-O45 -> 4210475.53 | Q47: =+Q29-Q45 -> 0 | R47: =+R29-R45 -> 5832734.67 | T47: =+B47+E47+H47+K47+N47+Q47 -> 2204844.079 | U47: =+C47+F47+I47+L47+O47+R47 -> 13673345.51
A49: Sales & Cust Svc Payroll & Related | B49: ='G-12 FS'!B59*B$8 -> 65625.50054 | C49: ='G-12 FS'!B59*C$8 -> 76954.31946 | E49: ='G-12 FS'!E59*E$8 -> 123047.5898 | F49: ='G-12 FS'!E59*F$8 -> 845831.0702 | H49: ='G-12 FS'!H59*H$8 -> 123553.3348 | I49: ='G-12 FS'!H59*I$8 -> 121786.8852 | K49: ='G-12 FS'!K59*K$8 -> 0 | L49: ='G-12 FS'!K59*L$8 -> 0 | N49: ='G-12 FS'!N59*N$8 -> 0 | O49: ='G-12 FS'!N59*O$8 -> 557363.7 | Q49: ='G-12 FS'!Q59*Q$8 -> 0 | R49: ='G-12 FS'!Q59*R$8 -> 0 | T49: =+B49+E49+H49+K49+N49+Q49 -> 312226.4251 | U49: 1601935.975
A50: Sales Expense | B50: ='G-12 FS'!B60*B$8 -> 11441.88812 | C50: ='G-12 FS'!B60*C$8 -> 13417.08188 | E50: ='G-12 FS'!E60*E$8 -> 18369.17459 | F50: ='G-12 FS'!E60*F$8 -> 126269.9954 | H50: ='G-12 FS'!H60*H$8 -> 15350.45822 | I50: ='G-12 FS'!H60*I$8 -> 15130.99178 | K50: ='G-12 FS'!K60*K$8 -> 0 | L50: ='G-12 FS'!K60*L$8 -> 0 | N50: ='G-12 FS'!N60*N$8 -> 0 | O50: ='G-12 FS'!N60*O$8 -> 60110.92 | Q50: ='G-12 FS'!Q60*Q$8 -> 0 | R50: ='G-12 FS'!Q60*R$8 -> 0 | T50: 45161.52093 | U50: 214928.9891
A51: Total Sales & Customer Svc Exp | B51: =SUM(B48:B50) -> 77067.38866 | C51: =SUM(C48:C50) -> 90371.40134 | E51: =SUM(E48:E50) -> 141416.7644 | F51: =SUM(F48:F50) -> 972101.0656 | H51: =SUM(H48:H50) -> 138903.793 | I51: =SUM(I48:I50) -> 136917.877 | K51: =SUM(K48:K50) -> 0 | L51: =SUM(L48:L50) -> 0 | N51: =SUM(N48:N50) -> 0 | O51: =SUM(O48:O50) -> 617474.62 | Q51: =SUM(Q48:Q50) -> 0 | R51: =SUM(R48:R50) -> 0 | T51: 357387.9461 | U51: 1816864.964
A53: G&A Payroll & Related | B53: ='G-12 FS'!B63*B$8 -> 213254.7196 | C53: ='G-12 FS'!B63*C$8 -> 250068.5204 | E53: ='G-12 FS'!E63*E$8 -> 103368.1245 | F53: ='G-12 FS'!E63*F$8 -> 710554.1155 | H53: ='G-12 FS'!H63*H$8 -> 118542.3788 | I53: ='G-12 FS'!H63*I$8 -> 116847.5712 | K53: ='G-12 FS'!K63*K$8 -> 118112.5993 | L53: ='G-12 FS'!K63*L$8 -> 11382.63072 | N53: ='G-12 FS'!N63*N$8 -> 0 | O53: ='G-12 FS'!N63*O$8 -> 255039.66 | Q53: ='G-12 FS'!Q63*Q$8 -> 0 | R53: ='G-12 FS'!Q63*R$8 -> 334791.67 | T53: =+B53+E53+H53+K53+N53+Q53 -> 553277.8222 | U53: 1678684.168
A54: G&E Expense | B54: =SUM('G-12 FS'!B64:B66)*B$8 -> 97338.89571 | C54: =SUM('G-12 FS'!B64:B66)*C$8 -> 114142.3443 | E54: =SUM('G-12 FS'!E64:E66)*E$8 -> 268868.3993 | F54: =SUM('G-12 FS'!E64:E66)*F$8 -> 1848205.611 | H54: =SUM('G-12 FS'!H64:H66)*H$8 -> 426330.975 | I54: =SUM('G-12 FS'!H64:H66)*I$8 -> 420235.695 | K54: =SUM('G-12 FS'!K64:K66)*K$8 -> 173925.7951 | L54: =SUM('G-12 FS'!K64:K66)*L$8 -> 16761.40488 | N54: =SUM('G-12 FS'!N64:N66)*N$8 -> 0 | O54: =SUM('G-12 FS'!N64:N66)*O$8 -> 663283.33 | Q54: =SUM('G-12 FS'!Q64:Q66)*Q$8 -> 0 | R54: =SUM('G-12 FS'!Q64:Q66)*R$8 -> 933385.17 | T54: 966464.0651 | U54: 3996013.555
A55: Total G&A Expense | B55: =SUM(B52:B54) -> 310593.6153 | C55: =SUM(C52:C54) -> 364210.8647 | E55: =SUM(E52:E54) -> 372236.5237 | F55: =SUM(F52:F54) -> 2558759.726 | H55: =SUM(H52:H54) -> 544873.3538 | I55: =SUM(I52:I54) -> 537083.2662 | K55: =SUM(K52:K54) -> 292038.3944 | L55: =SUM(L52:L54) -> 28144.0356 | N55: =SUM(N52:N54) -> 0 | O55: =SUM(O52:O54) -> 918322.99 | Q55: =SUM(Q52:Q54) -> 0 | R55: =SUM(R52:R54) -> 1268176.84 | T55: 1519741.887 | U55: 5674697.723
A57: Total SG&A | B57: =+B51+B55 -> 387661.004 | C57: =+C51+C55 -> 454582.266 | E57: =+E51+E55 -> 513653.2882 | F57: =+F51+F55 -> 3530860.792 | H57: =+H51+H55 -> 683777.1468 | I57: =+I51+I55 -> 674001.1432 | K57: =+K51+K55 -> 292038.3944 | L57: =+L51+L55 -> 28144.0356 | N57: =+N51+N55 -> 0 | O57: =+O51+O55 -> 1535797.61 | Q57: =+Q51+Q55 -> 0 | R57: =+R51+R55 -> 1268176.84 | T57: =+B57+E57+H57+K57+N57+Q57 -> 1877129.833 | U57: =+C57+F57+I57+L57+O57+R57 -> 7491562.687
A59: Operating Income | B59: =+B47-B57 -> -388737.8195 | C59: =+C47-C57 -> -455844.9705 | E59: =+E47-E57 -> -207470.9528 | F59: =+F47-F57 -> -1426158.597 | H59: =+H47-H57 -> 827037.941 | I59: =+I47-I57 -> 815213.729 | K59: =+K47-K57 -> 96885.07708 | L59: =+L47-L57 -> 9336.912921 | N59: =+N47-N57 -> 0 | O59: =+O47-O57 -> 2674677.92 | Q59: =+Q47-Q57 -> 0 | R59: =+R47-R57 -> 4564557.83 | T59: =+B59+E59+H59+K59+N59+Q59 -> 327714.2457 | U59: =+C59+F59+I59+L59+O59+R59 -> 6181782.824

Sheet RS Cap Struct.
A2: CAPITAL STRUCTURE CALCULATION | B2: 2014 | C2: 2013 | D2: 2012
A3: Source: Republic Services, Inc Annual Report
A4: http://www.republicservices.com/investors
A5: Generally published each Feb/Mar of following year
A6: (in millions)
A8: Accounts Payable | B8: 527.3 | C8: 511.4 | D8: 474.5 | E8: (pg 89)
A9: Notes Payable and current maturities of LTD | B9: 10.4 | C9: 15.7 | D9: 19.4
A10: Deferred Revenue | B10: 306.3 | C10: 301.8 | D10: 313.2
A11: Accrued Landfill and Environmental costs, current portion | B11: 164.3 | C11: 178.7 | D11: 195.5
A12: Accrued Interest | B12: 67 | C12: 68.2 | D12: 68.8
A13: Other Accrued Liabilities | B13: 750.7 | C13: 641.3 | D13: 623.6
A14: Total Current Liabilities | B14: =SUM(B8:B13) -> 1826 | C14: =SUM(C8:C13) -> 1717.1 | D14: 1695
A16: Long-term Debt, net of current maturities | B16: 7050.8 | C16: 7002.4 | D16: 7051.1
A17: Accrued Landfill and Environmental costs, net of current portion | B17: 1677.5 | C17: 1464.3 | D17: 1420.6
A18: Deferred Income Taxes and other long-term liabilities | B18: 1149 | C18: 1185.4 | D18: 1232.7
A19: Self-insurance reserves, net of current portion | B19: 298 | C19: 294.9 | D19: 290.9
A20: Other long-term liabilities | B20: 344.9 | C20: 379 | D20: 220.9
A22: Total Liabilities | B22: =SUM(B14:B21) -> 12346.2 | C22: =SUM(C14:C21) -> 12043.1 | D22: 11911.2
A24: Preferred Stock | B24: 0 | C24: 0 | D24: 0
A25: Common Stock | B25: 4.1 | C25: 4.1 | D25: 4.1
A26: Additional Paid-in Capital | B26: 6876.9 | C26: 6764.9 | D26: 6588.9
A27: Retained Earnings | B27: 2795 | C27: 2632.7 | D27: 2403.2
A28: Treasury stock | B28: -1901.8 | C28: -1501.2 | D28: -1287.1
A29: Accumulated other comprehensive income (loss), net of tax | B29: -28.9 | C29: 3 | D29: -5.8
A31: Non-controlling Interest | B31: 2.5 | C31: 2.6 | D31: 2.4
A33: Total Stockholder's Equity | B33: =SUM(B23:B32) -> 7747.8 | C33: =SUM(C23:C32) -> 7906.1 | D33: 7705.7
A35: Total Liabilities & Equity | B35: =+B22+B33 -> 20094 | C35: =+C22+C33 -> 19949.2 | D35: 19616.9
A37: Total Debt | B37: =B9+B16 -> 7061.2 | C37: =C9+C16 -> 7018.1 | D37: =D9+D16 -> 7070.5
A38: Total Net Equity | B38: =+B33-B29 -> 7776.7 | C38: =+C33-C29 -> 7903.1 | D38: =+D33-D29 -> 7711.5
A41: Debt Ratio | B41: =B37/SUM(B37:B38) -> 0.4758894453 | C41: =C37/SUM(C37:C38) -> 0.4703442082 | D41: =D37/SUM(D37:D38) -> 0.4783182249
A42: Equity Ratio | B42: =1-B41 -> 0.5241105547 | C42: =1-C41 -> 0.5296557918 | D42: =1-D41 -> 0.5216817751
A45: COST of DEBT CALCULATION
A46: Source: Republic Services, Inc Annual Report
A47: (in millions)
A49: As of: | B49: 42004 | C49: 41639 | D49: 41274
A50: Total Debt (Carrying Value) | B50: 7061.2 | C50: 7018.1 | D50: 7070.5 | E50: (pg 115)
A51: Interest paid | B51: 348.7 | C51: 360 | D51: 388.5 | E51: (pg 118)
A52: Effective Interest Rate | B52: =B51/B50 -> 0.04938254121 | C52: =C51/C50 -> 0.0512959348 | D52: =D51/D50 -> 0.05494660915
A56: TAX RATE
A57: Source: Republic Services, Inc Annual Report
A59: Effective Income Tax Rate | B59: 0.381 | C59: 0.308 | D59: 0.306 | E59: (pg 119)

Sheet Combined LG
B1: NEW IMPROVED LURITO - GALLAGHER FORMULA | AE1: !??! | AF1: OP/RATIO | AI1: curve
G2: NOTE: | N2: FORMULAS | U2: 1st Revenue | V2: 1st Turnover | W2: M | X2: ROR | Y2: ROE | AA2: Adj ROE | AB2: Pre Tax ROE | AC2: Adj M | AD2: Revenues | AE2: Decision | AI2: lookup table
B3: !!! | C3: Revenue Requirement | E3: =E5+E4 -> 3274652.857 | F3: !!!<-- | H3: Red numbers are linked fields. | N3: 1. less than 50 | Q3: @EXP(5.72260-(.68367*@LN(T))) | U3: =$E$6*1.25 -> 3760494.256 | V3: =100*(+U3/$E$7) -> 333.5294426 | W3: =EXP(5.7226-(0.68367*LN(+V3))) -> 5.758408348 | X3: =(+W3*V3)/100 -> 19.20598727 | Y3: =100*((((X3/100)-((X3/100)-0.03574)*$E$19)-0.03574-0.00619)/0.344) -> 26.32907011 | Z3: =+$E$18 -> 0.25 | AA3: =Y3+Z3 -> 26.57907011 | AB3: =100*($E$15*$E$17+($E$16*(AA3/100))/(1-$E$19)) -> 24.85470143 | AC3: =AB3/V3 -> 0.07452026194 | AD3: =$E$6/(1-AC3) -> 3250633.462 | AE3: =IF(AD3=$U$3,"yes","not yet") -> not yet | AF3: =100*(1-AC3) -> 92.54797381 | AI3: 0 | AJ3: 1
B4: !!! | C4: Revenue Deficiency | E4: =SUM('MSW:MF RCY'!E4) -> 394968.2471 | F4: !!!<-- | H4: Yellow cells are input fields. | N4: 2. Between 50 and 125 | Q4: @EXP(5.70827-(.68367*@LN(T))) | U4: =$E$6*1.25 -> 3760494.256 | V4: =100*(+U4/$E$7) -> 333.5294426 | W4: =EXP(5.70827-(0.68367*LN(+V4))) -> 5.676478783 | X4: =(+W4*V4)/100 -> 18.93272805 | Y4: =100*((((X4/100)-((X4/100)-0.03574)*$E$19)-0.03574-0.00619)/0.344) -> 25.83736239 | Z4: =+$E$18 -> 0.25 | AA4: =Y4+Z4 -> 26.08736239 | AB4: =100*($E$15*$E$17+($E$16*(AA4/100))/(1-$E$19)) -> 24.43836991 | AC4: =AB4/V4 -> 0.07327200179 | AD4: =$E$6/(1-AC4) -> 3246255.007 | AE4: =IF(AD4=$U$4,"yes","not yet") -> not yet | AF4: =100*(1-AC4) -> 92.67279982 | AI4: 50 | AJ4: 2
B5: * | C5: Revenue | E5: =SUM('MSW:MF RCY'!E5) -> 2879684.61 | F5: * p/f before rates | H5: Black are formula calculations | N5: 3. Between 125 and 140 | Q5: @EXP(5.69850-(.68367*@LN(T))) | U5: =$E$6*1.25 -> 3760494.256 | V5: =100*(+U5/$E$7) -> 333.5294426 | W5: =EXP(5.6985-(0.68367*LN(V5))) -> 5.621289624 | X5: =(+W5*V5)/100 -> 18.74865595 | Y5: =100*((((X5/100)-((X5/100)-0.03574)*$E$19)-0.03574-0.00619)/0.344) -> 25.50613963 | Z5: =+$E$18 -> 0.25 | AA5: =Y5+Z5 -> 25.75613963 | AB5: =100*($E$15*$E$17+($E$16*(AA5/100))/(1-$E$19)) -> 24.15792187 | AC5: =AB5/V5 -> 0.07243115233 | AD5: =$E$6/(1-AC5) -> 3243312.248 | AE5: =IF(AD5=$U$5,"yes","not yet") -> not yet | AF5: =100*(1-AC5) -> 92.75688477 | AI5: 125 | AJ5: 3
B6: * | C6: Expenses | E6: =SUM('MSW:MF RCY'!E6) -> 3008395.405 | F6: * p/f before rates | N6: 4. greater than 400 | Q6: @EXP(5.69220-(.68367*@LN(T))) | U6: =$E$6*1.25 -> 3760494.256 | V6: =100*(+U6/$E$7) -> 333.5294426 | W6: =EXP(5.6922-(0.68367*LN(V6))) -> 5.58598682 | X6: =(+W6*V6)/100 -> 18.6309107 | Y6: =100*((((X6/100)-((X6/100)-0.03574)*$E$19)-0.03574-0.00619)/0.344) -> 25.29426664 | Z6: =+$E$18 -> 0.25 | AA6: =Y6+Z6 -> 25.54426664 | AB6: =100*($E$15*$E$17+($E$16*(AA6/100))/(1-$E$19)) -> 23.9785279 | AC6: =AB6/V6 -> 0.07189328686 | AD6: =$E$6/(1-AC6) -> 3241432.652 | AE6: =IF(AD6=$U$6,"yes","not yet") -> not yet | AF6: =100*(1-AC6) -> 92.81067131 | AI6: 401 | AJ6: 4
B7: * | C7: Avg. Investment - | E7: =SUM('MSW:MF RCY'!E7) -> 1127484.946 | F7: * p/f before rates
C8: curve turnover | E8: =V3 -> 333.5294426 | F8: (calculated) | V8: 2nd Turnover | W8: M | X8: ROR | Y8: ROE | AI8: lookup tables
C9: final turnover | E9: =HLOOKUP($AJ$32,$AJ$26:$AR$30,$E$10+1) -> 289.737527 | F9: (calculated) | V9: =100*(+AD3/$E$7) -> 288.3083693 | W9: =EXP(5.7226-(0.68367*LN(+V9))) -> 6.361550751 | X9: =(+W9*V9)/100 -> 18.34088323 | Y9: =100*((((X9/100)-((X9/100)-0.03574)*$E$19)-0.03574-0.00619)/0.344) -> 24.77238582 | Z9: =+$E$18 -> 0.25 | AA9: =Y9+Z9 -> 25.02238582 | AB9: =100*($E$15*$E$17+($E$16*(AA9/100))/(1-$E$19)) -> 23.53664865 | AC9: =AB9/V9 -> 0.08163706351 | AD9: =$E$6/(1-AC9) -> 3275824.062 | AE9: =IF(OR(OR(AD9=AD3,AD9=(AD3+1)),AD9=(AD8187-1)),"yes","not yet") -> not yet | AF9: =100*(1-AC9) -> 91.83629365
C10: curve No. used | E10: =VLOOKUP(E8,AI3:AJ6,2) -> 3 | F10: (calculated) | V10: =100*(+AD4/$E$7) -> 287.9200311 | W10: =EXP(5.70827-(0.68367*LN(+V10))) -> 6.276821171 | X10: =(+W10*V10)/100 -> 18.07222547 | Y10: =100*((((X10/100)-((X10/100)-0.03574)*$E$19)-0.03574-0.00619)/0.344) -> 24.28895804 | Z10: =+$E$18 -> 0.25 | AA10: =Y10+Z10 -> 24.53895804 | AB10: =100*($E$15*$E$17+($E$16*(AA10/100))/(1-$E$19)) -> 23.12732781 | AC10: =AB10/V10 -> 0.08032552554 | AD10: =$E$6/(1-AC10) -> 3271152.444 | AE10: =IF(OR(OR(AD10=AD4,AD10=(AD4+1)),AD10=(AD4-1)),"yes","not yet") -> not yet | AF10: =100*(1-AC10) -> 91.96744745
V11: =100*(+AD5/$E$7) -> 287.659029 | W11: =EXP(5.6985-(0.68367*LN(V11))) -> 6.219650425 | X11: =(+W11*V11)/100 -> 17.89138602 | Y11: =100*((((X11/100)-((X11/100)-0.03574)*$E$19)-0.03574-0.00619)/0.344) -> 23.96355217 | Z11: =+$E$18 -> 0.25 | AA11: =Y11+Z11 -> 24.21355217 | AB11: =100*($E$15*$E$17+($E$16*(AA11/100))/(1-$E$19)) -> 22.85180496 | AC11: =AB11/V11 -> 0.07944059685 | AD11: =$E$6/(1-AC11) -> 3268007.903 | AE11: =IF(OR(OR(AD11=AD5,AD11=(AD5+1)),AD11=(AD5-1)),"yes","not yet") -> not yet | AF11: =100*(1-AC11) -> 92.05594032 | AJ11: 1 | AK11: 2 | AL11: 3 | AM11: 4 | AN11: 5 | AO11: 6 | AP11: 7 | AQ11: 8 | AR11: 9
C12: Company actual | V12: =100*(+AD6/$E$7) -> 287.4923221 | W12: =EXP(5.6922-(0.68367*LN(V12))) -> 6.183039786 | X12: =(+W12*V12)/100 -> 17.77576466 | Y12: =100*((((X12/100)-((X12/100)-0.03574)*$E$19)-0.03574-0.00619)/0.344) -> 23.75550094 | Z12: =+$E$18 -> 0.25 | AA12: =Y12+Z12 -> 24.00550094 | AB12: =100*($E$15*$E$17+($E$16*(AA12/100))/(1-$E$19)) -> 22.67564688 | AC12: =AB12/V12 -> 0.07887392163 | AD12: =$E$6/(1-AC12) -> 3265997.43 | AE12: =IF(OR(OR(AD12=AD6,AD12=(AD6+1)),AD12=(AD6-1)),"yes","not yet") -> not yet | AF12: =100*(1-AC12) -> 92.11260784 | AJ12: =AE3 -> not yet | AK12: =AE9 -> not yet | AL12: =AE15 -> not yet | AM12: =AE21 -> not yet | AN12: =AE27 -> not yet | AO12: =AE33 -> not yet | AP12: =AE39 -> yes | AQ12: =AE45 -> yes | AR12: =AE51 -> yes
C13: capital structure: | E13: !!! | F13: OPERATING RATIO -> | H13: =HLOOKUP($AJ$23,$AJ$17:$AR$21,$E$10+1) -> 92.09147791 | I13: !!!<-- | AJ13: =AE4 -> not yet | AK13: =AE10 -> not yet | AL13: =AE16 -> not yet | AM13: =AE22 -> not yet | AN13: =AE28 -> not yet | AO13: =AE34 -> not yet | AP13: =AE40 -> yes | AQ13: =AE46 -> yes | AR13: =AE52 -> yes
C14: - | D14: - | H14: = | V14: 3rd Turnover | W14: M | X14: ROR | Y14: ROE | AJ14: =AE5 -> not yet | AK14: =AE11 -> not yet | AL14: =AE17 -> not yet | AM14: =AE23 -> not yet | AN14: =AE29 -> not yet | AO14: =AE35 -> not yet | AP14: =AE41 -> yes | AQ14: =AE47 -> yes | AR14: =AE53 -> yes
B15: * | C15: Actual Debt Ratio | E15: =+'RS Cap Struct.'!B41 -> 0.4758894453 | F15: Conversion factor data: | V15: =100*(+AD9/$E$7) -> 290.5425987 | W15: =EXP(5.7226-(0.68367*LN(+V15))) -> 6.328065224 | X15: =(+W15*V15)/100 -> 18.38572515 | Y15: =100*((((X15/100)-((X15/100)-0.03574)*$E$19)-0.03574-0.00619)/0.344) -> 24.85307519 | Z15: =+$E$18 -> 0.25 | AA15: =Y15+Z15 -> 25.10307519 | AB15: =100*($E$15*$E$17+($E$16*(AA15/100))/(1-$E$19)) -> 23.60496877 | AC15: =AB15/V15 -> 0.08124443328 | AD15: =$E$6/(1-AC15) -> 3274424.138 | AE15: =IF(OR(OR(AD15=AD9,AD15=(AD9+1)),AD15=(AD1-1)),"yes","not yet") -> not yet | AF15: =100*(1-AC15) -> 91.87555667 | AJ15: =AE6 -> not yet | AK15: =AE12 -> not yet | AL15: =AE18 -> not yet | AM15: =AE24 -> not yet | AN15: =AE30 -> not yet | AO15: =AE36 -> not yet | AP15: =AE42 -> yes | AQ15: =AE48 -> yes | AR15: =AE54 -> yes
B16: * | C16: Actual Equity Ratio | E16: =1-E15 -> 0.5241105547 | F16: B & O Tax | H16: 0.015 | I16: * | V16: =100*(+AD10/$E$7) -> 290.128259 | W16: =EXP(5.70827-(0.68367*LN(+V16))) -> 6.244119919 | X16: =(+W16*V16)/100 -> 18.11595641 | Y16: =100*((((X16/100)-((X16/100)-0.03574)*$E$19)-0.03574-0.00619)/0.344) -> 24.3676483 | Z16: =+$E$18 -> 0.25 | AA16: =Y16+Z16 -> 24.6176483 | AB16: =100*($E$15*$E$17+($E$16*(AA16/100))/(1-$E$19)) -> 23.19395527 | AC16: =AB16/V16 -> 0.07994379919 | AD16: =$E$6/(1-AC16) -> 3269795.26 | AE16: =IF(OR(OR(AD16=AD10,AD16=(AD10+1)),AD16=(AD10-1)),"yes","not yet") -> not yet | AF16: =100*(1-AC16) -> 92.00562008
B17: * | C17: Actual Cost of Debt | E17: =+'RS Cap Struct.'!B52 -> 0.04938254121 | F17: WUTC Fee | H17: 0.004275 | I17: * | V17: =100*(+AD11/$E$7) -> 289.8493603 | W17: =EXP(5.6985-(0.68367*LN(V17))) -> 6.187478989 | X17: =(+W17*V17)/100 -> 17.93436827 | Y17: =100*((((X17/100)-((X17/100)-0.03574)*$E$19)-0.03574-0.00619)/0.344) -> 24.04089523 | Z17: =+$E$18 -> 0.25 | AA17: =Y17+Z17 -> 24.29089523 | AB17: =100*($E$15*$E$17+($E$16*(AA17/100))/(1-$E$19)) -> 22.91729172 | AC17: =AB17/V17 -> 0.07906621461 | AD17: =$E$6/(1-AC17) -> 3266679.377 | AE17: =IF(OR(OR(AD17=AD11,AD17=(AD11+1)),AD17=(AD11-1)),"yes","not yet") -> not yet | AF17: =100*(1-AC17) -> 92.09337854 | AJ17: =HLOOKUP(1,$AJ$11:$AR$15,$E$10+1) -> not yet | AK17: =HLOOKUP(2,$AJ$11:$AR$15,$E$10+1) -> not yet | AL17: =HLOOKUP(3,$AJ$11:$AR$15,$E$10+1) -> not yet | AM17: =HLOOKUP(4,$AJ$11:$AR$15,$E$10+1) -> not yet | AN17: =HLOOKUP(5,$AJ$11:$AR$15,$E$10+1) -> not yet | AO17: =HLOOKUP(6,$AJ$11:$AR$15,$E$10+1) -> not yet | AP17: =HLOOKUP(7,$AJ$11:$AR$15,$E$10+1) -> yes | AQ17: =HLOOKUP(8,$AJ$11:$AR$15,$E$10+1) -> yes | AR17: =HLOOKUP(9,$AJ$11:$AR$15,$E$10+1) -> yes
B18: * | C18: Basis Points | E18: 0.25 | F18: City Tax | H18: 0 | I18: * | V18: =100*(+AD12/$E$7) -> 289.6710454 | W18: =EXP(5.6922-(0.68367*LN(V18))) -> 6.151207809 | X18: =(+W18*V18)/100 -> 17.81826797 | Y18: =100*((((X18/100)-((X18/100)-0.03574)*$E$19)-0.03574-0.00619)/0.344) -> 23.83198219 | Z18: =+$E$18 -> 0.25 | AA18: =Y18+Z18 -> 24.08198219 | AB18: =100*($E$15*$E$17+($E$16*(AA18/100))/(1-$E$19)) -> 22.74040396 | AC18: =AB18/V18 -> 0.07850423546 | AD18: =$E$6/(1-AC18) -> 3264687.175 | AE18: =IF(OR(OR(AD18=AD12,AD18=(AD12+1)),AD18=(AD12-1)),"yes","not yet") -> not yet | AF18: =100*(1-AC18) -> 92.14957645 | AI18: 1 | AJ18: =AF3 -> 92.54797381 | AK18: =AF9 -> 91.83629365 | AL18: =AF15 -> 91.87555667 | AM18: =AF21 -> 91.8733873 | AN18: =AF27 -> 91.87350715 | AO18: =AF33 -> 91.87350053 | AP18: =AF39 -> 91.87350025 | AQ18: =AF45 -> 91.87350025 | AR18: =AF51 -> 91.87350025
B19: * | C19: Tax Rate | E19: =+'RS Cap Struct.'!B59 -> 0.381 | F19: Bad Debts | H19: 0.006 | I19: * | AI19: 2 | AJ19: =AF4 -> 92.67279982 | AK19: =AF10 -> 91.96744745 | AL19: =AF16 -> 92.00562008 | AM19: =AF22 -> 92.00355115 | AN19: =AF28 -> 92.00366327 | AO19: =AF34 -> 92.0036572 | AP19: =AF40 -> 92.00365749 | AQ19: =AF46 -> 92.00365749 | AR19: =AF52 -> 92.00365749
H20: - | V20: 4th Turnover | W20: M | X20: ROR | Y20: ROE | AI20: 3 | AJ20: =AF5 -> 92.75688477 | AK20: =AF11 -> 92.05594032 | AL20: =AF17 -> 92.09337854 | AM20: =AF23 -> 92.09137594 | AN20: =AF29 -> 92.09148306 | AO20: =AF35 -> 92.09147733 | AP20: =AF41 -> 92.09147791 | AQ20: =AF47 -> 92.09147791 | AR20: =AF53 -> 92.09147791
F21: Revenue Sensitive | H21: =SUM(H16:H19) -> 0.025275 | V21: =100*(+AD15/$E$7) -> 290.4184353 | W21: =EXP(5.7226-(0.68367*LN(+V21))) -> 6.329914737 | X21: =(+W21*V21)/100 -> 18.38323933 | Y21: =100*((((X21/100)-((X21/100)-0.03574)*$E$19)-0.03574-0.00619)/0.344) -> 24.84860217 | Z21: =+$E$18 -> 0.25 | AA21: =Y21+Z21 -> 25.09860217 | AB21: =100*($E$15*$E$17+($E$16*(AA21/100))/(1-$E$19)) -> 23.60118144 | AC21: =AB21/V21 -> 0.081266127 | AD21: =$E$6/(1-AC21) -> 3274501.456 | AE21: =IF(OR(OR(AD21=AD15,AD21=(AD15+1)),AD21=(AD7-1)),"yes","not yet") -> not yet | AF21: =100*(1-AC21) -> 91.8733873 | AI21: 4 | AJ21: =AF6 -> 92.81067131 | AK21: =AF12 -> 92.11260784 | AL21: =AF18 -> 92.14957645 | AM21: =AF24 -> 92.14761573 | AN21: =AF30 -> 92.14771971 | AO21: =AF36 -> 92.1477142 | AP21: =AF42 -> 92.14771426 | AQ21: =AF48 -> 92.14771426 | AR21: =AF54 -> 92.14771426
V22: =100*(+AD16/$E$7) -> 290.0078863 | W22: =EXP(5.70827-(0.68367*LN(+V22))) -> 6.245891689 | X22: =(+W22*V22)/100 -> 18.11357847 | Y22: =100*((((X22/100)-((X22/100)-0.03574)*$E$19)-0.03574-0.00619)/0.344) -> 24.36336939 | Z22: =+$E$18 -> 0.25 | AA22: =Y22+Z22 -> 24.61336939 | AB22: =100*($E$15*$E$17+($E$16*(AA22/100))/(1-$E$19)) -> 23.1903323 | AC22: =AB22/V22 -> 0.07996448853 | AD22: =$E$6/(1-AC22) -> 3269868.79 | AE22: =IF(OR(OR(AD22=AD16,AD22=(AD16+1)),AD22=(AD16-1)),"yes","not yet") -> not yet | AF22: =100*(1-AC22) -> 92.00355115
F23: Conversion Factor | H23: =((+H13/100)-H21) -> 0.8956397791 | V23: =100*(+AD17/$E$7) -> 289.7315294 | W23: =EXP(5.6985-(0.68367*LN(V23))) -> 6.189199256 | X23: =(+W23*V23)/100 -> 17.93206166 | Y23: =100*((((X23/100)-((X23/100)-0.03574)*$E$19)-0.03574-0.00619)/0.344) -> 24.03674467 | Z23: =+$E$18 -> 0.25 | AA23: =Y23+Z23 -> 24.28674467 | AB23: =100*($E$15*$E$17+($E$16*(AA23/100))/(1-$E$19)) -> 22.91377743 | AC23: =AB23/V23 -> 0.07908624056 | AD23: =$E$6/(1-AC23) -> 3266750.414 | AE23: =IF(OR(OR(AD23=AD17,AD23=(AD17+1)),AD23=(AD17-1)),"yes","not yet") -> not yet | AF23: =100*(1-AC23) -> 92.09137594 | AJ23: yes
V24: =100*(+AD18/$E$7) -> 289.554835 | W24: =EXP(5.6922-(0.68367*LN(V24))) -> 6.152895502 | X24: =(+W24*V24)/100 -> 17.81600642 | Y24: =100*((((X24/100)-((X24/100)-0.03574)*$E$19)-0.03574-0.00619)/0.344) -> 23.82791272 | Z24: =+$E$18 -> 0.25 | AA24: =Y24+Z24 -> 24.07791272 | AB24: =100*($E$15*$E$17+($E$16*(AA24/100))/(1-$E$19)) -> 22.73695832 | AC24: =AB24/V24 -> 0.07852384269 | AD24: =$E$6/(1-AC24) -> 3264756.642 | AE24: =IF(OR(OR(AD24=AD18,AD24=(AD18+1)),AD24=(AD18-1)),"yes","not yet") -> not yet | AF24: =100*(1-AC24) -> 92.14761573 | AJ24: =HLOOKUP($AJ$23,$AJ$17:$AR$21,$E$10+1) -> 92.09147791
C26: Company Reference | V26: 5th Turnover | W26: M | X26: ROR | Y26: ROE | AJ26: =HLOOKUP(1,$AJ$11:$AR$15,$E$10+1) -> not yet | AK26: =HLOOKUP(2,$AJ$11:$AR$15,$E$10+1) -> not yet | AL26: =HLOOKUP(3,$AJ$11:$AR$15,$E$10+1) -> not yet | AM26: =HLOOKUP(4,$AJ$11:$AR$15,$E$10+1) -> not yet | AN26: =HLOOKUP(5,$AJ$11:$AR$15,$E$10+1) -> not yet | AO26: =HLOOKUP(6,$AJ$11:$AR$15,$E$10+1) -> not yet | AP26: =HLOOKUP(7,$AJ$11:$AR$15,$E$10+1) -> yes | AQ26: =HLOOKUP(8,$AJ$11:$AR$15,$E$10+1) -> yes | AR26: =HLOOKUP(9,$AJ$11:$AR$15,$E$10+1) -> yes
C27: Annl Price Increase (PI) $ | E27: =+E4 -> 394968.2471 | V27: =100*(+AD21/$E$7) -> 290.4252928 | W27: =EXP(5.7226-(0.68367*LN(+V27))) -> 6.329812554 | X27: =(+W27*V27)/100 -> 18.38337664 | Y27: =100*((((X27/100)-((X27/100)-0.03574)*$E$19)-0.03574-0.00619)/0.344) -> 24.84884925 | Z27: =+$E$18 -> 0.25 | AA27: =Y27+Z27 -> 25.09884925 | AB27: =100*($E$15*$E$17+($E$16*(AA27/100))/(1-$E$19)) -> 23.60139065 | AC27: =AB27/V27 -> 0.08126492847 | AD27: =$E$6/(1-AC27) -> 3274497.184 | AE27: =IF(OR(OR(AD27=AD21,AD27=(AD21+1)),AD27=(AD13-1)),"yes","not yet") -> not yet | AF27: =100*(1-AC27) -> 91.87350715 | AI27: 1 | AJ27: =V3 -> 333.5294426 | AK27: =V9 -> 288.3083693 | AL27: =V15 -> 290.5425987 | AM27: =V21 -> 290.4184353 | AN27: =V27 -> 290.4252928 | AO27: =V33 -> 290.4249139 | AP27: =V39 -> 290.4248976 | AQ27: =V45 -> 290.4248976 | AR27: =V51 -> 290.4248976
C28: Monthly PI $ | E28: =+E27/12 -> 32914.02059 | V28: =100*(+AD22/$E$7) -> 290.0144079 | W28: =EXP(5.70827-(0.68367*LN(+V28))) -> 6.245795666 | X28: =(+W28*V28)/100 -> 18.11370732 | Y28: =100*((((X28/100)-((X28/100)-0.03574)*$E$19)-0.03574-0.00619)/0.344) -> 24.36360125 | Z28: =+$E$18 -> 0.25 | AA28: =Y28+Z28 -> 24.61360125 | AB28: =100*($E$15*$E$17+($E$16*(AA28/100))/(1-$E$19)) -> 23.19052861 | AC28: =AB28/V28 -> 0.07996336727 | AD28: =$E$6/(1-AC28) -> 3269864.805 | AE28: =IF(OR(OR(AD28=AD22,AD28=(AD22+1)),AD28=(AD22-1)),"yes","not yet") -> not yet | AF28: =100*(1-AC28) -> 92.00366327 | AI28: 2 | AJ28: =V4 -> 333.5294426 | AK28: =V10 -> 287.9200311 | AL28: =V16 -> 290.128259 | AM28: =V22 -> 290.0078863 | AN28: =V28 -> 290.0144079 | AO28: =V34 -> 290.0140544 | AP28: =V40 -> 290.0140717 | AQ28: =V46 -> 290.0140717 | AR28: =V52 -> 290.0140717
C29: Percentage PI | E29: =+E4/E5 -> 0.1371567725 | V29: =100*(+AD23/$E$7) -> 289.7378298 | W29: =EXP(5.6985-(0.68367*LN(V29))) -> 6.189107243 | X29: =(+W29*V29)/100 -> 17.93218501 | Y29: =100*((((X29/100)-((X29/100)-0.03574)*$E$19)-0.03574-0.00619)/0.344) -> 24.03696663 | Z29: =+$E$18 -> 0.25 | AA29: =Y29+Z29 -> 24.28696663 | AB29: =100*($E$15*$E$17+($E$16*(AA29/100))/(1-$E$19)) -> 22.91396536 | AC29: =AB29/V29 -> 0.07908516944 | AD29: =$E$6/(1-AC29) -> 3266746.614 | AE29: =IF(OR(OR(AD29=AD23,AD29=(AD23+1)),AD29=(AD23-1)),"yes","not yet") -> not yet | AF29: =100*(1-AC29) -> 92.09148306 | AI29: 3 | AJ29: =V5 -> 333.5294426 | AK29: =V11 -> 287.659029 | AL29: =V17 -> 289.8493603 | AM29: =V23 -> 289.7315294 | AN29: =V29 -> 289.7378298 | AO29: =V35 -> 289.7374928 | AP29: =V41 -> 289.737527 | AQ29: =V47 -> 289.737527 | AR29: =V53 -> 289.737527
V30: =100*(+AD24/$E$7) -> 289.5609962 | W30: =EXP(5.6922-(0.68367*LN(V30))) -> 6.152805997 | X30: =(+W30*V30)/100 -> 17.81612634 | Y30: =100*((((X30/100)-((X30/100)-0.03574)*$E$19)-0.03574-0.00619)/0.344) -> 23.8281285 | Z30: =+$E$18 -> 0.25 | AA30: =Y30+Z30 -> 24.0781285 | AB30: =100*($E$15*$E$17+($E$16*(AA30/100))/(1-$E$19)) -> 22.73714102 | AC30: =AB30/V30 -> 0.07852280285 | AD30: =$E$6/(1-AC30) -> 3264752.958 | AE30: =IF(OR(OR(AD30=AD24,AD30=(AD24+1)),AD30=(AD24-1)),"yes","not yet") -> not yet | AF30: =100*(1-AC30) -> 92.14771971 | AI30: 4 | AJ30: =V6 -> 333.5294426 | AK30: =V12 -> 287.4923221 | AL30: =V18 -> 289.6710454 | AM30: =V24 -> 289.554835 | AN30: =V30 -> 289.5609962 | AO30: =V36 -> 289.5606695 | AP30: =V42 -> 289.5606732 | AQ30: =V48 -> 289.5606732 | AR30: =V54 -> 289.5606732
V32: 6th Turnover | W32: M | X32: ROR | Y32: ROE | AJ32: yes
C33: MSW | E33: =+MSW!E4 -> 218183.6766 | F33: =+MSW!E29 -> 0.1272749505 | V33: =100*(+AD27/$E$7) -> 290.4249139 | W33: =EXP(5.7226-(0.68367*LN(+V33))) -> 6.329818199 | X33: =(+W33*V33)/100 -> 18.38336906 | Y33: =100*((((X33/100)-((X33/100)-0.03574)*$E$19)-0.03574-0.00619)/0.344) -> 24.8488356 | Z33: =+$E$18 -> 0.25 | AA33: =Y33+Z33 -> 25.0988356 | AB33: =100*($E$15*$E$17+($E$16*(AA33/100))/(1-$E$19)) -> 23.60137909 | AC33: =AB33/V33 -> 0.08126499469 | AD33: =ROUND($E$6/(1-AC33),0) -> 3274497 | AE33: =IF(OR(OR(AD33=AD27,AD33=(AD27+1)),AD33=(AD19-1)),"yes","not yet") -> not yet | AF33: =100*(1-AC33) -> 91.87350053 | AJ33: =HLOOKUP($AJ$32,$AJ$26:$AR$30,$E$10+1) -> 289.737527
C34: RCY | E34: =+RCY!E4 -> 108271.895 | F34: =+RCY!E29 -> 0.2264864358 | V34: =100*(+AD28/$E$7) -> 290.0140544 | W34: =EXP(5.70827-(0.68367*LN(+V34))) -> 6.24580087 | X34: =(+W34*V34)/100 -> 18.11370033 | Y34: =100*((((X34/100)-((X34/100)-0.03574)*$E$19)-0.03574-0.00619)/0.344) -> 24.36358868 | Z34: =+$E$18 -> 0.25 | AA34: =Y34+Z34 -> 24.61358868 | AB34: =100*($E$15*$E$17+($E$16*(AA34/100))/(1-$E$19)) -> 23.19051797 | AC34: =AB34/V34 -> 0.07996342804 | AD34: =ROUND($E$6/(1-AC34),0) -> 3269865 | AE34: =IF(OR(OR(AD34=AD28,AD34=(AD28+1)),AD34=(AD28-1)),"yes","not yet") -> not yet | AF34: =100*(1-AC34) -> 92.0036572
C35: YW | E35: =+YW!E4 -> 56152.10705 | F35: =+YW!E29 -> 0.1002782632 | V35: =100*(+AD29/$E$7) -> 289.7374928 | W35: =EXP(5.6985-(0.68367*LN(V35))) -> 6.189112165 | X35: =(+W35*V35)/100 -> 17.93217841 | Y35: =100*((((X35/100)-((X35/100)-0.03574)*$E$19)-0.03574-0.00619)/0.344) -> 24.03695476 | Z35: =+$E$18 -> 0.25 | AA35: =Y35+Z35 -> 24.28695476 | AB35: =100*($E$15*$E$17+($E$16*(AA35/100))/(1-$E$19)) -> 22.91395531 | AC35: =AB35/V35 -> 0.07908522673 | AD35: =ROUND($E$6/(1-AC35),0) -> 3266747 | AE35: =IF(OR(OR(AD35=AD29,AD35=(AD29+1)),AD35=(AD29-1)),"yes","not yet") -> not yet | AF35: =100*(1-AC35) -> 92.09147733 | AJ35: =HLOOKUP(1,$AJ$11:$AR$15,$E$10+1) -> not yet | AK35: =HLOOKUP(2,$AJ$11:$AR$15,$E$10+1) -> not yet | AL35: =HLOOKUP(3,$AJ$11:$AR$15,$E$10+1) -> not yet | AM35: =HLOOKUP(4,$AJ$11:$AR$15,$E$10+1) -> not yet | AN35: =HLOOKUP(5,$AJ$11:$AR$15,$E$10+1) -> not yet | AO35: =HLOOKUP(6,$AJ$11:$AR$15,$E$10+1) -> not yet | AP35: =HLOOKUP(7,$AJ$11:$AR$15,$E$10+1) -> yes | AQ35: =HLOOKUP(8,$AJ$11:$AR$15,$E$10+1) -> yes | AR35: =HLOOKUP(9,$AJ$11:$AR$15,$E$10+1) -> yes
C36: MF RCY | E36: =+'MF RCY'!E4 -> 12360.56838 | F36: =+'MF RCY'!E28 -> 0.6389350369 | V36: =100*(+AD30/$E$7) -> 289.5606695 | W36: =EXP(5.6922-(0.68367*LN(V36))) -> 6.152810744 | X36: =(+W36*V36)/100 -> 17.81611998 | Y36: =100*((((X36/100)-((X36/100)-0.03574)*$E$19)-0.03574-0.00619)/0.344) -> 23.82811706 | Z36: =+$E$18 -> 0.25 | AA36: =Y36+Z36 -> 24.07811706 | AB36: =100*($E$15*$E$17+($E$16*(AA36/100))/(1-$E$19)) -> 22.73713133 | AC36: =AB36/V36 -> 0.078522858 | AD36: =ROUND($E$6/(1-AC36),0) -> 3264753 | AE36: =IF(OR(OR(AD36=AD30,AD36=(AD30+1)),AD36=(AD30-1)),"yes","not yet") -> not yet | AF36: =100*(1-AC36) -> 92.1477142 | AI36: 1 | AJ36: =AD3 -> 3250633.462 | AK36: =AD9 -> 3275824.062 | AL36: =AD15 -> 3274424.138 | AM36: =AD21 -> 3274501.456 | AN36: =AD27 -> 3274497.184 | AO36: =AD33 -> 3274497 | AP36: =AD39 -> 3274497 | AQ36: =AD45 -> 3274497 | AR36: =AD51 -> 3274497
AI37: 2 | AJ37: =AD4 -> 3246255.007 | AK37: =AD10 -> 3271152.444 | AL37: =AD16 -> 3269795.26 | AM37: =AD22 -> 3269868.79 | AN37: =AD28 -> 3269864.805 | AO37: =AD34 -> 3269865 | AP37: =AD40 -> 3269865 | AQ37: =AD46 -> 3269865 | AR37: =AD52 -> 3269865
V38: 7th turnover | W38: M | X38: ROR | Y38: ROE | AI38: 3 | AJ38: =AD5 -> 3243312.248 | AK38: =AD11 -> 3268007.903 | AL38: =AD17 -> 3266679.377 | AM38: =AD23 -> 3266750.414 | AN38: =AD29 -> 3266746.614 | AO38: =AD35 -> 3266747 | AP38: =AD41 -> 3266747 | AQ38: =AD47 -> 3266747 | AR38: =AD53 -> 3266747
V39: =100*(+AD33/$E$7) -> 290.4248976 | W39: =EXP(5.7226-(0.68367*LN(+V39))) -> 6.329818443 | X39: =(+W39*V39)/100 -> 18.38336873 | Y39: =100*((((X39/100)-((X39/100)-0.03574)*$E$19)-0.03574-0.00619)/0.344) -> 24.84883501 | Z39: =+$E$18 -> 0.25 | AA39: =Y39+Z39 -> 25.09883501 | AB39: =100*($E$15*$E$17+($E$16*(AA39/100))/(1-$E$19)) -> 23.60137859 | AC39: =AB39/V39 -> 0.08126499754 | AD39: =ROUND($E$6/(1-AC39),0) -> 3274497 | AE39: =IF(OR(OR(AD39=AD33,AD39=(AD33+1)),AD39=(AD25-1)),"yes","not yet") -> yes | AF39: =100*(1-AC39) -> 91.87350025 | AI39: 4 | AJ39: =AD6 -> 3241432.652 | AK39: =AD12 -> 3265997.43 | AL39: =AD18 -> 3264687.175 | AM39: =AD24 -> 3264756.642 | AN39: =AD30 -> 3264752.958 | AO39: =AD36 -> 3264753 | AP39: =AD42 -> 3264753 | AQ39: =AD48 -> 3264753 | AR39: =AD54 -> 3264753
V40: =100*(+AD34/$E$7) -> 290.0140717 | W40: =EXP(5.70827-(0.68367*LN(+V40))) -> 6.245800615 | X40: =(+W40*V40)/100 -> 18.11370068 | Y40: =100*((((X40/100)-((X40/100)-0.03574)*$E$19)-0.03574-0.00619)/0.344) -> 24.3635893 | Z40: =+$E$18 -> 0.25 | AA40: =Y40+Z40 -> 24.6135893 | AB40: =100*($E$15*$E$17+($E$16*(AA40/100))/(1-$E$19)) -> 23.19051849 | AC40: =AB40/V40 -> 0.07996342506 | AD40: =ROUND($E$6/(1-AC40),0) -> 3269865 | AE40: =IF(OR(OR(AD40=AD34,AD40=(AD34+1)),AD40=(AD34-1)),"yes","not yet") -> yes | AF40: =100*(1-AC40) -> 92.00365749
V41: =100*(+AD35/$E$7) -> 289.737527 | W41: =EXP(5.6985-(0.68367*LN(V41))) -> 6.189111665 | X41: =(+W41*V41)/100 -> 17.93217908 | Y41: =100*((((X41/100)-((X41/100)-0.03574)*$E$19)-0.03574-0.00619)/0.344) -> 24.03695597 | Z41: =+$E$18 -> 0.25 | AA41: =Y41+Z41 -> 24.28695597 | AB41: =100*($E$15*$E$17+($E$16*(AA41/100))/(1-$E$19)) -> 22.91395633 | AC41: =AB41/V41 -> 0.07908522092 | AD41: =ROUND($E$6/(1-AC41),0) -> 3266747 | AE41: =IF(OR(OR(AD41=AD35,AD41=(AD35+1)),AD41=(AD35-1)),"yes","not yet") -> yes | AF41: =100*(1-AC41) -> 92.09147791 | AJ41: yes
V42: =100*(+AD36/$E$7) -> 289.5606732 | W42: =EXP(5.6922-(0.68367*LN(V42))) -> 6.152810689 | X42: =(+W42*V42)/100 -> 17.81612005 | Y42: =100*((((X42/100)-((X42/100)-0.03574)*$E$19)-0.03574-0.00619)/0.344) -> 23.82811719 | Z42: =+$E$18 -> 0.25 | AA42: =Y42+Z42 -> 24.07811719 | AB42: =100*($E$15*$E$17+($E$16*(AA42/100))/(1-$E$19)) -> 22.73713144 | AC42: =AB42/V42 -> 0.07852285736 | AD42: =ROUND($E$6/(1-AC42),0) -> 3264753 | AE42: =IF(OR(OR(AD42=AD36,AD42=(AD36+1)),AD42=(AD36-1)),"yes","not yet") -> yes | AF42: =100*(1-AC42) -> 92.14771426 | AJ42: =HLOOKUP($AJ$32,$AJ$35:$AR$39,$E$10+1) -> 3266747
V44: 8th turnover | W44: M | X44: ROR | Y44: ROE
V45: =100*(+AD39/$E$7) -> 290.4248976 | W45: =EXP(5.7226-(0.68367*LN(+V45))) -> 6.329818443 | X45: =(+W45*V45)/100 -> 18.38336873 | Y45: =100*((((X45/100)-((X45/100)-0.03574)*$E$19)-0.03574-0.00619)/0.344) -> 24.84883501 | Z45: =+$E$18 -> 0.25 | AA45: =Y45+Z45 -> 25.09883501 | AB45: =100*($E$15*$E$17+($E$16*(AA45/100))/(1-$E$19)) -> 23.60137859 | AC45: =AB45/V45 -> 0.08126499754 | AD45: =ROUND($E$6/(1-AC45),0) -> 3274497 | AE45: =IF(OR(OR(AD45=AD39,AD45=(AD39+1)),AD45=(AD31-1)),"yes","not yet") -> yes | AF45: =100*(1-AC45) -> 91.87350025
V46: =100*(+AD40/$E$7) -> 290.0140717 | W46: =EXP(5.70827-(0.68367*LN(+V46))) -> 6.245800615 | X46: =(+W46*V46)/100 -> 18.11370068 | Y46: =100*((((X46/100)-((X46/100)-0.03574)*$E$19)-0.03574-0.00619)/0.344) -> 24.3635893 | Z46: =+$E$18 -> 0.25 | AA46: =Y46+Z46 -> 24.6135893 | AB46: =100*($E$15*$E$17+($E$16*(AA46/100))/(1-$E$19)) -> 23.19051849 | AC46: =AB46/V46 -> 0.07996342506 | AD46: =ROUND($E$6/(1-AC46),0) -> 3269865 | AE46: =IF(OR(OR(AD46=AD40,AD46=(AD40+1)),AD46=(AD40-1)),"yes","not yet") -> yes | AF46: =100*(1-AC46) -> 92.00365749
V47: =100*(+AD41/$E$7) -> 289.737527 | W47: =EXP(5.6985-(0.68367*LN(V47))) -> 6.189111665 | X47: =(+W47*V47)/100 -> 17.93217908 | Y47: =100*((((X47/100)-((X47/100)-0.03574)*$E$19)-0.03574-0.00619)/0.344) -> 24.03695597 | Z47: =+$E$18 -> 0.25 | AA47: =Y47+Z47 -> 24.28695597 | AB47: =100*($E$15*$E$17+($E$16*(AA47/100))/(1-$E$19)) -> 22.91395633 | AC47: =AB47/V47 -> 0.07908522092 | AD47: =ROUND($E$6/(1-AC47),0) -> 3266747 | AE47: =IF(OR(OR(AD47=AD41,AD47=(AD41+1)),AD47=(AD41-1)),"yes","not yet") -> yes | AF47: =100*(1-AC47) -> 92.09147791
V48: =100*(+AD42/$E$7) -> 289.5606732 | W48: =EXP(5.6922-(0.68367*LN(V48))) -> 6.152810689 | X48: =(+W48*V48)/100 -> 17.81612005 | Y48: =100*((((X48/100)-((X48/100)-0.03574)*$E$19)-0.03574-0.00619)/0.344) -> 23.82811719 | Z48: =+$E$18 -> 0.25 | AA48: =Y48+Z48 -> 24.07811719 | AB48: =100*($E$15*$E$17+($E$16*(AA48/100))/(1-$E$19)) -> 22.73713144 | AC48: =AB48/V48 -> 0.07852285736 | AD48: =ROUND($E$6/(1-AC48),0) -> 3264753 | AE48: =IF(OR(OR(AD48=AD42,AD48=(AD42+1)),AD48=(AD42-1)),"yes","not yet") -> yes | AF48: =100*(1-AC48) -> 92.14771426
V50: 9th turnover | W50: M | X50: ROR | Y50: ROE
V51: =100*(+AD45/$E$7) -> 290.4248976 | W51: =EXP(5.7226-(0.68367*LN(+V51))) -> 6.329818443 | X51: =(+W51*V51)/100 -> 18.38336873 | Y51: =100*((((X51/100)-((X51/100)-0.03574)*$E$19)-0.03574-0.00619)/0.344) -> 24.84883501 | Z51: =+$E$18 -> 0.25 | AA51: =Y51+Z51 -> 25.09883501 | AB51: =100*($E$15*$E$17+($E$16*(AA51/100))/(1-$E$19)) -> 23.60137859 | AC51: =AB51/V51 -> 0.08126499754 | AD51: =ROUND($E$6/(1-AC51),0) -> 3274497 | AE51: =IF(OR(OR(AD51=AD45,AD51=(AD45+1)),AD51=(AD37-1)),"yes","not yet") -> yes | AF51: =100*(1-AC51) -> 91.87350025
V52: =100*(+AD46/$E$7) -> 290.0140717 | W52: =EXP(5.70827-(0.68367*LN(+V52))) -> 6.245800615 | X52: =(+W52*V52)/100 -> 18.11370068 | Y52: =100*((((X52/100)-((X52/100)-0.03574)*$E$19)-0.03574-0.00619)/0.344) -> 24.3635893 | Z52: =+$E$18 -> 0.25 | AA52: =Y52+Z52 -> 24.6135893 | AB52: =100*($E$15*$E$17+($E$16*(AA52/100))/(1-$E$19)) -> 23.19051849 | AC52: =AB52/V52 -> 0.07996342506 | AD52: =ROUND($E$6/(1-AC52),0) -> 3269865 | AE52: =IF(OR(OR(AD52=AD46,AD52=(AD46+1)),AD52=(AD46-1)),"yes","not yet") -> yes | AF52: =100*(1-AC52) -> 92.00365749
V53: =100*(+AD47/$E$7) -> 289.737527 | W53: =EXP(5.6985-(0.68367*LN(V53))) -> 6.189111665 | X53: =(+W53*V53)/100 -> 17.93217908 | Y53: =100*((((X53/100)-((X53/100)-0.03574)*$E$19)-0.03574-0.00619)/0.344) -> 24.03695597 | Z53: =+$E$18 -> 0.25 | AA53: =Y53+Z53 -> 24.28695597 | AB53: =100*($E$15*$E$17+($E$16*(AA53/100))/(1-$E$19)) -> 22.91395633 | AC53: =AB53/V53 -> 0.07908522092 | AD53: =ROUND($E$6/(1-AC53),0) -> 3266747 | AE53: =IF(OR(OR(AD53=AD47,AD53=(AD47+1)),AD53=(AD47-1)),"yes","not yet") -> yes | AF53: =100*(1-AC53) -> 92.09147791
V54: =100*(+AD48/$E$7) -> 289.5606732 | W54: =EXP(5.6922-(0.68367*LN(V54))) -> 6.152810689 | X54: =(+W54*V54)/100 -> 17.81612005 | Y54: =100*((((X54/100)-((X54/100)-0.03574)*$E$19)-0.03574-0.00619)/0.344) -> 23.82811719 | Z54: =+$E$18 -> 0.25 | AA54: =Y54+Z54 -> 24.07811719 | AB54: =100*($E$15*$E$17+($E$16*(AA54/100))/(1-$E$19)) -> 22.73713144 | AC54: =AB54/V54 -> 0.07852285736 | AD54: =ROUND($E$6/(1-AC54),0) -> 3264753 | AE54: =IF(OR(OR(AD54=AD48,AD54=(AD48+1)),AD54=(AD48-1)),"yes","not yet") -> yes | AF54: =100*(1-AC54) -> 92.14771426

Sheet MSW
B1: NEW IMPROVED LURITO - GALLAGHER FORMULA | AE1: !??! | AF1: OP/RATIO | AI1: curve
G2: NOTE: | N2: FORMULAS | U2: 1st Revenue | V2: 1st Turnover | W2: M | X2: ROR | Y2: ROE | AA2: Adj ROE | AB2: Pre Tax ROE | AC2: Adj M | AD2: Revenues | AE2: Decision | AI2: lookup table
B3: !!! | C3: Revenue Requirement | E3: =E5+E4 -> 2040509.567 | F3: !!!<-- | H3: Red numbers are input/linked fields. | N3: 1. less than 50 | Q3: @EXP(5.72260-(.68367*@LN(T))) | U3: =$E$6*1.25 -> 2366944.088 | V3: =100*(+U3/$E$7) -> 411.3093389 | W3: =EXP(5.7226-(0.68367*LN(+V3))) -> 4.989591321 | X3: =(+W3*V3)/100 -> 20.52265508 | Y3: =100*((((X3/100)-((X3/100)-0.03574)*$E$19)-0.03574-0.00619)/0.344) -> 28.69830666 | Z3: =+$E$18 -> 0.25 | AA3: =Y3+Z3 -> 28.94830666 | AB3: =100*($E$15*$E$17+($E$16*(AA3/100))/(1-$E$19)) -> 26.86074648 | AC3: =AB3/V3 -> 0.06530546218 | AD3: =$E$6/(1-AC3) -> 2025854.644 | AE3: =IF(AD3=$U$3,"yes","not yet") -> not yet | AF3: =100*(1-AC3) -> 93.46945378 | AI3: 0 | AJ3: 1
B4: !!! | C4: Revenue Deficiency | E4: =(+E6-((H13/100)*E5))/H23 -> 218183.6766 | F4: !!!<-- | H4: Black are formula calculations | N4: 2. Between 50 and 125 | Q4: @EXP(5.70827-(.68367*@LN(T))) | U4: =$E$6*1.25 -> 2366944.088 | V4: =100*(+U4/$E$7) -> 411.3093389 | W4: =EXP(5.70827-(0.68367*LN(+V4))) -> 4.918600342 | X4: =(+W4*V4)/100 -> 20.23066255 | Y4: =100*((((X4/100)-((X4/100)-0.03574)*$E$19)-0.03574-0.00619)/0.344) -> 28.17288988 | Z4: =+$E$18 -> 0.25 | AA4: =Y4+Z4 -> 28.42288988 | AB4: =100*($E$15*$E$17+($E$16*(AA4/100))/(1-$E$19)) -> 26.41587333 | AC4: =AB4/V4 -> 0.06422385982 | AD4: =$E$6/(1-AC4) -> 2023513.091 | AE4: =IF(AD4=$U$4,"yes","not yet") -> not yet | AF4: =100*(1-AC4) -> 93.57761402 | AI4: 50 | AJ4: 2
B5: * | C5: Revenue | E5: =Proforma!O20 -> 1822325.891 | F5: * p/f before rates | N5: 3. Between 125 and 140 | Q5: @EXP(5.69850-(.68367*@LN(T))) | U5: =$E$6*1.25 -> 2366944.088 | V5: =100*(+U5/$E$7) -> 411.3093389 | W5: =EXP(5.6985-(0.68367*LN(V5))) -> 4.870779602 | X5: =(+W5*V5)/100 -> 20.03397138 | Y5: =100*((((X5/100)-((X5/100)-0.03574)*$E$19)-0.03574-0.00619)/0.344) -> 27.81896013 | Z5: =+$E$18 -> 0.25 | AA5: =Y5+Z5 -> 28.06896013 | AB5: =100*($E$15*$E$17+($E$16*(AA5/100))/(1-$E$19)) -> 26.11619914 | AC5: =AB5/V5 -> 0.06349527392 | AD5: =$E$6/(1-AC5) -> 2021938.83 | AE5: =IF(AD5=$U$5,"yes","not yet") -> not yet | AF5: =100*(1-AC5) -> 93.65047261 | AI5: 125 | AJ5: 3
B6: * | C6: Expenses | E6: =+Proforma!O374 -> 1893555.27 | F6: * p/f before rates | N6: 4. greater than 400 | Q6: @EXP(5.69220-(.68367*@LN(T))) | U6: =$E$6*1.25 -> 2366944.088 | V6: =100*(+U6/$E$7) -> 411.3093389 | W6: =EXP(5.6922-(0.68367*LN(V6))) -> 4.840190148 | X6: =(+W6*V6)/100 -> 19.9081541 | Y6: =100*((((X6/100)-((X6/100)-0.03574)*$E$19)-0.03574-0.00619)/0.344) -> 27.59256217 | Z6: =+$E$18 -> 0.25 | AA6: =Y6+Z6 -> 27.84256217 | AB6: =100*($E$15*$E$17+($E$16*(AA6/100))/(1-$E$19)) -> 25.92450681 | AC6: =AB6/V6 -> 0.06302921999 | AD6: =$E$6/(1-AC6) -> 2020933.108 | AE6: =IF(AD6=$U$6,"yes","not yet") -> not yet | AF6: =100*(1-AC6) -> 93.697078 | AI6: 401 | AJ6: 4
B7: * | C7: Avg. Investment - | E7: =SUM('Ave Inv. Summary'!I64:J64) -> 575465.6809 | F7: * p/f before rates
C8: curve turnover | E8: =V3 -> 411.3093389 | F8: (calculated) | V8: 2nd Turnover | W8: M | X8: ROR | Y8: ROE | AI8: lookup tables
C9: final turnover | E9: =HLOOKUP($AJ$32,$AJ$26:$AR$30,$E$10+1) -> 353.5543591 | F9: (calculated) | V9: =100*(+AD3/$E$7) -> 352.0374388 | W9: =EXP(5.7226-(0.68367*LN(+V9))) -> 5.549670534 | X9: =(+W9*V9)/100 -> 19.53691801 | Y9: =100*((((X9/100)-((X9/100)-0.03574)*$E$19)-0.03574-0.00619)/0.344) -> 26.92455305 | Z9: =+$E$18 -> 0.25 | AA9: =Y9+Z9 -> 27.17455305 | AB9: =100*($E$15*$E$17+($E$16*(AA9/100))/(1-$E$19)) -> 25.35889996 | AC9: =AB9/V9 -> 0.07203466782 | AD9: =$E$6/(1-AC9) -> 2040545.271 | AE9: =IF(OR(OR(AD9=AD3,AD9=(AD3+1)),AD9=(AD8187-1)),"yes","not yet") -> not yet | AF9: =100*(1-AC9) -> 92.79653322
C10: curve No. used | E10: =VLOOKUP(E8,AI3:AJ6,2) -> 4 | F10: (calculated) | V10: =100*(+AD4/$E$7) -> 351.6305418 | W10: =EXP(5.70827-(0.68367*LN(+V10))) -> 5.475038071 | X10: =(+W10*V10)/100 -> 19.25190603 | Y10: =100*((((X10/100)-((X10/100)-0.03574)*$E$19)-0.03574-0.00619)/0.344) -> 26.41169719 | Z10: =+$E$18 -> 0.25 | AA10: =Y10+Z10 -> 26.66169719 | AB10: =100*($E$15*$E$17+($E$16*(AA10/100))/(1-$E$19)) -> 24.92466221 | AC10: =AB10/V10 -> 0.07088309817 | AD10: =$E$6/(1-AC10) -> 2038016.17 | AE10: =IF(OR(OR(AD10=AD4,AD10=(AD4+1)),AD10=(AD4-1)),"yes","not yet") -> not yet | AF10: =100*(1-AC10) -> 92.91169018
V11: =100*(+AD5/$E$7) -> 351.3569787 | W11: =EXP(5.6985-(0.68367*LN(V11))) -> 5.424693069 | X11: =(+W11*V11)/100 -> 19.06003767 | Y11: =100*((((X11/100)-((X11/100)-0.03574)*$E$19)-0.03574-0.00619)/0.344) -> 26.0664457 | Z11: =+$E$18 -> 0.25 | AA11: =Y11+Z11 -> 26.3164457 | AB11: =100*($E$15*$E$17+($E$16*(AA11/100))/(1-$E$19)) -> 24.63233596 | AC11: =AB11/V11 -> 0.07010629488 | AD11: =$E$6/(1-AC11) -> 2036313.677 | AE11: =IF(OR(OR(AD11=AD5,AD11=(AD5+1)),AD11=(AD5-1)),"yes","not yet") -> not yet | AF11: =100*(1-AC11) -> 92.98937051 | AJ11: 1 | AK11: 2 | AL11: 3 | AM11: 4 | AN11: 5 | AO11: 6 | AP11: 7 | AQ11: 8 | AR11: 9
C12: Company actual | V12: =100*(+AD6/$E$7) -> 351.182212 | W12: =EXP(5.6922-(0.68367*LN(V12))) -> 5.392458839 | X12: =(+W12*V12)/100 -> 18.93735623 | Y12: =100*((((X12/100)-((X12/100)-0.03574)*$E$19)-0.03574-0.00619)/0.344) -> 25.84569043 | Z12: =+$E$18 -> 0.25 | AA12: =Y12+Z12 -> 26.09569043 | AB12: =100*($E$15*$E$17+($E$16*(AA12/100))/(1-$E$19)) -> 24.44542131 | AC12: =AB12/V12 -> 0.06960893939 | AD12: =$E$6/(1-AC12) -> 2035225.133 | AE12: =IF(OR(OR(AD12=AD6,AD12=(AD6+1)),AD12=(AD6-1)),"yes","not yet") -> not yet | AF12: =100*(1-AC12) -> 93.03910606 | AJ12: =AE3 -> not yet | AK12: =AE9 -> not yet | AL12: =AE15 -> not yet | AM12: =AE21 -> not yet | AN12: =AE27 -> not yet | AO12: =AE33 -> not yet | AP12: =AE39 -> yes | AQ12: =AE45 -> yes | AR12: =AE51 -> yes
C13: capital structure: | E13: !!! | F13: OPERATING RATIO -> | H13: =HLOOKUP($AJ$23,$AJ$17:$AR$21,$E$10+1) -> 93.06841257 | I13: !!!<-- | AJ13: =AE4 -> not yet | AK13: =AE10 -> not yet | AL13: =AE16 -> not yet | AM13: =AE22 -> not yet | AN13: =AE28 -> not yet | AO13: =AE34 -> not yet | AP13: =AE40 -> yes | AQ13: =AE46 -> yes | AR13: =AE52 -> yes
C14: - | D14: - | H14: = | V14: 3rd Turnover | W14: M | X14: ROR | Y14: ROE | AJ14: =AE5 -> not yet | AK14: =AE11 -> not yet | AL14: =AE17 -> not yet | AM14: =AE23 -> not yet | AN14: =AE29 -> not yet | AO14: =AE35 -> not yet | AP14: =AE41 -> yes | AQ14: =AE47 -> yes | AR14: =AE53 -> yes
B15: * | C15: Actual Debt Ratio | E15: =+'Combined LG'!E15 -> 0.4758894453 | F15: Conversion factor data: | V15: =100*(+AD9/$E$7) -> 354.5902629 | W15: =EXP(5.7226-(0.68367*LN(+V15))) -> 5.522323916 | X15: =(+W15*V15)/100 -> 19.58162289 | Y15: =100*((((X15/100)-((X15/100)-0.03574)*$E$19)-0.03574-0.00619)/0.344) -> 27.00499585 | Z15: =+$E$18 -> 0.25 | AA15: =Y15+Z15 -> 27.25499585 | AB15: =100*($E$15*$E$17+($E$16*(AA15/100))/(1-$E$19)) -> 25.4270113 | AC15: =AB15/V15 -> 0.07170814871 | AD15: =$E$6/(1-AC15) -> 2039827.526 | AE15: =IF(OR(OR(AD15=AD9,AD15=(AD9+1)),AD15=(AD1-1)),"yes","not yet") -> not yet | AF15: =100*(1-AC15) -> 92.82918513 | AJ15: =AE6 -> not yet | AK15: =AE12 -> not yet | AL15: =AE18 -> not yet | AM15: =AE24 -> not yet | AN15: =AE30 -> not yet | AO15: =AE36 -> not yet | AP15: =AE42 -> yes | AQ15: =AE48 -> yes | AR15: =AE54 -> yes
B16: * | C16: Actual Equity Ratio | E16: =+'Combined LG'!E16 -> 0.5241105547 | F16: B & O Tax | H16: =+'Combined LG'!H16 -> 0.015 | I16: * | V16: =100*(+AD10/$E$7) -> 354.1507753 | W16: =EXP(5.70827-(0.68367*LN(+V16))) -> 5.448370937 | X16: =(+W16*V16)/100 -> 19.29544792 | Y16: =100*((((X16/100)-((X16/100)-0.03574)*$E$19)-0.03574-0.00619)/0.344) -> 26.49004727 | Z16: =+$E$18 -> 0.25 | AA16: =Y16+Z16 -> 26.74004727 | AB16: =100*($E$15*$E$17+($E$16*(AA16/100))/(1-$E$19)) -> 24.99100164 | AC16: =AB16/V16 -> 0.07056599442 | AD16: =$E$6/(1-AC16) -> 2037320.841 | AE16: =IF(OR(OR(AD16=AD10,AD16=(AD10+1)),AD16=(AD10-1)),"yes","not yet") -> not yet | AF16: =100*(1-AC16) -> 92.94340056
B17: * | C17: Actual Cost of Debt | E17: =+'Combined LG'!E17 -> 0.04938254121 | F17: WUTC Fee | H17: =+'Combined LG'!H17 -> 0.004275 | I17: * | V17: =100*(+AD11/$E$7) -> 353.8549291 | W17: =EXP(5.6985-(0.68367*LN(V17))) -> 5.398483107 | X17: =(+W17*V17)/100 -> 19.10279857 | Y17: =100*((((X17/100)-((X17/100)-0.03574)*$E$19)-0.03574-0.00619)/0.344) -> 26.14339046 | Z17: =+$E$18 -> 0.25 | AA17: =Y17+Z17 -> 26.39339046 | AB17: =100*($E$15*$E$17+($E$16*(AA17/100))/(1-$E$19)) -> 24.69748549 | AC17: =AB17/V17 -> 0.06979551069 | AD17: =$E$6/(1-AC17) -> 2035633.339 | AE17: =IF(OR(OR(AD17=AD11,AD17=(AD11+1)),AD17=(AD11-1)),"yes","not yet") -> not yet | AF17: =100*(1-AC17) -> 93.02044893 | AJ17: =HLOOKUP(1,$AJ$11:$AR$15,$E$10+1) -> not yet | AK17: =HLOOKUP(2,$AJ$11:$AR$15,$E$10+1) -> not yet | AL17: =HLOOKUP(3,$AJ$11:$AR$15,$E$10+1) -> not yet | AM17: =HLOOKUP(4,$AJ$11:$AR$15,$E$10+1) -> not yet | AN17: =HLOOKUP(5,$AJ$11:$AR$15,$E$10+1) -> not yet | AO17: =HLOOKUP(6,$AJ$11:$AR$15,$E$10+1) -> not yet | AP17: =HLOOKUP(7,$AJ$11:$AR$15,$E$10+1) -> yes | AQ17: =HLOOKUP(8,$AJ$11:$AR$15,$E$10+1) -> yes | AR17: =HLOOKUP(9,$AJ$11:$AR$15,$E$10+1) -> yes
B18: * | C18: Basis Points | E18: 0.25 | F18: City Tax | H18: =+'Combined LG'!H18 -> 0 | I18: * | V18: =100*(+AD12/$E$7) -> 353.6657703 | W18: =EXP(5.6922-(0.68367*LN(V18))) -> 5.36654103 | X18: =(+W18*V18)/100 -> 18.97961867 | Y18: =100*((((X18/100)-((X18/100)-0.03574)*$E$19)-0.03574-0.00619)/0.344) -> 25.92173825 | Z18: =+$E$18 -> 0.25 | AA18: =Y18+Z18 -> 26.17173825 | AB18: =100*($E$15*$E$17+($E$16*(AA18/100))/(1-$E$19)) -> 24.5098114 | AC18: =AB18/V18 -> 0.06930218715 | AD18: =$E$6/(1-AC18) -> 2034554.336 | AE18: =IF(OR(OR(AD18=AD12,AD18=(AD12+1)),AD18=(AD12-1)),"yes","not yet") -> not yet | AF18: =100*(1-AC18) -> 93.06978128 | AI18: 1 | AJ18: =AF3 -> 93.46945378 | AK18: =AF9 -> 92.79653322 | AL18: =AF15 -> 92.82918513 | AM18: =AF21 -> 92.82759857 | AN18: =AF27 -> 92.82767566 | AO18: =AF33 -> 92.82767191 | AP18: =AF39 -> 92.82767258 | AQ18: =AF45 -> 92.82767258 | AR18: =AF51 -> 92.82767258
B19: * | C19: Tax Rate | E19: =+'Combined LG'!E19 -> 0.381 | F19: Bad Debts | H19: =+'Combined LG'!H19 -> 0.006 | I19: * | AI19: 2 | AJ19: =AF4 -> 93.57761402 | AK19: =AF10 -> 92.91169018 | AL19: =AF16 -> 92.94340056 | AM19: =AF22 -> 92.94188847 | AN19: =AF28 -> 92.94196057 | AO19: =AF34 -> 92.94195713 | AP19: =AF40 -> 92.94195625 | AQ19: =AF46 -> 92.94195842 | AR19: =AF52 -> 92.94195625
H20: - | V20: 4th Turnover | W20: M | X20: ROR | Y20: ROE | AI20: 3 | AJ20: =AF5 -> 93.65047261 | AK20: =AF11 -> 92.98937051 | AL20: =AF17 -> 93.02044893 | AM20: =AF23 -> 93.01898593 | AN20: =AF29 -> 93.01905479 | AO20: =AF35 -> 93.01905155 | AP20: =AF41 -> 93.01905188 | AQ20: =AF47 -> 93.01905188 | AR20: =AF53 -> 93.01905188
F21: Revenue Sensitive | H21: =SUM(H16:H19) -> 0.025275 | V21: =100*(+AD15/$E$7) -> 354.4655387 | W21: =EXP(5.7226-(0.68367*LN(+V21))) -> 5.523652292 | X21: =(+W21*V21)/100 -> 19.57944385 | Y21: =100*((((X21/100)-((X21/100)-0.03574)*$E$19)-0.03574-0.00619)/0.344) -> 27.00107484 | Z21: =+$E$18 -> 0.25 | AA21: =Y21+Z21 -> 27.25107484 | AB21: =100*($E$15*$E$17+($E$16*(AA21/100))/(1-$E$19)) -> 25.42369137 | AC21: =AB21/V21 -> 0.07172401431 | AD21: =$E$6/(1-AC21) -> 2039862.389 | AE21: =IF(OR(OR(AD21=AD15,AD21=(AD15+1)),AD21=(AD7-1)),"yes","not yet") -> not yet | AF21: =100*(1-AC21) -> 92.82759857 | AI21: 4 | AJ21: =AF6 -> 93.697078 | AK21: =AF12 -> 93.03910606 | AL21: =AF18 -> 93.06978128 | AM21: =AF24 -> 93.06834922 | AN21: =AF30 -> 93.06841607 | AO21: =AF36 -> 93.06841295 | AP21: =AF42 -> 93.06841257 | AQ21: =AF48 -> 93.06841257 | AR21: =AF54 -> 93.06841257
V22: =100*(+AD16/$E$7) -> 354.0299464 | W22: =EXP(5.70827-(0.68367*LN(+V22))) -> 5.449642157 | X22: =(+W22*V22)/100 -> 19.29336521 | Y22: =100*((((X22/100)-((X22/100)-0.03574)*$E$19)-0.03574-0.00619)/0.344) -> 26.4862996 | Z22: =+$E$18 -> 0.25 | AA22: =Y22+Z22 -> 26.7362996 | AB22: =100*($E$15*$E$17+($E$16*(AA22/100))/(1-$E$19)) -> 24.98782847 | AC22: =AB22/V22 -> 0.07058111531 | AD22: =$E$6/(1-AC22) -> 2037353.987 | AE22: =IF(OR(OR(AD22=AD16,AD22=(AD16+1)),AD22=(AD16-1)),"yes","not yet") -> not yet | AF22: =100*(1-AC22) -> 92.94188847
F23: Conversion Factor | H23: =((+H13/100)-H21) -> 0.9054091257 | V23: =100*(+AD17/$E$7) -> 353.7367051 | W23: =EXP(5.6985-(0.68367*LN(V23))) -> 5.399716555 | X23: =(+W23*V23)/100 -> 19.10077943 | Y23: =100*((((X23/100)-((X23/100)-0.03574)*$E$19)-0.03574-0.00619)/0.344) -> 26.13975717 | Z23: =+$E$18 -> 0.25 | AA23: =Y23+Z23 -> 26.38975717 | AB23: =100*($E$15*$E$17+($E$16*(AA23/100))/(1-$E$19)) -> 24.69440917 | AC23: =AB23/V23 -> 0.06981014073 | AD23: =$E$6/(1-AC23) -> 2035665.355 | AE23: =IF(OR(OR(AD23=AD17,AD23=(AD17+1)),AD23=(AD17-1)),"yes","not yet") -> not yet | AF23: =100*(1-AC23) -> 93.01898593 | AJ23: yes
V24: =100*(+AD18/$E$7) -> 353.5492043 | W24: =EXP(5.6922-(0.68367*LN(V24))) -> 5.367750627 | X24: =(+W24*V24)/100 -> 18.97763963 | Y24: =100*((((X24/100)-((X24/100)-0.03574)*$E$19)-0.03574-0.00619)/0.344) -> 25.91817712 | Z24: =+$E$18 -> 0.25 | AA24: =Y24+Z24 -> 26.16817712 | AB24: =100*($E$15*$E$17+($E$16*(AA24/100))/(1-$E$19)) -> 24.50679617 | AC24: =AB24/V24 -> 0.0693165078 | AD24: =$E$6/(1-AC24) -> 2034585.642 | AE24: =IF(OR(OR(AD24=AD18,AD24=(AD18+1)),AD24=(AD18-1)),"yes","not yet") -> not yet | AF24: =100*(1-AC24) -> 93.06834922 | AJ24: =HLOOKUP($AJ$23,$AJ$17:$AR$21,$E$10+1) -> 93.06841257
C26: Company Reference | V26: 5th Turnover | W26: M | X26: ROR | Y26: ROE | AJ26: =HLOOKUP(1,$AJ$11:$AR$15,$E$10+1) -> not yet | AK26: =HLOOKUP(2,$AJ$11:$AR$15,$E$10+1) -> not yet | AL26: =HLOOKUP(3,$AJ$11:$AR$15,$E$10+1) -> not yet | AM26: =HLOOKUP(4,$AJ$11:$AR$15,$E$10+1) -> not yet | AN26: =HLOOKUP(5,$AJ$11:$AR$15,$E$10+1) -> not yet | AO26: =HLOOKUP(6,$AJ$11:$AR$15,$E$10+1) -> not yet | AP26: =HLOOKUP(7,$AJ$11:$AR$15,$E$10+1) -> yes | AQ26: =HLOOKUP(8,$AJ$11:$AR$15,$E$10+1) -> yes | AR26: =HLOOKUP(9,$AJ$11:$AR$15,$E$10+1) -> yes
C27: Annl Price Increase (PI) $ | E27: =+E4 -> 218183.6766 | V27: =100*(+AD21/$E$7) -> 354.471597 | W27: =EXP(5.7226-(0.68367*LN(+V27))) -> 5.523587749 | X27: =(+W27*V27)/100 -> 19.57954971 | Y27: =100*((((X27/100)-((X27/100)-0.03574)*$E$19)-0.03574-0.00619)/0.344) -> 27.00126532 | Z27: =+$E$18 -> 0.25 | AA27: =Y27+Z27 -> 27.25126532 | AB27: =100*($E$15*$E$17+($E$16*(AA27/100))/(1-$E$19)) -> 25.42385265 | AC27: =AB27/V27 -> 0.07172324345 | AD27: =$E$6/(1-AC27) -> 2039860.695 | AE27: =IF(OR(OR(AD27=AD21,AD27=(AD21+1)),AD27=(AD13-1)),"yes","not yet") -> not yet | AF27: =100*(1-AC27) -> 92.82767566 | AI27: 1 | AJ27: =V3 -> 411.3093389 | AK27: =V9 -> 352.0374388 | AL27: =V15 -> 354.5902629 | AM27: =V21 -> 354.4655387 | AN27: =V27 -> 354.471597 | AO27: =V33 -> 354.4713027 | AP27: =V39 -> 354.4713556 | AQ27: =V45 -> 354.4713556 | AR27: =V51 -> 354.4713556
C28: Monthly PI $ | E28: =+E27/12 -> 18181.97305 | V28: =100*(+AD22/$E$7) -> 354.0357061 | W28: =EXP(5.70827-(0.68367*LN(+V28))) -> 5.449581543 | X28: =(+W28*V28)/100 -> 19.2934645 | Y28: =100*((((X28/100)-((X28/100)-0.03574)*$E$19)-0.03574-0.00619)/0.344) -> 26.48647827 | Z28: =+$E$18 -> 0.25 | AA28: =Y28+Z28 -> 26.73647827 | AB28: =100*($E$15*$E$17+($E$16*(AA28/100))/(1-$E$19)) -> 24.98797974 | AC28: =AB28/V28 -> 0.07058039433 | AD28: =$E$6/(1-AC28) -> 2037352.406 | AE28: =IF(OR(OR(AD28=AD22,AD28=(AD22+1)),AD28=(AD22-1)),"yes","not yet") -> not yet | AF28: =100*(1-AC28) -> 92.94196057 | AI28: 2 | AJ28: =V4 -> 411.3093389 | AK28: =V10 -> 351.6305418 | AL28: =V16 -> 354.1507753 | AM28: =V22 -> 354.0299464 | AN28: =V28 -> 354.0357061 | AO28: =V34 -> 354.0354315 | AP28: =V40 -> 354.0353609 | AQ28: =V46 -> 354.0355346 | AR28: =V52 -> 354.0353609
C29: Percentage PI | E29: =+E4/(E5-Proforma!O12) -> 0.1272749505 | V29: =100*(+AD23/$E$7) -> 353.7422687 | W29: =EXP(5.6985-(0.68367*LN(V29))) -> 5.399658494 | X29: =(+W29*V29)/100 -> 19.10087446 | Y29: =100*((((X29/100)-((X29/100)-0.03574)*$E$19)-0.03574-0.00619)/0.344) -> 26.13992817 | Z29: =+$E$18 -> 0.25 | AA29: =Y29+Z29 -> 26.38992817 | AB29: =100*($E$15*$E$17+($E$16*(AA29/100))/(1-$E$19)) -> 24.69455395 | AC29: =AB29/V29 -> 0.06980945208 | AD29: =$E$6/(1-AC29) -> 2035663.848 | AE29: =IF(OR(OR(AD29=AD23,AD29=(AD23+1)),AD29=(AD23-1)),"yes","not yet") -> not yet | AF29: =100*(1-AC29) -> 93.01905479 | AI29: 3 | AJ29: =V5 -> 411.3093389 | AK29: =V11 -> 351.3569787 | AL29: =V17 -> 353.8549291 | AM29: =V23 -> 353.7367051 | AN29: =V29 -> 353.7422687 | AO29: =V35 -> 353.7420068 | AP29: =V41 -> 353.7420332 | AQ29: =V47 -> 353.7420332 | AR29: =V53 -> 353.7420332
V30: =100*(+AD24/$E$7) -> 353.5546444 | W30: =EXP(5.6922-(0.68367*LN(V30))) -> 5.36769416 | X30: =(+W30*V30)/100 -> 18.977732 | Y30: =100*((((X30/100)-((X30/100)-0.03574)*$E$19)-0.03574-0.00619)/0.344) -> 25.91834333 | Z30: =+$E$18 -> 0.25 | AA30: =Y30+Z30 -> 26.16834333 | AB30: =100*($E$15*$E$17+($E$16*(AA30/100))/(1-$E$19)) -> 24.50693691 | AC30: =AB30/V30 -> 0.06931583929 | AD30: =$E$6/(1-AC30) -> 2034584.18 | AE30: =IF(OR(OR(AD30=AD24,AD30=(AD24+1)),AD30=(AD24-1)),"yes","not yet") -> not yet | AF30: =100*(1-AC30) -> 93.06841607 | AI30: 4 | AJ30: =V6 -> 411.3093389 | AK30: =V12 -> 351.182212 | AL30: =V18 -> 353.6657703 | AM30: =V24 -> 353.5492043 | AN30: =V30 -> 353.5546444 | AO30: =V36 -> 353.5543904 | AP30: =V42 -> 353.5543591 | AQ30: =V48 -> 353.5543591 | AR30: =V54 -> 353.5543591
V32: 6th Turnover | W32: M | X32: ROR | Y32: ROE | AJ32: yes
V33: =100*(+AD27/$E$7) -> 354.4713027 | W33: =EXP(5.7226-(0.68367*LN(+V33))) -> 5.523590885 | X33: =(+W33*V33)/100 -> 19.57954457 | Y33: =100*((((X33/100)-((X33/100)-0.03574)*$E$19)-0.03574-0.00619)/0.344) -> 27.00125606 | Z33: =+$E$18 -> 0.25 | AA33: =Y33+Z33 -> 27.25125606 | AB33: =100*($E$15*$E$17+($E$16*(AA33/100))/(1-$E$19)) -> 25.42384481 | AC33: =AB33/V33 -> 0.0717232809 | AD33: =ROUND($E$6/(1-AC33),0) -> 2039861 | AE33: =IF(OR(OR(AD33=AD27,AD33=(AD27+1)),AD33=(AD19-1)),"yes","not yet") -> not yet | AF33: =100*(1-AC33) -> 92.82767191 | AJ33: =HLOOKUP($AJ$32,$AJ$26:$AR$30,$E$10+1) -> 353.5543591
V34: =100*(+AD28/$E$7) -> 354.0354315 | W34: =EXP(5.70827-(0.68367*LN(+V34))) -> 5.449584433 | X34: =(+W34*V34)/100 -> 19.29345976 | Y34: =100*((((X34/100)-((X34/100)-0.03574)*$E$19)-0.03574-0.00619)/0.344) -> 26.48646975 | Z34: =+$E$18 -> 0.25 | AA34: =Y34+Z34 -> 26.73646975 | AB34: =100*($E$15*$E$17+($E$16*(AA34/100))/(1-$E$19)) -> 24.98797253 | AC34: =AB34/V34 -> 0.0705804287 | AD34: =ROUND($E$6/(1-AC34),0) -> 2037352 | AE34: =IF(OR(OR(AD34=AD28,AD34=(AD28+1)),AD34=(AD28-1)),"yes","not yet") -> not yet | AF34: =100*(1-AC34) -> 92.94195713
V35: =100*(+AD29/$E$7) -> 353.7420068 | W35: =EXP(5.6985-(0.68367*LN(V35))) -> 5.399661227 | X35: =(+W35*V35)/100 -> 19.10086999 | Y35: =100*((((X35/100)-((X35/100)-0.03574)*$E$19)-0.03574-0.00619)/0.344) -> 26.13992012 | Z35: =+$E$18 -> 0.25 | AA35: =Y35+Z35 -> 26.38992012 | AB35: =100*($E$15*$E$17+($E$16*(AA35/100))/(1-$E$19)) -> 24.69454714 | AC35: =AB35/V35 -> 0.06980948449 | AD35: =ROUND($E$6/(1-AC35),0) -> 2035664 | AE35: =IF(OR(OR(AD35=AD29,AD35=(AD29+1)),AD35=(AD29-1)),"yes","not yet") -> not yet | AF35: =100*(1-AC35) -> 93.01905155 | AJ35: =HLOOKUP(1,$AJ$11:$AR$15,$E$10+1) -> not yet | AK35: =HLOOKUP(2,$AJ$11:$AR$15,$E$10+1) -> not yet | AL35: =HLOOKUP(3,$AJ$11:$AR$15,$E$10+1) -> not yet | AM35: =HLOOKUP(4,$AJ$11:$AR$15,$E$10+1) -> not yet | AN35: =HLOOKUP(5,$AJ$11:$AR$15,$E$10+1) -> not yet | AO35: =HLOOKUP(6,$AJ$11:$AR$15,$E$10+1) -> not yet | AP35: =HLOOKUP(7,$AJ$11:$AR$15,$E$10+1) -> yes | AQ35: =HLOOKUP(8,$AJ$11:$AR$15,$E$10+1) -> yes | AR35: =HLOOKUP(9,$AJ$11:$AR$15,$E$10+1) -> yes
V36: =100*(+AD30/$E$7) -> 353.5543904 | W36: =EXP(5.6922-(0.68367*LN(V36))) -> 5.367696796 | X36: =(+W36*V36)/100 -> 18.97772769 | Y36: =100*((((X36/100)-((X36/100)-0.03574)*$E$19)-0.03574-0.00619)/0.344) -> 25.91833558 | Z36: =+$E$18 -> 0.25 | AA36: =Y36+Z36 -> 26.16833558 | AB36: =100*($E$15*$E$17+($E$16*(AA36/100))/(1-$E$19)) -> 24.50693034 | AC36: =AB36/V36 -> 0.06931587049 | AD36: =ROUND($E$6/(1-AC36),0) -> 2034584 | AE36: =IF(OR(OR(AD36=AD30,AD36=(AD30+1)),AD36=(AD30-1)),"yes","not yet") -> not yet | AF36: =100*(1-AC36) -> 93.06841295 | AI36: 1 | AJ36: =AD3 -> 2025854.644 | AK36: =AD9 -> 2040545.271 | AL36: =AD15 -> 2039827.526 | AM36: =AD21 -> 2039862.389 | AN36: =AD27 -> 2039860.695 | AO36: =AD33 -> 2039861 | AP36: =AD39 -> 2039861 | AQ36: =AD45 -> 2039861 | AR36: =AD51 -> 2039861
AI37: 2 | AJ37: =AD4 -> 2023513.091 | AK37: =AD10 -> 2038016.17 | AL37: =AD16 -> 2037320.841 | AM37: =AD22 -> 2037353.987 | AN37: =AD28 -> 2037352.406 | AO37: =AD34 -> 2037352 | AP37: =AD40 -> 2037353 | AQ37: =AD46 -> 2037352 | AR37: =AD52 -> 2037353
V38: 7th turnover | W38: M | X38: ROR | Y38: ROE | AI38: 3 | AJ38: =AD5 -> 2021938.83 | AK38: =AD11 -> 2036313.677 | AL38: =AD17 -> 2035633.339 | AM38: =AD23 -> 2035665.355 | AN38: =AD29 -> 2035663.848 | AO38: =AD35 -> 2035664 | AP38: =AD41 -> 2035664 | AQ38: =AD47 -> 2035664 | AR38: =AD53 -> 2035664
V39: =100*(+AD33/$E$7) -> 354.4713556 | W39: =EXP(5.7226-(0.68367*LN(+V39))) -> 5.523590322 | X39: =(+W39*V39)/100 -> 19.57954549 | Y39: =100*((((X39/100)-((X39/100)-0.03574)*$E$19)-0.03574-0.00619)/0.344) -> 27.00125773 | Z39: =+$E$18 -> 0.25 | AA39: =Y39+Z39 -> 27.25125773 | AB39: =100*($E$15*$E$17+($E$16*(AA39/100))/(1-$E$19)) -> 25.42384622 | AC39: =AB39/V39 -> 0.07172327417 | AD39: =ROUND($E$6/(1-AC39),0) -> 2039861 | AE39: =IF(OR(OR(AD39=AD33,AD39=(AD33+1)),AD39=(AD25-1)),"yes","not yet") -> yes | AF39: =100*(1-AC39) -> 92.82767258 | AI39: 4 | AJ39: =AD6 -> 2020933.108 | AK39: =AD12 -> 2035225.133 | AL39: =AD18 -> 2034554.336 | AM39: =AD24 -> 2034585.642 | AN39: =AD30 -> 2034584.18 | AO39: =AD36 -> 2034584 | AP39: =AD42 -> 2034584 | AQ39: =AD48 -> 2034584 | AR39: =AD54 -> 2034584
V40: =100*(+AD34/$E$7) -> 354.0353609 | W40: =EXP(5.70827-(0.68367*LN(+V40))) -> 5.449585177 | X40: =(+W40*V40)/100 -> 19.29345855 | Y40: =100*((((X40/100)-((X40/100)-0.03574)*$E$19)-0.03574-0.00619)/0.344) -> 26.48646756 | Z40: =+$E$18 -> 0.25 | AA40: =Y40+Z40 -> 26.73646756 | AB40: =100*($E$15*$E$17+($E$16*(AA40/100))/(1-$E$19)) -> 24.98797068 | AC40: =AB40/V40 -> 0.07058043755 | AD40: =ROUND($E$6/(1-AC40),0) -> 2037353 | AE40: =IF(OR(OR(AD40=AD34,AD40=(AD34+1)),AD40=(AD34-1)),"yes","not yet") -> yes | AF40: =100*(1-AC40) -> 92.94195625
V41: =100*(+AD35/$E$7) -> 353.7420332 | W41: =EXP(5.6985-(0.68367*LN(V41))) -> 5.399660951 | X41: =(+W41*V41)/100 -> 19.10087044 | Y41: =100*((((X41/100)-((X41/100)-0.03574)*$E$19)-0.03574-0.00619)/0.344) -> 26.13992093 | Z41: =+$E$18 -> 0.25 | AA41: =Y41+Z41 -> 26.38992093 | AB41: =100*($E$15*$E$17+($E$16*(AA41/100))/(1-$E$19)) -> 24.69454783 | AC41: =AB41/V41 -> 0.06980948122 | AD41: =ROUND($E$6/(1-AC41),0) -> 2035664 | AE41: =IF(OR(OR(AD41=AD35,AD41=(AD35+1)),AD41=(AD35-1)),"yes","not yet") -> yes | AF41: =100*(1-AC41) -> 93.01905188 | AJ41: yes
V42: =100*(+AD36/$E$7) -> 353.5543591 | W42: =EXP(5.6922-(0.68367*LN(V42))) -> 5.367697121 | X42: =(+W42*V42)/100 -> 18.97772715 | Y42: =100*((((X42/100)-((X42/100)-0.03574)*$E$19)-0.03574-0.00619)/0.344) -> 25.91833462 | Z42: =+$E$18 -> 0.25 | AA42: =Y42+Z42 -> 26.16833462 | AB42: =100*($E$15*$E$17+($E$16*(AA42/100))/(1-$E$19)) -> 24.50692953 | AC42: =AB42/V42 -> 0.06931587434 | AD42: =ROUND($E$6/(1-AC42),0) -> 2034584 | AE42: =IF(OR(OR(AD42=AD36,AD42=(AD36+1)),AD42=(AD36-1)),"yes","not yet") -> yes | AF42: =100*(1-AC42) -> 93.06841257 | AJ42: =HLOOKUP($AJ$32,$AJ$35:$AR$39,$E$10+1) -> 2034584
V44: 8th turnover | W44: M | X44: ROR | Y44: ROE
V45: =100*(+AD39/$E$7) -> 354.4713556 | W45: =EXP(5.7226-(0.68367*LN(+V45))) -> 5.523590322 | X45: =(+W45*V45)/100 -> 19.57954549 | Y45: =100*((((X45/100)-((X45/100)-0.03574)*$E$19)-0.03574-0.00619)/0.344) -> 27.00125773 | Z45: =+$E$18 -> 0.25 | AA45: =Y45+Z45 -> 27.25125773 | AB45: =100*($E$15*$E$17+($E$16*(AA45/100))/(1-$E$19)) -> 25.42384622 | AC45: =AB45/V45 -> 0.07172327417 | AD45: =ROUND($E$6/(1-AC45),0) -> 2039861 | AE45: =IF(OR(OR(AD45=AD39,AD45=(AD39+1)),AD45=(AD31-1)),"yes","not yet") -> yes | AF45: =100*(1-AC45) -> 92.82767258
V46: =100*(+AD40/$E$7) -> 354.0355346 | W46: =EXP(5.70827-(0.68367*LN(+V46))) -> 5.449583348 | X46: =(+W46*V46)/100 -> 19.29346154 | Y46: =100*((((X46/100)-((X46/100)-0.03574)*$E$19)-0.03574-0.00619)/0.344) -> 26.48647295 | Z46: =+$E$18 -> 0.25 | AA46: =Y46+Z46 -> 26.73647295 | AB46: =100*($E$15*$E$17+($E$16*(AA46/100))/(1-$E$19)) -> 24.98797524 | AC46: =AB46/V46 -> 0.07058041579 | AD46: =ROUND($E$6/(1-AC46),0) -> 2037352 | AE46: =IF(OR(OR(AD46=AD40,AD46=(AD40+1)),AD46=(AD40-1)),"yes","not yet") -> yes | AF46: =100*(1-AC46) -> 92.94195842
V47: =100*(+AD41/$E$7) -> 353.7420332 | W47: =EXP(5.6985-(0.68367*LN(V47))) -> 5.399660951 | X47: =(+W47*V47)/100 -> 19.10087044 | Y47: =100*((((X47/100)-((X47/100)-0.03574)*$E$19)-0.03574-0.00619)/0.344) -> 26.13992093 | Z47: =+$E$18 -> 0.25 | AA47: =Y47+Z47 -> 26.38992093 | AB47: =100*($E$15*$E$17+($E$16*(AA47/100))/(1-$E$19)) -> 24.69454783 | AC47: =AB47/V47 -> 0.06980948122 | AD47: =ROUND($E$6/(1-AC47),0) -> 2035664 | AE47: =IF(OR(OR(AD47=AD41,AD47=(AD41+1)),AD47=(AD41-1)),"yes","not yet") -> yes | AF47: =100*(1-AC47) -> 93.01905188
V48: =100*(+AD42/$E$7) -> 353.5543591 | W48: =EXP(5.6922-(0.68367*LN(V48))) -> 5.367697121 | X48: =(+W48*V48)/100 -> 18.97772715 | Y48: =100*((((X48/100)-((X48/100)-0.03574)*$E$19)-0.03574-0.00619)/0.344) -> 25.91833462 | Z48: =+$E$18 -> 0.25 | AA48: =Y48+Z48 -> 26.16833462 | AB48: =100*($E$15*$E$17+($E$16*(AA48/100))/(1-$E$19)) -> 24.50692953 | AC48: =AB48/V48 -> 0.06931587434 | AD48: =ROUND($E$6/(1-AC48),0) -> 2034584 | AE48: =IF(OR(OR(AD48=AD42,AD48=(AD42+1)),AD48=(AD42-1)),"yes","not yet") -> yes | AF48: =100*(1-AC48) -> 93.06841257
V50: 9th turnover | W50: M | X50: ROR | Y50: ROE
V51: =100*(+AD45/$E$7) -> 354.4713556 | W51: =EXP(5.7226-(0.68367*LN(+V51))) -> 5.523590322 | X51: =(+W51*V51)/100 -> 19.57954549 | Y51: =100*((((X51/100)-((X51/100)-0.03574)*$E$19)-0.03574-0.00619)/0.344) -> 27.00125773 | Z51: =+$E$18 -> 0.25 | AA51: =Y51+Z51 -> 27.25125773 | AB51: =100*($E$15*$E$17+($E$16*(AA51/100))/(1-$E$19)) -> 25.42384622 | AC51: =AB51/V51 -> 0.07172327417 | AD51: =ROUND($E$6/(1-AC51),0) -> 2039861 | AE51: =IF(OR(OR(AD51=AD45,AD51=(AD45+1)),AD51=(AD37-1)),"yes","not yet") -> yes | AF51: =100*(1-AC51) -> 92.82767258
V52: =100*(+AD46/$E$7) -> 354.0353609 | W52: =EXP(5.70827-(0.68367*LN(+V52))) -> 5.449585177 | X52: =(+W52*V52)/100 -> 19.29345855 | Y52: =100*((((X52/100)-((X52/100)-0.03574)*$E$19)-0.03574-0.00619)/0.344) -> 26.48646756 | Z52: =+$E$18 -> 0.25 | AA52: =Y52+Z52 -> 26.73646756 | AB52: =100*($E$15*$E$17+($E$16*(AA52/100))/(1-$E$19)) -> 24.98797068 | AC52: =AB52/V52 -> 0.07058043755 | AD52: =ROUND($E$6/(1-AC52),0) -> 2037353 | AE52: =IF(OR(OR(AD52=AD46,AD52=(AD46+1)),AD52=(AD46-1)),"yes","not yet") -> yes | AF52: =100*(1-AC52) -> 92.94195625
V53: =100*(+AD47/$E$7) -> 353.7420332 | W53: =EXP(5.6985-(0.68367*LN(V53))) -> 5.399660951 | X53: =(+W53*V53)/100 -> 19.10087044 | Y53: =100*((((X53/100)-((X53/100)-0.03574)*$E$19)-0.03574-0.00619)/0.344) -> 26.13992093 | Z53: =+$E$18 -> 0.25 | AA53: =Y53+Z53 -> 26.38992093 | AB53: =100*($E$15*$E$17+($E$16*(AA53/100))/(1-$E$19)) -> 24.69454783 | AC53: =AB53/V53 -> 0.06980948122 | AD53: =ROUND($E$6/(1-AC53),0) -> 2035664 | AE53: =IF(OR(OR(AD53=AD47,AD53=(AD47+1)),AD53=(AD47-1)),"yes","not yet") -> yes | AF53: =100*(1-AC53) -> 93.01905188
V54: =100*(+AD48/$E$7) -> 353.5543591 | W54: =EXP(5.6922-(0.68367*LN(V54))) -> 5.367697121 | X54: =(+W54*V54)/100 -> 18.97772715 | Y54: =100*((((X54/100)-((X54/100)-0.03574)*$E$19)-0.03574-0.00619)/0.344) -> 25.91833462 | Z54: =+$E$18 -> 0.25 | AA54: =Y54+Z54 -> 26.16833462 | AB54: =100*($E$15*$E$17+($E$16*(AA54/100))/(1-$E$19)) -> 24.50692953 | AC54: =AB54/V54 -> 0.06931587434 | AD54: =ROUND($E$6/(1-AC54),0) -> 2034584 | AE54: =IF(OR(OR(AD54=AD48,AD54=(AD48+1)),AD54=(AD48-1)),"yes","not yet") -> yes | AF54: =100*(1-AC54) -> 93.06841257

Sheet RCY
B1: NEW IMPROVED LURITO - GALLAGHER FORMULA | AE1: !??! | AF1: OP/RATIO | AI1: curve
G2: NOTE: | N2: FORMULAS | U2: 1st Revenue | V2: 1st Turnover | W2: M | X2: ROR | Y2: ROE | AA2: Adj ROE | AB2: Pre Tax ROE | AC2: Adj M | AD2: Revenues | AE2: Decision | AI2: lookup table
B3: !!! | C3: Revenue Requirement | E3: =E5+E4 -> 586322.135 | F3: !!!<-- | H3: Red numbers are input/linked fields. | N3: 1. less than 50 | Q3: @EXP(5.72260-(.68367*@LN(T))) | U3: =$E$6*1.25 -> 662016.3548 | V3: =100*(+U3/$E$7) -> 257.3978738 | W3: =EXP(5.7226-(0.68367*LN(+V3))) -> 6.874408131 | X3: =(+W3*V3)/100 -> 17.69458037 | Y3: =100*((((X3/100)-((X3/100)-0.03574)*$E$19)-0.03574-0.00619)/0.344) -> 23.60941641 | Z3: =+$E$18 -> 0.25 | AA3: =Y3+Z3 -> 23.85941641 | AB3: =100*($E$15*$E$17+($E$16*(AA3/100))/(1-$E$19)) -> 22.55195634 | AC3: =AB3/V3 -> 0.08761516174 | AD3: =$E$6/(1-AC3) -> 580471.1583 | AE3: =IF(AD3=$U$3,"yes","not yet") -> not yet | AF3: =100*(1-AC3) -> 91.23848383 | AI3: 0 | AJ3: 1
B4: !!! | C4: Revenue Deficiency | E4: =(+E6-((H13/100)*E5))/H23 -> 108271.895 | F4: !!!<-- | H4: Black are formula calculations | N4: 2. Between 50 and 125 | Q4: @EXP(5.70827-(.68367*@LN(T))) | U4: =$E$6*1.25 -> 662016.3548 | V4: =100*(+U4/$E$7) -> 257.3978738 | W4: =EXP(5.70827-(0.68367*LN(+V4))) -> 6.776600329 | X4: =(+W4*V4)/100 -> 17.44282516 | Y4: =100*((((X4/100)-((X4/100)-0.03574)*$E$19)-0.03574-0.00619)/0.344) -> 23.15640342 | Z4: =+$E$18 -> 0.25 | AA4: =Y4+Z4 -> 23.40640342 | AB4: =100*($E$15*$E$17+($E$16*(AA4/100))/(1-$E$19)) -> 22.16838786 | AC4: =AB4/V4 -> 0.08612498437 | AD4: =$E$6/(1-AC4) -> 579524.6339 | AE4: =IF(AD4=$U$4,"yes","not yet") -> not yet | AF4: =100*(1-AC4) -> 91.38750156 | AI4: 50 | AJ4: 2
B5: * | C5: Revenue | E5: =Proforma!P20 -> 478050.24 | F5: * p/f before rates | N5: 3. Between 125 and 140 | Q5: @EXP(5.69850-(.68367*@LN(T))) | U5: =$E$6*1.25 -> 662016.3548 | V5: =100*(+U5/$E$7) -> 257.3978738 | W5: =EXP(5.6985-(0.68367*LN(V5))) -> 6.710715316 | X5: =(+W5*V5)/100 -> 17.27323854 | Y5: =100*((((X5/100)-((X5/100)-0.03574)*$E$19)-0.03574-0.00619)/0.344) -> 22.85124609 | Z5: =+$E$18 -> 0.25 | AA5: =Y5+Z5 -> 23.10124609 | AB5: =100*($E$15*$E$17+($E$16*(AA5/100))/(1-$E$19)) -> 21.91000955 | AC5: =AB5/V5 -> 0.08512117534 | AD5: =$E$6/(1-AC5) -> 578888.777 | AE5: =IF(AD5=$U$5,"yes","not yet") -> not yet | AF5: =100*(1-AC5) -> 91.48788247 | AI5: 125 | AJ5: 3
B6: * | C6: Expenses | E6: =+Proforma!P374 -> 529613.0839 | F6: * p/f before rates | N6: 4. greater than 400 | Q6: @EXP(5.69220-(.68367*@LN(T))) | U6: =$E$6*1.25 -> 662016.3548 | V6: =100*(+U6/$E$7) -> 257.3978738 | W6: =EXP(5.6922-(0.68367*LN(V6))) -> 6.668570704 | X6: =(+W6*V6)/100 -> 17.16475921 | Y6: =100*((((X6/100)-((X6/100)-0.03574)*$E$19)-0.03574-0.00619)/0.344) -> 22.65604636 | Z6: =+$E$18 -> 0.25 | AA6: =Y6+Z6 -> 22.90604636 | AB6: =100*($E$15*$E$17+($E$16*(AA6/100))/(1-$E$19)) -> 21.74473291 | AC6: =AB6/V6 -> 0.08447906965 | AD6: =$E$6/(1-AC6) -> 578482.7701 | AE6: =IF(AD6=$U$6,"yes","not yet") -> not yet | AF6: =100*(1-AC6) -> 91.55209303 | AI6: 401 | AJ6: 4
B7: * | C7: Avg. Investment - | E7: ='Ave Inv. Summary'!K64 -> 257195.7356 | F7: * p/f before rates
C8: curve turnover | E8: =V3 -> 257.3978738 | F8: (calculated) | V8: 2nd Turnover | W8: M | X8: ROR | Y8: ROE | AI8: lookup tables
C9: final turnover | E9: =HLOOKUP($AJ$32,$AJ$26:$AR$30,$E$10+1) -> 226.7953622 | F9: (calculated) | V9: =100*(+AD3/$E$7) -> 225.6923728 | W9: =EXP(5.7226-(0.68367*LN(+V9))) -> 7.520811696 | X9: =(+W9*V9)/100 -> 16.97389837 | Y9: =100*((((X9/100)-((X9/100)-0.03574)*$E$19)-0.03574-0.00619)/0.344) -> 22.31260782 | Z9: =+$E$18 -> 0.25 | AA9: =Y9+Z9 -> 22.56260782 | AB9: =100*($E$15*$E$17+($E$16*(AA9/100))/(1-$E$19)) -> 21.45394169 | AC9: =AB9/V9 -> 0.09505833728 | AD9: =$E$6/(1-AC9) -> 585245.553 | AE9: =IF(OR(OR(AD9=AD3,AD9=(AD3+1)),AD9=(AD8187-1)),"yes","not yet") -> not yet | AF9: =100*(1-AC9) -> 90.49416627
C10: curve No. used | E10: =VLOOKUP(E8,AI3:AJ6,2) -> 3 | F10: (calculated) | V10: =100*(+AD4/$E$7) -> 225.3243557 | W10: =EXP(5.70827-(0.68367*LN(+V10))) -> 7.422083272 | X10: =(+W10*V10)/100 -> 16.72376131 | Y10: =100*((((X10/100)-((X10/100)-0.03574)*$E$19)-0.03574-0.00619)/0.344) -> 21.86250654 | Z10: =+$E$18 -> 0.25 | AA10: =Y10+Z10 -> 22.11250654 | AB10: =100*($E$15*$E$17+($E$16*(AA10/100))/(1-$E$19)) -> 21.07283857 | AC10: =AB10/V10 -> 0.09352224047 | AD10: =$E$6/(1-AC10) -> 584253.8091 | AE10: =IF(OR(OR(AD10=AD4,AD10=(AD4+1)),AD10=(AD4-1)),"yes","not yet") -> not yet | AF10: =100*(1-AC10) -> 90.64777595
V11: =100*(+AD5/$E$7) -> 225.0771288 | W11: =EXP(5.6985-(0.68367*LN(V11))) -> 7.355441061 | X11: =(+W11*V11)/100 -> 16.55541555 | Y11: =100*((((X11/100)-((X11/100)-0.03574)*$E$19)-0.03574-0.00619)/0.344) -> 21.55958205 | Z11: =+$E$18 -> 0.25 | AA11: =Y11+Z11 -> 21.80958205 | AB11: =100*($E$15*$E$17+($E$16*(AA11/100))/(1-$E$19)) -> 20.81635081 | AC11: =AB11/V11 -> 0.09248541122 | AD11: =$E$6/(1-AC11) -> 583586.3031 | AE11: =IF(OR(OR(AD11=AD5,AD11=(AD5+1)),AD11=(AD5-1)),"yes","not yet") -> not yet | AF11: =100*(1-AC11) -> 90.75145888 | AJ11: 1 | AK11: 2 | AL11: 3 | AM11: 4 | AN11: 5 | AO11: 6 | AP11: 7 | AQ11: 8 | AR11: 9
C12: Company actual | V12: =100*(+AD6/$E$7) -> 224.9192697 | W12: =EXP(5.6922-(0.68367*LN(V12))) -> 7.312754269 | X12: =(+W12*V12)/100 -> 16.4477935 | Y12: =100*((((X12/100)-((X12/100)-0.03574)*$E$19)-0.03574-0.00619)/0.344) -> 21.36592493 | Z12: =+$E$18 -> 0.25 | AA12: =Y12+Z12 -> 21.61592493 | AB12: =100*($E$15*$E$17+($E$16*(AA12/100))/(1-$E$19)) -> 20.65238031 | AC12: =AB12/V12 -> 0.09182130252 | AD12: =$E$6/(1-AC12) -> 583159.5537 | AE12: =IF(OR(OR(AD12=AD6,AD12=(AD6+1)),AD12=(AD6-1)),"yes","not yet") -> not yet | AF12: =100*(1-AC12) -> 90.81786975 | AJ12: =AE3 -> not yet | AK12: =AE9 -> not yet | AL12: =AE15 -> not yet | AM12: =AE21 -> not yet | AN12: =AE27 -> not yet | AO12: =AE33 -> not yet | AP12: =AE39 -> yes | AQ12: =AE45 -> yes | AR12: =AE51 -> yes
C13: capital structure: | E13: !!! | F13: OPERATING RATIO -> | H13: =HLOOKUP($AJ$23,$AJ$17:$AR$21,$E$10+1) -> 90.79473966 | I13: !!!<-- | AJ13: =AE4 -> not yet | AK13: =AE10 -> not yet | AL13: =AE16 -> not yet | AM13: =AE22 -> not yet | AN13: =AE28 -> not yet | AO13: =AE34 -> not yet | AP13: =AE40 -> yes | AQ13: =AE46 -> yes | AR13: =AE52 -> yes
C14: - | D14: - | H14: = | V14: 3rd Turnover | W14: M | X14: ROR | Y14: ROE | AJ14: =AE5 -> not yet | AK14: =AE11 -> not yet | AL14: =AE17 -> not yet | AM14: =AE23 -> not yet | AN14: =AE29 -> not yet | AO14: =AE35 -> not yet | AP14: =AE41 -> yes | AQ14: =AE47 -> yes | AR14: =AE53 -> yes
B15: * | C15: Actual Debt Ratio | E15: =+'Combined LG'!E15 -> 0.4758894453 | F15: Conversion factor data: | V15: =100*(+AD9/$E$7) -> 227.5487001 | W15: =EXP(5.7226-(0.68367*LN(+V15))) -> 7.478811293 | X15: =(+W15*V15)/100 -> 17.01793788 | Y15: =100*((((X15/100)-((X15/100)-0.03574)*$E$19)-0.03574-0.00619)/0.344) -> 22.39185334 | Z15: =+$E$18 -> 0.25 | AA15: =Y15+Z15 -> 22.64185334 | AB15: =100*($E$15*$E$17+($E$16*(AA15/100))/(1-$E$19)) -> 21.52103929 | AC15: =AB15/V15 -> 0.09457772898 | AD15: =$E$6/(1-AC15) -> 584934.8981 | AE15: =IF(OR(OR(AD15=AD9,AD15=(AD9+1)),AD15=(AD1-1)),"yes","not yet") -> not yet | AF15: =100*(1-AC15) -> 90.5422271 | AJ15: =AE6 -> not yet | AK15: =AE12 -> not yet | AL15: =AE18 -> not yet | AM15: =AE24 -> not yet | AN15: =AE30 -> not yet | AO15: =AE36 -> not yet | AP15: =AE42 -> yes | AQ15: =AE48 -> yes | AR15: =AE54 -> yes
B16: * | C16: Actual Equity Ratio | E16: =+'Combined LG'!E16 -> 0.5241105547 | F16: B & O Tax | H16: =+'Combined LG'!H16 -> 0.015 | I16: * | V16: =100*(+AD10/$E$7) -> 227.1631012 | W16: =EXP(5.70827-(0.68367*LN(+V16))) -> 7.380957523 | X16: =(+W16*V16)/100 -> 16.76681201 | Y16: =100*((((X16/100)-((X16/100)-0.03574)*$E$19)-0.03574-0.00619)/0.344) -> 21.93997277 | Z16: =+$E$18 -> 0.25 | AA16: =Y16+Z16 -> 22.18997277 | AB16: =100*($E$15*$E$17+($E$16*(AA16/100))/(1-$E$19)) -> 21.13842964 | AC16: =AB16/V16 -> 0.09305397541 | AD16: =$E$6/(1-AC16) -> 583952.1532 | AE16: =IF(OR(OR(AD16=AD10,AD16=(AD10+1)),AD16=(AD10-1)),"yes","not yet") -> not yet | AF16: =100*(1-AC16) -> 90.69460246
B17: * | C17: Actual Cost of Debt | E17: =+'Combined LG'!E17 -> 0.04938254121 | F17: WUTC Fee | H17: =+'Combined LG'!H17 -> 0.004275 | I17: * | V17: =100*(+AD11/$E$7) -> 226.9035689 | W17: =EXP(5.6985-(0.68367*LN(V17))) -> 7.314911315 | X17: =(+W17*V17)/100 -> 16.59779484 | Y17: =100*((((X17/100)-((X17/100)-0.03574)*$E$19)-0.03574-0.00619)/0.344) -> 21.63584013 | Z17: =+$E$18 -> 0.25 | AA17: =Y17+Z17 -> 21.88584013 | AB17: =100*($E$15*$E$17+($E$16*(AA17/100))/(1-$E$19)) -> 20.88091893 | AC17: =AB17/V17 -> 0.09202552004 | AD17: =$E$6/(1-AC17) -> 583290.7153 | AE17: =IF(OR(OR(AD17=AD11,AD17=(AD11+1)),AD17=(AD11-1)),"yes","not yet") -> not yet | AF17: =100*(1-AC17) -> 90.797448 | AJ17: =HLOOKUP(1,$AJ$11:$AR$15,$E$10+1) -> not yet | AK17: =HLOOKUP(2,$AJ$11:$AR$15,$E$10+1) -> not yet | AL17: =HLOOKUP(3,$AJ$11:$AR$15,$E$10+1) -> not yet | AM17: =HLOOKUP(4,$AJ$11:$AR$15,$E$10+1) -> not yet | AN17: =HLOOKUP(5,$AJ$11:$AR$15,$E$10+1) -> not yet | AO17: =HLOOKUP(6,$AJ$11:$AR$15,$E$10+1) -> not yet | AP17: =HLOOKUP(7,$AJ$11:$AR$15,$E$10+1) -> yes | AQ17: =HLOOKUP(8,$AJ$11:$AR$15,$E$10+1) -> yes | AR17: =HLOOKUP(9,$AJ$11:$AR$15,$E$10+1) -> yes
B18: * | C18: Basis Points | E18: 0.25 | F18: City Tax | H18: =+'Combined LG'!H18 -> 0 | I18: * | V18: =100*(+AD12/$E$7) -> 226.7376449 | W18: =EXP(5.6922-(0.68367*LN(V18))) -> 7.272608493 | X18: =(+W18*V18)/100 -> 16.48974122 | Y18: =100*((((X18/100)-((X18/100)-0.03574)*$E$19)-0.03574-0.00619)/0.344) -> 21.44140644 | Z18: =+$E$18 -> 0.25 | AA18: =Y18+Z18 -> 21.69140644 | AB18: =100*($E$15*$E$17+($E$16*(AA18/100))/(1-$E$19)) -> 20.71629091 | AC18: =AB18/V18 -> 0.09136679051 | AD18: =$E$6/(1-AC18) -> 582867.8485 | AE18: =IF(OR(OR(AD18=AD12,AD18=(AD12+1)),AD18=(AD12-1)),"yes","not yet") -> not yet | AF18: =100*(1-AC18) -> 90.86332095 | AI18: 1 | AJ18: =AF3 -> 91.23848383 | AK18: =AF9 -> 90.49416627 | AL18: =AF15 -> 90.5422271 | AM18: =AF21 -> 90.53911878 | AN18: =AF27 -> 90.53931979 | AO18: =AF33 -> 90.53930679 | AP18: =AF39 -> 90.53930999 | AQ18: =AF45 -> 90.53930999 | AR18: =AF51 -> 90.53930999
B19: * | C19: Tax Rate | E19: =+'Combined LG'!E19 -> 0.381 | F19: Bad Debts | H19: =+'Combined LG'!H19 -> 0.006 | I19: * | AI19: 2 | AJ19: =AF4 -> 91.38750156 | AK19: =AF10 -> 90.64777595 | AL19: =AF16 -> 90.69460246 | AM19: =AF22 -> 90.69163344 | AN19: =AF28 -> 90.69182167 | AO19: =AF34 -> 90.69180974 | AP19: =AF40 -> 90.69180916 | AQ19: =AF46 -> 90.69180916 | AR19: =AF52 -> 90.69180916
H20: - | V20: 4th Turnover | W20: M | X20: ROR | Y20: ROE | AI20: 3 | AJ20: =AF5 -> 91.48788247 | AK20: =AF11 -> 90.75145888 | AL20: =AF17 -> 90.797448 | AM20: =AF23 -> 90.79457138 | AN20: =AF29 -> 90.79475129 | AO20: =AF35 -> 90.79474004 | AP20: =AF41 -> 90.79473966 | AQ20: =AF47 -> 90.79473966 | AR20: =AF53 -> 90.79473966
F21: Revenue Sensitive | H21: =SUM(H16:H19) -> 0.025275 | V21: =100*(+AD15/$E$7) -> 227.4279147 | W21: =EXP(5.7226-(0.68367*LN(+V21))) -> 7.481526565 | X21: =(+W21*V21)/100 -> 17.01507986 | Y21: =100*((((X21/100)-((X21/100)-0.03574)*$E$19)-0.03574-0.00619)/0.344) -> 22.38671056 | Z21: =+$E$18 -> 0.25 | AA21: =Y21+Z21 -> 22.63671056 | AB21: =100*($E$15*$E$17+($E$16*(AA21/100))/(1-$E$19)) -> 21.51668487 | AC21: =AB21/V21 -> 0.09460881217 | AD21: =$E$6/(1-AC21) -> 584954.9797 | AE21: =IF(OR(OR(AD21=AD15,AD21=(AD15+1)),AD21=(AD7-1)),"yes","not yet") -> not yet | AF21: =100*(1-AC21) -> 90.53911878 | AI21: 4 | AJ21: =AF6 -> 91.55209303 | AK21: =AF12 -> 90.81786975 | AL21: =AF18 -> 90.86332095 | AM21: =AF24 -> 90.86050282 | AN21: =AF30 -> 90.86067753 | AO21: =AF36 -> 90.8606667 | AP21: =AF42 -> 90.86066858 | AQ21: =AF48 -> 90.86066858 | AR21: =AF54 -> 90.86066858
V22: =100*(+AD16/$E$7) -> 227.0458147 | W22: =EXP(5.70827-(0.68367*LN(+V22))) -> 7.383564027 | X22: =(+W22*V22)/100 -> 16.7640731 | Y22: =100*((((X22/100)-((X22/100)-0.03574)*$E$19)-0.03574-0.00619)/0.344) -> 21.93504433 | Z22: =+$E$18 -> 0.25 | AA22: =Y22+Z22 -> 22.18504433 | AB22: =100*($E$15*$E$17+($E$16*(AA22/100))/(1-$E$19)) -> 21.13425669 | AC22: =AB22/V22 -> 0.09308366561 | AD22: =$E$6/(1-AC22) -> 583971.2703 | AE22: =IF(OR(OR(AD22=AD16,AD22=(AD16+1)),AD22=(AD16-1)),"yes","not yet") -> not yet | AF22: =100*(1-AC22) -> 90.69163344
F23: Conversion Factor | H23: =((+H13/100)-H21) -> 0.8826723966 | V23: =100*(+AD17/$E$7) -> 226.7886417 | W23: =EXP(5.6985-(0.68367*LN(V23))) -> 7.317445406 | X23: =(+W23*V23)/100 -> 16.59513505 | Y23: =100*((((X23/100)-((X23/100)-0.03574)*$E$19)-0.03574-0.00619)/0.344) -> 21.63105405 | Z23: =+$E$18 -> 0.25 | AA23: =Y23+Z23 -> 21.88105405 | AB23: =100*($E$15*$E$17+($E$16*(AA23/100))/(1-$E$19)) -> 20.87686653 | AC23: =AB23/V23 -> 0.0920542862 | AD23: =$E$6/(1-AC23) -> 583309.1955 | AE23: =IF(OR(OR(AD23=AD17,AD23=(AD17+1)),AD23=(AD17-1)),"yes","not yet") -> not yet | AF23: =100*(1-AC23) -> 90.79457138 | AJ23: yes
V24: =100*(+AD18/$E$7) -> 226.6242274 | W24: =EXP(5.6922-(0.68367*LN(V24))) -> 7.275096642 | X24: =(+W24*V24)/100 -> 16.48713155 | Y24: =100*((((X24/100)-((X24/100)-0.03574)*$E$19)-0.03574-0.00619)/0.344) -> 21.43671056 | Z24: =+$E$18 -> 0.25 | AA24: =Y24+Z24 -> 21.68671056 | AB24: =100*($E$15*$E$17+($E$16*(AA24/100))/(1-$E$19)) -> 20.71231487 | AC24: =AB24/V24 -> 0.09139497183 | AD24: =$E$6/(1-AC24) -> 582885.9267 | AE24: =IF(OR(OR(AD24=AD18,AD24=(AD18+1)),AD24=(AD18-1)),"yes","not yet") -> not yet | AF24: =100*(1-AC24) -> 90.86050282 | AJ24: =HLOOKUP($AJ$23,$AJ$17:$AR$21,$E$10+1) -> 90.79473966
C26: Company Reference | V26: 5th Turnover | W26: M | X26: ROR | Y26: ROE | AJ26: =HLOOKUP(1,$AJ$11:$AR$15,$E$10+1) -> not yet | AK26: =HLOOKUP(2,$AJ$11:$AR$15,$E$10+1) -> not yet | AL26: =HLOOKUP(3,$AJ$11:$AR$15,$E$10+1) -> not yet | AM26: =HLOOKUP(4,$AJ$11:$AR$15,$E$10+1) -> not yet | AN26: =HLOOKUP(5,$AJ$11:$AR$15,$E$10+1) -> not yet | AO26: =HLOOKUP(6,$AJ$11:$AR$15,$E$10+1) -> not yet | AP26: =HLOOKUP(7,$AJ$11:$AR$15,$E$10+1) -> yes | AQ26: =HLOOKUP(8,$AJ$11:$AR$15,$E$10+1) -> yes | AR26: =HLOOKUP(9,$AJ$11:$AR$15,$E$10+1) -> yes
C27: Annl Price Increase (PI) $ | E27: =+E4 -> 108271.895 | V27: =100*(+AD21/$E$7) -> 227.4357226 | W27: =EXP(5.7226-(0.68367*LN(+V27))) -> 7.481350969 | X27: =(+W27*V27)/100 -> 17.01526464 | Y27: =100*((((X27/100)-((X27/100)-0.03574)*$E$19)-0.03574-0.00619)/0.344) -> 22.38704306 | Z27: =+$E$18 -> 0.25 | AA27: =Y27+Z27 -> 22.63704306 | AB27: =100*($E$15*$E$17+($E$16*(AA27/100))/(1-$E$19)) -> 21.5169664 | AC27: =AB27/V27 -> 0.09460680208 | AD27: =$E$6/(1-AC27) -> 584953.681 | AE27: =IF(OR(OR(AD27=AD21,AD27=(AD21+1)),AD27=(AD13-1)),"yes","not yet") -> not yet | AF27: =100*(1-AC27) -> 90.53931979 | AI27: 1 | AJ27: =V3 -> 257.3978738 | AK27: =V9 -> 225.6923728 | AL27: =V15 -> 227.5487001 | AM27: =V21 -> 227.4279147 | AN27: =V27 -> 227.4357226 | AO27: =V33 -> 227.4352177 | AP27: =V39 -> 227.4353417 | AQ27: =V45 -> 227.4353417 | AR27: =V51 -> 227.4353417
C28: Monthly PI $ | E28: =+E27/12 -> 9022.657917 | V28: =100*(+AD22/$E$7) -> 227.0532476 | W28: =EXP(5.70827-(0.68367*LN(+V28))) -> 7.383398775 | X28: =(+W28*V28)/100 -> 16.7642467 | Y28: =100*((((X28/100)-((X28/100)-0.03574)*$E$19)-0.03574-0.00619)/0.344) -> 21.93535671 | Z28: =+$E$18 -> 0.25 | AA28: =Y28+Z28 -> 22.18535671 | AB28: =100*($E$15*$E$17+($E$16*(AA28/100))/(1-$E$19)) -> 21.13452119 | AC28: =AB28/V28 -> 0.09308178331 | AD28: =$E$6/(1-AC28) -> 583970.0583 | AE28: =IF(OR(OR(AD28=AD22,AD28=(AD22+1)),AD28=(AD22-1)),"yes","not yet") -> not yet | AF28: =100*(1-AC28) -> 90.69182167 | AI28: 2 | AJ28: =V4 -> 257.3978738 | AK28: =V10 -> 225.3243557 | AL28: =V16 -> 227.1631012 | AM28: =V22 -> 227.0458147 | AN28: =V28 -> 227.0532476 | AO28: =V34 -> 227.0527764 | AP28: =V40 -> 227.0527537 | AQ28: =V46 -> 227.0527537 | AR28: =V52 -> 227.0527537
C29: Percentage PI | E29: =+E4/E5 -> 0.2264864358 | V29: =100*(+AD23/$E$7) -> 226.795827 | W29: =EXP(5.6985-(0.68367*LN(V29))) -> 7.317286911 | X29: =(+W29*V29)/100 -> 16.59530137 | Y29: =100*((((X29/100)-((X29/100)-0.03574)*$E$19)-0.03574-0.00619)/0.344) -> 21.63135333 | Z29: =+$E$18 -> 0.25 | AA29: =Y29+Z29 -> 21.88135333 | AB29: =100*($E$15*$E$17+($E$16*(AA29/100))/(1-$E$19)) -> 20.87711993 | AC29: =AB29/V29 -> 0.09205248706 | AD29: =$E$6/(1-AC29) -> 583308.0396 | AE29: =IF(OR(OR(AD29=AD23,AD29=(AD23+1)),AD29=(AD23-1)),"yes","not yet") -> not yet | AF29: =100*(1-AC29) -> 90.79475129 | AI29: 3 | AJ29: =V5 -> 257.3978738 | AK29: =V11 -> 225.0771288 | AL29: =V17 -> 226.9035689 | AM29: =V23 -> 226.7886417 | AN29: =V29 -> 226.795827 | AO29: =V35 -> 226.7953776 | AP29: =V41 -> 226.7953622 | AQ29: =V47 -> 226.7953622 | AR29: =V53 -> 226.7953622
V30: =100*(+AD24/$E$7) -> 226.6312563 | W30: =EXP(5.6922-(0.68367*LN(V30))) -> 7.27494238 | X30: =(+W30*V30)/100 -> 16.48729331 | Y30: =100*((((X30/100)-((X30/100)-0.03574)*$E$19)-0.03574-0.00619)/0.344) -> 21.43700163 | Z30: =+$E$18 -> 0.25 | AA30: =Y30+Z30 -> 21.68700163 | AB30: =100*($E$15*$E$17+($E$16*(AA30/100))/(1-$E$19)) -> 20.71256133 | AC30: =AB30/V30 -> 0.09139322466 | AD30: =$E$6/(1-AC30) -> 582884.8059 | AE30: =IF(OR(OR(AD30=AD24,AD30=(AD24+1)),AD30=(AD24-1)),"yes","not yet") -> not yet | AF30: =100*(1-AC30) -> 90.86067753 | AI30: 4 | AJ30: =V6 -> 257.3978738 | AK30: =V12 -> 224.9192697 | AL30: =V18 -> 226.7376449 | AM30: =V24 -> 226.6242274 | AN30: =V30 -> 226.6312563 | AO30: =V36 -> 226.6308205 | AP30: =V42 -> 226.630896 | AQ30: =V48 -> 226.630896 | AR30: =V54 -> 226.630896
V32: 6th Turnover | W32: M | X32: ROR | Y32: ROE | AJ32: yes
V33: =100*(+AD27/$E$7) -> 227.4352177 | W33: =EXP(5.7226-(0.68367*LN(+V33))) -> 7.481362325 | X33: =(+W33*V33)/100 -> 17.01525269 | Y33: =100*((((X33/100)-((X33/100)-0.03574)*$E$19)-0.03574-0.00619)/0.344) -> 22.38702155 | Z33: =+$E$18 -> 0.25 | AA33: =Y33+Z33 -> 22.63702155 | AB33: =100*($E$15*$E$17+($E$16*(AA33/100))/(1-$E$19)) -> 21.51694819 | AC33: =AB33/V33 -> 0.09460693207 | AD33: =ROUND($E$6/(1-AC33),0) -> 584954 | AE33: =IF(OR(OR(AD33=AD27,AD33=(AD27+1)),AD33=(AD19-1)),"yes","not yet") -> not yet | AF33: =100*(1-AC33) -> 90.53930679 | AJ33: =HLOOKUP($AJ$32,$AJ$26:$AR$30,$E$10+1) -> 226.7953622
V34: =100*(+AD28/$E$7) -> 227.0527764 | W34: =EXP(5.70827-(0.68367*LN(+V34))) -> 7.383409251 | X34: =(+W34*V34)/100 -> 16.7642357 | Y34: =100*((((X34/100)-((X34/100)-0.03574)*$E$19)-0.03574-0.00619)/0.344) -> 21.93533691 | Z34: =+$E$18 -> 0.25 | AA34: =Y34+Z34 -> 22.18533691 | AB34: =100*($E$15*$E$17+($E$16*(AA34/100))/(1-$E$19)) -> 21.13450443 | AC34: =AB34/V34 -> 0.09308190264 | AD34: =ROUND($E$6/(1-AC34),0) -> 583970 | AE34: =IF(OR(OR(AD34=AD28,AD34=(AD28+1)),AD34=(AD28-1)),"yes","not yet") -> not yet | AF34: =100*(1-AC34) -> 90.69180974
V35: =100*(+AD29/$E$7) -> 226.7953776 | W35: =EXP(5.6985-(0.68367*LN(V35))) -> 7.317296824 | X35: =(+W35*V35)/100 -> 16.59529096 | Y35: =100*((((X35/100)-((X35/100)-0.03574)*$E$19)-0.03574-0.00619)/0.344) -> 21.63133461 | Z35: =+$E$18 -> 0.25 | AA35: =Y35+Z35 -> 21.88133461 | AB35: =100*($E$15*$E$17+($E$16*(AA35/100))/(1-$E$19)) -> 20.87710408 | AC35: =AB35/V35 -> 0.09205259958 | AD35: =ROUND($E$6/(1-AC35),0) -> 583308 | AE35: =IF(OR(OR(AD35=AD29,AD35=(AD29+1)),AD35=(AD29-1)),"yes","not yet") -> not yet | AF35: =100*(1-AC35) -> 90.79474004 | AJ35: =HLOOKUP(1,$AJ$11:$AR$15,$E$10+1) -> not yet | AK35: =HLOOKUP(2,$AJ$11:$AR$15,$E$10+1) -> not yet | AL35: =HLOOKUP(3,$AJ$11:$AR$15,$E$10+1) -> not yet | AM35: =HLOOKUP(4,$AJ$11:$AR$15,$E$10+1) -> not yet | AN35: =HLOOKUP(5,$AJ$11:$AR$15,$E$10+1) -> not yet | AO35: =HLOOKUP(6,$AJ$11:$AR$15,$E$10+1) -> not yet | AP35: =HLOOKUP(7,$AJ$11:$AR$15,$E$10+1) -> yes | AQ35: =HLOOKUP(8,$AJ$11:$AR$15,$E$10+1) -> yes | AR35: =HLOOKUP(9,$AJ$11:$AR$15,$E$10+1) -> yes
V36: =100*(+AD30/$E$7) -> 226.6308205 | W36: =EXP(5.6922-(0.68367*LN(V36))) -> 7.274951944 | X36: =(+W36*V36)/100 -> 16.48728328 | Y36: =100*((((X36/100)-((X36/100)-0.03574)*$E$19)-0.03574-0.00619)/0.344) -> 21.43698358 | Z36: =+$E$18 -> 0.25 | AA36: =Y36+Z36 -> 21.68698358 | AB36: =100*($E$15*$E$17+($E$16*(AA36/100))/(1-$E$19)) -> 20.71254605 | AC36: =AB36/V36 -> 0.09139333298 | AD36: =ROUND($E$6/(1-AC36),0) -> 582885 | AE36: =IF(OR(OR(AD36=AD30,AD36=(AD30+1)),AD36=(AD30-1)),"yes","not yet") -> not yet | AF36: =100*(1-AC36) -> 90.8606667 | AI36: 1 | AJ36: =AD3 -> 580471.1583 | AK36: =AD9 -> 585245.553 | AL36: =AD15 -> 584934.8981 | AM36: =AD21 -> 584954.9797 | AN36: =AD27 -> 584953.681 | AO36: =AD33 -> 584954 | AP36: =AD39 -> 584954 | AQ36: =AD45 -> 584954 | AR36: =AD51 -> 584954
AI37: 2 | AJ37: =AD4 -> 579524.6339 | AK37: =AD10 -> 584253.8091 | AL37: =AD16 -> 583952.1532 | AM37: =AD22 -> 583971.2703 | AN37: =AD28 -> 583970.0583 | AO37: =AD34 -> 583970 | AP37: =AD40 -> 583970 | AQ37: =AD46 -> 583970 | AR37: =AD52 -> 583970
V38: 7th turnover | W38: M | X38: ROR | Y38: ROE | AI38: 3 | AJ38: =AD5 -> 578888.777 | AK38: =AD11 -> 583586.3031 | AL38: =AD17 -> 583290.7153 | AM38: =AD23 -> 583309.1955 | AN38: =AD29 -> 583308.0396 | AO38: =AD35 -> 583308 | AP38: =AD41 -> 583308 | AQ38: =AD47 -> 583308 | AR38: =AD53 -> 583308
V39: =100*(+AD33/$E$7) -> 227.4353417 | W39: =EXP(5.7226-(0.68367*LN(+V39))) -> 7.481359535 | X39: =(+W39*V39)/100 -> 17.01525562 | Y39: =100*((((X39/100)-((X39/100)-0.03574)*$E$19)-0.03574-0.00619)/0.344) -> 22.38702683 | Z39: =+$E$18 -> 0.25 | AA39: =Y39+Z39 -> 22.63702683 | AB39: =100*($E$15*$E$17+($E$16*(AA39/100))/(1-$E$19)) -> 21.51695266 | AC39: =AB39/V39 -> 0.09460690014 | AD39: =ROUND($E$6/(1-AC39),0) -> 584954 | AE39: =IF(OR(OR(AD39=AD33,AD39=(AD33+1)),AD39=(AD25-1)),"yes","not yet") -> yes | AF39: =100*(1-AC39) -> 90.53930999 | AI39: 4 | AJ39: =AD6 -> 578482.7701 | AK39: =AD12 -> 583159.5537 | AL39: =AD18 -> 582867.8485 | AM39: =AD24 -> 582885.9267 | AN39: =AD30 -> 582884.8059 | AO39: =AD36 -> 582885 | AP39: =AD42 -> 582885 | AQ39: =AD48 -> 582885 | AR39: =AD54 -> 582885
V40: =100*(+AD34/$E$7) -> 227.0527537 | W40: =EXP(5.70827-(0.68367*LN(+V40))) -> 7.383409755 | X40: =(+W40*V40)/100 -> 16.76423517 | Y40: =100*((((X40/100)-((X40/100)-0.03574)*$E$19)-0.03574-0.00619)/0.344) -> 21.93533596 | Z40: =+$E$18 -> 0.25 | AA40: =Y40+Z40 -> 22.18533596 | AB40: =100*($E$15*$E$17+($E$16*(AA40/100))/(1-$E$19)) -> 21.13450362 | AC40: =AB40/V40 -> 0.09308190838 | AD40: =ROUND($E$6/(1-AC40),0) -> 583970 | AE40: =IF(OR(OR(AD40=AD34,AD40=(AD34+1)),AD40=(AD34-1)),"yes","not yet") -> yes | AF40: =100*(1-AC40) -> 90.69180916
V41: =100*(+AD35/$E$7) -> 226.7953622 | W41: =EXP(5.6985-(0.68367*LN(V41))) -> 7.317297164 | X41: =(+W41*V41)/100 -> 16.59529061 | Y41: =100*((((X41/100)-((X41/100)-0.03574)*$E$19)-0.03574-0.00619)/0.344) -> 21.63133397 | Z41: =+$E$18 -> 0.25 | AA41: =Y41+Z41 -> 21.88133397 | AB41: =100*($E$15*$E$17+($E$16*(AA41/100))/(1-$E$19)) -> 20.87710354 | AC41: =AB41/V41 -> 0.09205260344 | AD41: =ROUND($E$6/(1-AC41),0) -> 583308 | AE41: =IF(OR(OR(AD41=AD35,AD41=(AD35+1)),AD41=(AD35-1)),"yes","not yet") -> yes | AF41: =100*(1-AC41) -> 90.79473966 | AJ41: yes
V42: =100*(+AD36/$E$7) -> 226.630896 | W42: =EXP(5.6922-(0.68367*LN(V42))) -> 7.274950287 | X42: =(+W42*V42)/100 -> 16.48728502 | Y42: =100*((((X42/100)-((X42/100)-0.03574)*$E$19)-0.03574-0.00619)/0.344) -> 21.43698671 | Z42: =+$E$18 -> 0.25 | AA42: =Y42+Z42 -> 21.68698671 | AB42: =100*($E$15*$E$17+($E$16*(AA42/100))/(1-$E$19)) -> 20.71254869 | AC42: =AB42/V42 -> 0.09139331422 | AD42: =ROUND($E$6/(1-AC42),0) -> 582885 | AE42: =IF(OR(OR(AD42=AD36,AD42=(AD36+1)),AD42=(AD36-1)),"yes","not yet") -> yes | AF42: =100*(1-AC42) -> 90.86066858 | AJ42: =HLOOKUP($AJ$32,$AJ$35:$AR$39,$E$10+1) -> 583308
V44: 8th turnover | W44: M | X44: ROR | Y44: ROE
V45: =100*(+AD39/$E$7) -> 227.4353417 | W45: =EXP(5.7226-(0.68367*LN(+V45))) -> 7.481359535 | X45: =(+W45*V45)/100 -> 17.01525562 | Y45: =100*((((X45/100)-((X45/100)-0.03574)*$E$19)-0.03574-0.00619)/0.344) -> 22.38702683 | Z45: =+$E$18 -> 0.25 | AA45: =Y45+Z45 -> 22.63702683 | AB45: =100*($E$15*$E$17+($E$16*(AA45/100))/(1-$E$19)) -> 21.51695266 | AC45: =AB45/V45 -> 0.09460690014 | AD45: =ROUND($E$6/(1-AC45),0) -> 584954 | AE45: =IF(OR(OR(AD45=AD39,AD45=(AD39+1)),AD45=(AD31-1)),"yes","not yet") -> yes | AF45: =100*(1-AC45) -> 90.53930999
V46: =100*(+AD40/$E$7) -> 227.0527537 | W46: =EXP(5.70827-(0.68367*LN(+V46))) -> 7.383409755 | X46: =(+W46*V46)/100 -> 16.76423517 | Y46: =100*((((X46/100)-((X46/100)-0.03574)*$E$19)-0.03574-0.00619)/0.344) -> 21.93533596 | Z46: =+$E$18 -> 0.25 | AA46: =Y46+Z46 -> 22.18533596 | AB46: =100*($E$15*$E$17+($E$16*(AA46/100))/(1-$E$19)) -> 21.13450362 | AC46: =AB46/V46 -> 0.09308190838 | AD46: =ROUND($E$6/(1-AC46),0) -> 583970 | AE46: =IF(OR(OR(AD46=AD40,AD46=(AD40+1)),AD46=(AD40-1)),"yes","not yet") -> yes | AF46: =100*(1-AC46) -> 90.69180916
V47: =100*(+AD41/$E$7) -> 226.7953622 | W47: =EXP(5.6985-(0.68367*LN(V47))) -> 7.317297164 | X47: =(+W47*V47)/100 -> 16.59529061 | Y47: =100*((((X47/100)-((X47/100)-0.03574)*$E$19)-0.03574-0.00619)/0.344) -> 21.63133397 | Z47: =+$E$18 -> 0.25 | AA47: =Y47+Z47 -> 21.88133397 | AB47: =100*($E$15*$E$17+($E$16*(AA47/100))/(1-$E$19)) -> 20.87710354 | AC47: =AB47/V47 -> 0.09205260344 | AD47: =ROUND($E$6/(1-AC47),0) -> 583308 | AE47: =IF(OR(OR(AD47=AD41,AD47=(AD41+1)),AD47=(AD41-1)),"yes","not yet") -> yes | AF47: =100*(1-AC47) -> 90.79473966
V48: =100*(+AD42/$E$7) -> 226.630896 | W48: =EXP(5.6922-(0.68367*LN(V48))) -> 7.274950287 | X48: =(+W48*V48)/100 -> 16.48728502 | Y48: =100*((((X48/100)-((X48/100)-0.03574)*$E$19)-0.03574-0.00619)/0.344) -> 21.43698671 | Z48: =+$E$18 -> 0.25 | AA48: =Y48+Z48 -> 21.68698671 | AB48: =100*($E$15*$E$17+($E$16*(AA48/100))/(1-$E$19)) -> 20.71254869 | AC48: =AB48/V48 -> 0.09139331422 | AD48: =ROUND($E$6/(1-AC48),0) -> 582885 | AE48: =IF(OR(OR(AD48=AD42,AD48=(AD42+1)),AD48=(AD42-1)),"yes","not yet") -> yes | AF48: =100*(1-AC48) -> 90.86066858
V50: 9th turnover | W50: M | X50: ROR | Y50: ROE
V51: =100*(+AD45/$E$7) -> 227.4353417 | W51: =EXP(5.7226-(0.68367*LN(+V51))) -> 7.481359535 | X51: =(+W51*V51)/100 -> 17.01525562 | Y51: =100*((((X51/100)-((X51/100)-0.03574)*$E$19)-0.03574-0.00619)/0.344) -> 22.38702683 | Z51: =+$E$18 -> 0.25 | AA51: =Y51+Z51 -> 22.63702683 | AB51: =100*($E$15*$E$17+($E$16*(AA51/100))/(1-$E$19)) -> 21.51695266 | AC51: =AB51/V51 -> 0.09460690014 | AD51: =ROUND($E$6/(1-AC51),0) -> 584954 | AE51: =IF(OR(OR(AD51=AD45,AD51=(AD45+1)),AD51=(AD37-1)),"yes","not yet") -> yes | AF51: =100*(1-AC51) -> 90.53930999
V52: =100*(+AD46/$E$7) -> 227.0527537 | W52: =EXP(5.70827-(0.68367*LN(+V52))) -> 7.383409755 | X52: =(+W52*V52)/100 -> 16.76423517 | Y52: =100*((((X52/100)-((X52/100)-0.03574)*$E$19)-0.03574-0.00619)/0.344) -> 21.93533596 | Z52: =+$E$18 -> 0.25 | AA52: =Y52+Z52 -> 22.18533596 | AB52: =100*($E$15*$E$17+($E$16*(AA52/100))/(1-$E$19)) -> 21.13450362 | AC52: =AB52/V52 -> 0.09308190838 | AD52: =ROUND($E$6/(1-AC52),0) -> 583970 | AE52: =IF(OR(OR(AD52=AD46,AD52=(AD46+1)),AD52=(AD46-1)),"yes","not yet") -> yes | AF52: =100*(1-AC52) -> 90.69180916
V53: =100*(+AD47/$E$7) -> 226.7953622 | W53: =EXP(5.6985-(0.68367*LN(V53))) -> 7.317297164 | X53: =(+W53*V53)/100 -> 16.59529061 | Y53: =100*((((X53/100)-((X53/100)-0.03574)*$E$19)-0.03574-0.00619)/0.344) -> 21.63133397 | Z53: =+$E$18 -> 0.25 | AA53: =Y53+Z53 -> 21.88133397 | AB53: =100*($E$15*$E$17+($E$16*(AA53/100))/(1-$E$19)) -> 20.87710354 | AC53: =AB53/V53 -> 0.09205260344 | AD53: =ROUND($E$6/(1-AC53),0) -> 583308 | AE53: =IF(OR(OR(AD53=AD47,AD53=(AD47+1)),AD53=(AD47-1)),"yes","not yet") -> yes | AF53: =100*(1-AC53) -> 90.79473966
V54: =100*(+AD48/$E$7) -> 226.630896 | W54: =EXP(5.6922-(0.68367*LN(V54))) -> 7.274950287 | X54: =(+W54*V54)/100 -> 16.48728502 | Y54: =100*((((X54/100)-((X54/100)-0.03574)*$E$19)-0.03574-0.00619)/0.344) -> 21.43698671 | Z54: =+$E$18 -> 0.25 | AA54: =Y54+Z54 -> 21.68698671 | AB54: =100*($E$15*$E$17+($E$16*(AA54/100))/(1-$E$19)) -> 20.71254869 | AC54: =AB54/V54 -> 0.09139331422 | AD54: =ROUND($E$6/(1-AC54),0) -> 582885 | AE54: =IF(OR(OR(AD54=AD48,AD54=(AD48+1)),AD54=(AD48-1)),"yes","not yet") -> yes | AF54: =100*(1-AC54) -> 90.86066858

Sheet YW
B1: NEW IMPROVED LURITO - GALLAGHER FORMULA | AE1: !??! | AF1: OP/RATIO | AI1: curve
G2: NOTE: | N2: FORMULAS | U2: 1st Revenue | V2: 1st Turnover | W2: M | X2: ROR | Y2: ROE | AA2: Adj ROE | AB2: Pre Tax ROE | AC2: Adj M | AD2: Revenues | AE2: Decision | AI2: lookup table
B3: !!! | C3: Revenue Requirement | E3: =E5+E4 -> 616115.0071 | F3: !!!<-- | H3: Red numbers are input/linked fields. | N3: 1. less than 50 | Q3: @EXP(5.72260-(.68367*@LN(T))) | U3: =$E$6*1.25 -> 696919.8178 | V3: =100*(+U3/$E$7) -> 253.9547831 | W3: =EXP(5.7226-(0.68367*LN(+V3))) -> 6.937992024 | X3: =(+W3*V3)/100 -> 17.6193626 | Y3: =100*((((X3/100)-((X3/100)-0.03574)*$E$19)-0.03574-0.00619)/0.344) -> 23.47406816 | Z3: =+$E$18 -> 0.25 | AA3: =Y3+Z3 -> 23.72406816 | AB3: =100*($E$15*$E$17+($E$16*(AA3/100))/(1-$E$19)) -> 22.43735627 | AC3: =AB3/V3 -> 0.08835177662 | AD3: =$E$6/(1-AC3) -> 611569.0679 | AE3: =IF(AD3=$U$3,"yes","not yet") -> not yet | AF3: =100*(1-AC3) -> 91.16482234 | AI3: 0 | AJ3: 1
B4: !!! | C4: Revenue Deficiency | E4: =(+E6-((H13/100)*E5))/H23 -> 56152.10705 | F4: !!!<-- | H4: Black are formula calculations | N4: 2. Between 50 and 125 | Q4: @EXP(5.70827-(.68367*@LN(T))) | U4: =$E$6*1.25 -> 696919.8178 | V4: =100*(+U4/$E$7) -> 253.9547831 | W4: =EXP(5.70827-(0.68367*LN(+V4))) -> 6.839279562 | X4: =(+W4*V4)/100 -> 17.36867758 | Y4: =100*((((X4/100)-((X4/100)-0.03574)*$E$19)-0.03574-0.00619)/0.344) -> 23.02298088 | Z4: =+$E$18 -> 0.25 | AA4: =Y4+Z4 -> 23.27298088 | AB4: =100*($E$15*$E$17+($E$16*(AA4/100))/(1-$E$19)) -> 22.05541829 | AC4: =AB4/V4 -> 0.08684781606 | AD4: =$E$6/(1-AC4) -> 610561.8144 | AE4: =IF(AD4=$U$4,"yes","not yet") -> not yet | AF4: =100*(1-AC4) -> 91.31521839 | AI4: 50 | AJ4: 2
B5: * | C5: Revenue | E5: =Proforma!Q20 -> 559962.9 | F5: * p/f before rates | N5: 3. Between 125 and 140 | Q5: @EXP(5.69850-(.68367*@LN(T))) | U5: =$E$6*1.25 -> 696919.8178 | V5: =100*(+U5/$E$7) -> 253.9547831 | W5: =EXP(5.6985-(0.68367*LN(V5))) -> 6.772785155 | X5: =(+W5*V5)/100 -> 17.19981185 | Y5: =100*((((X5/100)-((X5/100)-0.03574)*$E$19)-0.03574-0.00619)/0.344) -> 22.71912074 | Z5: =+$E$18 -> 0.25 | AA5: =Y5+Z5 -> 22.96912074 | AB5: =100*($E$15*$E$17+($E$16*(AA5/100))/(1-$E$19)) -> 21.79813832 | AC5: =AB5/V5 -> 0.08583472244 | AD5: =$E$6/(1-AC5) -> 609885.1794 | AE5: =IF(AD5=$U$5,"yes","not yet") -> not yet | AF5: =100*(1-AC5) -> 91.41652776 | AI5: 125 | AJ5: 3
B6: * | C6: Expenses | E6: =+Proforma!Q374 -> 557535.8543 | F6: * p/f before rates | N6: 4. greater than 400 | Q6: @EXP(5.69220-(.68367*@LN(T))) | U6: =$E$6*1.25 -> 696919.8178 | V6: =100*(+U6/$E$7) -> 253.9547831 | W6: =EXP(5.6922-(0.68367*LN(V6))) -> 6.730250733 | X6: =(+W6*V6)/100 -> 17.09179365 | Y6: =100*((((X6/100)-((X6/100)-0.03574)*$E$19)-0.03574-0.00619)/0.344) -> 22.52475078 | Z6: =+$E$18 -> 0.25 | AA6: =Y6+Z6 -> 22.77475078 | AB6: =100*($E$15*$E$17+($E$16*(AA6/100))/(1-$E$19)) -> 21.63356425 | AC6: =AB6/V6 -> 0.08518667768 | AD6: =$E$6/(1-AC6) -> 609453.1427 | AE6: =IF(AD6=$U$6,"yes","not yet") -> not yet | AF6: =100*(1-AC6) -> 91.48133223 | AI6: 401 | AJ6: 4
B7: * | C7: Avg. Investment - | E7: ='Ave Inv. Summary'!L64 -> 274426.7343 | F7: * p/f before rates
C8: curve turnover | E8: =V3 -> 253.9547831 | F8: (calculated) | V8: 2nd Turnover | W8: M | X8: ROR | Y8: ROE | AI8: lookup tables
C9: final turnover | E9: =HLOOKUP($AJ$32,$AJ$26:$AR$30,$E$10+1) -> 223.9399166 | F9: (calculated) | V9: =100*(+AD3/$E$7) -> 222.8533126 | W9: =EXP(5.7226-(0.68367*LN(+V9))) -> 7.58618428 | X9: =(+W9*V9)/100 -> 16.90606297 | Y9: =100*((((X9/100)-((X9/100)-0.03574)*$E$19)-0.03574-0.00619)/0.344) -> 22.19054353 | Z9: =+$E$18 -> 0.25 | AA9: =Y9+Z9 -> 22.44054353 | AB9: =100*($E$15*$E$17+($E$16*(AA9/100))/(1-$E$19)) -> 21.35058922 | AC9: =AB9/V9 -> 0.0958055726 | AD9: =$E$6/(1-AC9) -> 616610.5844 | AE9: =IF(OR(OR(AD9=AD3,AD9=(AD3+1)),AD9=(AD8187-1)),"yes","not yet") -> not yet | AF9: =100*(1-AC9) -> 90.41944274
C10: curve No. used | E10: =VLOOKUP(E8,AI3:AJ6,2) -> 3 | F10: (calculated) | V10: =100*(+AD4/$E$7) -> 222.4862734 | W10: =EXP(5.70827-(0.68367*LN(+V10))) -> 7.486681688 | X10: =(+W10*V10)/100 -> 16.65683909 | Y10: =100*((((X10/100)-((X10/100)-0.03574)*$E$19)-0.03574-0.00619)/0.344) -> 21.74208546 | Z10: =+$E$18 -> 0.25 | AA10: =Y10+Z10 -> 21.99208546 | AB10: =100*($E$15*$E$17+($E$16*(AA10/100))/(1-$E$19)) -> 20.97087741 | AC10: =AB10/V10 -> 0.09425694935 | AD10: =$E$6/(1-AC10) -> 615556.3146 | AE10: =IF(OR(OR(AD10=AD4,AD10=(AD4+1)),AD10=(AD4-1)),"yes","not yet") -> not yet | AF10: =100*(1-AC10) -> 90.57430507
V11: =100*(+AD5/$E$7) -> 222.2397103 | W11: =EXP(5.6985-(0.68367*LN(V11))) -> 7.419515377 | X11: =(+W11*V11)/100 -> 16.48910948 | Y11: =100*((((X11/100)-((X11/100)-0.03574)*$E$19)-0.03574-0.00619)/0.344) -> 21.44026968 | Z11: =+$E$18 -> 0.25 | AA11: =Y11+Z11 -> 21.69026968 | AB11: =100*($E$15*$E$17+($E$16*(AA11/100))/(1-$E$19)) -> 20.7153284 | AC11: =AB11/V11 -> 0.09321164236 | AD11: =$E$6/(1-AC11) -> 614846.7275 | AE11: =IF(OR(OR(AD11=AD5,AD11=(AD5+1)),AD11=(AD5-1)),"yes","not yet") -> not yet | AF11: =100*(1-AC11) -> 90.67883576 | AJ11: 1 | AK11: 2 | AL11: 3 | AM11: 4 | AN11: 5 | AO11: 6 | AP11: 7 | AQ11: 8 | AR11: 9
C12: Company actual | V12: =100*(+AD6/$E$7) -> 222.0822779 | W12: =EXP(5.6922-(0.68367*LN(V12))) -> 7.376492235 | X12: =(+W12*V12)/100 -> 16.38188198 | Y12: =100*((((X12/100)-((X12/100)-0.03574)*$E$19)-0.03574-0.00619)/0.344) -> 21.24732253 | Z12: =+$E$18 -> 0.25 | AA12: =Y12+Z12 -> 21.49732253 | AB12: =100*($E$15*$E$17+($E$16*(AA12/100))/(1-$E$19)) -> 20.55195903 | AC12: =AB12/V12 -> 0.09254209396 | AD12: =$E$6/(1-AC12) -> 614393.076 | AE12: =IF(OR(OR(AD12=AD6,AD12=(AD6+1)),AD12=(AD6-1)),"yes","not yet") -> not yet | AF12: =100*(1-AC12) -> 90.7457906 | AJ12: =AE3 -> not yet | AK12: =AE9 -> not yet | AL12: =AE15 -> not yet | AM12: =AE21 -> not yet | AN12: =AE27 -> not yet | AO12: =AE33 -> not yet | AP12: =AE39 -> yes | AQ12: =AE45 -> yes | AR12: =AE51 -> yes
C13: capital structure: | E13: !!! | F13: OPERATING RATIO -> | H13: =HLOOKUP($AJ$23,$AJ$17:$AR$21,$E$10+1) -> 90.72252621 | I13: !!!<-- | AJ13: =AE4 -> not yet | AK13: =AE10 -> not yet | AL13: =AE16 -> not yet | AM13: =AE22 -> not yet | AN13: =AE28 -> not yet | AO13: =AE34 -> not yet | AP13: =AE40 -> yes | AQ13: =AE46 -> yes | AR13: =AE52 -> yes
C14: - | D14: - | H14: = | V14: 3rd Turnover | W14: M | X14: ROR | Y14: ROE | AJ14: =AE5 -> not yet | AK14: =AE11 -> not yet | AL14: =AE17 -> not yet | AM14: =AE23 -> not yet | AN14: =AE29 -> not yet | AO14: =AE35 -> not yet | AP14: =AE41 -> yes | AQ14: =AE47 -> yes | AR14: =AE53 -> yes
B15: * | C15: Actual Debt Ratio | E15: =+'Combined LG'!E15 -> 0.4758894453 | F15: Conversion factor data: | V15: =100*(+AD9/$E$7) -> 224.6904209 | W15: =EXP(5.7226-(0.68367*LN(+V15))) -> 7.543723946 | X15: =(+W15*V15)/100 -> 16.95002509 | Y15: =100*((((X15/100)-((X15/100)-0.03574)*$E$19)-0.03574-0.00619)/0.344) -> 22.26964979 | Z15: =+$E$18 -> 0.25 | AA15: =Y15+Z15 -> 22.51964979 | AB15: =100*($E$15*$E$17+($E$16*(AA15/100))/(1-$E$19)) -> 21.4175689 | AC15: =AB15/V15 -> 0.09532034706 | AD15: =$E$6/(1-AC15) -> 616279.8649 | AE15: =IF(OR(OR(AD15=AD9,AD15=(AD9+1)),AD15=(AD1-1)),"yes","not yet") -> not yet | AF15: =100*(1-AC15) -> 90.46796529 | AJ15: =AE6 -> not yet | AK15: =AE12 -> not yet | AL15: =AE18 -> not yet | AM15: =AE24 -> not yet | AN15: =AE30 -> not yet | AO15: =AE36 -> not yet | AP15: =AE42 -> yes | AQ15: =AE48 -> yes | AR15: =AE54 -> yes
B16: * | C16: Actual Equity Ratio | E16: =+'Combined LG'!E16 -> 0.5241105547 | F16: B & O Tax | H16: =+'Combined LG'!H16 -> 0.015 | I16: * | V16: =100*(+AD10/$E$7) -> 224.3062493 | W16: =EXP(5.70827-(0.68367*LN(+V16))) -> 7.445098372 | X16: =(+W16*V16)/100 -> 16.69982091 | Y16: =100*((((X16/100)-((X16/100)-0.03574)*$E$19)-0.03574-0.00619)/0.344) -> 21.81942775 | Z16: =+$E$18 -> 0.25 | AA16: =Y16+Z16 -> 22.06942775 | AB16: =100*($E$15*$E$17+($E$16*(AA16/100))/(1-$E$19)) -> 21.03636353 | AC16: =AB16/V16 -> 0.09378411702 | AD16: =$E$6/(1-AC16) -> 615235.1385 | AE16: =IF(OR(OR(AD16=AD10,AD16=(AD10+1)),AD16=(AD10-1)),"yes","not yet") -> not yet | AF16: =100*(1-AC16) -> 90.6215883
B17: * | C17: Actual Cost of Debt | E17: =+'Combined LG'!E17 -> 0.04938254121 | F17: WUTC Fee | H17: =+'Combined LG'!H17 -> 0.004275 | I17: * | V17: =100*(+AD11/$E$7) -> 224.0476786 | W17: =EXP(5.6985-(0.68367*LN(V17))) -> 7.378530057 | X17: =(+W17*V17)/100 -> 16.53142531 | Y17: =100*((((X17/100)-((X17/100)-0.03574)*$E$19)-0.03574-0.00619)/0.344) -> 21.51641356 | Z17: =+$E$18 -> 0.25 | AA17: =Y17+Z17 -> 21.76641356 | AB17: =100*($E$15*$E$17+($E$16*(AA17/100))/(1-$E$19)) -> 20.77979982 | AC17: =AB17/V17 -> 0.09274722218 | AD17: =$E$6/(1-AC17) -> 614531.9892 | AE17: =IF(OR(OR(AD17=AD11,AD17=(AD11+1)),AD17=(AD11-1)),"yes","not yet") -> not yet | AF17: =100*(1-AC17) -> 90.72527778 | AJ17: =HLOOKUP(1,$AJ$11:$AR$15,$E$10+1) -> not yet | AK17: =HLOOKUP(2,$AJ$11:$AR$15,$E$10+1) -> not yet | AL17: =HLOOKUP(3,$AJ$11:$AR$15,$E$10+1) -> not yet | AM17: =HLOOKUP(4,$AJ$11:$AR$15,$E$10+1) -> not yet | AN17: =HLOOKUP(5,$AJ$11:$AR$15,$E$10+1) -> not yet | AO17: =HLOOKUP(6,$AJ$11:$AR$15,$E$10+1) -> not yet | AP17: =HLOOKUP(7,$AJ$11:$AR$15,$E$10+1) -> yes | AQ17: =HLOOKUP(8,$AJ$11:$AR$15,$E$10+1) -> yes | AR17: =HLOOKUP(9,$AJ$11:$AR$15,$E$10+1) -> yes
B18: * | C18: Basis Points | E18: 0.25 | F18: City Tax | H18: =+'Combined LG'!H18 -> 0 | I18: * | V18: =100*(+AD12/$E$7) -> 223.8823698 | W18: =EXP(5.6922-(0.68367*LN(V18))) -> 7.335892323 | X18: =(+W18*V18)/100 -> 16.42376958 | Y18: =100*((((X18/100)-((X18/100)-0.03574)*$E$19)-0.03574-0.00619)/0.344) -> 21.32269584 | Z18: =+$E$18 -> 0.25 | AA18: =Y18+Z18 -> 21.57269584 | AB18: =100*($E$15*$E$17+($E$16*(AA18/100))/(1-$E$19)) -> 20.61577801 | AC18: =AB18/V18 -> 0.0920830793 | AD18: =$E$6/(1-AC18) -> 614082.4579 | AE18: =IF(OR(OR(AD18=AD12,AD18=(AD12+1)),AD18=(AD12-1)),"yes","not yet") -> not yet | AF18: =100*(1-AC18) -> 90.79169207 | AI18: 1 | AJ18: =AF3 -> 91.16482234 | AK18: =AF9 -> 90.41944274 | AL18: =AF15 -> 90.46796529 | AM18: =AF21 -> 90.46480146 | AN18: =AF27 -> 90.46500773 | AO18: =AF33 -> 90.46499429 | AP18: =AF39 -> 90.46499416 | AQ18: =AF45 -> 90.46499416 | AR18: =AF51 -> 90.46499416
B19: * | C19: Tax Rate | E19: =+'Combined LG'!E19 -> 0.381 | F19: Bad Debts | H19: =+'Combined LG'!H19 -> 0.006 | I19: * | AI19: 2 | AJ19: =AF4 -> 91.31521839 | AK19: =AF10 -> 90.57430507 | AL19: =AF16 -> 90.6215883 | AM19: =AF22 -> 90.61856592 | AN19: =AF28 -> 90.61875909 | AO19: =AF34 -> 90.61874674 | AP19: =AF40 -> 90.61874348 | AQ19: =AF46 -> 90.61874348 | AR19: =AF52 -> 90.61874348
H20: - | V20: 4th Turnover | W20: M | X20: ROR | Y20: ROE | AI20: 3 | AJ20: =AF5 -> 91.41652776 | AK20: =AF11 -> 90.67883576 | AL20: =AF17 -> 90.72527778 | AM20: =AF23 -> 90.72234926 | AN20: =AF29 -> 90.7225339 | AO20: =AF35 -> 90.72252226 | AP20: =AF41 -> 90.72252621 | AQ20: =AF47 -> 90.72252621 | AR20: =AF53 -> 90.72252621
F21: Revenue Sensitive | H21: =SUM(H16:H19) -> 0.025275 | V21: =100*(+AD15/$E$7) -> 224.5699081 | W21: =EXP(5.7226-(0.68367*LN(+V21))) -> 7.54649138 | X21: =(+W21*V21)/100 -> 16.94714875 | Y21: =100*((((X21/100)-((X21/100)-0.03574)*$E$19)-0.03574-0.00619)/0.344) -> 22.26447407 | Z21: =+$E$18 -> 0.25 | AA21: =Y21+Z21 -> 22.51447407 | AB21: =100*($E$15*$E$17+($E$16*(AA21/100))/(1-$E$19)) -> 21.41318659 | AC21: =AB21/V21 -> 0.09535198537 | AD21: =$E$6/(1-AC21) -> 616301.4181 | AE21: =IF(OR(OR(AD21=AD15,AD21=(AD15+1)),AD21=(AD7-1)),"yes","not yet") -> not yet | AF21: =100*(1-AC21) -> 90.46480146 | AI21: 4 | AJ21: =AF6 -> 91.48133223 | AK21: =AF12 -> 90.7457906 | AL21: =AF18 -> 90.79169207 | AM21: =AF24 -> 90.78882296 | AN21: =AF30 -> 90.78900228 | AO21: =AF36 -> 90.78899107 | AP21: =AF42 -> 90.78899429 | AQ21: =AF48 -> 90.78899429 | AR21: =AF54 -> 90.78899429
V22: =100*(+AD16/$E$7) -> 224.189214 | W22: =EXP(5.70827-(0.68367*LN(+V22))) -> 7.447755322 | X22: =(+W22*V22)/100 -> 16.69706411 | Y22: =100*((((X22/100)-((X22/100)-0.03574)*$E$19)-0.03574-0.00619)/0.344) -> 21.81446711 | Z22: =+$E$18 -> 0.25 | AA22: =Y22+Z22 -> 22.06446711 | AB22: =100*($E$15*$E$17+($E$16*(AA22/100))/(1-$E$19)) -> 21.03216333 | AC22: =AB22/V22 -> 0.09381434085 | AD22: =$E$6/(1-AC22) -> 615255.6583 | AE22: =IF(OR(OR(AD22=AD16,AD22=(AD16+1)),AD22=(AD16-1)),"yes","not yet") -> not yet | AF22: =100*(1-AC22) -> 90.61856592
F23: Conversion Factor | H23: =((+H13/100)-H21) -> 0.8819502621 | V23: =100*(+AD17/$E$7) -> 223.9329892 | W23: =EXP(5.6985-(0.68367*LN(V23))) -> 7.381113425 | X23: =(+W23*V23)/100 -> 16.52874793 | Y23: =100*((((X23/100)-((X23/100)-0.03574)*$E$19)-0.03574-0.00619)/0.344) -> 21.51159584 | Z23: =+$E$18 -> 0.25 | AA23: =Y23+Z23 -> 21.76159584 | AB23: =100*($E$15*$E$17+($E$16*(AA23/100))/(1-$E$19)) -> 20.77572063 | AC23: =AB23/V23 -> 0.09277650742 | AD23: =$E$6/(1-AC23) -> 614551.8264 | AE23: =IF(OR(OR(AD23=AD17,AD23=(AD17+1)),AD23=(AD17-1)),"yes","not yet") -> not yet | AF23: =100*(1-AC23) -> 90.72234926 | AJ23: yes
V24: =100*(+AD18/$E$7) -> 223.7691818 | W24: =EXP(5.6922-(0.68367*LN(V24))) -> 7.338428998 | X24: =(+W24*V24)/100 -> 16.42114253 | Y24: =100*((((X24/100)-((X24/100)-0.03574)*$E$19)-0.03574-0.00619)/0.344) -> 21.31796867 | Z24: =+$E$18 -> 0.25 | AA24: =Y24+Z24 -> 21.56796867 | AB24: =100*($E$15*$E$17+($E$16*(AA24/100))/(1-$E$19)) -> 20.6117755 | AC24: =AB24/V24 -> 0.09211177039 | AD24: =$E$6/(1-AC24) -> 614101.8642 | AE24: =IF(OR(OR(AD24=AD18,AD24=(AD18+1)),AD24=(AD18-1)),"yes","not yet") -> not yet | AF24: =100*(1-AC24) -> 90.78882296 | AJ24: =HLOOKUP($AJ$23,$AJ$17:$AR$21,$E$10+1) -> 90.72252621
C26: Company Reference | V26: 5th Turnover | W26: M | X26: ROR | Y26: ROE | AJ26: =HLOOKUP(1,$AJ$11:$AR$15,$E$10+1) -> not yet | AK26: =HLOOKUP(2,$AJ$11:$AR$15,$E$10+1) -> not yet | AL26: =HLOOKUP(3,$AJ$11:$AR$15,$E$10+1) -> not yet | AM26: =HLOOKUP(4,$AJ$11:$AR$15,$E$10+1) -> not yet | AN26: =HLOOKUP(5,$AJ$11:$AR$15,$E$10+1) -> not yet | AO26: =HLOOKUP(6,$AJ$11:$AR$15,$E$10+1) -> not yet | AP26: =HLOOKUP(7,$AJ$11:$AR$15,$E$10+1) -> yes | AQ26: =HLOOKUP(8,$AJ$11:$AR$15,$E$10+1) -> yes | AR26: =HLOOKUP(9,$AJ$11:$AR$15,$E$10+1) -> yes
C27: Annl Price Increase (PI) $ | E27: =+E4 -> 56152.10705 | V27: =100*(+AD21/$E$7) -> 224.577762 | W27: =EXP(5.7226-(0.68367*LN(+V27))) -> 7.546310948 | X27: =(+W27*V27)/100 -> 16.94733624 | Y27: =100*((((X27/100)-((X27/100)-0.03574)*$E$19)-0.03574-0.00619)/0.344) -> 22.26481143 | Z27: =+$E$18 -> 0.25 | AA27: =Y27+Z27 -> 22.51481143 | AB27: =100*($E$15*$E$17+($E$16*(AA27/100))/(1-$E$19)) -> 21.41347223 | AC27: =AB27/V27 -> 0.09534992266 | AD27: =$E$6/(1-AC27) -> 616300.0128 | AE27: =IF(OR(OR(AD27=AD21,AD27=(AD21+1)),AD27=(AD13-1)),"yes","not yet") -> not yet | AF27: =100*(1-AC27) -> 90.46500773 | AI27: 1 | AJ27: =V3 -> 253.9547831 | AK27: =V9 -> 222.8533126 | AL27: =V15 -> 224.6904209 | AM27: =V21 -> 224.5699081 | AN27: =V27 -> 224.577762 | AO27: =V33 -> 224.5772499 | AP27: =V39 -> 224.5772452 | AQ27: =V45 -> 224.5772452 | AR27: =V51 -> 224.5772452
C28: Monthly PI $ | E28: =+E27/12 -> 4679.342255 | V28: =100*(+AD22/$E$7) -> 224.1966913 | W28: =EXP(5.70827-(0.68367*LN(+V28))) -> 7.4475855 | X28: =(+W28*V28)/100 -> 16.69724027 | Y28: =100*((((X28/100)-((X28/100)-0.03574)*$E$19)-0.03574-0.00619)/0.344) -> 21.8147841 | Z28: =+$E$18 -> 0.25 | AA28: =Y28+Z28 -> 22.0647841 | AB28: =100*($E$15*$E$17+($E$16*(AA28/100))/(1-$E$19)) -> 21.03243173 | AC28: =AB28/V28 -> 0.09381240912 | AD28: =$E$6/(1-AC28) -> 615254.3468 | AE28: =IF(OR(OR(AD28=AD22,AD28=(AD22+1)),AD28=(AD22-1)),"yes","not yet") -> not yet | AF28: =100*(1-AC28) -> 90.61875909 | AI28: 2 | AJ28: =V4 -> 253.9547831 | AK28: =V10 -> 222.4862734 | AL28: =V16 -> 224.3062493 | AM28: =V22 -> 224.189214 | AN28: =V28 -> 224.1966913 | AO28: =V34 -> 224.1962134 | AP28: =V40 -> 224.196087 | AQ28: =V46 -> 224.196087 | AR28: =V52 -> 224.196087
C29: Percentage PI | E29: =+E4/E5 -> 0.1002782632 | V29: =100*(+AD23/$E$7) -> 223.9402178 | W29: =EXP(5.6985-(0.68367*LN(V29))) -> 7.380950537 | X29: =(+W29*V29)/100 -> 16.52891671 | Y29: =100*((((X29/100)-((X29/100)-0.03574)*$E$19)-0.03574-0.00619)/0.344) -> 21.51189954 | Z29: =+$E$18 -> 0.25 | AA29: =Y29+Z29 -> 21.76189954 | AB29: =100*($E$15*$E$17+($E$16*(AA29/100))/(1-$E$19)) -> 20.77597778 | AC29: =AB29/V29 -> 0.09277466095 | AD29: =$E$6/(1-AC29) -> 614550.5756 | AE29: =IF(OR(OR(AD29=AD23,AD29=(AD23+1)),AD29=(AD23-1)),"yes","not yet") -> not yet | AF29: =100*(1-AC29) -> 90.7225339 | AI29: 3 | AJ29: =V5 -> 253.9547831 | AK29: =V11 -> 222.2397103 | AL29: =V17 -> 224.0476786 | AM29: =V23 -> 223.9329892 | AN29: =V29 -> 223.9402178 | AO29: =V35 -> 223.939762 | AP29: =V41 -> 223.9399166 | AQ29: =V47 -> 223.9399166 | AR29: =V53 -> 223.9399166
V30: =100*(+AD24/$E$7) -> 223.7762534 | W30: =EXP(5.6922-(0.68367*LN(V30))) -> 7.338270453 | X30: =(+W30*V30)/100 -> 16.42130668 | Y30: =100*((((X30/100)-((X30/100)-0.03574)*$E$19)-0.03574-0.00619)/0.344) -> 21.31826406 | Z30: =+$E$18 -> 0.25 | AA30: =Y30+Z30 -> 21.56826406 | AB30: =100*($E$15*$E$17+($E$16*(AA30/100))/(1-$E$19)) -> 20.6120256 | AC30: =AB30/V30 -> 0.09210997721 | AD30: =$E$6/(1-AC30) -> 614100.6513 | AE30: =IF(OR(OR(AD30=AD24,AD30=(AD24+1)),AD30=(AD24-1)),"yes","not yet") -> not yet | AF30: =100*(1-AC30) -> 90.78900228 | AI30: 4 | AJ30: =V6 -> 253.9547831 | AK30: =V12 -> 222.0822779 | AL30: =V18 -> 223.8823698 | AM30: =V24 -> 223.7691818 | AN30: =V30 -> 223.7762534 | AO30: =V36 -> 223.7758114 | AP30: =V42 -> 223.7759385 | AQ30: =V48 -> 223.7759385 | AR30: =V54 -> 223.7759385
V32: 6th Turnover | W32: M | X32: ROR | Y32: ROE | AJ32: yes
V33: =100*(+AD27/$E$7) -> 224.5772499 | W33: =EXP(5.7226-(0.68367*LN(+V33))) -> 7.546322712 | X33: =(+W33*V33)/100 -> 16.94732401 | Y33: =100*((((X33/100)-((X33/100)-0.03574)*$E$19)-0.03574-0.00619)/0.344) -> 22.26478943 | Z33: =+$E$18 -> 0.25 | AA33: =Y33+Z33 -> 22.51478943 | AB33: =100*($E$15*$E$17+($E$16*(AA33/100))/(1-$E$19)) -> 21.41345361 | AC33: =AB33/V33 -> 0.09535005714 | AD33: =ROUND($E$6/(1-AC33),0) -> 616300 | AE33: =IF(OR(OR(AD33=AD27,AD33=(AD27+1)),AD33=(AD19-1)),"yes","not yet") -> not yet | AF33: =100*(1-AC33) -> 90.46499429 | AJ33: =HLOOKUP($AJ$32,$AJ$26:$AR$30,$E$10+1) -> 223.9399166
V34: =100*(+AD28/$E$7) -> 224.1962134 | W34: =EXP(5.70827-(0.68367*LN(+V34))) -> 7.447596354 | X34: =(+W34*V34)/100 -> 16.69722901 | Y34: =100*((((X34/100)-((X34/100)-0.03574)*$E$19)-0.03574-0.00619)/0.344) -> 21.81476384 | Z34: =+$E$18 -> 0.25 | AA34: =Y34+Z34 -> 22.06476384 | AB34: =100*($E$15*$E$17+($E$16*(AA34/100))/(1-$E$19)) -> 21.03241457 | AC34: =AB34/V34 -> 0.09381253258 | AD34: =ROUND($E$6/(1-AC34),0) -> 615254 | AE34: =IF(OR(OR(AD34=AD28,AD34=(AD28+1)),AD34=(AD28-1)),"yes","not yet") -> not yet | AF34: =100*(1-AC34) -> 90.61874674
V35: =100*(+AD29/$E$7) -> 223.939762 | W35: =EXP(5.6985-(0.68367*LN(V35))) -> 7.380960807 | X35: =(+W35*V35)/100 -> 16.52890606 | Y35: =100*((((X35/100)-((X35/100)-0.03574)*$E$19)-0.03574-0.00619)/0.344) -> 21.51188039 | Z35: =+$E$18 -> 0.25 | AA35: =Y35+Z35 -> 21.76188039 | AB35: =100*($E$15*$E$17+($E$16*(AA35/100))/(1-$E$19)) -> 20.77596156 | AC35: =AB35/V35 -> 0.09277477737 | AD35: =ROUND($E$6/(1-AC35),0) -> 614551 | AE35: =IF(OR(OR(AD35=AD29,AD35=(AD29+1)),AD35=(AD29-1)),"yes","not yet") -> not yet | AF35: =100*(1-AC35) -> 90.72252226 | AJ35: =HLOOKUP(1,$AJ$11:$AR$15,$E$10+1) -> not yet | AK35: =HLOOKUP(2,$AJ$11:$AR$15,$E$10+1) -> not yet | AL35: =HLOOKUP(3,$AJ$11:$AR$15,$E$10+1) -> not yet | AM35: =HLOOKUP(4,$AJ$11:$AR$15,$E$10+1) -> not yet | AN35: =HLOOKUP(5,$AJ$11:$AR$15,$E$10+1) -> not yet | AO35: =HLOOKUP(6,$AJ$11:$AR$15,$E$10+1) -> not yet | AP35: =HLOOKUP(7,$AJ$11:$AR$15,$E$10+1) -> yes | AQ35: =HLOOKUP(8,$AJ$11:$AR$15,$E$10+1) -> yes | AR35: =HLOOKUP(9,$AJ$11:$AR$15,$E$10+1) -> yes
V36: =100*(+AD30/$E$7) -> 223.7758114 | W36: =EXP(5.6922-(0.68367*LN(V36))) -> 7.338280362 | X36: =(+W36*V36)/100 -> 16.42129642 | Y36: =100*((((X36/100)-((X36/100)-0.03574)*$E$19)-0.03574-0.00619)/0.344) -> 21.31824559 | Z36: =+$E$18 -> 0.25 | AA36: =Y36+Z36 -> 21.56824559 | AB36: =100*($E$15*$E$17+($E$16*(AA36/100))/(1-$E$19)) -> 20.61200997 | AC36: =AB36/V36 -> 0.09211008929 | AD36: =ROUND($E$6/(1-AC36),0) -> 614101 | AE36: =IF(OR(OR(AD36=AD30,AD36=(AD30+1)),AD36=(AD30-1)),"yes","not yet") -> not yet | AF36: =100*(1-AC36) -> 90.78899107 | AI36: 1 | AJ36: =AD3 -> 611569.0679 | AK36: =AD9 -> 616610.5844 | AL36: =AD15 -> 616279.8649 | AM36: =AD21 -> 616301.4181 | AN36: =AD27 -> 616300.0128 | AO36: =AD33 -> 616300 | AP36: =AD39 -> 616300 | AQ36: =AD45 -> 616300 | AR36: =AD51 -> 616300
AI37: 2 | AJ37: =AD4 -> 610561.8144 | AK37: =AD10 -> 615556.3146 | AL37: =AD16 -> 615235.1385 | AM37: =AD22 -> 615255.6583 | AN37: =AD28 -> 615254.3468 | AO37: =AD34 -> 615254 | AP37: =AD40 -> 615254 | AQ37: =AD46 -> 615254 | AR37: =AD52 -> 615254
V38: 7th turnover | W38: M | X38: ROR | Y38: ROE | AI38: 3 | AJ38: =AD5 -> 609885.1794 | AK38: =AD11 -> 614846.7275 | AL38: =AD17 -> 614531.9892 | AM38: =AD23 -> 614551.8264 | AN38: =AD29 -> 614550.5756 | AO38: =AD35 -> 614551 | AP38: =AD41 -> 614551 | AQ38: =AD47 -> 614551 | AR38: =AD53 -> 614551
V39: =100*(+AD33/$E$7) -> 224.5772452 | W39: =EXP(5.7226-(0.68367*LN(+V39))) -> 7.546322819 | X39: =(+W39*V39)/100 -> 16.9473239 | Y39: =100*((((X39/100)-((X39/100)-0.03574)*$E$19)-0.03574-0.00619)/0.344) -> 22.26478923 | Z39: =+$E$18 -> 0.25 | AA39: =Y39+Z39 -> 22.51478923 | AB39: =100*($E$15*$E$17+($E$16*(AA39/100))/(1-$E$19)) -> 21.41345344 | AC39: =AB39/V39 -> 0.09535005837 | AD39: =ROUND($E$6/(1-AC39),0) -> 616300 | AE39: =IF(OR(OR(AD39=AD33,AD39=(AD33+1)),AD39=(AD25-1)),"yes","not yet") -> yes | AF39: =100*(1-AC39) -> 90.46499416 | AI39: 4 | AJ39: =AD6 -> 609453.1427 | AK39: =AD12 -> 614393.076 | AL39: =AD18 -> 614082.4579 | AM39: =AD24 -> 614101.8642 | AN39: =AD30 -> 614100.6513 | AO39: =AD36 -> 614101 | AP39: =AD42 -> 614101 | AQ39: =AD48 -> 614101 | AR39: =AD54 -> 614101
V40: =100*(+AD34/$E$7) -> 224.196087 | W40: =EXP(5.70827-(0.68367*LN(+V40))) -> 7.447599224 | X40: =(+W40*V40)/100 -> 16.69722604 | Y40: =100*((((X40/100)-((X40/100)-0.03574)*$E$19)-0.03574-0.00619)/0.344) -> 21.81475848 | Z40: =+$E$18 -> 0.25 | AA40: =Y40+Z40 -> 22.06475848 | AB40: =100*($E$15*$E$17+($E$16*(AA40/100))/(1-$E$19)) -> 21.03241004 | AC40: =AB40/V40 -> 0.09381256523 | AD40: =ROUND($E$6/(1-AC40),0) -> 615254 | AE40: =IF(OR(OR(AD40=AD34,AD40=(AD34+1)),AD40=(AD34-1)),"yes","not yet") -> yes | AF40: =100*(1-AC40) -> 90.61874348
V41: =100*(+AD35/$E$7) -> 223.9399166 | W41: =EXP(5.6985-(0.68367*LN(V41))) -> 7.380957322 | X41: =(+W41*V41)/100 -> 16.52890967 | Y41: =100*((((X41/100)-((X41/100)-0.03574)*$E$19)-0.03574-0.00619)/0.344) -> 21.51188689 | Z41: =+$E$18 -> 0.25 | AA41: =Y41+Z41 -> 21.76188689 | AB41: =100*($E$15*$E$17+($E$16*(AA41/100))/(1-$E$19)) -> 20.77596706 | AC41: =AB41/V41 -> 0.09277473787 | AD41: =ROUND($E$6/(1-AC41),0) -> 614551 | AE41: =IF(OR(OR(AD41=AD35,AD41=(AD35+1)),AD41=(AD35-1)),"yes","not yet") -> yes | AF41: =100*(1-AC41) -> 90.72252621 | AJ41: yes
V42: =100*(+AD36/$E$7) -> 223.7759385 | W42: =EXP(5.6922-(0.68367*LN(V42))) -> 7.338277513 | X42: =(+W42*V42)/100 -> 16.42129937 | Y42: =100*((((X42/100)-((X42/100)-0.03574)*$E$19)-0.03574-0.00619)/0.344) -> 21.3182509 | Z42: =+$E$18 -> 0.25 | AA42: =Y42+Z42 -> 21.5682509 | AB42: =100*($E$15*$E$17+($E$16*(AA42/100))/(1-$E$19)) -> 20.61201446 | AC42: =AB42/V42 -> 0.09211005706 | AD42: =ROUND($E$6/(1-AC42),0) -> 614101 | AE42: =IF(OR(OR(AD42=AD36,AD42=(AD36+1)),AD42=(AD36-1)),"yes","not yet") -> yes | AF42: =100*(1-AC42) -> 90.78899429 | AJ42: =HLOOKUP($AJ$32,$AJ$35:$AR$39,$E$10+1) -> 614551
V44: 8th turnover | W44: M | X44: ROR | Y44: ROE
V45: =100*(+AD39/$E$7) -> 224.5772452 | W45: =EXP(5.7226-(0.68367*LN(+V45))) -> 7.546322819 | X45: =(+W45*V45)/100 -> 16.9473239 | Y45: =100*((((X45/100)-((X45/100)-0.03574)*$E$19)-0.03574-0.00619)/0.344) -> 22.26478923 | Z45: =+$E$18 -> 0.25 | AA45: =Y45+Z45 -> 22.51478923 | AB45: =100*($E$15*$E$17+($E$16*(AA45/100))/(1-$E$19)) -> 21.41345344 | AC45: =AB45/V45 -> 0.09535005837 | AD45: =ROUND($E$6/(1-AC45),0) -> 616300 | AE45: =IF(OR(OR(AD45=AD39,AD45=(AD39+1)),AD45=(AD31-1)),"yes","not yet") -> yes | AF45: =100*(1-AC45) -> 90.46499416
V46: =100*(+AD40/$E$7) -> 224.196087 | W46: =EXP(5.70827-(0.68367*LN(+V46))) -> 7.447599224 | X46: =(+W46*V46)/100 -> 16.69722604 | Y46: =100*((((X46/100)-((X46/100)-0.03574)*$E$19)-0.03574-0.00619)/0.344) -> 21.81475848 | Z46: =+$E$18 -> 0.25 | AA46: =Y46+Z46 -> 22.06475848 | AB46: =100*($E$15*$E$17+($E$16*(AA46/100))/(1-$E$19)) -> 21.03241004 | AC46: =AB46/V46 -> 0.09381256523 | AD46: =ROUND($E$6/(1-AC46),0) -> 615254 | AE46: =IF(OR(OR(AD46=AD40,AD46=(AD40+1)),AD46=(AD40-1)),"yes","not yet") -> yes | AF46: =100*(1-AC46) -> 90.61874348
V47: =100*(+AD41/$E$7) -> 223.9399166 | W47: =EXP(5.6985-(0.68367*LN(V47))) -> 7.380957322 | X47: =(+W47*V47)/100 -> 16.52890967 | Y47: =100*((((X47/100)-((X47/100)-0.03574)*$E$19)-0.03574-0.00619)/0.344) -> 21.51188689 | Z47: =+$E$18 -> 0.25 | AA47: =Y47+Z47 -> 21.76188689 | AB47: =100*($E$15*$E$17+($E$16*(AA47/100))/(1-$E$19)) -> 20.77596706 | AC47: =AB47/V47 -> 0.09277473787 | AD47: =ROUND($E$6/(1-AC47),0) -> 614551 | AE47: =IF(OR(OR(AD47=AD41,AD47=(AD41+1)),AD47=(AD41-1)),"yes","not yet") -> yes | AF47: =100*(1-AC47) -> 90.72252621
V48: =100*(+AD42/$E$7) -> 223.7759385 | W48: =EXP(5.6922-(0.68367*LN(V48))) -> 7.338277513 | X48: =(+W48*V48)/100 -> 16.42129937 | Y48: =100*((((X48/100)-((X48/100)-0.03574)*$E$19)-0.03574-0.00619)/0.344) -> 21.3182509 | Z48: =+$E$18 -> 0.25 | AA48: =Y48+Z48 -> 21.5682509 | AB48: =100*($E$15*$E$17+($E$16*(AA48/100))/(1-$E$19)) -> 20.61201446 | AC48: =AB48/V48 -> 0.09211005706 | AD48: =ROUND($E$6/(1-AC48),0) -> 614101 | AE48: =IF(OR(OR(AD48=AD42,AD48=(AD42+1)),AD48=(AD42-1)),"yes","not yet") -> yes | AF48: =100*(1-AC48) -> 90.78899429
V50: 9th turnover | W50: M | X50: ROR | Y50: ROE
V51: =100*(+AD45/$E$7) -> 224.5772452 | W51: =EXP(5.7226-(0.68367*LN(+V51))) -> 7.546322819 | X51: =(+W51*V51)/100 -> 16.9473239 | Y51: =100*((((X51/100)-((X51/100)-0.03574)*$E$19)-0.03574-0.00619)/0.344) -> 22.26478923 | Z51: =+$E$18 -> 0.25 | AA51: =Y51+Z51 -> 22.51478923 | AB51: =100*($E$15*$E$17+($E$16*(AA51/100))/(1-$E$19)) -> 21.41345344 | AC51: =AB51/V51 -> 0.09535005837 | AD51: =ROUND($E$6/(1-AC51),0) -> 616300 | AE51: =IF(OR(OR(AD51=AD45,AD51=(AD45+1)),AD51=(AD37-1)),"yes","not yet") -> yes | AF51: =100*(1-AC51) -> 90.46499416
V52: =100*(+AD46/$E$7) -> 224.196087 | W52: =EXP(5.70827-(0.68367*LN(+V52))) -> 7.447599224 | X52: =(+W52*V52)/100 -> 16.69722604 | Y52: =100*((((X52/100)-((X52/100)-0.03574)*$E$19)-0.03574-0.00619)/0.344) -> 21.81475848 | Z52: =+$E$18 -> 0.25 | AA52: =Y52+Z52 -> 22.06475848 | AB52: =100*($E$15*$E$17+($E$16*(AA52/100))/(1-$E$19)) -> 21.03241004 | AC52: =AB52/V52 -> 0.09381256523 | AD52: =ROUND($E$6/(1-AC52),0) -> 615254 | AE52: =IF(OR(OR(AD52=AD46,AD52=(AD46+1)),AD52=(AD46-1)),"yes","not yet") -> yes | AF52: =100*(1-AC52) -> 90.61874348
V53: =100*(+AD47/$E$7) -> 223.9399166 | W53: =EXP(5.6985-(0.68367*LN(V53))) -> 7.380957322 | X53: =(+W53*V53)/100 -> 16.52890967 | Y53: =100*((((X53/100)-((X53/100)-0.03574)*$E$19)-0.03574-0.00619)/0.344) -> 21.51188689 | Z53: =+$E$18 -> 0.25 | AA53: =Y53+Z53 -> 21.76188689 | AB53: =100*($E$15*$E$17+($E$16*(AA53/100))/(1-$E$19)) -> 20.77596706 | AC53: =AB53/V53 -> 0.09277473787 | AD53: =ROUND($E$6/(1-AC53),0) -> 614551 | AE53: =IF(OR(OR(AD53=AD47,AD53=(AD47+1)),AD53=(AD47-1)),"yes","not yet") -> yes | AF53: =100*(1-AC53) -> 90.72252621
V54: =100*(+AD48/$E$7) -> 223.7759385 | W54: =EXP(5.6922-(0.68367*LN(V54))) -> 7.338277513 | X54: =(+W54*V54)/100 -> 16.42129937 | Y54: =100*((((X54/100)-((X54/100)-0.03574)*$E$19)-0.03574-0.00619)/0.344) -> 21.3182509 | Z54: =+$E$18 -> 0.25 | AA54: =Y54+Z54 -> 21.5682509 | AB54: =100*($E$15*$E$17+($E$16*(AA54/100))/(1-$E$19)) -> 20.61201446 | AC54: =AB54/V54 -> 0.09211005706 | AD54: =ROUND($E$6/(1-AC54),0) -> 614101 | AE54: =IF(OR(OR(AD54=AD48,AD54=(AD48+1)),AD54=(AD48-1)),"yes","not yet") -> yes | AF54: =100*(1-AC54) -> 90.78899429

Sheet MF RCY
B1: NEW IMPROVED LURITO - GALLAGHER FORMULA | AE1: !??! | AF1: OP/RATIO | AI1: curve
G2: NOTE: | N2: FORMULAS | U2: 1st Revenue | V2: 1st Turnover | W2: M | X2: ROR | Y2: ROE | AA2: Adj ROE | AB2: Pre Tax ROE | AC2: Adj M | AD2: Revenues | AE2: Decision | AI2: lookup table
B3: !!! | C3: Revenue Requirement | E3: =E5+E4 -> 31706.14761 | F3: !!!<-- | H3: Red numbers are input/linked fields. | N3: 1. less than 50 | Q3: @EXP(5.72260-(.68367*@LN(T))) | U3: =$E$6*1.25 -> 34613.9954 | V3: =100*(+U3/$E$7) -> 169.7031077 | W3: =EXP(5.7226-(0.68367*LN(+V3))) -> 9.139481956 | X3: =(+W3*V3)/100 -> 15.5099849 | Y3: =100*((((X3/100)-((X3/100)-0.03574)*$E$19)-0.03574-0.00619)/0.344) -> 19.6784147 | Z3: =+$E$18 -> 0.25 | AA3: =Y3+Z3 -> 19.9284147 | AB3: =100*($E$15*$E$17+($E$16*(AA3/100))/(1-$E$19)) -> 19.22355652 | AC3: =AB3/V3 -> 0.1132775751 | AD3: =$E$6/(1-AC3) -> 31228.70872 | AE3: =IF(AD3=$U$3,"yes","not yet") -> not yet | AF3: =100*(1-AC3) -> 88.67224249 | AI3: 0 | AJ3: 1
B4: !!! | C4: Revenue Deficiency | E4: =(+E6-((H13/100)*E5))/H23 -> 12360.56838 | F4: !!!<-- | H4: Black are formula calculations | N4: 2. Between 50 and 125 | Q4: @EXP(5.70827-(.68367*@LN(T))) | U4: =$E$6*1.25 -> 34613.9954 | V4: =100*(+U4/$E$7) -> 169.7031077 | W4: =EXP(5.70827-(0.68367*LN(+V4))) -> 9.009447104 | X4: =(+W4*V4)/100 -> 15.28931172 | Y4: =100*((((X4/100)-((X4/100)-0.03574)*$E$19)-0.03574-0.00619)/0.344) -> 19.28133126 | Z4: =+$E$18 -> 0.25 | AA4: =Y4+Z4 -> 19.53133126 | AB4: =100*($E$15*$E$17+($E$16*(AA4/100))/(1-$E$19)) -> 18.88734389 | AC4: =AB4/V4 -> 0.1112963937 | AD4: =$E$6/(1-AC4) -> 31159.09076 | AE4: =IF(AD4=$U$4,"yes","not yet") -> not yet | AF4: =100*(1-AC4) -> 88.87036063 | AI4: 50 | AJ4: 2
B5: * | C5: Revenue | E5: =Proforma!R20 -> 19345.57923 | F5: * p/f before rates | N5: 3. Between 125 and 140 | Q5: @EXP(5.69850-(.68367*@LN(T))) | U5: =$E$6*1.25 -> 34613.9954 | V5: =100*(+U5/$E$7) -> 169.7031077 | W5: =EXP(5.6985-(0.68367*LN(V5))) -> 8.921853398 | X5: =(+W5*V5)/100 -> 15.14066248 | Y5: =100*((((X5/100)-((X5/100)-0.03574)*$E$19)-0.03574-0.00619)/0.344) -> 19.01384905 | Z5: =+$E$18 -> 0.25 | AA5: =Y5+Z5 -> 19.26384905 | AB5: =100*($E$15*$E$17+($E$16*(AA5/100))/(1-$E$19)) -> 18.6608653 | AC5: =AB5/V5 -> 0.109961836 | AD5: =$E$6/(1-AC5) -> 31112.36961 | AE5: =IF(AD5=$U$5,"yes","not yet") -> not yet | AF5: =100*(1-AC5) -> 89.0038164 | AI5: 125 | AJ5: 3
B6: * | C6: Expenses | E6: =+Proforma!R374 -> 27691.19632 | F6: * p/f before rates | N6: 4. greater than 400 | Q6: @EXP(5.69220-(.68367*@LN(T))) | U6: =$E$6*1.25 -> 34613.9954 | V6: =100*(+U6/$E$7) -> 169.7031077 | W6: =EXP(5.6922-(0.68367*LN(V6))) -> 8.865822405 | X6: =(+W6*V6)/100 -> 15.04557614 | Y6: =100*((((X6/100)-((X6/100)-0.03574)*$E$19)-0.03574-0.00619)/0.344) -> 18.84274893 | Z6: =+$E$18 -> 0.25 | AA6: =Y6+Z6 -> 19.09274893 | AB6: =100*($E$15*$E$17+($E$16*(AA6/100))/(1-$E$19)) -> 18.51599392 | AC6: =AB6/V6 -> 0.1091081606 | AD6: =$E$6/(1-AC6) -> 31082.55694 | AE6: =IF(AD6=$U$6,"yes","not yet") -> not yet | AF6: =100*(1-AC6) -> 89.08918394 | AI6: 401 | AJ6: 4
B7: * | C7: Avg. Investment - | E7: ='Ave Inv. Summary'!M64 -> 20396.79525 | F7: * p/f before rates
C8: curve turnover | E8: =V3 -> 169.7031077 | F8: (calculated) | V8: 2nd Turnover | W8: M | X8: ROR | Y8: ROE | AI8: lookup tables
C9: final turnover | E9: =HLOOKUP($AJ$32,$AJ$26:$AR$30,$E$10+1) -> 153.7104217 | F9: (calculated) | V9: =100*(+AD3/$E$7) -> 153.1059578 | W9: =EXP(5.7226-(0.68367*LN(+V9))) -> 9.805732907 | X9: =(+W9*V9)/100 -> 15.01316128 | Y9: =100*((((X9/100)-((X9/100)-0.03574)*$E$19)-0.03574-0.00619)/0.344) -> 18.78442103 | Z9: =+$E$18 -> 0.25 | AA9: =Y9+Z9 -> 19.03442103 | AB9: =100*($E$15*$E$17+($E$16*(AA9/100))/(1-$E$19)) -> 18.46660738 | AC9: =AB9/V9 -> 0.1206132515 | AD9: =$E$6/(1-AC9) -> 31489.21265 | AE9: =IF(OR(OR(AD9=AD3,AD9=(AD3+1)),AD9=(AD8187-1)),"yes","not yet") -> not yet | AF9: =100*(1-AC9) -> 87.93867485
C10: curve No. used | E10: =VLOOKUP(E8,AI3:AJ6,2) -> 3 | F10: (calculated) | V10: =100*(+AD4/$E$7) -> 152.7646396 | W10: =EXP(5.70827-(0.68367*LN(+V10))) -> 9.68097876 | X10: =(+W10*V10)/100 -> 14.78911231 | Y10: =100*((((X10/100)-((X10/100)-0.03574)*$E$19)-0.03574-0.00619)/0.344) -> 18.38126315 | Z10: =+$E$18 -> 0.25 | AA10: =Y10+Z10 -> 18.63126315 | AB10: =100*($E$15*$E$17+($E$16*(AA10/100))/(1-$E$19)) -> 18.12525148 | AC10: =AB10/V10 -> 0.1186482129 | AD10: =$E$6/(1-AC10) -> 31419.00513 | AE10: =IF(OR(OR(AD10=AD4,AD10=(AD4+1)),AD10=(AD4-1)),"yes","not yet") -> not yet | AF10: =100*(1-AC10) -> 88.13517871
V11: =100*(+AD5/$E$7) -> 152.5355784 | W11: =EXP(5.6985-(0.68367*LN(V11))) -> 9.596696248 | X11: =(+W11*V11)/100 -> 14.63837613 | Y11: =100*((((X11/100)-((X11/100)-0.03574)*$E$19)-0.03574-0.00619)/0.344) -> 18.11002565 | Z11: =+$E$18 -> 0.25 | AA11: =Y11+Z11 -> 18.36002565 | AB11: =100*($E$15*$E$17+($E$16*(AA11/100))/(1-$E$19)) -> 17.89559327 | AC11: =AB11/V11 -> 0.1173207815 | AD11: =$E$6/(1-AC11) -> 31371.75516 | AE11: =IF(OR(OR(AD11=AD5,AD11=(AD5+1)),AD11=(AD5-1)),"yes","not yet") -> not yet | AF11: =100*(1-AC11) -> 88.26792185 | AJ11: 1 | AK11: 2 | AL11: 3 | AM11: 4 | AN11: 5 | AO11: 6 | AP11: 7 | AQ11: 8 | AR11: 9
C12: Company actual | V12: =100*(+AD6/$E$7) -> 152.3894149 | W12: =EXP(5.6922-(0.68367*LN(V12))) -> 9.542679562 | X12: =(+W12*V12)/100 -> 14.54203355 | Y12: =100*((((X12/100)-((X12/100)-0.03574)*$E$19)-0.03574-0.00619)/0.344) -> 17.93666502 | Z12: =+$E$18 -> 0.25 | AA12: =Y12+Z12 -> 18.18666502 | AB12: =100*($E$15*$E$17+($E$16*(AA12/100))/(1-$E$19)) -> 17.74880791 | AC12: =AB12/V12 -> 0.1164700837 | AD12: =$E$6/(1-AC12) -> 31341.54918 | AE12: =IF(OR(OR(AD12=AD6,AD12=(AD6+1)),AD12=(AD6-1)),"yes","not yet") -> not yet | AF12: =100*(1-AC12) -> 88.35299163 | AJ12: =AE3 -> not yet | AK12: =AE9 -> not yet | AL12: =AE15 -> not yet | AM12: =AE21 -> not yet | AN12: =AE27 -> not yet | AO12: =AE33 -> not yet | AP12: =AE39 -> yes | AQ12: =AE45 -> yes | AR12: =AE51 -> yes
C13: capital structure: | E13: !!! | F13: OPERATING RATIO -> | H13: =HLOOKUP($AJ$23,$AJ$17:$AR$21,$E$10+1) -> 88.32233431 | I13: !!!<-- | AJ13: =AE4 -> not yet | AK13: =AE10 -> not yet | AL13: =AE16 -> not yet | AM13: =AE22 -> not yet | AN13: =AE28 -> not yet | AO13: =AE34 -> not yet | AP13: =AE40 -> yes | AQ13: =AE46 -> yes | AR13: =AE52 -> yes
C14: - | D14: - | H14: = | V14: 3rd Turnover | W14: M | X14: ROR | Y14: ROE | AJ14: =AE5 -> not yet | AK14: =AE11 -> not yet | AL14: =AE17 -> not yet | AM14: =AE23 -> not yet | AN14: =AE29 -> not yet | AO14: =AE35 -> not yet | AP14: =AE41 -> yes | AQ14: =AE47 -> yes | AR14: =AE53 -> yes
B15: * | C15: Actual Debt Ratio | E15: =+'Combined LG'!E15 -> 0.4758894453 | F15: Conversion factor data: | V15: =100*(+AD9/$E$7) -> 154.3831384 | W15: =EXP(5.7226-(0.68367*LN(+V15))) -> 9.750200178 | X15: =(+W15*V15)/100 -> 15.05266504 | Y15: =100*((((X15/100)-((X15/100)-0.03574)*$E$19)-0.03574-0.00619)/0.344) -> 18.85550482 | Z15: =+$E$18 -> 0.25 | AA15: =Y15+Z15 -> 19.10550482 | AB15: =100*($E$15*$E$17+($E$16*(AA15/100))/(1-$E$19)) -> 18.52679441 | AC15: =AB15/V15 -> 0.1200052972 | AD15: =$E$6/(1-AC15) -> 31467.45797 | AE15: =IF(OR(OR(AD15=AD9,AD15=(AD9+1)),AD15=(AD1-1)),"yes","not yet") -> not yet | AF15: =100*(1-AC15) -> 87.99947028 | AJ15: =AE6 -> not yet | AK15: =AE12 -> not yet | AL15: =AE18 -> not yet | AM15: =AE24 -> not yet | AN15: =AE30 -> not yet | AO15: =AE36 -> not yet | AP15: =AE42 -> yes | AQ15: =AE48 -> yes | AR15: =AE54 -> yes
B16: * | C16: Actual Equity Ratio | E16: =+'Combined LG'!E16 -> 0.5241105547 | F16: B & O Tax | H16: =+'Combined LG'!H16 -> 0.015 | I16: * | V16: =100*(+AD10/$E$7) -> 154.0389299 | W16: =EXP(5.70827-(0.68367*LN(+V16))) -> 9.626154396 | X16: =(+W16*V16)/100 -> 14.82802522 | Y16: =100*((((X16/100)-((X16/100)-0.03574)*$E$19)-0.03574-0.00619)/0.344) -> 18.45128375 | Z16: =+$E$18 -> 0.25 | AA16: =Y16+Z16 -> 18.70128375 | AB16: =100*($E$15*$E$17+($E$16*(AA16/100))/(1-$E$19)) -> 18.1845383 | AC16: =AB16/V16 -> 0.1180515751 | AD16: =$E$6/(1-AC16) -> 31397.75019 | AE16: =IF(OR(OR(AD16=AD10,AD16=(AD10+1)),AD16=(AD10-1)),"yes","not yet") -> not yet | AF16: =100*(1-AC16) -> 88.19484249
B17: * | C17: Actual Cost of Debt | E17: =+'Combined LG'!E17 -> 0.04938254121 | F17: WUTC Fee | H17: =+'Combined LG'!H17 -> 0.004275 | I17: * | V17: =100*(+AD11/$E$7) -> 153.807276 | W17: =EXP(5.6985-(0.68367*LN(V17))) -> 9.542378111 | X17: =(+W17*V17)/100 -> 14.67687183 | Y17: =100*((((X17/100)-((X17/100)-0.03574)*$E$19)-0.03574-0.00619)/0.344) -> 18.17929554 | Z17: =+$E$18 -> 0.25 | AA17: =Y17+Z17 -> 18.42929554 | AB17: =100*($E$15*$E$17+($E$16*(AA17/100))/(1-$E$19)) -> 17.95424445 | AC17: =AB17/V17 -> 0.1167320878 | AD17: =$E$6/(1-AC17) -> 31350.84604 | AE17: =IF(OR(OR(AD17=AD11,AD17=(AD11+1)),AD17=(AD11-1)),"yes","not yet") -> not yet | AF17: =100*(1-AC17) -> 88.32679122 | AJ17: =HLOOKUP(1,$AJ$11:$AR$15,$E$10+1) -> not yet | AK17: =HLOOKUP(2,$AJ$11:$AR$15,$E$10+1) -> not yet | AL17: =HLOOKUP(3,$AJ$11:$AR$15,$E$10+1) -> not yet | AM17: =HLOOKUP(4,$AJ$11:$AR$15,$E$10+1) -> not yet | AN17: =HLOOKUP(5,$AJ$11:$AR$15,$E$10+1) -> not yet | AO17: =HLOOKUP(6,$AJ$11:$AR$15,$E$10+1) -> not yet | AP17: =HLOOKUP(7,$AJ$11:$AR$15,$E$10+1) -> yes | AQ17: =HLOOKUP(8,$AJ$11:$AR$15,$E$10+1) -> yes | AR17: =HLOOKUP(9,$AJ$11:$AR$15,$E$10+1) -> yes
B18: * | C18: Basis Points | E18: 0.25 | F18: City Tax | H18: =+'Combined LG'!H18 -> 0 | I18: * | V18: =100*(+AD12/$E$7) -> 153.6591842 | W18: =EXP(5.6922-(0.68367*LN(V18))) -> 9.488697126 | X18: =(+W18*V18)/100 -> 14.58025459 | Y18: =100*((((X18/100)-((X18/100)-0.03574)*$E$19)-0.03574-0.00619)/0.344) -> 18.00544068 | Z18: =+$E$18 -> 0.25 | AA18: =Y18+Z18 -> 18.25544068 | AB18: =100*($E$15*$E$17+($E$16*(AA18/100))/(1-$E$19)) -> 17.80704062 | AC18: =AB18/V18 -> 0.1158866014 | AD18: =$E$6/(1-AC18) -> 31320.86491 | AE18: =IF(OR(OR(AD18=AD12,AD18=(AD12+1)),AD18=(AD12-1)),"yes","not yet") -> not yet | AF18: =100*(1-AC18) -> 88.41133986 | AI18: 1 | AJ18: =AF3 -> 88.67224249 | AK18: =AF9 -> 87.93867485 | AL18: =AF15 -> 87.99947028 | AM18: =AF21 -> 87.99442332 | AN18: =AF27 -> 87.99484223 | AO18: =AF33 -> 87.99480746 | AP18: =AF39 -> 87.99478124 | AQ18: =AF45 -> 87.99478124 | AR18: =AF51 -> 87.99478124
B19: * | C19: Tax Rate | E19: =+'Combined LG'!E19 -> 0.381 | F19: Bad Debts | H19: =+'Combined LG'!H19 -> 0.006 | I19: * | AI19: 2 | AJ19: =AF4 -> 88.87036063 | AK19: =AF10 -> 88.13517871 | AL19: =AF16 -> 88.19484249 | AM19: =AF22 -> 88.18999227 | AN19: =AF28 -> 88.1903865 | AO19: =AF34 -> 88.19035446 | AP19: =AF40 -> 88.19027761 | AQ19: =AF46 -> 88.19027761 | AR19: =AF52 -> 88.19027761
H20: - | V20: 4th Turnover | W20: M | X20: ROR | Y20: ROE | AI20: 3 | AJ20: =AF5 -> 89.0038164 | AK20: =AF11 -> 88.26792185 | AL20: =AF17 -> 88.32679122 | AM20: =AF23 -> 88.32207383 | AN20: =AF29 -> 88.3224518 | AO20: =AF35 -> 88.32242151 | AP20: =AF41 -> 88.32233431 | AQ20: =AF47 -> 88.32233431 | AR20: =AF53 -> 88.32233431
F21: Revenue Sensitive | H21: =SUM(H16:H19) -> 0.025275 | V21: =100*(+AD15/$E$7) -> 154.2764811 | W21: =EXP(5.7226-(0.68367*LN(+V21))) -> 9.754808084 | X21: =(+W21*V21)/100 -> 15.04937465 | Y21: =100*((((X21/100)-((X21/100)-0.03574)*$E$19)-0.03574-0.00619)/0.344) -> 18.84958404 | Z21: =+$E$18 -> 0.25 | AA21: =Y21+Z21 -> 19.09958404 | AB21: =100*($E$15*$E$17+($E$16*(AA21/100))/(1-$E$19)) -> 18.52178124 | AC21: =AB21/V21 -> 0.1200557668 | AD21: =$E$6/(1-AC21) -> 31469.2628 | AE21: =IF(OR(OR(AD21=AD15,AD21=(AD15+1)),AD21=(AD7-1)),"yes","not yet") -> not yet | AF21: =100*(1-AC21) -> 87.99442332 | AI21: 4 | AJ21: =AF6 -> 89.08918394 | AK21: =AF12 -> 88.35299163 | AL21: =AF18 -> 88.41133986 | AM21: =AF24 -> 88.40670748 | AN21: =AF30 -> 88.4070752 | AO21: =AF36 -> 88.40704601 | AP21: =AF42 -> 88.40696181 | AQ21: =AF48 -> 88.40696181 | AR21: =AF54 -> 88.40696181
V22: =100*(+AD16/$E$7) -> 153.9347226 | W22: =EXP(5.70827-(0.68367*LN(+V22))) -> 9.630609053 | X22: =(+W22*V22)/100 -> 14.82485133 | Y22: =100*((((X22/100)-((X22/100)-0.03574)*$E$19)-0.03574-0.00619)/0.344) -> 18.4455726 | Z22: =+$E$18 -> 0.25 | AA22: =Y22+Z22 -> 18.6955726 | AB22: =100*($E$15*$E$17+($E$16*(AA22/100))/(1-$E$19)) -> 18.17970264 | AC22: =AB22/V22 -> 0.1181000773 | AD22: =$E$6/(1-AC22) -> 31399.47698 | AE22: =IF(OR(OR(AD22=AD16,AD22=(AD16+1)),AD22=(AD16-1)),"yes","not yet") -> not yet | AF22: =100*(1-AC22) -> 88.18999227
F23: Conversion Factor | H23: =((+H13/100)-H21) -> 0.8579483431 | V23: =100*(+AD17/$E$7) -> 153.7047642 | W23: =EXP(5.6985-(0.68367*LN(V23))) -> 9.546728657 | X23: =(+W23*V23)/100 -> 14.67377677 | Y23: =100*((((X23/100)-((X23/100)-0.03574)*$E$19)-0.03574-0.00619)/0.344) -> 18.17372622 | Z23: =+$E$18 -> 0.25 | AA23: =Y23+Z23 -> 18.42372622 | AB23: =100*($E$15*$E$17+($E$16*(AA23/100))/(1-$E$19)) -> 17.94952888 | AC23: =AB23/V23 -> 0.1167792617 | AD23: =$E$6/(1-AC23) -> 31352.52052 | AE23: =IF(OR(OR(AD23=AD17,AD23=(AD17+1)),AD23=(AD17-1)),"yes","not yet") -> not yet | AF23: =100*(1-AC23) -> 88.32207383 | AJ23: yes
V24: =100*(+AD18/$E$7) -> 153.5577748 | W24: =EXP(5.6922-(0.68367*LN(V24))) -> 9.492980778 | X24: =(+W24*V24)/100 -> 14.57721004 | Y24: =100*((((X24/100)-((X24/100)-0.03574)*$E$19)-0.03574-0.00619)/0.344) -> 17.99996226 | Z24: =+$E$18 -> 0.25 | AA24: =Y24+Z24 -> 18.24996226 | AB24: =100*($E$15*$E$17+($E$16*(AA24/100))/(1-$E$19)) -> 17.80240202 | AC24: =AB24/V24 -> 0.1159329252 | AD24: =$E$6/(1-AC24) -> 31322.50608 | AE24: =IF(OR(OR(AD24=AD18,AD24=(AD18+1)),AD24=(AD18-1)),"yes","not yet") -> not yet | AF24: =100*(1-AC24) -> 88.40670748 | AJ24: =HLOOKUP($AJ$23,$AJ$17:$AR$21,$E$10+1) -> 88.32233431
C25: Company Reference
C26: Annl Price Increase (PI) $ | E26: =+E4 -> 12360.56838 | V26: 5th Turnover | W26: M | X26: ROR | Y26: ROE | AJ26: =HLOOKUP(1,$AJ$11:$AR$15,$E$10+1) -> not yet | AK26: =HLOOKUP(2,$AJ$11:$AR$15,$E$10+1) -> not yet | AL26: =HLOOKUP(3,$AJ$11:$AR$15,$E$10+1) -> not yet | AM26: =HLOOKUP(4,$AJ$11:$AR$15,$E$10+1) -> not yet | AN26: =HLOOKUP(5,$AJ$11:$AR$15,$E$10+1) -> not yet | AO26: =HLOOKUP(6,$AJ$11:$AR$15,$E$10+1) -> not yet | AP26: =HLOOKUP(7,$AJ$11:$AR$15,$E$10+1) -> yes | AQ26: =HLOOKUP(8,$AJ$11:$AR$15,$E$10+1) -> yes | AR26: =HLOOKUP(9,$AJ$11:$AR$15,$E$10+1) -> yes
C27: Monthly PI $ | E27: =+E26/12 -> 1030.047365 | V27: =100*(+AD21/$E$7) -> 154.2853297 | W27: =EXP(5.7226-(0.68367*LN(+V27))) -> 9.754425595 | X27: =(+W27*V27)/100 -> 15.04964769 | Y27: =100*((((X27/100)-((X27/100)-0.03574)*$E$19)-0.03574-0.00619)/0.344) -> 18.85007535 | Z27: =+$E$18 -> 0.25 | AA27: =Y27+Z27 -> 19.10007535 | AB27: =100*($E$15*$E$17+($E$16*(AA27/100))/(1-$E$19)) -> 18.52219724 | AC27: =AB27/V27 -> 0.1200515777 | AD27: =$E$6/(1-AC27) -> 31469.11298 | AE27: =IF(OR(OR(AD27=AD21,AD27=(AD21+1)),AD27=(AD13-1)),"yes","not yet") -> not yet | AF27: =100*(1-AC27) -> 87.99484223 | AI27: 1 | AJ27: =V3 -> 169.7031077 | AK27: =V9 -> 153.1059578 | AL27: =V15 -> 154.3831384 | AM27: =V21 -> 154.2764811 | AN27: =V27 -> 154.2853297 | AO27: =V33 -> 154.2845952 | AP27: =V39 -> 154.2840413 | AQ27: =V45 -> 154.2840413 | AR27: =V51 -> 154.2840413
C28: Percentage PI | E28: =+E4/E5 -> 0.6389350369 | V28: =100*(+AD22/$E$7) -> 153.9431886 | W28: =EXP(5.70827-(0.68367*LN(+V28))) -> 9.630246959 | X28: =(+W28*V28)/100 -> 14.82510924 | Y28: =100*((((X28/100)-((X28/100)-0.03574)*$E$19)-0.03574-0.00619)/0.344) -> 18.44603668 | Z28: =+$E$18 -> 0.25 | AA28: =Y28+Z28 -> 18.69603668 | AB28: =100*($E$15*$E$17+($E$16*(AA28/100))/(1-$E$19)) -> 18.18009558 | AC28: =AB28/V28 -> 0.118096135 | AD28: =$E$6/(1-AC28) -> 31399.33662 | AE28: =IF(OR(OR(AD28=AD22,AD28=(AD22+1)),AD28=(AD22-1)),"yes","not yet") -> not yet | AF28: =100*(1-AC28) -> 88.1903865 | AI28: 2 | AJ28: =V4 -> 169.7031077 | AK28: =V10 -> 152.7646396 | AL28: =V16 -> 154.0389299 | AM28: =V22 -> 153.9347226 | AN28: =V28 -> 153.9431886 | AO28: =V34 -> 153.9425004 | AP28: =V40 -> 153.9408501 | AQ28: =V46 -> 153.9408501 | AR28: =V52 -> 153.9408501
V29: =100*(+AD23/$E$7) -> 153.7129737 | W29: =EXP(5.6985-(0.68367*LN(V29))) -> 9.546380068 | X29: =(+W29*V29)/100 -> 14.67402469 | Y29: =100*((((X29/100)-((X29/100)-0.03574)*$E$19)-0.03574-0.00619)/0.344) -> 18.17417233 | Z29: =+$E$18 -> 0.25 | AA29: =Y29+Z29 -> 18.42417233 | AB29: =100*($E$15*$E$17+($E$16*(AA29/100))/(1-$E$19)) -> 17.9499066 | AC29: =AB29/V29 -> 0.116775482 | AD29: =$E$6/(1-AC29) -> 31352.38635 | AE29: =IF(OR(OR(AD29=AD23,AD29=(AD23+1)),AD29=(AD23-1)),"yes","not yet") -> not yet | AF29: =100*(1-AC29) -> 88.3224518 | AI29: 3 | AJ29: =V5 -> 169.7031077 | AK29: =V11 -> 152.5355784 | AL29: =V17 -> 153.807276 | AM29: =V23 -> 153.7047642 | AN29: =V29 -> 153.7129737 | AO29: =V35 -> 153.7123159 | AP29: =V41 -> 153.7104217 | AQ29: =V47 -> 153.7104217 | AR29: =V53 -> 153.7104217
C30: Annual MF RCY Yards | E30: =SUMIFS('Com Lifts'!$A:$A,'Com Lifts'!$F:$F,"U") -> 10517.4391 | V30: =100*(+AD24/$E$7) -> 153.565821 | W30: =EXP(5.6922-(0.68367*LN(V30))) -> 9.492640723 | X30: =(+W30*V30)/100 -> 14.57745166 | Y30: =100*((((X30/100)-((X30/100)-0.03574)*$E$19)-0.03574-0.00619)/0.344) -> 18.00039703 | Z30: =+$E$18 -> 0.25 | AA30: =Y30+Z30 -> 18.25039703 | AB30: =100*($E$15*$E$17+($E$16*(AA30/100))/(1-$E$19)) -> 17.80277014 | AC30: =AB30/V30 -> 0.115929248 | AD30: =$E$6/(1-AC30) -> 31322.37579 | AE30: =IF(OR(OR(AD30=AD24,AD30=(AD24+1)),AD30=(AD24-1)),"yes","not yet") -> not yet | AF30: =100*(1-AC30) -> 88.4070752 | AI30: 4 | AJ30: =V6 -> 169.7031077 | AK30: =V12 -> 152.3894149 | AL30: =V18 -> 153.6591842 | AM30: =V24 -> 153.5577748 | AN30: =V30 -> 153.565821 | AO30: =V36 -> 153.5651822 | AP30: =V42 -> 153.5633398 | AQ30: =V48 -> 153.5633398 | AR30: =V54 -> 153.5633398
C31: MF RCY Revenue $/Yd | E31: =E3/E30 -> 3.014626215
V32: 6th Turnover | W32: M | X32: ROR | Y32: ROE | AJ32: yes
C33: Pre-Rate Case MF $/Yd | E33: 1.66 | V33: =100*(+AD27/$E$7) -> 154.2845952 | W33: =EXP(5.7226-(0.68367*LN(+V33))) -> 9.754457343 | X33: =(+W33*V33)/100 -> 15.04962503 | Y33: =100*((((X33/100)-((X33/100)-0.03574)*$E$19)-0.03574-0.00619)/0.344) -> 18.85003457 | Z33: =+$E$18 -> 0.25 | AA33: =Y33+Z33 -> 19.10003457 | AB33: =100*($E$15*$E$17+($E$16*(AA33/100))/(1-$E$19)) -> 18.52216271 | AC33: =AB33/V33 -> 0.1200519254 | AD33: =ROUND($E$6/(1-AC33),0) -> 31469 | AE33: =IF(OR(OR(AD33=AD27,AD33=(AD27+1)),AD33=(AD19-1)),"yes","not yet") -> not yet | AF33: =100*(1-AC33) -> 87.99480746 | AJ33: =HLOOKUP($AJ$32,$AJ$26:$AR$30,$E$10+1) -> 153.7104217
V34: =100*(+AD28/$E$7) -> 153.9425004 | W34: =EXP(5.70827-(0.68367*LN(+V34))) -> 9.630276391 | X34: =(+W34*V34)/100 -> 14.82508828 | Y34: =100*((((X34/100)-((X34/100)-0.03574)*$E$19)-0.03574-0.00619)/0.344) -> 18.44599896 | Z34: =+$E$18 -> 0.25 | AA34: =Y34+Z34 -> 18.69599896 | AB34: =100*($E$15*$E$17+($E$16*(AA34/100))/(1-$E$19)) -> 18.18006364 | AC34: =AB34/V34 -> 0.1180964554 | AD34: =ROUND($E$6/(1-AC34),0) -> 31399 | AE34: =IF(OR(OR(AD34=AD28,AD34=(AD28+1)),AD34=(AD28-1)),"yes","not yet") -> not yet | AF34: =100*(1-AC34) -> 88.19035446
V35: =100*(+AD29/$E$7) -> 153.7123159 | W35: =EXP(5.6985-(0.68367*LN(V35))) -> 9.546407998 | X35: =(+W35*V35)/100 -> 14.67400482 | Y35: =100*((((X35/100)-((X35/100)-0.03574)*$E$19)-0.03574-0.00619)/0.344) -> 18.17413658 | Z35: =+$E$18 -> 0.25 | AA35: =Y35+Z35 -> 18.42413658 | AB35: =100*($E$15*$E$17+($E$16*(AA35/100))/(1-$E$19)) -> 17.94987633 | AC35: =AB35/V35 -> 0.1167757849 | AD35: =ROUND($E$6/(1-AC35),0) -> 31352 | AE35: =IF(OR(OR(AD35=AD29,AD35=(AD29+1)),AD35=(AD29-1)),"yes","not yet") -> not yet | AF35: =100*(1-AC35) -> 88.32242151 | AJ35: =HLOOKUP(1,$AJ$11:$AR$15,$E$10+1) -> not yet | AK35: =HLOOKUP(2,$AJ$11:$AR$15,$E$10+1) -> not yet | AL35: =HLOOKUP(3,$AJ$11:$AR$15,$E$10+1) -> not yet | AM35: =HLOOKUP(4,$AJ$11:$AR$15,$E$10+1) -> not yet | AN35: =HLOOKUP(5,$AJ$11:$AR$15,$E$10+1) -> not yet | AO35: =HLOOKUP(6,$AJ$11:$AR$15,$E$10+1) -> not yet | AP35: =HLOOKUP(7,$AJ$11:$AR$15,$E$10+1) -> yes | AQ35: =HLOOKUP(8,$AJ$11:$AR$15,$E$10+1) -> yes | AR35: =HLOOKUP(9,$AJ$11:$AR$15,$E$10+1) -> yes
V36: =100*(+AD30/$E$7) -> 153.5651822 | W36: =EXP(5.6922-(0.68367*LN(V36))) -> 9.492667718 | X36: =(+W36*V36)/100 -> 14.57743248 | Y36: =100*((((X36/100)-((X36/100)-0.03574)*$E$19)-0.03574-0.00619)/0.344) -> 18.00036251 | Z36: =+$E$18 -> 0.25 | AA36: =Y36+Z36 -> 18.25036251 | AB36: =100*($E$15*$E$17+($E$16*(AA36/100))/(1-$E$19)) -> 17.80274091 | AC36: =AB36/V36 -> 0.1159295399 | AD36: =ROUND($E$6/(1-AC36),0) -> 31322 | AE36: =IF(OR(OR(AD36=AD30,AD36=(AD30+1)),AD36=(AD30-1)),"yes","not yet") -> not yet | AF36: =100*(1-AC36) -> 88.40704601 | AI36: 1 | AJ36: =AD3 -> 31228.70872 | AK36: =AD9 -> 31489.21265 | AL36: =AD15 -> 31467.45797 | AM36: =AD21 -> 31469.2628 | AN36: =AD27 -> 31469.11298 | AO36: =AD33 -> 31469 | AP36: =AD39 -> 31469 | AQ36: =AD45 -> 31469 | AR36: =AD51 -> 31469
AI37: 2 | AJ37: =AD4 -> 31159.09076 | AK37: =AD10 -> 31419.00513 | AL37: =AD16 -> 31397.75019 | AM37: =AD22 -> 31399.47698 | AN37: =AD28 -> 31399.33662 | AO37: =AD34 -> 31399 | AP37: =AD40 -> 31399 | AQ37: =AD46 -> 31399 | AR37: =AD52 -> 31399
V38: 7th turnover | W38: M | X38: ROR | Y38: ROE | AI38: 3 | AJ38: =AD5 -> 31112.36961 | AK38: =AD11 -> 31371.75516 | AL38: =AD17 -> 31350.84604 | AM38: =AD23 -> 31352.52052 | AN38: =AD29 -> 31352.38635 | AO38: =AD35 -> 31352 | AP38: =AD41 -> 31352 | AQ38: =AD47 -> 31352 | AR38: =AD53 -> 31352
V39: =100*(+AD33/$E$7) -> 154.2840413 | W39: =EXP(5.7226-(0.68367*LN(+V39))) -> 9.754481286 | X39: =(+W39*V39)/100 -> 15.04960793 | Y39: =100*((((X39/100)-((X39/100)-0.03574)*$E$19)-0.03574-0.00619)/0.344) -> 18.85000381 | Z39: =+$E$18 -> 0.25 | AA39: =Y39+Z39 -> 19.10000381 | AB39: =100*($E$15*$E$17+($E$16*(AA39/100))/(1-$E$19)) -> 18.52213667 | AC39: =AB39/V39 -> 0.1200521876 | AD39: =ROUND($E$6/(1-AC39),0) -> 31469 | AE39: =IF(OR(OR(AD39=AD33,AD39=(AD33+1)),AD39=(AD25-1)),"yes","not yet") -> yes | AF39: =100*(1-AC39) -> 87.99478124 | AI39: 4 | AJ39: =AD6 -> 31082.55694 | AK39: =AD12 -> 31341.54918 | AL39: =AD18 -> 31320.86491 | AM39: =AD24 -> 31322.50608 | AN39: =AD30 -> 31322.37579 | AO39: =AD36 -> 31322 | AP39: =AD42 -> 31322 | AQ39: =AD48 -> 31322 | AR39: =AD54 -> 31322
V40: =100*(+AD34/$E$7) -> 153.9408501 | W40: =EXP(5.70827-(0.68367*LN(+V40))) -> 9.630346975 | X40: =(+W40*V40)/100 -> 14.825038 | Y40: =100*((((X40/100)-((X40/100)-0.03574)*$E$19)-0.03574-0.00619)/0.344) -> 18.44590849 | Z40: =+$E$18 -> 0.25 | AA40: =Y40+Z40 -> 18.69590849 | AB40: =100*($E$15*$E$17+($E$16*(AA40/100))/(1-$E$19)) -> 18.17998704 | AC40: =AB40/V40 -> 0.1180972239 | AD40: =ROUND($E$6/(1-AC40),0) -> 31399 | AE40: =IF(OR(OR(AD40=AD34,AD40=(AD34+1)),AD40=(AD34-1)),"yes","not yet") -> yes | AF40: =100*(1-AC40) -> 88.19027761
V41: =100*(+AD35/$E$7) -> 153.7104217 | W41: =EXP(5.6985-(0.68367*LN(V41))) -> 9.546488425 | X41: =(+W41*V41)/100 -> 14.67394762 | Y41: =100*((((X41/100)-((X41/100)-0.03574)*$E$19)-0.03574-0.00619)/0.344) -> 18.17403365 | Z41: =+$E$18 -> 0.25 | AA41: =Y41+Z41 -> 18.42403365 | AB41: =100*($E$15*$E$17+($E$16*(AA41/100))/(1-$E$19)) -> 17.94978918 | AC41: =AB41/V41 -> 0.1167766569 | AD41: =ROUND($E$6/(1-AC41),0) -> 31352 | AE41: =IF(OR(OR(AD41=AD35,AD41=(AD35+1)),AD41=(AD35-1)),"yes","not yet") -> yes | AF41: =100*(1-AC41) -> 88.32233431 | AJ41: yes
V42: =100*(+AD36/$E$7) -> 153.5633398 | W42: =EXP(5.6922-(0.68367*LN(V42))) -> 9.492745581 | X42: =(+W42*V42)/100 -> 14.57737715 | Y42: =100*((((X42/100)-((X42/100)-0.03574)*$E$19)-0.03574-0.00619)/0.344) -> 18.00026296 | Z42: =+$E$18 -> 0.25 | AA42: =Y42+Z42 -> 18.25026296 | AB42: =100*($E$15*$E$17+($E$16*(AA42/100))/(1-$E$19)) -> 17.80265662 | AC42: =AB42/V42 -> 0.1159303819 | AD42: =ROUND($E$6/(1-AC42),0) -> 31322 | AE42: =IF(OR(OR(AD42=AD36,AD42=(AD36+1)),AD42=(AD36-1)),"yes","not yet") -> yes | AF42: =100*(1-AC42) -> 88.40696181 | AJ42: =HLOOKUP($AJ$32,$AJ$35:$AR$39,$E$10+1) -> 31352
V44: 8th turnover | W44: M | X44: ROR | Y44: ROE
V45: =100*(+AD39/$E$7) -> 154.2840413 | W45: =EXP(5.7226-(0.68367*LN(+V45))) -> 9.754481286 | X45: =(+W45*V45)/100 -> 15.04960793 | Y45: =100*((((X45/100)-((X45/100)-0.03574)*$E$19)-0.03574-0.00619)/0.344) -> 18.85000381 | Z45: =+$E$18 -> 0.25 | AA45: =Y45+Z45 -> 19.10000381 | AB45: =100*($E$15*$E$17+($E$16*(AA45/100))/(1-$E$19)) -> 18.52213667 | AC45: =AB45/V45 -> 0.1200521876 | AD45: =ROUND($E$6/(1-AC45),0) -> 31469 | AE45: =IF(OR(OR(AD45=AD39,AD45=(AD39+1)),AD45=(AD31-1)),"yes","not yet") -> yes | AF45: =100*(1-AC45) -> 87.99478124
V46: =100*(+AD40/$E$7) -> 153.9408501 | W46: =EXP(5.70827-(0.68367*LN(+V46))) -> 9.630346975 | X46: =(+W46*V46)/100 -> 14.825038 | Y46: =100*((((X46/100)-((X46/100)-0.03574)*$E$19)-0.03574-0.00619)/0.344) -> 18.44590849 | Z46: =+$E$18 -> 0.25 | AA46: =Y46+Z46 -> 18.69590849 | AB46: =100*($E$15*$E$17+($E$16*(AA46/100))/(1-$E$19)) -> 18.17998704 | AC46: =AB46/V46 -> 0.1180972239 | AD46: =ROUND($E$6/(1-AC46),0) -> 31399 | AE46: =IF(OR(OR(AD46=AD40,AD46=(AD40+1)),AD46=(AD40-1)),"yes","not yet") -> yes | AF46: =100*(1-AC46) -> 88.19027761
V47: =100*(+AD41/$E$7) -> 153.7104217 | W47: =EXP(5.6985-(0.68367*LN(V47))) -> 9.546488425 | X47: =(+W47*V47)/100 -> 14.67394762 | Y47: =100*((((X47/100)-((X47/100)-0.03574)*$E$19)-0.03574-0.00619)/0.344) -> 18.17403365 | Z47: =+$E$18 -> 0.25 | AA47: =Y47+Z47 -> 18.42403365 | AB47: =100*($E$15*$E$17+($E$16*(AA47/100))/(1-$E$19)) -> 17.94978918 | AC47: =AB47/V47 -> 0.1167766569 | AD47: =ROUND($E$6/(1-AC47),0) -> 31352 | AE47: =IF(OR(OR(AD47=AD41,AD47=(AD41+1)),AD47=(AD41-1)),"yes","not yet") -> yes | AF47: =100*(1-AC47) -> 88.32233431
V48: =100*(+AD42/$E$7) -> 153.5633398 | W48: =EXP(5.6922-(0.68367*LN(V48))) -> 9.492745581 | X48: =(+W48*V48)/100 -> 14.57737715 | Y48: =100*((((X48/100)-((X48/100)-0.03574)*$E$19)-0.03574-0.00619)/0.344) -> 18.00026296 | Z48: =+$E$18 -> 0.25 | AA48: =Y48+Z48 -> 18.25026296 | AB48: =100*($E$15*$E$17+($E$16*(AA48/100))/(1-$E$19)) -> 17.80265662 | AC48: =AB48/V48 -> 0.1159303819 | AD48: =ROUND($E$6/(1-AC48),0) -> 31322 | AE48: =IF(OR(OR(AD48=AD42,AD48=(AD42+1)),AD48=(AD42-1)),"yes","not yet") -> yes | AF48: =100*(1-AC48) -> 88.40696181
V50: 9th turnover | W50: M | X50: ROR | Y50: ROE
V51: =100*(+AD45/$E$7) -> 154.2840413 | W51: =EXP(5.7226-(0.68367*LN(+V51))) -> 9.754481286 | X51: =(+W51*V51)/100 -> 15.04960793 | Y51: =100*((((X51/100)-((X51/100)-0.03574)*$E$19)-0.03574-0.00619)/0.344) -> 18.85000381 | Z51: =+$E$18 -> 0.25 | AA51: =Y51+Z51 -> 19.10000381 | AB51: =100*($E$15*$E$17+($E$16*(AA51/100))/(1-$E$19)) -> 18.52213667 | AC51: =AB51/V51 -> 0.1200521876 | AD51: =ROUND($E$6/(1-AC51),0) -> 31469 | AE51: =IF(OR(OR(AD51=AD45,AD51=(AD45+1)),AD51=(AD37-1)),"yes","not yet") -> yes | AF51: =100*(1-AC51) -> 87.99478124
V52: =100*(+AD46/$E$7) -> 153.9408501 | W52: =EXP(5.70827-(0.68367*LN(+V52))) -> 9.630346975 | X52: =(+W52*V52)/100 -> 14.825038 | Y52: =100*((((X52/100)-((X52/100)-0.03574)*$E$19)-0.03574-0.00619)/0.344) -> 18.44590849 | Z52: =+$E$18 -> 0.25 | AA52: =Y52+Z52 -> 18.69590849 | AB52: =100*($E$15*$E$17+($E$16*(AA52/100))/(1-$E$19)) -> 18.17998704 | AC52: =AB52/V52 -> 0.1180972239 | AD52: =ROUND($E$6/(1-AC52),0) -> 31399 | AE52: =IF(OR(OR(AD52=AD46,AD52=(AD46+1)),AD52=(AD46-1)),"yes","not yet") -> yes | AF52: =100*(1-AC52) -> 88.19027761
V53: =100*(+AD47/$E$7) -> 153.7104217 | W53: =EXP(5.6985-(0.68367*LN(V53))) -> 9.546488425 | X53: =(+W53*V53)/100 -> 14.67394762 | Y53: =100*((((X53/100)-((X53/100)-0.03574)*$E$19)-0.03574-0.00619)/0.344) -> 18.17403365 | Z53: =+$E$18 -> 0.25 | AA53: =Y53+Z53 -> 18.42403365 | AB53: =100*($E$15*$E$17+($E$16*(AA53/100))/(1-$E$19)) -> 17.94978918 | AC53: =AB53/V53 -> 0.1167766569 | AD53: =ROUND($E$6/(1-AC53),0) -> 31352 | AE53: =IF(OR(OR(AD53=AD47,AD53=(AD47+1)),AD53=(AD47-1)),"yes","not yet") -> yes | AF53: =100*(1-AC53) -> 88.32233431
V54: =100*(+AD48/$E$7) -> 153.5633398 | W54: =EXP(5.6922-(0.68367*LN(V54))) -> 9.492745581 | X54: =(+W54*V54)/100 -> 14.57737715 | Y54: =100*((((X54/100)-((X54/100)-0.03574)*$E$19)-0.03574-0.00619)/0.344) -> 18.00026296 | Z54: =+$E$18 -> 0.25 | AA54: =Y54+Z54 -> 18.25026296 | AB54: =100*($E$15*$E$17+($E$16*(AA54/100))/(1-$E$19)) -> 17.80265662 | AC54: =AB54/V54 -> 0.1159303819 | AD54: =ROUND($E$6/(1-AC54),0) -> 31322 | AE54: =IF(OR(OR(AD54=AD48,AD54=(AD48+1)),AD54=(AD48-1)),"yes","not yet") -> yes | AF54: =100*(1-AC54) -> 88.40696181

Sheet Alloc Summary
B8: Allocations
C9: Truck Hours | D9: Actual | E9: =+Proforma!J5 -> Pay Diff Adj | F9: Container Count | G9: Revenue | H9: =+Proforma!J6 -> Prev Alloc Costs
B10: Regulated | C10: ='Truck Hrs Sum'!E29 -> 0.4160867695 | D10: =SUMIF(Proforma!$H$8:$H$376,$D$9,Proforma!$K$8:$K$376)/SUMIF(Proforma!$H$8:$H$376,$D$9,Proforma!$F$8:$F$376) -> 0.4496500638 | F10: ='Container Counts'!$H$117 -> 0.6844 | G10: =+Proforma!K20/Proforma!F20 -> 0.4602720114 | H10: =(SUMIF(Proforma!$H$8:$H$376,$C$9,Proforma!$K$8:$K$376)+SUMIF(Proforma!$H$8:$H$376,$D$9,Proforma!$K$8:$K$376)+SUMIF(Proforma!$H$8:$H$376,$F$9,Proforma!$K$8:$K$376)+SUMIF(Proforma!$H$8:$H$376,$G$9,Proforma!$K$8:$K$376))/(SUMIF(Proforma!$H$8:$H$376,$C$9,Proforma!$F$8:$F$376)+SUMIF(Proforma!$H$8:$H$376,$D$9,Proforma!$F$8:$F$376)+SUMIF(Proforma!$H$8:$H$376,$F$9,Proforma!$F$8:$F$376)+SUMIF(Proforma!$H$8:$H$376,$G$9,Proforma!$F$8:$F$376)) -> 0.4439457266
B11: Unregulated | C11: =1-C10 -> 0.5839132305 | D11: =1-D10 -> 0.5503499362 | F11: =1-F10 -> 0.3156 | G11: =1-G10 -> 0.5397279886 | H11: =1-H10 -> 0.5560542734
B12: Of Total $ | C12: =SUMIF(Proforma!$H$8:$H$376,C$9,Proforma!$F$8:$F$376)/1000 -> 2640.259974 | D12: =SUMIF(Proforma!$H$8:$H$376,D$9,Proforma!$F$8:$F$376)/1000 -> 9497.531454 | E12: =SUMIF(Proforma!$H$8:$H$376,E$9,Proforma!$F$8:$F$376)/1000 -> 0 | F12: =SUMIF(Proforma!$H$8:$H$376,F$9,Proforma!$F$8:$F$376)/1000 -> 68.75961 | G12: =SUMIF(Proforma!$H$8:$H$376,G$9,Proforma!$F$8:$F$376)/1000 -> 174.2113654 | H12: =SUMIF(Proforma!$H$8:$H$376,H$9,Proforma!$F$8:$F$376)/1000 -> 733.8323505
B13: Of Non-Regulated | C13: =SUMIF(Proforma!$H$8:$H$376,C$9,Proforma!$J$8:$J$376)/1000 -> 1541.682731 | D13: =SUMIF(Proforma!$H$8:$H$376,D$9,Proforma!$J$8:$J$376)/1000 -> 5226.96583 | E13: =SUMIF(Proforma!$H$8:$H$376,E$9,Proforma!$J$8:$J$376)/1000 -> 0 | F13: =SUMIF(Proforma!$H$8:$H$376,F$9,Proforma!$J$8:$J$376)/1000 -> 21.70053292 | G13: =SUMIF(Proforma!$H$8:$H$376,G$9,Proforma!$J$8:$J$376)/1000 -> 94.02674983 | H13: =SUMIF(Proforma!$H$8:$H$376,H$9,Proforma!$J$8:$J$376)/1000 -> 408.0506145
B14: Of Regulated | C14: =SUMIF(Proforma!$H$8:$H$376,C$9,Proforma!$K$8:$K$376)/1000 -> 1098.577243 | D14: =SUMIF(Proforma!$H$8:$H$376,D$9,Proforma!$K$8:$K$376)/1000 -> 4270.565625 | E14: =SUMIF(Proforma!$H$8:$H$376,E$9,Proforma!$K$8:$K$376)/1000 -> 0 | F14: =SUMIF(Proforma!$H$8:$H$376,F$9,Proforma!$K$8:$K$376)/1000 -> 47.05907708 | G14: =SUMIF(Proforma!$H$8:$H$376,G$9,Proforma!$K$8:$K$376)/1000 -> 80.18461556 | H14: =SUMIF(Proforma!$H$8:$H$376,H$9,Proforma!$K$8:$K$376)/1000 -> 325.781736
C16: =+C9 -> Truck Hours | D16: Actual | E16: Pay Diff Adj | F16: Container Count | G16: Revenue | H16: Prev Alloc Costs
B17: Garbage | C17: ='Truck Hrs Sum'!H25 -> 0.5056593448 | D17: =SUMIF(Proforma!$M$8:$M$3691,D$16,Proforma!$O$8:$O$376)/SUMIF(Proforma!$M$8:$M$3691,D$16,Proforma!$K$8:$K$376) -> 0.663325169 | E17: ='Truck Hrs Sum'!E43 -> 0.5400756204 | F17: ='Container Counts'!H120 -> 0.3991192954 | G17: =+Proforma!O$20/Proforma!$K$20 -> 0.6328213459 | H17: =(SUMIF(Proforma!$M$8:$M$376,$C$16,Proforma!$O$8:$O$376)+SUMIF(Proforma!$M$8:$M$376,$D$16,Proforma!$O$8:$O$376)+SUMIF(Proforma!$M$8:$M$376,$E$16,Proforma!$O$8:$O$376)+SUMIF(Proforma!$M$8:$M$376,$F$16,Proforma!$O$8:$O$376)+SUMIF(Proforma!$M$8:$M$376,$G$16,Proforma!$O$8:$O$376))/(SUMIF(Proforma!$M$8:$M$376,$C$16,Proforma!$K$8:$K$376)+SUMIF(Proforma!$M$8:$M$376,$D$16,Proforma!$K$8:$K$376)+SUMIF(Proforma!$M$8:$M$376,$E$16,Proforma!$K$8:$K$376)+SUMIF(Proforma!$M$8:$M$376,$F$16,Proforma!$K$8:$K$376)+SUMIF(Proforma!$M$8:$M$376,$G$16,Proforma!$K$8:$K$376)) -> 0.6310853711
B18: Recycle | C18: ='Truck Hrs Sum'!H26 -> 0.2175001178 | D18: =SUMIF(Proforma!$M$8:$M$3691,D$16,Proforma!$P$8:$P$376)/SUMIF(Proforma!$M$8:$M$3691,D$16,Proforma!$K$8:$K$376) -> 0.1587492201 | E18: ='Truck Hrs Sum'!E44 -> 0.1934133511 | F18: ='Container Counts'!H121 -> 0.3835068054 | G18: =+Proforma!P$20/Proforma!$K$20 -> 0.1660078463 | H18: =(SUMIF(Proforma!$M$8:$M$376,$C$16,Proforma!$P$8:$P$376)+SUMIF(Proforma!$M$8:$M$376,$D$16,Proforma!$P$8:$P$376)+SUMIF(Proforma!$M$8:$M$376,$E$16,Proforma!$P$8:$P$376)+SUMIF(Proforma!$M$8:$M$376,$F$16,Proforma!$P$8:$P$376)+SUMIF(Proforma!$M$8:$M$376,$G$16,Proforma!$P$8:$P$376))/(SUMIF(Proforma!$M$8:$M$376,$C$16,Proforma!$K$8:$K$376)+SUMIF(Proforma!$M$8:$M$376,$D$16,Proforma!$K$8:$K$376)+SUMIF(Proforma!$M$8:$M$376,$E$16,Proforma!$K$8:$K$376)+SUMIF(Proforma!$M$8:$M$376,$F$16,Proforma!$K$8:$K$376)+SUMIF(Proforma!$M$8:$M$376,$G$16,Proforma!$K$8:$K$376)) -> 0.1711361465
B19: Yardwaste | C19: ='Truck Hrs Sum'!H27 -> 0.2624375506 | D19: =SUMIF(Proforma!$M$8:$M$3691,D$16,Proforma!$Q$8:$Q$376)/SUMIF(Proforma!$M$8:$M$3691,D$16,Proforma!$K$8:$K$376) -> 0.17157923 | E19: ='Truck Hrs Sum'!E45 -> 0.2526454477 | F19: ='Container Counts'!H122 -> 0.2043348965 | G19: =+Proforma!Q$20/Proforma!$K$20 -> 0.1944528571 | H19: =(SUMIF(Proforma!$M$8:$M$376,$C$16,Proforma!$Q$8:$Q$376)+SUMIF(Proforma!$M$8:$M$376,$D$16,Proforma!$Q$8:$Q$376)+SUMIF(Proforma!$M$8:$M$376,$E$16,Proforma!$Q$8:$Q$376)+SUMIF(Proforma!$M$8:$M$376,$F$16,Proforma!$Q$8:$Q$376)+SUMIF(Proforma!$M$8:$M$376,$G$16,Proforma!$Q$8:$Q$376))/(SUMIF(Proforma!$M$8:$M$376,$C$16,Proforma!$K$8:$K$376)+SUMIF(Proforma!$M$8:$M$376,$D$16,Proforma!$K$8:$K$376)+SUMIF(Proforma!$M$8:$M$376,$E$16,Proforma!$K$8:$K$376)+SUMIF(Proforma!$M$8:$M$376,$F$16,Proforma!$K$8:$K$376)+SUMIF(Proforma!$M$8:$M$376,$G$16,Proforma!$K$8:$K$376)) -> 0.1897900082
B20: Multi-family Recycle | C20: ='Truck Hrs Sum'!H28 -> 0.01440298685 | D20: =SUMIF(Proforma!$M$8:$M$3691,D$16,Proforma!$R$8:$R$376)/SUMIF(Proforma!$M$8:$M$3691,D$16,Proforma!$K$8:$K$376) -> 0.006346380839 | E20: ='Truck Hrs Sum'!E46 -> 0.0138655808 | F20: ='Container Counts'!H123 -> 0.01303900263 | G20: =+Proforma!R$20/Proforma!$K$20 -> 0.006717950696 | H20: =(SUMIF(Proforma!$M$8:$M$376,$C$16,Proforma!$R$8:$R$376)+SUMIF(Proforma!$M$8:$M$376,$D$16,Proforma!$R$8:$R$376)+SUMIF(Proforma!$M$8:$M$376,$E$16,Proforma!$R$8:$R$376)+SUMIF(Proforma!$M$8:$M$376,$F$16,Proforma!$R$8:$R$376)+SUMIF(Proforma!$M$8:$M$376,$G$16,Proforma!$R$8:$R$376))/(SUMIF(Proforma!$M$8:$M$376,$C$16,Proforma!$K$8:$K$376)+SUMIF(Proforma!$M$8:$M$376,$D$16,Proforma!$K$8:$K$376)+SUMIF(Proforma!$M$8:$M$376,$E$16,Proforma!$K$8:$K$376)+SUMIF(Proforma!$M$8:$M$376,$F$16,Proforma!$K$8:$K$376)+SUMIF(Proforma!$M$8:$M$376,$G$16,Proforma!$K$8:$K$376)) -> 0.007988474246
B21: =+B14 -> Of Regulated | C21: =SUMIF(Proforma!$M$8:$M$3691,C$16,Proforma!$K$8:$K$376)/1000 -> 782.3048897 | D21: =SUMIF(Proforma!$M$8:$M$3691,D$16,Proforma!$K$8:$K$376)/1000 -> 4270.565625 | E21: =SUMIF(Proforma!$M$8:$M$3691,E$16,Proforma!$K$8:$K$376)/1000 -> 316.2723535 | F21: =SUMIF(Proforma!$M$8:$M$3691,F$16,Proforma!$K$8:$K$376)/1000 -> 47.05907708 | G21: =SUMIF(Proforma!$M$8:$M$3691,G$16,Proforma!$K$8:$K$376)/1000 -> 80.18461556 | H21: =SUMIF(Proforma!$M$8:$M$3691,H$16,Proforma!$K$8:$K$376)/1000 -> 325.781736
B22: Of MSW | C22: =SUMIF(Proforma!$M$8:$M$3691,C$16,Proforma!$O$8:$O$376)/1000 -> 395.5797779 | D22: =SUMIF(Proforma!$M$8:$M$3691,D$16,Proforma!$O$8:$O$376)/1000 -> 2832.773665 | E22: =SUMIF(Proforma!$M$8:$M$3691,E$16,Proforma!$O$8:$O$376)/1000 -> 170.8109875 | F22: =SUMIF(Proforma!$M$8:$M$3691,F$16,Proforma!$O$8:$O$376)/1000 -> 18.78218569 | G22: =SUMIF(Proforma!$M$8:$M$3691,G$16,Proforma!$O$8:$O$376)/1000 -> 50.74253634 | H22: =SUMIF(Proforma!$M$8:$M$3691,H$16,Proforma!$O$8:$O$376)/1000 -> 205.5960878
B23: Of RCY | C23: =SUMIF(Proforma!$M$8:$M$3691,C$16,Proforma!$P$8:$P$376)/1000 -> 170.1514057 | D23: =SUMIF(Proforma!$M$8:$M$3691,D$16,Proforma!$P$8:$P$376)/1000 -> 677.9489625 | E23: =SUMIF(Proforma!$M$8:$M$3691,E$16,Proforma!$P$8:$P$376)/1000 -> 61.17129574 | F23: =SUMIF(Proforma!$M$8:$M$3691,F$16,Proforma!$P$8:$P$376)/1000 -> 18.04747632 | G23: =SUMIF(Proforma!$M$8:$M$3691,G$16,Proforma!$P$8:$P$376)/1000 -> 13.31127533 | H23: =SUMIF(Proforma!$M$8:$M$3691,H$16,Proforma!$P$8:$P$376)/1000 -> 55.7530309
B24: Of YW | C24: =SUMIF(Proforma!$M$8:$M$3691,C$16,Proforma!$Q$8:$Q$376)/1000 -> 205.3061791 | D24: =SUMIF(Proforma!$M$8:$M$3691,D$16,Proforma!$Q$8:$Q$376)/1000 -> 732.7403617 | E24: =SUMIF(Proforma!$M$8:$M$3691,E$16,Proforma!$Q$8:$Q$376)/1000 -> 79.90477035 | F24: =SUMIF(Proforma!$M$8:$M$3691,F$16,Proforma!$Q$8:$Q$376)/1000 -> 9.615811645 | G24: =SUMIF(Proforma!$M$8:$M$3691,G$16,Proforma!$Q$8:$Q$376)/1000 -> 15.59212759 | H24: =SUMIF(Proforma!$M$8:$M$3691,H$16,Proforma!$Q$8:$Q$376)/1000 -> 61.83011835
B25: Of MF RCY | C25: =SUMIF(Proforma!$M$8:$M$3691,C$16,Proforma!$R$8:$R$376)/1000 -> 11.26752704 | D25: =SUMIF(Proforma!$M$8:$M$3691,D$16,Proforma!$R$8:$R$376)/1000 -> 27.10263585 | E25: =SUMIF(Proforma!$M$8:$M$3691,E$16,Proforma!$R$8:$R$376)/1000 -> 4.38529987 | F25: =SUMIF(Proforma!$M$8:$M$3691,F$16,Proforma!$R$8:$R$376)/1000 -> 0.6136034299 | G25: =SUMIF(Proforma!$M$8:$M$3691,G$16,Proforma!$R$8:$R$376)/1000 -> 0.5386762939 | H25: =SUMIF(Proforma!$M$8:$M$3691,H$16,Proforma!$R$8:$R$376)/1000 -> 2.602499008

Sheet Proforma
A1: Allocation Worksheet
A2: General Rate Case | J2: Revenue | K2: =+'Alloc Summary'!G10 -> 0.4602720114 | O2: =+'Alloc Summary'!$G17 -> 0.6328213459 | P2: =+'Alloc Summary'!$G18 -> 0.1660078463 | Q2: =+'Alloc Summary'!$G19 -> 0.1944528571 | R2: =+'Alloc Summary'!$G20 -> 0.006717950696
J3: Truck Hours | K3: =+'Alloc Summary'!C10 -> 0.4160867695 | O3: =+'Alloc Summary'!$C17 -> 0.5056593448 | P3: =+'Alloc Summary'!$C18 -> 0.2175001178 | Q3: =+'Alloc Summary'!$C19 -> 0.2624375506 | R3: =+'Alloc Summary'!$C20 -> 0.01440298685
J4: Container Count | K4: =+'Alloc Summary'!F10 -> 0.6844 | O4: =+'Alloc Summary'!$F17 -> 0.3991192954 | P4: =+'Alloc Summary'!$F18 -> 0.3835068054 | Q4: =+'Alloc Summary'!$F19 -> 0.2043348965 | R4: =+'Alloc Summary'!$F20 -> 0.01303900263
J5: Pay Diff Adj | K5: =+'Alloc Summary'!E10 -> 0 | O5: ='Alloc Summary'!E17 -> 0.5400756204 | P5: ='Alloc Summary'!E18 -> 0.1934133511 | Q5: ='Alloc Summary'!E19 -> 0.2526454477 | R5: ='Alloc Summary'!E20 -> 0.0138655808
J6: Prev Alloc Costs | K6: =+'Alloc Summary'!H10 -> 0.4439457266 | O6: =+'Alloc Summary'!$H17 -> 0.6310853711 | P6: =+'Alloc Summary'!$H18 -> 0.1711361465 | Q6: =+'Alloc Summary'!$H19 -> 0.1897900082 | R6: =+'Alloc Summary'!$H20 -> 0.007988474246
C8: Division | D8: Restating | E8: Proforma | F8: Adjusted | H8: Allocation | J8: Unregulated | K8: Regulated | M8: Allocation | O8: Regulated | P8: Regulated | Q8: Regulated | R8: =+Q8 -> Regulated
A9: Account # | B9: Account Description | C9: Total | D9: Adjustment | E9: Adjustment | F9: Proforma | H9: Methodology | J9: Operations | K9: Operations | M9: Methodology | O9: Garbage | P9: Recycle | Q9: Yardwaste | R9: MF Recycle
A10: REVENUE
A11: 3011** | B11: =+'P&L - ITD3 (Acct Desc)'!$A$89 -> Ind O/S | C11: =+VLOOKUP($B11,'P&L - ITD3 (Acct Desc)'!A$1:N$1438,2,FALSE) -> 2207499.42 | D11: =+'PF Restate'!$G11 -> -1472620.53 | E11: =+'PF Adj'!$G11 -> 0 | F11: =SUM(C11:E11) -> 734878.89 | H11: Actual | J11: =F11-K11 -> 667643.13 | K11: ='Revenue Lookup'!Q109 -> 67235.76 | M11: =H11 -> Actual | O11: =K11-SUM(P11:R11) -> 64422.06 | P11: 0 | Q11: 0 | R11: =SUM('IND (+MF) Price Out'!N8:N9) -> 2813.7
B12: Disposal Pass Through | D12: =+'PF Restate'!$G12 -> 607211.74 | E12: =+'PF Adj'!$G12 -> 0 | F12: =SUM(C12:E12) -> 607211.74 | H12: Actual | J12: =F12-K12 -> 499156.22 | K12: =-'Revenue Lookup'!Q79 -> 108055.52 | M12: =H12 -> Actual | O12: =K12-SUM(P12:R12) -> 108055.52 | P12: 0 | Q12: 0 | R12: 0
A13: 3012** | B13: =+'P&L - ITD3 (Acct Desc)'!$A$173 -> Com O/S | C13: =+VLOOKUP($B13,'P&L - ITD3 (Acct Desc)'!A$1:N$1438,2,FALSE) -> 1948446.64 | D13: =+'PF Restate'!$G13 -> -761637.43 | E13: =+'PF Adj'!$G13 -> 0 | F13: =SUM(C13:E13) -> 1186809.21 | H13: Actual | J13: 741415.58 | K13: =+'Revenue Lookup'!Q72 -> 445393.63 | M13: =H13 -> Actual | O13: =K13-SUM(P13:R13) -> 428861.7508 | P13: 0 | Q13: 0 | R13: =SUM('Comm (+MF) Price Out'!O8:O9) -> 16531.87923
A14: 3013** | B14: =+'P&L - ITD3 (Acct Desc)'!$A$251 -> Resi O/S | C14: =+VLOOKUP($B14,'P&L - ITD3 (Acct Desc)'!A$1:N$1438,2,FALSE) -> 3931562.76 | D14: =+'PF Restate'!$G14 -> -509273.1 | E14: =+'PF Adj'!$G14 -> 0 | F14: =SUM(C14:E14) -> 3422289.66 | H14: Actual | J14: 1163289.96 | K14: ='Revenue Lookup'!Q36 -> 2258999.7 | M14: =H14 -> Actual | O14: =K14-SUM(P14:R14) -> 1220986.56 | P14: =+'Price Out Summ'!C11 -> 478050.24 | Q14: =+'Price Out Summ'!C13 -> 559962.9 | R14: 0
A16: 3111** | B16: =+'P&L - ITD3 (Acct Desc)'!$A$430 -> Ind I/C | C16: =+VLOOKUP($B16,'P&L - ITD3 (Acct Desc)'!A$1:N$1438,2,FALSE) -> 43101.81 | D16: =+'PF Restate'!$G16 -> 0 | E16: =+'PF Adj'!$G16 -> 0 | F16: =SUM(C16:E16) -> 43101.81 | H16: Actual | J16: 43101.81 | K16: 0 | M16: =H16 -> Actual | O16: =K16-SUM(P16:R16) -> 0 | P16: 0 | Q16: 0 | R16: 0
A17: 3112** | B17: =+'P&L - ITD3 (Acct Desc)'!$A$433 -> Com I/C | C17: =+VLOOKUP($B17,'P&L - ITD3 (Acct Desc)'!A$1:N$1438,2,FALSE) -> 79132.2 | D17: =+'PF Restate'!$G17 -> -8744.185787 | E17: =+'PF Adj'!$G17 -> 0 | F17: =SUM(C17:E17) -> 70388.01421 | H17: Actual | J17: 70388.01421 | K17: 0 | M17: =H17 -> Actual | O17: =K17-SUM(P17:R17) -> 0 | P17: 0 | Q17: 0 | R17: 0
A18: 3113** | B18: =+'P&L - ITD3 (Acct Desc)'!$A$436 -> Resi I/C | C18: =+VLOOKUP($B18,'P&L - ITD3 (Acct Desc)'!A$1:N$1438,2,FALSE) -> 225146.31 | D18: =+'PF Restate'!$G18 -> -33341.34083 | E18: =+'PF Adj'!$G18 -> 0 | F18: =SUM(C18:E18) -> 191804.9692 | H18: Actual | J18: 191804.9692 | K18: 0 | M18: =H18 -> Actual | O18: =K18-SUM(P18:R18) -> 0 | P18: 0 | Q18: 0 | R18: 0
B20: =+'P&L - ITD3 (Acct Desc)'!$A$444 -> Gross Revenue | C20: =+VLOOKUP($B20,'P&L - ITD3 (Acct Desc)'!A$1:N$1438,2,FALSE) -> 8434889.14 | D20: =SUM(D11:D19) -> -2178404.847 | E20: =SUM(E11:E19) -> 0 | F20: =SUM(C20:E20) -> 6256484.293 | J20: 3376799.683 | K20: =SUM(K11:K19) -> 2879684.61 | O20: =SUM(O11:O19) -> 1822325.891 | P20: =SUM(P11:P19) -> 478050.24 | Q20: =SUM(Q11:Q19) -> 559962.9 | R20: =SUM(R11:R19) -> 19345.57923
A21: Check | C21: =+C20-SUM(C11:C19) -> 0
B22: =+'P&L - ITD3 (Acct Desc)'!$A$445 -> Disposal O/S | C22: =+VLOOKUP($B22,'P&L - ITD3 (Acct Desc)'!A$1:N$1438,2,FALSE) -> 2416450.07 | D22: =+'PF Restate'!$G22 -> -1264214.359 | E22: =+'PF Adj'!$G22 -> 0 | F22: =SUM(C22:E22) -> 1152235.711 | H22: Actual | J22: =F22-K22 -> 297538.2338 | K22: =+'Disposal Summary (with IC)'!S125-K23 -> 854697.4767 | M22: =H22 -> Actual | O22: =K22-SUM(P22:R22) -> 854697.4767 | P22: 0 | Q22: 0 | R22: 0
B23: =+'P&L - ITD3 (Acct Desc)'!$A$447 -> Diverted O/S | C23: =+VLOOKUP($B23,'P&L - ITD3 (Acct Desc)'!A$1:N$1438,2,FALSE) -> 86768.86 | D23: =+'PF Restate'!$G23 -> 809805.45 | E23: =+'PF Adj'!$G23 -> 0 | F23: =SUM(C23:E23) -> 896574.31 | H23: Actual | J23: =F23-K23 -> 649809.8414 | K23: =+'Disposal Summary (with IC)'!S119+'Disposal Summary (with IC)'!S121+'Disposal Summary (with IC)'!S112+'Disposal Summary (with IC)'!S101 -> 246764.4686 | M23: =H23 -> Actual | O23: =K23-SUM(P23:R23) -> 0 | P23: ='Disposal Summary (with IC)'!S121-P24 -> 139002.7407 | Q23: =+'Disposal Summary (with IC)'!S119-Q24 -> 104556.4596 | R23: ='Disposal Summary (with IC)'!S112+'Disposal Summary (with IC)'!S101 -> 3205.26833
B24: =+'P&L - ITD3 (Acct Desc)'!$A$465 -> 4X0 411000 | C24: =+VLOOKUP($B24,'P&L - ITD3 (Acct Desc)'!A$1:N$1438,2,FALSE) -> 170552.19 | D24: =+'PF Restate'!$G25 -> 0 | E24: =+'PF Adj'!$G25 -> 0 | F24: =SUM(C24:E24) -> 170552.19 | H24: Actual | J24: =F24-K24 -> 170552.19 | K24: =+'Disposal Summary (with IC)'!S166*'Disposal Summary (with IC)'!Q152 -> 0 | M24: =H24 -> Actual | O24: =K24-SUM(P24:R24) -> 0 | P24: 0 | Q24: =+K24 -> 0 | R24: 0
A25: =+'P&L - ITD3 (Acct #)'!$A$464 -> 4X0 410000 | B25: Disposal I/C | C25: =+VLOOKUP($A25,'P&L - ITD3 (Acct Desc)'!A$1:N$1438,2,FALSE) -> 348.43 | D25: =+'PF Restate'!$G25 -> 0 | E25: =+'PF Adj'!$G25 -> 0 | F25: =SUM(C25:E25) -> 348.43 | H25: Actual | J25: =F25-K25 -> 348.43 | K25: 0 | M25: =H25 -> Actual | O25: =K25-SUM(P25:R25) -> 0 | P25: 0 | Q25: 0 | R25: 0
A27: Subtotal | B27: Total Tipping & Disposal Costs | C27: =SUM(C22:C26) -> 2674119.55 | D27: =SUM(D22:D26) -> -454408.9095 | E27: =SUM(E22:E26) -> 0 | F27: =SUM(C27:E27) -> 2219710.641 | J27: =F27-K27 -> 1118248.695 | K27: =SUM(K22:K26) -> 1101461.945 | O27: =SUM(O22:O26) -> 854697.4767 | P27: =SUM(P22:P26) -> 139002.7407 | Q27: =SUM(Q22:Q26) -> 104556.4596 | R27: =SUM(R22:R26) -> 3205.26833
A29: Subtotal | B29: =+'P&L - ITD3 (Acct Desc)'!$A$496 -> COGS SOM | C29: =+VLOOKUP($B29,'P&L - ITD3 (Acct Desc)'!A$1:N$1438,2,FALSE) -> 809805.45 | D29: =+'PF Restate'!$G29 -> -809805.45 | E29: =+'PF Adj'!$G29 -> 0 | F29: =SUM(C29:E29) -> 0 | H29: Actual | J29: =F29-K29 -> 0 | K29: 0 | M29: =H29 -> Actual | O29: =K29-SUM(P29:R29) -> 0 | P29: 0 | Q29: 0 | R29: 0
A30: Subtotal | B30: =+'P&L - ITD3 (Acct Desc)'!$A$516 -> Fees, Taxes, Royalties | C30: =+VLOOKUP($B30,'P&L - ITD3 (Acct Desc)'!A$1:N$1438,2,FALSE) -> 193271.01 | D30: =+'PF Restate'!$G30 -> -29669.3 | E30: =+'PF Adj'!$G30 -> 0 | F30: =SUM(C30:E30) -> 163601.71 | H30: Actual | J30: =F30-K30 -> 151291.0583 | K30: =+K20*'Combined LG'!$H$17 -> 12310.65171 | M30: =H30 -> Actual | O30: =K30-SUM(P30:R30) -> 7790.443183 | P30: =+P20*'Combined LG'!$H$17 -> 2043.664776 | Q30: =+Q20*'Combined LG'!$H$17 -> 2393.841398 | R30: =+R20*'Combined LG'!$H$17 -> 82.70235121
A31: Subtotal | B31: =+'P&L - ITD3 (Acct Desc)'!$A$525 -> COGS Other | C31: =+VLOOKUP($B31,'P&L - ITD3 (Acct Desc)'!A$1:N$1438,2,FALSE) -> 0 | D31: =+'PF Restate'!$G31 -> 0 | E31: =+'PF Adj'!$G31 -> 0 | F31: =SUM(C31:E31) -> 0 | H31: Actual | J31: =F31-K31 -> 0 | K31: 0 | M31: =H31 -> Actual | O31: =K31-SUM(P31:R31) -> 0 | P31: 0 | Q31: 0 | R31: 0
B33: =+'P&L - ITD3 (Acct Desc)'!$A$526 -> Revenue Reduction | C33: =+VLOOKUP($B33,'P&L - ITD3 (Acct Desc)'!A$1:N$1438,2,FALSE) -> 3677196.01 | D33: =SUM(D27:D32) -> -1293883.659 | E33: =SUM(E27:E32) -> 0 | F33: =SUM(C33:E33) -> 2383312.351 | J33: =F33-K33 -> 1269539.753 | K33: =SUM(K27:K32) -> 1113772.597 | O33: =SUM(O27:O32) -> 862487.9199 | P33: =SUM(P27:P32) -> 141046.4055 | Q33: =SUM(Q27:Q32) -> 106950.301 | R33: =SUM(R27:R32) -> 3287.970681
A34: Check | C34: =+C33-SUM(C27:C31) -> 0 | F34: =SUM(C34:E34) -> 0
B35: =+'P&L - ITD3 (Acct Desc)'!$A$527 -> NET REVENUE | C35: =+VLOOKUP($B35,'P&L - ITD3 (Acct Desc)'!A$1:N$1438,2,FALSE) -> 4757693.13 | D35: =D20-D33 -> -884521.1871 | E35: =E20-E33 -> 0 | F35: =SUM(C35:E35) -> 3873171.943 | J35: =F35-K35 -> 2107259.93 | K35: =K20-K33 -> 1765912.013 | O35: =O20-O33 -> 959837.9709 | P35: =P20-P33 -> 337003.8345 | Q35: =Q20-Q33 -> 453012.599 | R35: =R20-R33 -> 16057.60855
A37: EXPENSES
A40: =+'P&L - ITD3 (Acct #)'!$A$538 -> 500 500010 | B40: =+'P&L - ITD3 (Acct Desc)'!$A$538 -> 500010 Drivers | C40: =+VLOOKUP($B40,'P&L - ITD3 (Acct Desc)'!A$1:N$1438,2,FALSE) -> 932637.94 | D40: =+'PF Restate'!$G40 -> -261730.603 | E40: =+'PF Adj'!$G40 -> 56513.67888 | F40: =SUM(C40:E40) -> 727421.0159 | H40: Truck Hours | J40: =F40-K40 -> 424750.7553 | K40: =F40*VLOOKUP(H40,$J$2:$K$6,2,FALSE) -> 302670.2606 | M40: Pay Diff Adj | O40: =K40-SUM(P40:R40) -> 163464.8288 | P40: =$K40*VLOOKUP($M40,$J$2:$R$6,MATCH(P$9,$J$9:$R$9,0),FALSE) -> 58540.46938 | Q40: =$K40*VLOOKUP($M40,$J$2:$R$6,MATCH(Q$9,$J$9:$R$9,0),FALSE) -> 76468.26351 | R40: =$K40*VLOOKUP($M40,$J$2:$R$6,MATCH(R$9,$J$9:$R$9,0),FALSE) -> 4196.698953
A41: =+'P&L - ITD3 (Acct #)'!$A$544 -> 500 500020 | B41: =+'P&L - ITD3 (Acct Desc)'!$A$544 -> 500020 Collection Helper | C41: =+VLOOKUP($B41,'P&L - ITD3 (Acct Desc)'!A$1:N$1438,2,FALSE) -> 0 | D41: =+'PF Restate'!$G41 -> 0 | E41: =+'PF Adj'!$G41 -> 0 | F41: 0 | H41: Truck Hours | J41: =F41-K41 -> 0 | K41: =F41*VLOOKUP(H41,$J$2:$K$6,2,FALSE) -> 0 | M41: Pay Diff Adj | O41: =K41-SUM(P41:R41) -> 0 | P41: =$K41*VLOOKUP($M41,$J$2:$R$6,MATCH(P$9,$J$9:$R$9,0),FALSE) -> 0 | Q41: 0 | R41: 0
A42: =+'P&L - ITD3 (Acct #)'!$A$550 -> 500 500030 | B42: =+'P&L - ITD3 (Acct Desc)'!$A$550 -> 500030 Operators | C42: =+VLOOKUP($B42,'P&L - ITD3 (Acct Desc)'!A$1:N$1438,2,FALSE) -> 0 | D42: =+'PF Restate'!$G42 -> 0 | E42: =+'PF Adj'!$G42 -> 0 | F42: 0 | H42: Truck Hours | J42: 0 | K42: 0 | M42: Pay Diff Adj | O42: 0 | P42: 0 | Q42: 0 | R42: 0
A43: =+'P&L - ITD3 (Acct #)'!$A$556 -> 500 500040 | B43: =+'P&L - ITD3 (Acct Desc)'!$A$556 -> 500040 Secondary | C43: =+VLOOKUP($B43,'P&L - ITD3 (Acct Desc)'!A$1:N$1438,2,FALSE) -> 0 | D43: =+'PF Restate'!$G43 -> 0 | E43: =+'PF Adj'!$G43 -> 0 | F43: 0 | H43: Truck Hours | J43: 0 | K43: 0 | M43: Pay Diff Adj | O43: 0 | P43: 0 | Q43: 0 | R43: 0
A44: =+'P&L - ITD3 (Acct #)'!$A$562 -> 500 500050 | B44: =+'P&L - ITD3 (Acct Desc)'!$A$562 -> 500050 Container Delivery | C44: =+VLOOKUP($B44,'P&L - ITD3 (Acct Desc)'!A$1:N$1438,2,FALSE) -> 32690.52 | D44: =+'PF Restate'!$G44 -> 0 | E44: =+'PF Adj'!$G44 -> 0 | F44: 32690.52 | H44: Truck Hours | J44: 19088.42714 | K44: 13602.09286 | M44: Pay Diff Adj | O44: 7346.15874 | P44: 2630.826362 | Q44: 3436.506841 | R44: 188.6009176
A45: =+'P&L - ITD3 (Acct #)'!$A$563 -> 500055 0000 | B45: =+'P&L - ITD3 (Acct Desc)'!$A$563 -> Temp Labor-Oper Labor | C45: =+VLOOKUP($B45,'P&L - ITD3 (Acct Desc)'!A$1:N$1438,2,FALSE) -> 0 | D45: =+'PF Restate'!$G45 -> 0 | E45: =+'PF Adj'!$G45 -> 0 | F45: 0 | H45: Truck Hours | J45: 0 | K45: 0 | M45: =H45 -> Truck Hours | O45: 0 | P45: 0 | Q45: 0 | R45: 0
A46: =+'P&L - ITD3 (Acct #)'!$A$566 -> 500170 0000 | B46: =+'P&L - ITD3 (Acct Desc)'!$A$566 -> Payroll Taxes - Oper Labor | C46: =+VLOOKUP($B46,'P&L - ITD3 (Acct Desc)'!A$1:N$1438,2,FALSE) -> 97671.9 | D46: =+'PF Restate'!$G46 -> 0 | E46: =+'PF Adj'!$G46 -> -17029.8375 | F46: 80642.0625 | H46: Truck Hours | J46: 47087.96722 | K46: 33554.09527 | M46: Truck Hours | O46: 16966.94183 | P46: 7298.019674 | Q46: 8805.854575 | R46: 483.279193
A47: =+'P&L - ITD3 (Acct #)'!$A$567 -> 500172 0000 | B47: =+'P&L - ITD3 (Acct Desc)'!$A$567 -> Personal Time - Oper Labor | C47: =+VLOOKUP($B47,'P&L - ITD3 (Acct Desc)'!A$1:N$1438,2,FALSE) -> 1164.48 | D47: =+'PF Restate'!$G47 -> 0 | E47: =+'PF Adj'!$G47 -> 0 | F47: 1164.48 | H47: Truck Hours | J47: 679.9552786 | K47: 484.5247214 | M47: Truck Hours | O47: 245.0044531 | P47: 105.384184 | Q47: 127.1574811 | R47: 6.97860319
A48: =+'P&L - ITD3 (Acct #)'!$A$570 -> 500173 0000 | B48: =+'P&L - ITD3 (Acct Desc)'!$A$570 -> Holiday Pay - Oper Labor | C48: =+VLOOKUP($B48,'P&L - ITD3 (Acct Desc)'!A$1:N$1438,2,FALSE) -> 32095.52 | D48: =+'PF Restate'!$G48 -> 0 | E48: =+'PF Adj'!$G48 -> 0 | F48: 32095.52 | H48: Truck Hours | J48: 18740.99877 | K48: 13354.52123 | M48: Truck Hours | O48: 6752.838457 | P48: 2904.609941 | Q48: 3504.727842 | R48: 192.3449937
A49: =+'P&L - ITD3 (Acct #)'!$A$571 -> 500174 0000 | B49: =+'P&L - ITD3 (Acct Desc)'!$A$571 -> Vacation/Sick - Oper Labor | C49: =+VLOOKUP($B49,'P&L - ITD3 (Acct Desc)'!A$1:N$1438,2,FALSE) -> 121718.25 | D49: =+'PF Restate'!$G49 -> 0 | E49: =+'PF Adj'!$G49 -> 0 | F49: 121718.25 | H49: Truck Hours | J49: 71072.89656 | K49: 50645.35344 | M49: Truck Hours | O49: 25609.29623 | P49: 11015.37034 | Q49: 13291.2425 | R49: 729.4443595
A50: =+'P&L - ITD3 (Acct #)'!$A$577 -> 500 500175 | B50: =+'P&L - ITD3 (Acct Desc)'!$A$577 -> 500175 Benefits Non-Corp - Oper Labor | C50: =+VLOOKUP($B50,'P&L - ITD3 (Acct Desc)'!A$1:N$1438,2,FALSE) -> 491488.14 | D50: =+'PF Restate'!$G50 -> 0 | E50: =+'PF Adj'!$G50 -> -28949.77416 | F50: 462538.3658 | H50: Truck Hours | J50: 270082.2714 | K50: 192456.0944 | M50: Truck Hours | O50: 97317.22261 | P50: 41859.22321 | Q50: 50507.70602 | R50: 2771.942597
A51: =+'P&L - ITD3 (Acct #)'!$A$578 -> 500176 0000 | B51: =+'P&L - ITD3 (Acct Desc)'!$A$578 -> Benefits Corp - Oper Labor | C51: =+VLOOKUP($B51,'P&L - ITD3 (Acct Desc)'!A$1:N$1438,2,FALSE) -> 0 | D51: =+'PF Restate'!$G51 -> 0 | E51: =+'PF Adj'!$G51 -> 0 | F51: 0 | H51: Truck Hours | J51: =F51-K51 -> 0 | K51: =F51*VLOOKUP(H51,$J$2:$K$6,2,FALSE) -> 0 | M51: Truck Hours | O51: 0 | P51: 0 | Q51: 0 | R51: 0
A52: =+'P&L - ITD3 (Acct #)'!$A$581 -> 500188 0000 | B52: =+'P&L - ITD3 (Acct Desc)'!$A$581 -> Uniforms & Safety - Oper Labor | C52: =+VLOOKUP($B52,'P&L - ITD3 (Acct Desc)'!A$1:N$1438,2,FALSE) -> 1973.34 | D52: =+'PF Restate'!$G52 -> 0 | E52: =+'PF Adj'!$G52 -> 0 | F52: 1973.34 | H52: Truck Hours | J52: =F52-K52 -> 1152.259334 | K52: =F52*VLOOKUP(H52,$J$2:$K$6,2,FALSE) -> 821.0806658 | M52: Truck Hours | O52: 415.1871115 | P52: 178.5851415 | Q52: 215.4823988 | R52: 11.82601403
A53: =+'P&L - ITD3 (Acct #)'!$A$583 -> 500998 0000 | B53: =+'P&L - ITD3 (Acct Desc)'!$A$583 -> Oper Labor Alloc-In | C53: =+VLOOKUP($B53,'P&L - ITD3 (Acct Desc)'!A$1:N$1438,2,FALSE) -> 0 | D53: =+'PF Restate'!$G53 -> 0 | E53: =+'PF Adj'!$G53 -> 0 | F53: 0 | H53: Truck Hours | J53: =F53-K53 -> 0 | K53: =F53*VLOOKUP(H53,$J$2:$K$6,2,FALSE) -> 0 | M53: Truck Hours | O53: 0 | P53: 0 | Q53: 0 | R53: 0
A54: =+'P&L - ITD3 (Acct #)'!$A$587 -> 500999 0000 | B54: =+'P&L - ITD3 (Acct Desc)'!$A$587 -> Oper Labor Alloc-Out | C54: =+VLOOKUP($B54,'P&L - ITD3 (Acct Desc)'!A$1:N$1438,2,FALSE) -> -48343.2 | D54: =+'PF Restate'!$G54 -> 0 | E54: =+'PF Adj'!$G54 -> 0 | F54: -48343.2 | H54: Truck Hours | J54: =F54-K54 -> -28228.23408 | K54: =F54*VLOOKUP(H54,$J$2:$K$6,2,FALSE) -> -20114.96592 | M54: Truck Hours | O54: -10171.32049 | P54: -4375.007456 | Q54: -5278.922385 | R54: -289.7155896
A55: =+'P&L - ITD3 (Acct #)'!$A$588 -> Operating Labor | B55: =+'P&L - ITD3 (Acct Desc)'!$A$588 -> Operating Labor | C55: =+VLOOKUP($B55,'P&L - ITD3 (Acct Desc)'!A$1:N$1438,2,FALSE) -> 1663096.89 | D55: =SUM(D39:D54) -> -261730.603 | E55: =SUM(E39:E54) -> 10534.06722 | F55: 1411900.354 | J55: =SUM(J39:J54) -> 824427.2969 | K55: =SUM(K39:K54) -> 587473.0573 | O55: =SUM(O39:O54) -> 307946.1577 | P55: =SUM(P39:P54) -> 120157.4808 | Q55: =SUM(Q39:Q54) -> 151078.0188 | R55: =SUM(R39:R54) -> 8291.400041
A56: Check | C56: =+C55-SUM(C40:C54) -> 0 | F56: 0
A57: =+'P&L - ITD3 (Acct #)'!$A$595 -> 510 510010 | B57: =+'P&L - ITD3 (Acct Desc)'!$A$595 -> 510010 Mgr/Supervision | C57: =+VLOOKUP($B57,'P&L - ITD3 (Acct Desc)'!A$1:N$1438,2,FALSE) -> 32065.45 | D57: =+'PF Restate'!$G57 -> 0 | E57: =+'PF Adj'!$G57 -> 40486.98856 | F57: 72552.43856 | H57: Truck Hours | J57: =F57-K57 -> 42364.32878 | K57: =F57*VLOOKUP(H57,$J$2:$K$6,2,FALSE) -> 30188.10978 | M57: =H57 -> Truck Hours | O57: =K57-SUM(P57:R57) -> 15264.89981 | P57: =$K57*VLOOKUP($M57,$J$2:$R$6,MATCH(P$9,$J$9:$R$9,0),FALSE) -> 6565.917433 | Q57: 7922.493587 | R57: 434.7989482
A58: =+'P&L - ITD3 (Acct #)'!$A$602 -> 510 510020 | B58: =+'P&L - ITD3 (Acct Desc)'!$A$602 -> 510020 Dispatchers | C58: =+VLOOKUP($B58,'P&L - ITD3 (Acct Desc)'!A$1:N$1438,2,FALSE) -> 81551.38 | D58: =+'PF Restate'!$G58 -> 0 | E58: =+'PF Adj'!$G58 -> 0 | F58: 81551.38 | H58: Truck Hours | J58: 47618.92975 | K58: 33932.45025 | M58: Truck Hours | O58: 17158.26056 | P58: 7380.311927 | Q58: 8905.14913 | R58: 488.7286348
A59: =+'P&L - ITD3 (Acct #)'!$A$603 -> 510055 0000 | B59: =+'P&L - ITD3 (Acct Desc)'!$A$603 -> Temporary Labor - Sup Labor | C59: =+VLOOKUP($B59,'P&L - ITD3 (Acct Desc)'!A$1:N$1438,2,FALSE) -> 9154.81 | D59: =+'PF Restate'!$G59 -> 0 | E59: =+'PF Adj'!$G59 -> 0 | F59: 9154.81 | H59: Truck Hours | J59: 5345.614681 | K59: 3809.195319 | M59: Truck Hours | O59: 1926.155209 | P59: 828.5004305 | Q59: 999.6758891 | R59: 54.86379008
A60: =+'P&L - ITD3 (Acct #)'!$A$605 -> 510061 0000 | B60: =+'P&L - ITD3 (Acct Desc)'!$A$605 -> Bonus Pay Corp - Sup Labor | C60: =+VLOOKUP($B60,'P&L - ITD3 (Acct Desc)'!A$1:N$1438,2,FALSE) -> 24733.83 | D60: =+'PF Restate'!$G60 -> -24733.83 | E60: =+'PF Adj'!$G60 -> 0 | F60: 0 | H60: Truck Hours | J60: 0 | K60: 0 | M60: Truck Hours | O60: 0 | P60: 0 | Q60: 0 | R60: 0
A61: =+'P&L - ITD3 (Acct #)'!$A$606 -> 510170 0000 | B61: =+'P&L - ITD3 (Acct Desc)'!$A$606 -> Payroll Taxes - Sup Labor | C61: =+VLOOKUP($B61,'P&L - ITD3 (Acct Desc)'!A$1:N$1438,2,FALSE) -> 13750.7 | D61: =+'PF Restate'!$G61 -> 0 | E61: =+'PF Adj'!$G61 -> 10144.52433 | F61: 23895.22433 | H61: Truck Hours | J61: 13952.73763 | K61: 9942.486699 | M61: Truck Hours | O61: 5027.51131 | P61: 2162.492028 | Q61: 2609.281856 | R61: 143.2015052
A62: =+'P&L - ITD3 (Acct #)'!$A$607 -> 510172 0000 | B62: =+'P&L - ITD3 (Acct Desc)'!$A$607 -> Personal Time - Sup Labor | C62: =+VLOOKUP($B62,'P&L - ITD3 (Acct Desc)'!A$1:N$1438,2,FALSE) -> 0 | D62: =+'PF Restate'!$G62 -> 0 | E62: =+'PF Adj'!$G62 -> 0 | F62: 0 | H62: Truck Hours | J62: 0 | K62: 0 | M62: Truck Hours | O62: 0 | P62: 0 | Q62: 0 | R62: 0
A63: =+'P&L - ITD3 (Acct #)'!$A$610 -> 510173 0000 | B63: =+'P&L - ITD3 (Acct Desc)'!$A$610 -> Holiday Pay - Sup Labor | C63: =+VLOOKUP($B63,'P&L - ITD3 (Acct Desc)'!A$1:N$1438,2,FALSE) -> 3089.17 | D63: =+'PF Restate'!$G63 -> 0 | E63: =+'PF Adj'!$G63 -> 0 | F63: 3089.17 | H63: Truck Hours | J63: 1803.807234 | K63: 1285.362766 | M63: Truck Hours | O63: 649.955694 | P63: 279.566553 | Q63: 337.3274559 | R63: 18.51306301
A64: =+'P&L - ITD3 (Acct #)'!$A$611 -> 510174 0000 | B64: =+'P&L - ITD3 (Acct Desc)'!$A$611 -> Vacation/Sick - Sup Labor | C64: =+VLOOKUP($B64,'P&L - ITD3 (Acct Desc)'!A$1:N$1438,2,FALSE) -> 5346 | D64: =+'PF Restate'!$G64 -> 0 | E64: =+'PF Adj'!$G64 -> 0 | F64: 5346 | H64: Truck Hours | J64: 3121.60013 | K64: 2224.39987 | M64: Truck Hours | O64: 1124.788581 | P64: 483.8072337 | Q64: 583.7660534 | R64: 32.03800207
A65: =+'P&L - ITD3 (Acct #)'!$A$617 -> 510176 0000 | B65: =+'P&L - ITD3 (Acct Desc)'!$A$617 -> Benefits Corp - Sup Labor | C65: =+VLOOKUP($B65,'P&L - ITD3 (Acct Desc)'!A$1:N$1438,2,FALSE) -> 4284.15 | D65: =+'PF Restate'!$G65 -> 0 | E65: =+'PF Adj'!$G65 -> 6261.32686 | F65: 10545.47686 | H65: Truck Hours | J65: 6157.64346 | K65: 4387.8334 | M65: Truck Hours | O65: 2218.748962 | P65: 954.3542813 | Q65: 1151.53225 | R65: 63.19790675
A66: =+'P&L - ITD3 (Acct #)'!$A$618 -> 510177 0000 | B66: =+'P&L - ITD3 (Acct Desc)'!$A$618 -> Employer 401k - Sup Labor | C66: =+VLOOKUP($B66,'P&L - ITD3 (Acct Desc)'!A$1:N$1438,2,FALSE) -> 1836.89 | D66: =+'PF Restate'!$G66 -> 0 | E66: =+'PF Adj'!$G66 -> 0 | F66: 1836.89 | H66: Truck Hours | J66: =F66-K66 -> 1072.584374 | K66: =F66*VLOOKUP(H66,$J$2:$K$6,2,FALSE) -> 764.3056261 | M66: Truck Hours | O66: 386.4782821 | P66: 166.2365637 | Q66: 200.5824964 | R66: 11.00828388
A67: =+'P&L - ITD3 (Acct #)'!$A$620 -> 510188 0000 | B67: =+'P&L - ITD3 (Acct Desc)'!$A$620 -> Uniforms & Safety - Sup Labor | C67: =+VLOOKUP($B67,'P&L - ITD3 (Acct Desc)'!A$1:N$1438,2,FALSE) -> 13240.98 | D67: =+'PF Restate'!$G67 -> 0 | E67: =+'PF Adj'!$G67 -> 0 | F67: 13240.98 | H67: Truck Hours | J67: =F67-K67 -> 7731.583406 | K67: =F67*VLOOKUP(H67,$J$2:$K$6,2,FALSE) -> 5509.396594 | M67: Truck Hours | O67: 2785.877872 | P67: 1198.294408 | Q67: 1445.872547 | R67: 79.35176669
A68: =+'P&L - ITD3 (Acct #)'!$A$632 -> 510 510998 | B68: =+'P&L - ITD3 (Acct Desc)'!$A$632 -> 510998 Ops Supv Alloc-In | C68: =+VLOOKUP($B68,'P&L - ITD3 (Acct Desc)'!A$1:N$1438,2,FALSE) -> 112607.08 | D68: =+'PF Restate'!$G68 -> 0 | E68: =+'PF Adj'!$G68 -> 0 | F68: 112607.08 | H68: Truck Hours | J68: =F68-K68 -> 65752.76386 | K68: =F68*VLOOKUP(H68,$J$2:$K$6,2,FALSE) -> 46854.31614 | M68: Truck Hours | O68: 23692.3228 | P68: 10190.81928 | Q68: 12296.33196 | R68: 674.8420992
A69: =+'P&L - ITD3 (Acct #)'!$A$633 -> 510999 0000 | B69: =+'P&L - ITD3 (Acct Desc)'!$A$633 -> Ops Supv Alloc-Out | C69: =+VLOOKUP($B69,'P&L - ITD3 (Acct Desc)'!A$1:N$1438,2,FALSE) -> -117738.59 | D69: =+'PF Restate'!$G69 -> 0 | E69: =+'PF Adj'!$G69 -> 0 | F69: -117738.59 | H69: Truck Hours | J69: =F69-K69 -> -68749.12044 | K69: =F69*VLOOKUP(H69,$J$2:$K$6,2,FALSE) -> -48989.46956 | M69: =H69 -> Truck Hours | O69: -24771.98308 | P69: -10655.2154 | Q69: -12856.6764 | R69: -705.5946859
B70: =+'P&L - ITD3 (Acct Desc)'!$A$634 -> Oper Supervisory Labor | C70: =+VLOOKUP($B70,'P&L - ITD3 (Acct Desc)'!A$1:N$1438,2,FALSE) -> 183921.85 | D70: =SUM(D57:D69) -> -24733.83 | E70: =SUM(E57:E69) -> 56892.83975 | F70: 216080.8597 | J70: =SUM(J57:J69) -> 126172.4729 | K70: =SUM(K57:K69) -> 89908.38689 | O70: =SUM(O57:O69) -> 45463.016 | P70: =SUM(P57:P69) -> 19555.08474 | Q70: =SUM(Q57:Q69) -> 23595.33683 | R70: =SUM(R57:R69) -> 1294.949314
A71: Check | C71: =+C70-SUM(C57:C69) -> 0
A72: =+'P&L - ITD3 (Acct #)'!$A$641 -> 520 520010 | B72: =+'P&L - ITD3 (Acct Desc)'!$A$641 -> 520010 TShop Mgr/Supv-Default | C72: =+VLOOKUP($B72,'P&L - ITD3 (Acct Desc)'!A$1:N$1438,2,FALSE) -> 24754.02 | D72: =+'PF Restate'!$G72 -> 0 | E72: =+'PF Adj'!$G72 -> 40907.45636 | F72: =SUM(C72:E72) -> 65661.47636 | H72: Truck Hours | J72: =F72-K72 -> 38340.60478 | K72: =F72*VLOOKUP(H72,$J$2:$K$6,2,FALSE) -> 27320.87158 | M72: =H72 -> Truck Hours | O72: =K72-SUM(P72:R72) -> 13815.05402 | P72: =$K72*VLOOKUP($M72,$J$2:$R$6,MATCH(P$9,$J$9:$R$9,0),FALSE) -> 5942.292787 | Q72: 7170.022617 | R72: 393.5021541
A73: =+'P&L - ITD3 (Acct #)'!$A$648 -> 520 520020 | B73: =+'P&L - ITD3 (Acct Desc)'!$A$648 -> 520020 TShop Mech/Welder-Default | C73: =+VLOOKUP($B73,'P&L - ITD3 (Acct Desc)'!A$1:N$1438,2,FALSE) -> 304108.07 | D73: =+'PF Restate'!$G73 -> 0 | E73: =+'PF Adj'!$G73 -> 0 | F73: 304108.07 | H73: Truck Hours | J73: 177572.7256 | K73: 126535.3444 | M73: =H73 -> Truck Hours | O73: 63983.77936 | P73: 27521.45232 | Q73: 33207.62586 | R73: 1822.486902
A74: =+'P&L - ITD3 (Acct #)'!$A$655 -> 520 520030 | B74: =+'P&L - ITD3 (Acct Desc)'!$A$655 -> 520030 TShop Support-Default | C74: =+VLOOKUP($B74,'P&L - ITD3 (Acct Desc)'!A$1:N$1438,2,FALSE) -> 35377.67 | D74: =+'PF Restate'!$G74 -> 0 | E74: =+'PF Adj'!$G74 -> 0 | F74: 35377.67 | H74: Truck Hours | J74: 20657.48958 | K74: 14720.18042 | M74: Truck Hours | O74: 7443.396788 | P74: 3201.640976 | Q74: 3863.128095 | R74: 212.0145651
A75: =+'P&L - ITD3 (Acct #)'!$A$656 -> 520055 0000 | B75: =+'P&L - ITD3 (Acct Desc)'!$A$656 -> TShop Temp Labor | C75: =+VLOOKUP($B75,'P&L - ITD3 (Acct Desc)'!A$1:N$1438,2,FALSE) -> 7032.03 | D75: =+'PF Restate'!$G75 -> 0 | E75: =+'PF Adj'!$G75 -> 0 | F75: 7032.03 | H75: Truck Hours | J75: 4106.095354 | K75: 2925.934646 | M75: Truck Hours | O75: 1479.526196 | P75: 636.3911301 | Q75: 767.8751216 | R75: 42.14219823
A76: =+'P&L - ITD3 (Acct #)'!$A$657 -> 520060 0000 | B76: =+'P&L - ITD3 (Acct Desc)'!$A$657 -> TShop Bonus Non-Corp | C76: =+VLOOKUP($B76,'P&L - ITD3 (Acct Desc)'!A$1:N$1438,2,FALSE) -> 0 | D76: =+'PF Restate'!$G76 -> 0 | E76: =+'PF Adj'!$G76 -> 0 | F76: 0 | H76: Truck Hours | J76: 0 | K76: 0 | M76: Truck Hours | O76: 0 | P76: 0 | Q76: 0 | R76: 0
A77: =+'P&L - ITD3 (Acct #)'!$A$658 -> 520061 0000 | B77: =+'P&L - ITD3 (Acct Desc)'!$A$658 -> TShop Bonus Pay Corp | C77: =+VLOOKUP($B77,'P&L - ITD3 (Acct Desc)'!A$1:N$1438,2,FALSE) -> 16853.73 | D77: =+'PF Restate'!$G77 -> -16853.73 | E77: =+'PF Adj'!$G77 -> 0 | F77: 0 | H77: Truck Hours | J77: 0 | K77: 0 | M77: Truck Hours | O77: 0 | P77: 0 | Q77: 0 | R77: 0
A78: =+'P&L - ITD3 (Acct #)'!$A$659 -> 520170 0000 | B78: =+'P&L - ITD3 (Acct Desc)'!$A$659 -> TShop Payroll Tax | C78: =+VLOOKUP($B78,'P&L - ITD3 (Acct Desc)'!A$1:N$1438,2,FALSE) -> 36388.86 | D78: =+'PF Restate'!$G78 -> 0 | E78: =+'PF Adj'!$G78 -> 11561.49537 | F78: 47950.35537 | H78: Truck Hours | J78: 27998.84691 | K78: 19951.50846 | M78: Truck Hours | O78: 10088.6667 | P78: 4339.455441 | Q78: 5236.025012 | R78: 287.361314
A79: =+'P&L - ITD3 (Acct #)'!$A$660 -> 520172 0000 | B79: =+'P&L - ITD3 (Acct Desc)'!$A$660 -> TShop Personal Time | C79: =+VLOOKUP($B79,'P&L - ITD3 (Acct Desc)'!A$1:N$1438,2,FALSE) -> 810 | D79: =+'PF Restate'!$G79 -> 0 | E79: =+'PF Adj'!$G79 -> 0 | F79: 810 | H79: Truck Hours | J79: 472.9697167 | K79: 337.0302833 | M79: Truck Hours | O79: 170.4225122 | P79: 73.30412632 | Q79: 88.44940203 | R79: 4.854242738
A80: =+'P&L - ITD3 (Acct #)'!$A$663 -> 520173 0000 | B80: =+'P&L - ITD3 (Acct Desc)'!$A$663 -> TShop Holiday Pay | C80: =+VLOOKUP($B80,'P&L - ITD3 (Acct Desc)'!A$1:N$1438,2,FALSE) -> 12897.14 | D80: =+'PF Restate'!$G80 -> 0 | E80: =+'PF Adj'!$G80 -> 0 | F80: 12897.14 | H80: Truck Hours | J80: 7530.810681 | K80: 5366.329319 | M80: Truck Hours | O80: 2713.534567 | P80: 1167.177259 | Q80: 1408.326322 | R80: 77.29117061
A81: =+'P&L - ITD3 (Acct #)'!$A$664 -> 520174 0000 | B81: =+'P&L - ITD3 (Acct Desc)'!$A$664 -> TShop Vacation/Sick | C81: =+VLOOKUP($B81,'P&L - ITD3 (Acct Desc)'!A$1:N$1438,2,FALSE) -> 45257.44 | D81: =+'PF Restate'!$G81 -> 0 | E81: =+'PF Adj'!$G81 -> 0 | F81: 45257.44 | H81: Truck Hours | J81: 26426.41799 | K81: 18831.02201 | M81: Truck Hours | O81: 9522.082249 | P81: 4095.749505 | Q81: 4941.96729 | R81: 271.2229623
A82: =+'P&L - ITD3 (Acct #)'!$A$669 -> 520 520175 | B82: =+'P&L - ITD3 (Acct Desc)'!$A$669 -> 520175 TShop Benefits Non-Corp | C82: =+VLOOKUP($B82,'P&L - ITD3 (Acct Desc)'!A$1:N$1438,2,FALSE) -> 188650.24 | D82: =+'PF Restate'!$G82 -> 0 | E82: =+'PF Adj'!$G82 -> 12966 | F82: 201616.24 | H82: Truck Hours | J82: 117726.39 | K82: 83889.84999 | M82: Truck Hours | O82: 42419.68658 | P82: 18246.05225 | Q82: 22015.84675 | R82: 1208.264406
A83: =+'P&L - ITD3 (Acct #)'!$A$670 -> 520176 0000 | B83: =+'P&L - ITD3 (Acct Desc)'!$A$670 -> TShop Benefits Corp | C83: =+VLOOKUP($B83,'P&L - ITD3 (Acct Desc)'!A$1:N$1438,2,FALSE) -> 13293.46 | D83: =+'PF Restate'!$G83 -> 0 | E83: =+'PF Adj'!$G83 -> 0 | F83: 13293.46 | H83: Truck Hours | J83: 7762.227173 | K83: 5531.232827 | M83: Truck Hours | O83: 2796.919567 | P83: 1203.043791 | Q83: 1451.603195 | R83: 79.66627367
A84: =+'P&L - ITD3 (Acct #)'!$A$671 -> 520177 0000 | B84: =+'P&L - ITD3 (Acct Desc)'!$A$671 -> TShop Employer 401k | C84: =+VLOOKUP($B84,'P&L - ITD3 (Acct Desc)'!A$1:N$1438,2,FALSE) -> 136.42 | D84: =+'PF Restate'!$G84 -> 0 | E84: =+'PF Adj'!$G84 -> 0 | F84: 136.42 | H84: Truck Hours | J84: =F84-K84 -> 79.6574429 | K84: =F84*VLOOKUP(H84,$J$2:$K$6,2,FALSE) -> 56.7625571 | M84: Truck Hours | O84: 28.70251743 | P84: 12.34586286 | Q84: 14.89662645 | R84: 0.8175503634
A85: =+'P&L - ITD3 (Acct #)'!$A$673 -> 520188 0000 | B85: =+'P&L - ITD3 (Acct Desc)'!$A$673 -> TShop Uniforms & Safety | C85: =+VLOOKUP($B85,'P&L - ITD3 (Acct Desc)'!A$1:N$1438,2,FALSE) -> 115.65 | D85: =+'PF Restate'!$G85 -> 0 | E85: =+'PF Adj'!$G85 -> 0 | F85: 115.65 | H85: Truck Hours | J85: =F85-K85 -> 67.5295651 | K85: =F85*VLOOKUP(H85,$J$2:$K$6,2,FALSE) -> 48.1204349 | M85: Truck Hours | O85: 24.33254758 | P85: 10.46620026 | Q85: 12.62860907 | R85: 0.693077991
A86: =+'P&L - ITD3 (Acct #)'!$A$674 -> 520998 0000 | B86: =+'P&L - ITD3 (Acct Desc)'!$A$674 -> TShop Labor Alloc-In | C86: =+VLOOKUP($B86,'P&L - ITD3 (Acct Desc)'!A$1:N$1438,2,FALSE) -> 0 | D86: =+'PF Restate'!$G86 -> 0 | E86: =+'PF Adj'!$G86 -> 0 | F86: 0 | H86: Truck Hours | J86: =F86-K86 -> 0 | K86: =F86*VLOOKUP(H86,$J$2:$K$6,2,FALSE) -> 0 | M86: Truck Hours | O86: 0 | P86: 0 | Q86: 0 | R86: 0
A87: =+'P&L - ITD3 (Acct #)'!$A$675 -> 520999 0000 | B87: =+'P&L - ITD3 (Acct Desc)'!$A$675 -> TShop Labor Alloc-Out | C87: =+VLOOKUP($B87,'P&L - ITD3 (Acct Desc)'!A$1:N$1438,2,FALSE) -> -685674.73 | D87: =+'PF Restate'!$G87 -> 0 | E87: =+'PF Adj'!$G87 -> 0 | F87: -685674.73 | H87: Truck Hours | J87: =F87-K87 -> -400374.5466 | K87: =F87*VLOOKUP(H87,$J$2:$K$6,2,FALSE) -> -285300.1834 | M87: Truck Hours | O87: -144264.7038 | P87: -62052.82348 | Q87: -74873.4813 | R87: -4109.174789
B88: =+'P&L - ITD3 (Acct Desc)'!$A$676 -> Truck/Equipment Shop Labor | C88: =+VLOOKUP($B88,'P&L - ITD3 (Acct Desc)'!A$1:N$1438,2,FALSE) -> -8.731149137e-11 | D88: =SUM(D72:D87) -> -16853.73 | E88: =SUM(E72:E87) -> 65434.95173 | F88: 48581.22173 | J88: =SUM(J72:J87) -> 28367.21812 | K88: =SUM(K72:K87) -> 20214.00361 | O88: =SUM(O72:O87) -> 10221.39982 | P88: =SUM(P72:P87) -> 4396.548166 | Q88: =SUM(Q72:Q87) -> 5304.913595 | R88: =SUM(R72:R87) -> 291.1420281
A89: Check | C89: =+C88-SUM(C72:C87) -> -8.731149137e-11
A90: =+'P&L - ITD3 (Acct #)'!$A$690 -> 525 525020 | B90: =+'P&L - ITD3 (Acct Desc)'!$A$690 -> 525020 CShop Mech/Welder-Default | C90: =+VLOOKUP($B90,'P&L - ITD3 (Acct Desc)'!A$1:N$1438,2,FALSE) -> 2183.13 | D90: =+'PF Restate'!$G90 -> 0 | E90: =+'PF Adj'!$G90 -> 0 | F90: =SUM(C90:E90) -> 2183.13 | H90: Container Count | J90: =F90-K90 -> 688.995828 | K90: =F90*VLOOKUP(H90,$J$2:$K$6,2,FALSE) -> 1494.134172 | M90: =H90 -> Container Count | O90: =K90-SUM(P90:R90) -> 596.337778 | P90: =$K90*VLOOKUP($M90,$J$2:$R$6,MATCH(P$9,$J$9:$R$9,0),FALSE) -> 573.0106232 | Q90: 305.3037514 | R90: 19.4820194
A91: =+'P&L - ITD3 (Acct #)'!$A$697 -> 525 525030 | B91: =+'P&L - ITD3 (Acct Desc)'!$A$697 -> 525030 CShop Support-Default | C91: =+VLOOKUP($B91,'P&L - ITD3 (Acct Desc)'!A$1:N$1438,2,FALSE) -> 1100.75 | D91: =+'PF Restate'!$G91 -> 0 | E91: =+'PF Adj'!$G91 -> 0 | F91: 1100.75 | H91: Container Count | J91: 347.3967 | K91: 753.3533 | M91: Container Count | O91: 300.6778383 | P91: 288.9161175 | Q91: 153.9363686 | R91: 9.822975661
A92: =+'P&L - ITD3 (Acct #)'!$A$698 -> 525055 0000 | B92: =+'P&L - ITD3 (Acct Desc)'!$A$698 -> CShop Temp Labor | C92: =+VLOOKUP($B92,'P&L - ITD3 (Acct Desc)'!A$1:N$1438,2,FALSE) -> 84825.56 | D92: =+'PF Restate'!$G92 -> 0 | E92: =+'PF Adj'!$G92 -> 0 | F92: 84825.56 | H92: Container Count | J92: 26770.94674 | K92: 58054.61326 | M92: Container Count | O92: 23170.71634 | P92: 22264.33927 | Q92: 11862.58339 | R92: 756.9742551
A93: =+'P&L - ITD3 (Acct #)'!$A$699 -> 525060 0000 | B93: =+'P&L - ITD3 (Acct Desc)'!$A$699 -> CShop Bonus Pay Non-Corp | C93: =+VLOOKUP($B93,'P&L - ITD3 (Acct Desc)'!A$1:N$1438,2,FALSE) -> 0 | D93: =+'PF Restate'!$G93 -> 0 | E93: =+'PF Adj'!$G93 -> 0 | F93: 0 | H93: Container Count | J93: 0 | K93: 0 | M93: Container Count | O93: 0 | P93: 0 | Q93: 0 | R93: 0
A94: =+'P&L - ITD3 (Acct #)'!$A$700 -> 525061 0000 | B94: =+'P&L - ITD3 (Acct Desc)'!$A$700 -> CShop Bonus Pay Corp | C94: =+VLOOKUP($B94,'P&L - ITD3 (Acct Desc)'!A$1:N$1438,2,FALSE) -> 0 | D94: =+'PF Restate'!$G94 -> 0 | E94: =+'PF Adj'!$G94 -> 0 | F94: 0 | H94: Container Count | J94: 0 | K94: 0 | M94: Container Count | O94: 0 | P94: 0 | Q94: 0 | R94: 0
A95: =+'P&L - ITD3 (Acct #)'!$A$701 -> 525170 0000 | B95: =+'P&L - ITD3 (Acct Desc)'!$A$701 -> CShop Payroll Tax | C95: =+VLOOKUP($B95,'P&L - ITD3 (Acct Desc)'!A$1:N$1438,2,FALSE) -> 336.94 | D95: =+'PF Restate'!$G95 -> 0 | E95: =+'PF Adj'!$G95 -> 0 | F95: 336.94 | H95: Container Count | J95: 106.338264 | K95: 230.601736 | M95: Container Count | O95: 92.0376024 | P95: 88.4373351 | Q95: 47.11998186 | R95: 3.006816642
A96: =+'P&L - ITD3 (Acct #)'!$A$702 -> 525172 0000 | B96: =+'P&L - ITD3 (Acct Desc)'!$A$702 -> CShop Personal Time | C96: =+VLOOKUP($B96,'P&L - ITD3 (Acct Desc)'!A$1:N$1438,2,FALSE) -> 0 | D96: =+'PF Restate'!$G96 -> 0 | E96: =+'PF Adj'!$G96 -> 0 | F96: 0 | H96: Container Count | J96: 0 | K96: 0 | M96: Container Count | O96: 0 | P96: 0 | Q96: 0 | R96: 0
A97: =+'P&L - ITD3 (Acct #)'!$A$705 -> 525173 0000 | B97: =+'P&L - ITD3 (Acct Desc)'!$A$705 -> CShop Holiday Pay | C97: =+VLOOKUP($B97,'P&L - ITD3 (Acct Desc)'!A$1:N$1438,2,FALSE) -> 145.94 | D97: =+'PF Restate'!$G97 -> 0 | E97: =+'PF Adj'!$G97 -> 0 | F97: 145.94 | H97: Container Count | J97: 46.058664 | K97: 99.881336 | M97: Container Count | O97: 39.86456845 | P97: 38.30517209 | Q97: 20.40924245 | R97: 1.302353003
A98: =+'P&L - ITD3 (Acct #)'!$A$706 -> 525174 0000 | B98: =+'P&L - ITD3 (Acct Desc)'!$A$706 -> CShop Vacation/Sick | C98: =+VLOOKUP($B98,'P&L - ITD3 (Acct Desc)'!A$1:N$1438,2,FALSE) -> 87.59 | D98: =+'PF Restate'!$G98 -> 0 | E98: =+'PF Adj'!$G98 -> 0 | F98: 87.59 | H98: Container Count | J98: 27.643404 | K98: 59.946596 | M98: Container Count | O98: 23.92584316 | P98: 22.98992753 | Q98: 12.24918149 | R98: 0.7816438229
A99: =+'P&L - ITD3 (Acct #)'!$A$711 -> 525 525175 | B99: =+'P&L - ITD3 (Acct Desc)'!$A$711 -> 525175 CShop Benefits Non-Corp | C99: =+VLOOKUP($B99,'P&L - ITD3 (Acct Desc)'!A$1:N$1438,2,FALSE) -> 0 | D99: =+'PF Restate'!$G99 -> 0 | E99: =+'PF Adj'!$G99 -> 0 | F99: 0 | H99: Container Count | J99: 0 | K99: 0 | M99: Container Count | O99: 0 | P99: 0 | Q99: 0 | R99: 0
A100: =+'P&L - ITD3 (Acct #)'!$A$712 -> 525176 0000 | B100: =+'P&L - ITD3 (Acct Desc)'!$A$712 -> CShop Benefits Corp | C100: =+VLOOKUP($B100,'P&L - ITD3 (Acct Desc)'!A$1:N$1438,2,FALSE) -> 424.95 | D100: =+'PF Restate'!$G100 -> 0 | E100: =+'PF Adj'!$G100 -> 0 | F100: 424.95 | H100: Container Count | J100: 134.11422 | K100: 290.83578 | M100: Container Count | O100: 116.0781716 | P100: 111.5375009 | Q100: 59.427899 | R100: 3.792208501
A101: =+'P&L - ITD3 (Acct #)'!$A$715 -> 525188 0000 | B101: =+'P&L - ITD3 (Acct Desc)'!$A$715 -> CShop Uniforms & Safety | C101: =+VLOOKUP($B101,'P&L - ITD3 (Acct Desc)'!A$1:N$1438,2,FALSE) -> 0 | D101: =+'PF Restate'!$G101 -> 0 | E101: =+'PF Adj'!$G101 -> 0 | F101: 0 | H101: Container Count | J101: 0 | K101: 0 | M101: Container Count | O101: 0 | P101: 0 | Q101: 0 | R101: 0
A102: =+'P&L - ITD3 (Acct #)'!$A$716 -> 525998 0000 | B102: =+'P&L - ITD3 (Acct Desc)'!$A$716 -> CShop Labor Alloc-In | C102: =+VLOOKUP($B102,'P&L - ITD3 (Acct Desc)'!A$1:N$1438,2,FALSE) -> 0 | D102: =+'PF Restate'!$G102 -> 0 | E102: =+'PF Adj'!$G102 -> 0 | F102: 0 | H102: Container Count | J102: 0 | K102: 0 | M102: Container Count | O102: 0 | P102: 0 | Q102: 0 | R102: 0
A103: =+'P&L - ITD3 (Acct #)'!$A$717 -> 525999 0000 | B103: =+'P&L - ITD3 (Acct Desc)'!$A$717 -> CShop Labor Alloc-Out | C103: =+VLOOKUP($B103,'P&L - ITD3 (Acct Desc)'!A$1:N$1438,2,FALSE) -> -89104.86 | D103: =+'PF Restate'!$G103 -> 0 | E103: =+'PF Adj'!$G103 -> 0 | F103: -89104.86 | H103: Container Count | J103: -28121.49382 | K103: -60983.36618 | M103: Container Count | O103: -24339.63814 | P103: -23387.53595 | Q103: -12461.02982 | R103: -795.1622721
B104: =+'P&L - ITD3 (Acct Desc)'!$A$718 -> Container Shop Labor | C104: =+VLOOKUP($B104,'P&L - ITD3 (Acct Desc)'!A$1:N$1438,2,FALSE) -> 3.637978807e-12 | D104: =SUM(D90:D103) -> 0 | E104: =SUM(E90:E103) -> 0 | F104: 3.637978807e-12 | J104: =SUM(J90:J103) -> 0 | K104: =SUM(K90:K103) -> 0 | O104: =SUM(O90:O103) -> 0 | P104: =SUM(P90:P103) -> 0 | Q104: =SUM(Q90:Q103) -> 0 | R104: =SUM(R90:R103) -> 0
A105: Check | C105: =+C104-SUM(C90:C103) -> 3.637978807e-12
A106: =+'P&L - ITD3 (Acct #)'!$A$719 -> 530010 0000 | B106: =+'P&L - ITD3 (Acct Desc)'!$A$719 -> Fuel | C106: =+VLOOKUP($B106,'P&L - ITD3 (Acct Desc)'!A$1:N$1438,2,FALSE) -> 141074.82 | D106: =+'PF Restate'!$G106 -> -50831.76159 | E106: =+'PF Adj'!$G106 -> -38468.82923 | F106: =SUM(C106:E106) -> 51774.22919 | H106: Truck Hours | J106: =F106-K106 -> 30231.65742 | K106: =F106*VLOOKUP(H106,$J$2:$K$6,2,FALSE) -> 21542.57177 | M106: =H106 -> Truck Hours | O106: =K106-SUM(P106:R106) -> 10893.20272 | P106: =$K106*VLOOKUP($M106,$J$2:$R$6,MATCH(P$9,$J$9:$R$9,0),FALSE) -> 4685.511897 | Q106: 5653.579768 | R106: 310.2773779
A107: =+'P&L - ITD3 (Acct #)'!$A$720 -> 530010 0010 | B107: =+'P&L - ITD3 (Acct Desc)'!$A$720 -> CNG/LNG | C107: =+VLOOKUP($B107,'P&L - ITD3 (Acct Desc)'!A$1:N$1438,2,FALSE) -> 146387.71 | D107: =+'PF Restate'!$G107 -> 0 | E107: =+'PF Adj'!$G107 -> -36268.25845 | F107: 110119.4516 | H107: Truck Hours | J107: 64300.20469 | K107: 45819.24686 | M107: Truck Hours | O107: 23168.93035 | P107: 9965.691589 | Q107: 12024.69092 | R107: 659.93401
A108: =+'P&L - ITD3 (Acct #)'!$A$721 -> 530010 0020 | B108: =+'P&L - ITD3 (Acct Desc)'!$A$721 -> CNG/LNG Tax Credit | C108: =+VLOOKUP($B108,'P&L - ITD3 (Acct Desc)'!A$1:N$1438,2,FALSE) -> -53774.33 | D108: =+'PF Restate'!$G108 -> 53774.33 | E108: =+'PF Adj'!$G108 -> 0 | F108: 0 | H108: Truck Hours | J108: 0 | K108: 0 | M108: Truck Hours | O108: 0 | P108: 0 | Q108: 0 | R108: 0
A109: =+'P&L - ITD3 (Acct #)'!$A$723 -> 530015 0000 | B109: =+'P&L - ITD3 (Acct Desc)'!$A$723 -> Oil/Lubricants | C109: =+VLOOKUP($B109,'P&L - ITD3 (Acct Desc)'!A$1:N$1438,2,FALSE) -> 49076.78 | D109: =+'PF Restate'!$G109 -> 0 | E109: =+'PF Adj'!$G109 -> 0 | F109: 49076.78 | H109: Truck Hours | J109: 28656.58115 | K109: 20420.19885 | M109: Truck Hours | O109: 10325.66437 | P109: 4441.395655 | Q109: 5359.026968 | R109: 294.1118555
A110: =+'P&L - ITD3 (Acct #)'!$A$724 -> 530030 0000 | B110: =+'P&L - ITD3 (Acct Desc)'!$A$724 -> Truck/Equip Licenses | C110: =+VLOOKUP($B110,'P&L - ITD3 (Acct Desc)'!A$1:N$1438,2,FALSE) -> 32857.42 | D110: =+'PF Restate'!$G110 -> 0 | E110: =+'PF Adj'!$G110 -> 0 | F110: 32857.42 | H110: Truck Hours | J110: 19185.88226 | K110: 13671.53774 | M110: Truck Hours | O110: 6913.140817 | P110: 2973.561069 | Q110: 3587.924878 | R110: 196.9109783
A111: =+'P&L - ITD3 (Acct #)'!$A$727 -> 530060 0000 | B111: =+'P&L - ITD3 (Acct Desc)'!$A$727 -> Equip Rental-3rd Party | C111: =+VLOOKUP($B111,'P&L - ITD3 (Acct Desc)'!A$1:N$1438,2,FALSE) -> 0 | D111: =+'PF Restate'!$G111 -> 0 | E111: =+'PF Adj'!$G111 -> 0 | F111: 0 | H111: Prev Alloc Costs | J111: 0 | K111: 0 | M111: Prev Alloc Costs | O111: 0 | P111: 0 | Q111: 0 | R111: 0
A112: =+'P&L - ITD3 (Acct #)'!$A$731 -> 530064 0000 | B112: =+'P&L - ITD3 (Acct Desc)'!$A$731 -> Truck/Equip Rental | C112: =+VLOOKUP($B112,'P&L - ITD3 (Acct Desc)'!A$1:N$1438,2,FALSE) -> 1355.09 | D112: =+'PF Restate'!$G112 -> 0 | E112: =+'PF Adj'!$G112 -> 0 | F112: 1355.09 | H112: Prev Alloc Costs | J112: 753.5035854 | K112: 601.5864146 | M112: Prev Alloc Costs | O112: 379.6523857 | P112: 102.9531808 | Q112: 114.1750906 | R112: 4.80575758
B113: =+'P&L - ITD3 (Acct Desc)'!$A$733 -> Rental Other | C113: =+VLOOKUP($B113,'P&L - ITD3 (Acct Desc)'!A$1:N$1438,2,FALSE) -> 257.33 | D113: =+'PF Restate'!$G114 -> 0 | E113: =+'PF Adj'!$G114 -> 0 | F113: =SUM(C113:E113) -> 257.33 | H113: Prev Alloc Costs | J113: =F113-K113 -> 143.0894462 | K113: =F113*VLOOKUP(H113,$J$2:$K$6,2,FALSE) -> 114.2405538 | M113: =H113 -> Prev Alloc Costs | O113: =K113-SUM(P113:R113) -> 72.0955423 | P113: 19.55068815 | Q113: 21.68171565 | R113: 0.912607722
A114: =+'P&L - ITD3 (Acct #)'!$A$734 -> 530067 0000 | B114: =+'P&L - ITD3 (Acct Desc)'!$A$734 -> Lease Sales Tax Expense | C114: =+VLOOKUP($B114,'P&L - ITD3 (Acct Desc)'!A$1:N$1438,2,FALSE) -> 2219.68 | D114: =+'PF Restate'!$G114 -> 0 | E114: =+'PF Adj'!$G114 -> 0 | F114: 2219.68 | H114: Prev Alloc Costs | J114: 1234.26255 | K114: 985.4174503 | M114: Prev Alloc Costs | O114: 621.8825373 | P114: 168.6405451 | Q114: 187.022386 | R114: 7.871981923
A115: =+'P&L - ITD3 (Acct #)'!$A$736 -> 530070 0000 | B115: =+'P&L - ITD3 (Acct Desc)'!$A$736 -> Operating Taxes | C115: =+VLOOKUP($B115,'P&L - ITD3 (Acct Desc)'!A$1:N$1438,2,FALSE) -> 3040.01 | D115: =+'PF Restate'!$G115 -> 0 | E115: =+'PF Adj'!$G115 -> 0 | F115: 3040.01 | H115: Prev Alloc Costs | J115: 1690.410552 | K115: 1349.599448 | M115: Prev Alloc Costs | O115: 851.7124686 | P115: 230.9652489 | Q115: 256.1404903 | R115: 10.78124043
B116: =+'P&L - ITD3 (Acct Desc)'!$A$737 -> Other Equip Operating Exp | C116: =+VLOOKUP($B116,'P&L - ITD3 (Acct Desc)'!A$1:N$1438,2,FALSE) -> 502.28 | D116: =+'PF Restate'!$G117 -> 0 | E116: =+'PF Adj'!$G117 -> 0 | F116: =SUM(C116:E116) -> 502.28 | H116: Prev Alloc Costs | J116: =F116-K116 -> 279.2949405 | K116: =F116*VLOOKUP(H116,$J$2:$K$6,2,FALSE) -> 222.9850595 | M116: =H116 -> Prev Alloc Costs | O116: =K116-SUM(P116:R116) -> 140.722609 | P116: 38.16080381 | Q116: 42.32033628 | R116: 1.781310405
A117: =+'P&L - ITD3 (Acct #)'!$A$774 -> 530 530998 | B117: =+'P&L - ITD3 (Acct Desc)'!$A$774 -> 530998 Operating Alloc-In | C117: =+VLOOKUP($B117,'P&L - ITD3 (Acct Desc)'!A$1:N$1438,2,FALSE) -> 7821.63 | D117: =+'PF Restate'!$G117 -> 0 | E117: =+'PF Adj'!$G117 -> 0 | F117: 7821.63 | H117: Prev Alloc Costs | J117: 4349.250787 | K117: 3472.379213 | M117: Prev Alloc Costs | O117: 2191.367724 | P117: 594.2495977 | Q117: 659.0228794 | R117: 27.73901192
A118: =+'P&L - ITD3 (Acct #)'!$A$775 -> 530999 0000 | B118: =+'P&L - ITD3 (Acct Desc)'!$A$775 -> Operating Alloc-Out | C118: =+VLOOKUP($B118,'P&L - ITD3 (Acct Desc)'!A$1:N$1438,2,FALSE) -> -7821.63 | D118: =+'PF Restate'!$G118 -> 0 | E118: =+'PF Adj'!$G118 -> 0 | F118: -7821.63 | H118: Prev Alloc Costs | J118: -4349.250787 | K118: -3472.379213 | M118: Prev Alloc Costs | O118: -2191.367724 | P118: -594.2495977 | Q118: -659.0228794 | R118: -27.73901192
B119: =+'P&L - ITD3 (Acct Desc)'!$A$778 -> Truck/Equipment Operating | C119: =+VLOOKUP($B119,'P&L - ITD3 (Acct Desc)'!A$1:N$1438,2,FALSE) -> 322996.79 | D119: =SUM(D106:D118) -> 2942.568412 | E119: =SUM(E106:E118) -> -74737.08767 | F119: 251202.2707 | J119: =SUM(J106:J118) -> 146474.8866 | K119: =SUM(K106:K118) -> 104727.3841 | O119: =SUM(O106:O118) -> 53367.0038 | P119: =SUM(P106:P118) -> 22626.43068 | Q119: =SUM(Q106:Q118) -> 27246.56255 | R119: =SUM(R106:R118) -> 1487.38712
A120: Check | C120: =+C119-SUM(C106:C118) -> 0
A121: =+'P&L - ITD3 (Acct #)'!$A$779 -> 540010 0000 | B121: =+'P&L - ITD3 (Acct Desc)'!$A$779 -> Parts & Matls | C121: =+VLOOKUP($B121,'P&L - ITD3 (Acct Desc)'!A$1:N$1438,2,FALSE) -> 146823.74 | D121: =+'PF Restate'!$G121 -> -60412.22277 | E121: =+'PF Adj'!$G121 -> 0 | F121: =SUM(C121:E121) -> 86411.51723 | H121: Truck Hours | J121: =F121-K121 -> 50456.82817 | K121: =F121*VLOOKUP(H121,$J$2:$K$6,2,FALSE) -> 35954.68905 | M121: =H121 -> Truck Hours | O121: =K121-SUM(P121:R121) -> 18180.82451 | P121: =$K121*VLOOKUP($M121,$J$2:$R$6,MATCH(P$9,$J$9:$R$9,0),FALSE) -> 7820.149104 | Q121: 9435.860527 | R121: 517.8549136
A122: =+'P&L - ITD3 (Acct #)'!$A$780 -> 540012 0000 | B122: =+'P&L - ITD3 (Acct Desc)'!$A$780 -> Parts X-Factor | C122: =+VLOOKUP($B122,'P&L - ITD3 (Acct Desc)'!A$1:N$1438,2,FALSE) -> 0 | D122: =+'PF Restate'!$G122 -> 0 | E122: =+'PF Adj'!$G122 -> 0 | F122: 0 | H122: Truck Hours | J122: 0 | K122: 0 | M122: Truck Hours | O122: 0 | P122: 0 | Q122: 0 | R122: 0
A123: =+'P&L - ITD3 (Acct #)'!$A$781 -> 540014 0000 | B123: =+'P&L - ITD3 (Acct Desc)'!$A$781 -> Purchase Discounts | C123: =+VLOOKUP($B123,'P&L - ITD3 (Acct Desc)'!A$1:N$1438,2,FALSE) -> 0 | D123: =+'PF Restate'!$G123 -> 0 | E123: =+'PF Adj'!$G123 -> 0 | F123: 0 | H123: Truck Hours | J123: 0 | K123: 0 | M123: Truck Hours | O123: 0 | P123: 0 | Q123: 0 | R123: 0
A124: =+'P&L - ITD3 (Acct #)'!$A$782 -> 540020 0000 | B124: =+'P&L - ITD3 (Acct Desc)'!$A$782 -> Truck/Equip Supplies | C124: =+VLOOKUP($B124,'P&L - ITD3 (Acct Desc)'!A$1:N$1438,2,FALSE) -> 25981.79 | D124: =+'PF Restate'!$G124 -> 0 | E124: =+'PF Adj'!$G124 -> 0 | F124: 25981.79 | H124: Truck Hours | J124: 15171.11093 | K124: 10810.67907 | M124: Truck Hours | O124: 5466.520894 | P124: 2351.323971 | Q124: 2837.128135 | R124: 155.7060684
A125: =+'P&L - ITD3 (Acct #)'!$A$783 -> 540030 0000 | B125: =+'P&L - ITD3 (Acct Desc)'!$A$783 -> New Tire Expense | C125: =+VLOOKUP($B125,'P&L - ITD3 (Acct Desc)'!A$1:N$1438,2,FALSE) -> 86102.27 | D125: =+'PF Restate'!$G125 -> 0 | E125: =+'PF Adj'!$G125 -> 0 | F125: 86102.27 | H125: Truck Hours | J125: 50276.25463 | K125: 35826.01537 | M125: Truck Hours | O125: 18115.75946 | P125: 7792.162564 | Q125: 9402.091722 | R125: 516.0016283
A126: =+'P&L - ITD3 (Acct #)'!$A$784 -> 540031 0000 | B126: =+'P&L - ITD3 (Acct Desc)'!$A$784 -> Tire Repair | C126: =+VLOOKUP($B126,'P&L - ITD3 (Acct Desc)'!A$1:N$1438,2,FALSE) -> 25396.3 | D126: =+'PF Restate'!$G126 -> 0 | E126: =+'PF Adj'!$G126 -> 0 | F126: 25396.3 | H126: Truck Hours | J126: 14829.23558 | K126: 10567.06442 | M126: Truck Hours | O126: 5343.334873 | P126: 2298.337757 | Q126: 2773.194505 | R126: 152.1972899
A127: =+'P&L - ITD3 (Acct #)'!$A$785 -> 540032 0000 | B127: =+'P&L - ITD3 (Acct Desc)'!$A$785 -> Tires X-Factor | C127: =+VLOOKUP($B127,'P&L - ITD3 (Acct Desc)'!A$1:N$1438,2,FALSE) -> 0 | D127: =+'PF Restate'!$G127 -> 0 | E127: =+'PF Adj'!$G127 -> 0 | F127: 0 | H127: Truck Hours | J127: 0 | K127: 0 | M127: Truck Hours | O127: 0 | P127: 0 | Q127: 0 | R127: 0
A128: =+'P&L - ITD3 (Acct #)'!$A$787 -> 540040 0000 | B128: =+'P&L - ITD3 (Acct Desc)'!$A$787 -> O/S Repair-Coll Equip | C128: =+VLOOKUP($B128,'P&L - ITD3 (Acct Desc)'!A$1:N$1438,2,FALSE) -> 36079.89 | D128: =+'PF Restate'!$G128 -> 0 | E128: =+'PF Adj'!$G128 -> 0 | F128: 36079.89 | H128: Truck Hours | J128: 21067.52512 | K128: 15012.36488 | M128: Truck Hours | O128: 7591.142586 | P128: 3265.191129 | Q128: 3939.808266 | R128: 216.2228939
A129: =+'P&L - ITD3 (Acct #)'!$A$788 -> 540040 0010 | B129: =+'P&L - ITD3 (Acct Desc)'!$A$788 -> O/S Repair-Engine Rebuilds | C129: =+VLOOKUP($B129,'P&L - ITD3 (Acct Desc)'!A$1:N$1438,2,FALSE) -> 0 | D129: =+'PF Restate'!$G129 -> 0 | E129: =+'PF Adj'!$G129 -> 0 | F129: 0 | H129: Truck Hours | J129: 0 | K129: 0 | M129: Truck Hours | O129: 0 | P129: 0 | Q129: 0 | R129: 0
A130: =+'P&L - ITD3 (Acct #)'!$A$790 -> 540050 0000 | B130: =+'P&L - ITD3 (Acct Desc)'!$A$790 -> Towing | C130: =+VLOOKUP($B130,'P&L - ITD3 (Acct Desc)'!A$1:N$1438,2,FALSE) -> 8174.44 | D130: =+'PF Restate'!$G130 -> 0 | E130: =+'PF Adj'!$G130 -> 0 | F130: 8174.44 | H130: Truck Hours | J130: 4773.163668 | K130: 3401.276332 | M130: Truck Hours | O130: 1719.887162 | P130: 739.7780029 | Q130: 892.6226295 | R130: 48.98853829
A131: =+'P&L - ITD3 (Acct #)'!$A$791 -> 540060 0000 | B131: =+'P&L - ITD3 (Acct Desc)'!$A$791 -> O/S Repair-Heavy Equip | C131: =+VLOOKUP($B131,'P&L - ITD3 (Acct Desc)'!A$1:N$1438,2,FALSE) -> 0 | D131: =+'PF Restate'!$G131 -> 0 | E131: =+'PF Adj'!$G131 -> 0 | F131: 0 | H131: Truck Hours | J131: 0 | K131: 0 | M131: Truck Hours | O131: 0 | P131: 0 | Q131: 0 | R131: 0
A132: =+'P&L - ITD3 (Acct #)'!$A$792 -> 540070 0000 | B132: =+'P&L - ITD3 (Acct Desc)'!$A$792 -> O/S Repair-Proc Equip | C132: =+VLOOKUP($B132,'P&L - ITD3 (Acct Desc)'!A$1:N$1438,2,FALSE) -> 851.19 | D132: =+'PF Restate'!$G132 -> 0 | E132: =+'PF Adj'!$G132 -> 0 | F132: 851.19 | H132: Truck Hours | J132: 497.0211026 | K132: 354.1688974 | M132: Truck Hours | O132: 179.0888126 | P132: 77.03177689 | Q132: 92.94721791 | R132: 5.101089971
A133: =+'P&L - ITD3 (Acct #)'!$A$793 -> 540075 0000 | B133: =+'P&L - ITD3 (Acct Desc)'!$A$793 -> Warranty Recovery | C133: =+VLOOKUP($B133,'P&L - ITD3 (Acct Desc)'!A$1:N$1438,2,FALSE) -> -3318.21 | D133: =+'PF Restate'!$G133 -> 0 | E133: =+'PF Adj'!$G133 -> 0 | F133: -3318.21 | H133: Truck Hours | J133: -1937.54672 | K133: -1380.66328 | M133: Truck Hours | O133: -698.1452893 | P133: -300.2944259 | Q133: -362.3378893 | R133: -19.88567506
A134: =+'P&L - ITD3 (Acct #)'!$A$794 -> 540090 0000 | B134: =+'P&L - ITD3 (Acct Desc)'!$A$794 -> Truck & Equip Washing | C134: =+VLOOKUP($B134,'P&L - ITD3 (Acct Desc)'!A$1:N$1438,2,FALSE) -> 12700.12 | D134: =+'PF Restate'!$G134 -> 0 | E134: =+'PF Adj'!$G134 -> 0 | F134: 12700.12 | H134: Truck Hours | J134: 7415.768097 | K134: 5284.351903 | M134: Truck Hours | O134: 2672.081921 | P134: 1149.347161 | Q134: 1386.81237 | R134: 76.11045097
A135: =+'P&L - ITD3 (Acct #)'!$A$795 -> 540095 0000 | B135: =+'P&L - ITD3 (Acct Desc)'!$A$795 -> Other Repairs & Maint | C135: =+VLOOKUP($B135,'P&L - ITD3 (Acct Desc)'!A$1:N$1438,2,FALSE) -> 2962.73 | D135: =+'PF Restate'!$G135 -> 0 | E135: =+'PF Adj'!$G135 -> 0 | F135: 2962.73 | H135: Truck Hours | J135: 1729.977245 | K135: 1232.752755 | M135: Truck Hours | O135: 623.3529502 | P135: 268.1238693 | Q135: 323.5206134 | R135: 17.75532171
A136: =+'P&L - ITD3 (Acct #)'!$A$797 -> 540991 0000 | B136: =+'P&L - ITD3 (Acct Desc)'!$A$797 -> T/E Damage-Acc/A&M Contra | C136: =+VLOOKUP($B136,'P&L - ITD3 (Acct Desc)'!A$1:N$1438,2,FALSE) -> -11881.13 | D136: =+'PF Restate'!$G136 -> 0 | E136: =+'PF Adj'!$G136 -> 0 | F136: -11881.13 | H136: Truck Hours | J136: -6937.549 | K136: -4943.581 | M136: Truck Hours | O136: -2499.767929 | P136: -1075.22945 | Q136: -1297.381289 | R136: -71.20233213
A137: =+'P&L - ITD3 (Acct #)'!$A$828 -> 540 540997 | B137: =+'P&L - ITD3 (Acct Desc)'!$A$828 -> 540997 TShop Labor Alloc-In. | C137: =+VLOOKUP($B137,'P&L - ITD3 (Acct Desc)'!A$1:N$1438,2,FALSE) -> 685674.73 | D137: =+'PF Restate'!$G137 -> 0 | E137: =+'PF Adj'!$G137 -> 0 | F137: 685674.73 | H137: Truck Hours | J137: 400374.5466 | K137: 285300.1834 | M137: Truck Hours | O137: 144264.7038 | P137: 62052.82348 | Q137: 74873.4813 | R137: 4109.174789
A138: =+'P&L - ITD3 (Acct #)'!$A$857 -> 540 540998 | B138: =+'P&L - ITD3 (Acct Desc)'!$A$857 -> 540998 Trk/Equip Expense Alloc-In | C138: =+VLOOKUP($B138,'P&L - ITD3 (Acct Desc)'!A$1:N$1438,2,FALSE) -> 54000.13 | D138: =+'PF Restate'!$G138 -> 0 | E138: =+'PF Adj'!$G138 -> 0 | F138: 54000.13 | H138: Truck Hours | J138: 31531.39035 | K138: 22468.73965 | M138: Truck Hours | O138: 11361.52817 | P138: 4886.95352 | Q138: 5896.640997 | R138: 323.6169616
A139: =+'P&L - ITD3 (Acct #)'!$A$858 -> 540999 0000 | B139: =+'P&L - ITD3 (Acct Desc)'!$A$858 -> Trk/Equip Expense Alloc-Out | C139: =+VLOOKUP($B139,'P&L - ITD3 (Acct Desc)'!A$1:N$1438,2,FALSE) -> -318939.3 | F139: -318939.3 | H139: Truck Hours | J139: -186232.877 | K139: -132706.423 | M139: Truck Hours | O139: -67104.24291 | P139: -28863.66264 | Q139: -34827.1486 | R139: -1911.368865
B140: =+'P&L - ITD3 (Acct Desc)'!$A$861 -> Truck/Equipment Maintenance | C140: =+VLOOKUP($B140,'P&L - ITD3 (Acct Desc)'!A$1:N$1438,2,FALSE) -> 750608.69 | D140: =SUM(D121:D139) -> -60412.22277 | E140: =SUM(E121:E139) -> 0 | F140: 690196.4672 | J140: =SUM(J121:J139) -> 403014.8488 | K140: =SUM(K121:K139) -> 287181.6184 | O140: =SUM(O121:O139) -> 145216.069 | P140: =SUM(P121:P139) -> 62462.03583 | Q140: =SUM(Q121:Q139) -> 75367.2405 | R140: =SUM(R121:R139) -> 4136.273073
A141: Check | C141: =+C140-SUM(C121:C139) -> 0
A142: =+'P&L - ITD3 (Acct #)'!$A$862 -> 545010 0000 | B142: =+'P&L - ITD3 (Acct Desc)'!$A$862 -> Cont/Comp Parts & Matls | C142: =+VLOOKUP($B142,'P&L - ITD3 (Acct Desc)'!A$1:N$1438,2,FALSE) -> 21697.96 | D142: =+'PF Restate'!$G142 -> 0 | E142: =+'PF Adj'!$G142 -> 0 | F142: =SUM(C142:E142) -> 21697.96 | H142: Container Count | J142: =F142-K142 -> 6847.876176 | K142: =F142*VLOOKUP(H142,$J$2:$K$6,2,FALSE) -> 14850.08382 | M142: =H142 -> Container Count | O142: =K142-SUM(P142:R142) -> 5926.954993 | P142: =$K142*VLOOKUP($M142,$J$2:$R$6,MATCH(P$9,$J$9:$R$9,0),FALSE) -> 5695.108208 | Q142: 3034.390341 | R142: 193.630282
A143: =+'P&L - ITD3 (Acct #)'!$A$863 -> 545015 0000 | B143: =+'P&L - ITD3 (Acct Desc)'!$A$863 -> Cont/Comp Lids | C143: =+VLOOKUP($B143,'P&L - ITD3 (Acct Desc)'!A$1:N$1438,2,FALSE) -> 0 | D143: =+'PF Restate'!$G143 -> 0 | E143: =+'PF Adj'!$G143 -> 0 | F143: 0 | H143: Container Count | J143: 0 | K143: 0 | M143: Container Count | O143: 0 | P143: 0 | Q143: 0 | R143: 0
A144: =+'P&L - ITD3 (Acct #)'!$A$864 -> 545020 0000 | B144: =+'P&L - ITD3 (Acct Desc)'!$A$864 -> Cont/Comp Paint | C144: =+VLOOKUP($B144,'P&L - ITD3 (Acct Desc)'!A$1:N$1438,2,FALSE) -> 3674.02 | D144: =+'PF Restate'!$G144 -> 0 | E144: =+'PF Adj'!$G144 -> 0 | F144: 3674.02 | H144: Container Count | J144: 1159.520712 | K144: 2514.499288 | M144: Container Count | O144: 1003.585184 | P144: 964.3275892 | Q144: 513.7999517 | R144: 32.78656283
A145: =+'P&L - ITD3 (Acct #)'!$A$865 -> 545025 0000 | B145: =+'P&L - ITD3 (Acct Desc)'!$A$865 -> Cont/Comp Steel | C145: =+VLOOKUP($B145,'P&L - ITD3 (Acct Desc)'!A$1:N$1438,2,FALSE) -> 15812.1 | D145: =+'PF Restate'!$G145 -> 0 | E145: =+'PF Adj'!$G145 -> 0 | F145: 15812.1 | H145: Container Count | J145: 4990.29876 | K145: 10821.80124 | M145: Container Count | O145: 4319.189686 | P145: 4150.234423 | Q145: 2211.271636 | R145: 141.1054948
A146: =+'P&L - ITD3 (Acct #)'!$A$866 -> 545030 0000 | B146: =+'P&L - ITD3 (Acct Desc)'!$A$866 -> Cont/Comp Tires/Casters/Wheels | C146: =+VLOOKUP($B146,'P&L - ITD3 (Acct Desc)'!A$1:N$1438,2,FALSE) -> 3683.44 | D146: =+'PF Restate'!$G146 -> 0 | E146: =+'PF Adj'!$G146 -> 0 | F146: 3683.44 | H146: Container Count | J146: 1162.493664 | K146: 2520.946336 | M146: Container Count | O146: 1006.158325 | P146: 966.800076 | Q146: 515.1173086 | R146: 32.87062591
A147: =+'P&L - ITD3 (Acct #)'!$A$867 -> 545035 0000 | B147: =+'P&L - ITD3 (Acct Desc)'!$A$867 -> Cont/Comp Supplies | C147: =+VLOOKUP($B147,'P&L - ITD3 (Acct Desc)'!A$1:N$1438,2,FALSE) -> 22694.25 | D147: =+'PF Restate'!$G147 -> 0 | E147: =+'PF Adj'!$G147 -> 0 | F147: 22694.25 | H147: Container Count | J147: 7162.3053 | K147: 15531.9447 | M147: Container Count | O147: 6199.098825 | P147: 5956.606494 | Q147: 3173.718313 | R147: 202.5210678
A148: =+'P&L - ITD3 (Acct #)'!$A$868 -> 545040 0000 | B148: =+'P&L - ITD3 (Acct Desc)'!$A$868 -> Cont/Comp O/S Repairs | C148: =+VLOOKUP($B148,'P&L - ITD3 (Acct Desc)'!A$1:N$1438,2,FALSE) -> 5407.44 | D148: =+'PF Restate'!$G148 -> 0 | E148: =+'PF Adj'!$G148 -> 0 | F148: 5407.44 | H148: Container Count | J148: 1706.588064 | K148: 3700.851936 | M148: Container Count | O148: 1477.081417 | P148: 1419.301903 | Q148: 756.2131973 | R148: 48.25541813
A149: =+'P&L - ITD3 (Acct #)'!$A$869 -> 545041 0000 | B149: =+'P&L - ITD3 (Acct Desc)'!$A$869 -> Cont/Comp Repairs | C149: =+VLOOKUP($B149,'P&L - ITD3 (Acct Desc)'!A$1:N$1438,2,FALSE) -> 0 | D149: =+'PF Restate'!$G149 -> 0 | E149: =+'PF Adj'!$G149 -> 0 | F149: 0 | H149: Container Count | J149: 0 | K149: 0 | M149: Container Count | O149: 0 | P149: 0 | Q149: 0 | R149: 0
A150: =+'P&L - ITD3 (Acct #)'!$A$870 -> 545041 5543 | B150: =+'P&L - ITD3 (Acct Desc)'!$A$870 -> Billed Cont/Comp Repairs | C150: =+VLOOKUP($B150,'P&L - ITD3 (Acct Desc)'!A$1:N$1438,2,FALSE) -> 0 | D150: =+'PF Restate'!$G150 -> 0 | E150: =+'PF Adj'!$G150 -> 0 | F150: 0 | H150: Container Count | J150: 0 | K150: 0 | M150: Container Count | O150: 0 | P150: 0 | Q150: 0 | R150: 0
A151: =+'P&L - ITD3 (Acct #)'!$A$871 -> 545041 5593 | B151: =+'P&L - ITD3 (Acct Desc)'!$A$871 -> Offset Cont/Comp Repairs | C151: =+VLOOKUP($B151,'P&L - ITD3 (Acct Desc)'!A$1:N$1438,2,FALSE) -> 0 | D151: =+'PF Restate'!$G151 -> 0 | E151: =+'PF Adj'!$G151 -> 0 | F151: 0 | H151: Container Count | J151: 0 | K151: 0 | M151: Container Count | O151: 0 | P151: 0 | Q151: 0 | R151: 0
A152: =+'P&L - ITD3 (Acct #)'!$A$872 -> 545 545041 | B152: =+'P&L - ITD3 (Acct Desc)'!$A$872 -> 545041 Billed C&C Repairs | C152: =+VLOOKUP($B152,'P&L - ITD3 (Acct Desc)'!A$1:N$1438,2,FALSE) -> 0 | D152: =+'PF Restate'!$G152 -> 0 | E152: =+'PF Adj'!$G152 -> 0 | F152: 0 | H152: Container Count | J152: 0 | K152: 0 | M152: Container Count | O152: 0 | P152: 0 | Q152: 0 | R152: 0
A153: =+'P&L - ITD3 (Acct #)'!$A$873 -> 545050 0000 | B153: =+'P&L - ITD3 (Acct Desc)'!$A$873 -> Cont/Comp Equip Rental | C153: =+VLOOKUP($B153,'P&L - ITD3 (Acct Desc)'!A$1:N$1438,2,FALSE) -> -186 | D153: =+'PF Restate'!$G153 -> 0 | E153: =+'PF Adj'!$G153 -> 0 | F153: -186 | H153: Container Count | J153: -58.7016 | K153: -127.2984 | M153: Container Count | O153: -50.80724772 | P153: -48.81980272 | Q153: -26.01150539 | R153: -1.659844172
A154: =+'P&L - ITD3 (Acct #)'!$A$874 -> 545075 0000 | B154: =+'P&L - ITD3 (Acct Desc)'!$A$874 -> Cont/Comp Warranty Recovery | C154: =+VLOOKUP($B154,'P&L - ITD3 (Acct Desc)'!A$1:N$1438,2,FALSE) -> 0 | D154: =+'PF Restate'!$G154 -> 0 | E154: =+'PF Adj'!$G154 -> 0 | F154: 0 | H154: Container Count | J154: 0 | K154: 0 | M154: Container Count | O154: 0 | P154: 0 | Q154: 0 | R154: 0
A155: =+'P&L - ITD3 (Acct #)'!$A$875 -> 545090 0000 | B155: =+'P&L - ITD3 (Acct Desc)'!$A$875 -> Cont/Comp Equip Wash | C155: =+VLOOKUP($B155,'P&L - ITD3 (Acct Desc)'!A$1:N$1438,2,FALSE) -> 0 | D155: =+'PF Restate'!$G155 -> 0 | E155: =+'PF Adj'!$G155 -> 0 | F155: 0 | H155: Container Count | J155: 0 | K155: 0 | M155: Container Count | O155: 0 | P155: 0 | Q155: 0 | R155: 0
A156: =+'P&L - ITD3 (Acct #)'!$A$876 -> 545095 0000 | B156: =+'P&L - ITD3 (Acct Desc)'!$A$876 -> Cont/Comp Other Maint | C156: =+VLOOKUP($B156,'P&L - ITD3 (Acct Desc)'!A$1:N$1438,2,FALSE) -> 0 | D156: =+'PF Restate'!$G156 -> 0 | E156: =+'PF Adj'!$G156 -> 0 | F156: 0 | H156: Container Count | J156: 0 | K156: 0 | M156: Container Count | O156: 0 | P156: 0 | Q156: 0 | R156: 0
A157: =+'P&L - ITD3 (Acct #)'!$A$907 -> 545 545997 | B157: =+'P&L - ITD3 (Acct Desc)'!$A$907 -> 545997 CShop Labor Alloc-In | C157: =+VLOOKUP($B157,'P&L - ITD3 (Acct Desc)'!A$1:N$1438,2,FALSE) -> 39987.13 | D157: =+'PF Restate'!$G157 -> 0 | E157: =+'PF Adj'!$G157 -> 0 | F157: 39987.13 | H157: Container Count | J157: 12619.93823 | K157: 27367.19177 | M157: Container Count | O157: 10922.7743 | P157: 10495.50429 | Q157: 5592.072298 | R157: 356.8408855
A158: =+'P&L - ITD3 (Acct #)'!$A$916 -> 545 545998 | B158: =+'P&L - ITD3 (Acct Desc)'!$A$916 -> 545998 Cont/Comp Expense Alloc-In | C158: =+VLOOKUP($B158,'P&L - ITD3 (Acct Desc)'!A$1:N$1438,2,FALSE) -> 19999.41 | D158: =+'PF Restate'!$G158 -> 0 | E158: =+'PF Adj'!$G158 -> 0 | F158: 19999.41 | H158: Container Count | J158: 6311.813796 | K158: 13687.5962 | M158: Container Count | O158: 5462.983753 | P158: 5249.286294 | Q158: 2796.853554 | R158: 178.4726029
A159: =+'P&L - ITD3 (Acct #)'!$A$917 -> 545999 0000 | B159: =+'P&L - ITD3 (Acct Desc)'!$A$917 -> Cont/Comp Expense Alloc-Out | C159: =+VLOOKUP($B159,'P&L - ITD3 (Acct Desc)'!A$1:N$1438,2,FALSE) -> -72394.41 | D159: =+'PF Restate'!$G159 -> 0 | E159: =+'PF Adj'!$G159 -> 0 | F159: -72394.41 | H159: Container Count | J159: -22847.6758 | K159: -49546.7342 | M159: Container Count | O159: -19775.05765 | P159: -19001.50975 | Q159: -10124.1268 | R159: -646.0399976
B160: =+'P&L - ITD3 (Acct Desc)'!$A$918 -> Cont/Comp Maintenance | C160: =+VLOOKUP($B160,'P&L - ITD3 (Acct Desc)'!A$1:N$1438,2,FALSE) -> 60375.34 | D160: =SUM(D142:D159) -> 0 | E160: =SUM(E142:E159) -> 0 | F160: 60375.34 | J160: =SUM(J142:J159) -> 19054.4573 | K160: =SUM(K142:K159) -> 41320.8827 | O160: =SUM(O142:O159) -> 16491.96159 | P160: =SUM(P142:P159) -> 15846.83972 | Q160: =SUM(Q142:Q159) -> 8443.298289 | R160: =SUM(R142:R159) -> 538.7830982
A161: Check | C161: =+C160-SUM(C142:C159) -> 0
A162: =+'P&L - ITD3 (Acct #)'!$A$935 -> 565000 0000 | B162: =+'P&L - ITD3 (Acct Desc)'!$A$935 -> Corp Ins-Fixed W/C | C162: =+VLOOKUP($B162,'P&L - ITD3 (Acct Desc)'!A$1:N$1438,2,FALSE) -> 0 | D162: =+'PF Restate'!$G162 -> 0 | E162: =+'PF Adj'!$G162 -> 0 | F162: =SUM(C162:E162) -> 0 | H162: Prev Alloc Costs | J162: =F162-K162 -> 0 | K162: =F162*VLOOKUP(H162,$J$2:$K$6,2,FALSE) -> 0 | M162: =H162 -> Prev Alloc Costs | O162: =K162-SUM(P162:R162) -> 0 | P162: =$K162*VLOOKUP($M162,$J$2:$R$6,MATCH(P$9,$J$9:$R$9,0),FALSE) -> 0 | Q162: 0 | R162: 0
A163: =+'P&L - ITD3 (Acct #)'!$A$936 -> 565002 0000 | B163: =+'P&L - ITD3 (Acct Desc)'!$A$936 -> Corp Ins-Fixed AL/GL | C163: =+VLOOKUP($B163,'P&L - ITD3 (Acct Desc)'!A$1:N$1438,2,FALSE) -> 81048.11 | D163: =+'PF Restate'!$G163 -> 0 | E163: =+'PF Adj'!$G163 -> 0 | F163: 81048.11 | H163: Prev Alloc Costs | J163: =F163-K163 -> 45067.14792 | K163: =F163*VLOOKUP(H163,$J$2:$K$6,2,FALSE) -> 35980.96208 | M163: Prev Alloc Costs | O163: 22707.05881 | P163: 6157.643197 | Q163: 6828.827088 | R163: 287.4329889
A164: =+'P&L - ITD3 (Acct #)'!$A$945 -> 565006 0000 | B164: =+'P&L - ITD3 (Acct Desc)'!$A$945 -> AW Self Ins WC/Premium Exp | C164: =+VLOOKUP($B164,'P&L - ITD3 (Acct Desc)'!A$1:N$1438,2,FALSE) -> -1290.17 | D164: =+'PF Restate'!$G164 -> 0 | E164: =+'PF Adj'!$G164 -> 0 | F164: -1290.17 | H164: Truck Hours | J164: =F164-K164 -> -753.3473326 | K164: =F164*VLOOKUP(H164,$J$2:$K$6,2,FALSE) -> -536.8226674 | M164: Truck Hours | O164: -271.4493983 | P164: -116.7589934 | Q164: -140.8824259 | R164: -7.73184982
A165: =+'P&L - ITD3 (Acct #)'!$A$946 -> 565008 0000 | B165: =+'P&L - ITD3 (Acct Desc)'!$A$946 -> Corp Ins-Fixed Other | C165: =+VLOOKUP($B165,'P&L - ITD3 (Acct Desc)'!A$1:N$1438,2,FALSE) -> 30963.36 | D165: =+'PF Restate'!$G165 -> 0 | E165: =+'PF Adj'!$G165 -> 0 | F165: 30963.36 | H165: Truck Hours | J165: 18079.91556 | K165: 12883.44444 | M165: Truck Hours | O165: 6514.634072 | P165: 2802.150682 | Q165: 3381.099601 | R165: 185.5600808
A166: =+'P&L - ITD3 (Acct #)'!$A$948 -> 565010 0000 | B166: =+'P&L - ITD3 (Acct Desc)'!$A$948 -> Corp Ins-Occur W/C | C166: =+VLOOKUP($B166,'P&L - ITD3 (Acct Desc)'!A$1:N$1438,2,FALSE) -> 0 | D166: =+'PF Restate'!$G166 -> 0 | E166: =+'PF Adj'!$G166 -> 0 | F166: 0 | H166: Prev Alloc Costs | J166: 0 | K166: 0 | M166: Prev Alloc Costs | O166: 0 | P166: 0 | Q166: 0 | R166: 0
A167: =+'P&L - ITD3 (Acct #)'!$A$949 -> 565012 0000 | B167: =+'P&L - ITD3 (Acct Desc)'!$A$949 -> Corp Ins-Occur AL/GL | C167: =+VLOOKUP($B167,'P&L - ITD3 (Acct Desc)'!A$1:N$1438,2,FALSE) -> 34013.81 | D167: =+'PF Restate'!$G167 -> 0 | E167: =+'PF Adj'!$G167 -> 0 | F167: 34013.81 | H167: Prev Alloc Costs | J167: 18913.52441 | K167: 15100.28559 | M167: Prev Alloc Costs | O167: 9529.569337 | P167: 2584.204687 | Q167: 2865.883327 | R167: 120.6282426
A168: =+'P&L - ITD3 (Acct #)'!$A$957 -> 565030 0000 | B168: =+'P&L - ITD3 (Acct Desc)'!$A$957 -> Non-Corp Ins-W/C | C168: =+VLOOKUP($B168,'P&L - ITD3 (Acct Desc)'!A$1:N$1438,2,FALSE) -> 459414.63 | D168: =+'PF Restate'!$G168 -> -102247.9353 | E168: =+'PF Adj'!$G168 -> -12552.63617 | F168: 344614.0585 | H168: Prev Alloc Costs | J168: 191624.1199 | K168: 152989.9386 | M168: Prev Alloc Costs | O168: 96549.71217 | P168: 26182.10854 | Q168: 29035.9617 | R168: 1222.156184
A169: =+'P&L - ITD3 (Acct #)'!$A$958 -> 565032 0000 | B169: =+'P&L - ITD3 (Acct Desc)'!$A$958 -> Non-Corp Ins-AL/GL | C169: =+VLOOKUP($B169,'P&L - ITD3 (Acct Desc)'!A$1:N$1438,2,FALSE) -> 0 | D169: =+'PF Restate'!$G169 -> 0 | E169: =+'PF Adj'!$G169 -> 0 | F169: 0 | H169: Prev Alloc Costs | J169: 0 | K169: 0 | M169: Prev Alloc Costs | O169: 0 | P169: 0 | Q169: 0 | R169: 0
A170: =+'P&L - ITD3 (Acct #)'!$A$959 -> 565040 0000 | B170: =+'P&L - ITD3 (Acct Desc)'!$A$959 -> Damage-RSG Prop Non-AM | C170: =+VLOOKUP($B170,'P&L - ITD3 (Acct Desc)'!A$1:N$1438,2,FALSE) -> 11881.13 | D170: =+'PF Restate'!$G170 -> 0 | E170: =+'PF Adj'!$G170 -> 0 | F170: 11881.13 | H170: Prev Alloc Costs | J170: 6606.55311 | K170: 5274.57689 | M170: Prev Alloc Costs | O170: 3328.708314 | P170: 902.6707633 | Q170: 1001.061991 | R170: 42.13582164
A171: =+'P&L - ITD3 (Acct #)'!$A$960 -> 565041 0000 | B171: =+'P&L - ITD3 (Acct Desc)'!$A$960 -> Damage-RSG Prop AM | C171: =+VLOOKUP($B171,'P&L - ITD3 (Acct Desc)'!A$1:N$1438,2,FALSE) -> 0 | D171: =+'PF Restate'!$G171 -> 0 | E171: =+'PF Adj'!$G171 -> 0 | F171: 0 | H171: Prev Alloc Costs | J171: 0 | K171: 0 | M171: Prev Alloc Costs | O171: 0 | P171: 0 | Q171: 0 | R171: 0
A172: =+'P&L - ITD3 (Acct #)'!$A$961 -> 565042 0000 | B172: =+'P&L - ITD3 (Acct Desc)'!$A$961 -> Damage-3rd Party Property | C172: =+VLOOKUP($B172,'P&L - ITD3 (Acct Desc)'!A$1:N$1438,2,FALSE) -> 0 | D172: =+'PF Restate'!$G172 -> 0 | E172: =+'PF Adj'!$G172 -> 0 | F172: 0 | H172: Prev Alloc Costs | J172: 0 | K172: 0 | M172: Prev Alloc Costs | O172: 0 | P172: 0 | Q172: 0 | R172: 0
A173: =+'P&L - ITD3 (Acct #)'!$A$962 -> 565045 0000 | B173: =+'P&L - ITD3 (Acct Desc)'!$A$962 -> Surety Cost | C173: =+VLOOKUP($B173,'P&L - ITD3 (Acct Desc)'!A$1:N$1438,2,FALSE) -> 2066.65 | D173: =+'PF Restate'!$G173 -> 0 | E173: =+'PF Adj'!$G173 -> 0 | F173: 2066.65 | H173: Prev Alloc Costs | J173: 1149.169564 | K173: 917.4804358 | M173: Prev Alloc Costs | O173: 579.0084813 | P173: 157.0140663 | Q173: 174.1286194 | R173: 7.329268832
A174: =+'P&L - ITD3 (Acct #)'!$A$963 -> 565080 0000 | B174: =+'P&L - ITD3 (Acct Desc)'!$A$963 -> Hiring, Training & Safety | C174: =+VLOOKUP($B174,'P&L - ITD3 (Acct Desc)'!A$1:N$1438,2,FALSE) -> 1601.37 | D174: =+'PF Restate'!$G174 -> 0 | E174: =+'PF Adj'!$G174 -> 0 | F174: 1601.37 | H174: Prev Alloc Costs | J174: 890.4486319 | K174: 710.9213681 | M174: Prev Alloc Costs | O174: 448.6520754 | P174: 121.6643434 | Q174: 134.9257723 | R174: 5.67917704
A175: =+'P&L - ITD3 (Acct #)'!$A$964 -> 565081 0000 | B175: =+'P&L - ITD3 (Acct Desc)'!$A$964 -> Safety Equipment | C175: =+VLOOKUP($B175,'P&L - ITD3 (Acct Desc)'!A$1:N$1438,2,FALSE) -> 18322.62 | D175: =+'PF Restate'!$G175 -> 0 | E175: =+'PF Adj'!$G175 -> 0 | F175: 18322.62 | H175: Prev Alloc Costs | J175: 10188.37115 | K175: 8134.248848 | M175: Prev Alloc Costs | O175: 5133.405453 | P175: 1392.064002 | Q175: 1543.799156 | R175: 64.98023743
A176: =+'P&L - ITD3 (Acct #)'!$A$965 -> 565082 0000 | B176: =+'P&L - ITD3 (Acct Desc)'!$A$965 -> Safety Incentive Program | C176: =+VLOOKUP($B176,'P&L - ITD3 (Acct Desc)'!A$1:N$1438,2,FALSE) -> 10171.64 | D176: =+'PF Restate'!$G176 -> 0 | E176: =+'PF Adj'!$G176 -> 0 | F176: 10171.64 | H176: Prev Alloc Costs | J176: 5655.98389 | K176: 4515.65611 | M176: Prev Alloc Costs | O176: 2849.764512 | P176: 772.7919855 | Q176: 857.0264102 | R176: 36.07320254
A177: =+'P&L - ITD3 (Acct #)'!$A$966 -> 565083 0000 | B177: =+'P&L - ITD3 (Acct Desc)'!$A$966 -> Medical/Physicals | C177: =+VLOOKUP($B177,'P&L - ITD3 (Acct Desc)'!A$1:N$1438,2,FALSE) -> 1513.92 | D177: =+'PF Restate'!$G177 -> 0 | E177: =+'PF Adj'!$G177 -> 0 | F177: 1513.92 | H177: Prev Alloc Costs | J177: 841.8216856 | K177: 672.0983144 | M177: Prev Alloc Costs | O177: 424.1514141 | P177: 115.0203156 | Q177: 127.5575446 | R177: 5.369040075
A178: =+'P&L - ITD3 (Acct #)'!$A$998 -> 565 565998 | B178: =+'P&L - ITD3 (Acct Desc)'!$A$998 -> 565998 Insurance Alloc-In | C178: =+VLOOKUP($B178,'P&L - ITD3 (Acct Desc)'!A$1:N$1438,2,FALSE) -> 572873.48 | D178: =+'PF Restate'!$G178 -> 0 | E178: =+'PF Adj'!$G178 -> 0 | F178: 572873.48 | H178: Prev Alloc Costs | J178: 318548.7467 | K178: 254324.7333 | M178: Prev Alloc Costs | O178: 160500.6187 | P178: 43524.15481 | Q178: 48268.29322 | R178: 2031.666582
A179: =+'P&L - ITD3 (Acct #)'!$A$999 -> 565999 0000 | B179: =+'P&L - ITD3 (Acct Desc)'!$A$999 -> Insurance Alloc-Out | C179: =+VLOOKUP($B179,'P&L - ITD3 (Acct Desc)'!A$1:N$1438,2,FALSE) -> -572873.48 | D179: =+'PF Restate'!$G179 -> 0 | E179: =+'PF Adj'!$G179 -> 0 | F179: -572873.48 | H179: Prev Alloc Costs | J179: -318548.7467 | K179: -254324.7333 | M179: Prev Alloc Costs | O179: -160500.6187 | P179: -43524.15481 | Q179: -48268.29322 | R179: -2031.666582
B180: =+'P&L - ITD3 (Acct Desc)'!$A$1002 -> Insurance/Risk Expense | C180: =+VLOOKUP($B180,'P&L - ITD3 (Acct Desc)'!A$1:N$1438,2,FALSE) -> 649707.07 | D180: =SUM(D162:D179) -> -102247.9353 | E180: =SUM(E162:E179) -> -12552.63617 | F180: 534906.4985 | J180: =SUM(J162:J179) -> 298263.7085 | K180: =SUM(K162:K179) -> 236642.79 | O180: =SUM(O162:O179) -> 147793.2152 | P180: =SUM(P162:P179) -> 41070.57359 | Q180: =SUM(Q162:Q179) -> 45809.38878 | R180: =SUM(R162:R179) -> 1969.612394
A181: Check | C181: =+C180-SUM(C162:C179) -> 0
A182: =+'P&L - ITD3 (Acct #)'!$A$1003 -> 570000 0000 | B182: =+'P&L - ITD3 (Acct Desc)'!$A$1003 -> Fac Maint-Parts & Supplies | C182: =+VLOOKUP($B182,'P&L - ITD3 (Acct Desc)'!A$1:N$1438,2,FALSE) -> 23821.67 | D182: =+'PF Restate'!$G182 -> 0 | E182: =+'PF Adj'!$G182 -> 0 | F182: =SUM(C182:E182) -> 23821.67 | H182: Revenue | J182: =F182-K182 -> 12857.22203 | K182: =F182*VLOOKUP(H182,$J$2:$K$6,2,FALSE) -> 10964.44797 | M182: =H182 -> Revenue | O182: =K182-SUM(P182:R182) -> 6938.536719 | P182: =$K182*VLOOKUP($M182,$J$2:$R$6,MATCH(P$9,$J$9:$R$9,0),FALSE) -> 1820.184392 | Q182: =$K182*VLOOKUP($M182,$J$2:$R$6,MATCH(Q$9,$J$9:$R$9,0),FALSE) -> 2132.068234 | R182: =$K182*VLOOKUP($M182,$J$2:$R$6,MATCH(R$9,$J$9:$R$9,0),FALSE) -> 73.65862085
A183: =+'P&L - ITD3 (Acct #)'!$A$1004 -> 570005 0000 | B183: =+'P&L - ITD3 (Acct Desc)'!$A$1004 -> Fac Maint-O/S Repair | C183: =+VLOOKUP($B183,'P&L - ITD3 (Acct Desc)'!A$1:N$1438,2,FALSE) -> 0 | D183: =+'PF Restate'!$G184 -> 0 | E183: =+'PF Adj'!$G184 -> 0 | F183: 0 | H183: Revenue | J183: 0 | K183: 0 | M183: Revenue | O183: 0 | P183: 0 | Q183: 0 | R183: 0
B184: =+'P&L - ITD3 (Acct Desc)'!$A$1006 -> 570 570005 | C184: =+VLOOKUP($B184,'P&L - ITD3 (Acct Desc)'!A$1:N$1438,2,FALSE) -> 25347.36 | D184: =+'PF Restate'!$G185 -> 0 | E184: =+'PF Adj'!$G185 -> 0 | F184: =SUM(C184:E184) -> 25347.36 | H184: Revenue | J184: =F184-K184 -> 13680.67963 | K184: =F184*VLOOKUP(H184,$J$2:$K$6,2,FALSE) -> 11666.68037 | M184: =H184 -> Revenue | O184: =K184-SUM(P184:R184) -> 7382.924375 | P184: 1936.760481 | Q184: 2268.619331 | R184: 78.37618352
A185: =+'P&L - ITD3 (Acct #)'!$A$1007 -> 570010 0000 | B185: =+'P&L - ITD3 (Acct Desc)'!$A$1007 -> Security | C185: =+VLOOKUP($B185,'P&L - ITD3 (Acct Desc)'!A$1:N$1438,2,FALSE) -> 2636.51 | D185: =+'PF Restate'!$G185 -> 0 | E185: =+'PF Adj'!$G185 -> 0 | F185: 2636.51 | H185: Revenue | J185: 1422.998239 | K185: 1213.511761 | M185: Revenue | O185: 767.9361458 | P185: 201.4524738 | Q185: 235.970829 | R185: 8.152312178
A186: =+'P&L - ITD3 (Acct #)'!$A$1008 -> 570020 0000 | B186: =+'P&L - ITD3 (Acct Desc)'!$A$1008 -> Lease/Rent | C186: =+VLOOKUP($B186,'P&L - ITD3 (Acct Desc)'!A$1:N$1438,2,FALSE) -> 30000 | D186: =+'PF Restate'!$G186 -> 0 | E186: =+'PF Adj'!$G186 -> 0 | F186: 30000 | H186: Revenue | J186: 16191.83966 | K186: 13808.16034 | M186: Revenue | O186: 8738.098612 | P186: 2292.262959 | Q186: 2685.03623 | R186: 92.76254038
A187: =+'P&L - ITD3 (Acct #)'!$A$1009 -> 570030 0000 | B187: =+'P&L - ITD3 (Acct Desc)'!$A$1009 -> Utilities | C187: =+VLOOKUP($B187,'P&L - ITD3 (Acct Desc)'!A$1:N$1438,2,FALSE) -> 53926.47 | D187: =+'PF Restate'!$G187 -> 0 | E187: =+'PF Adj'!$G187 -> 0 | F187: 53926.47 | H187: Revenue | J187: 29105.62519 | K187: 24820.84481 | M187: Revenue | O187: 15707.16042 | P187: 4120.45499 | Q187: 4826.48419 | R187: 166.7452117
A188: =+'P&L - ITD3 (Acct #)'!$A$1010 -> 570040 0000 | B188: =+'P&L - ITD3 (Acct Desc)'!$A$1010 -> Property Taxes | C188: =+VLOOKUP($B188,'P&L - ITD3 (Acct Desc)'!A$1:N$1438,2,FALSE) -> 1211.28 | D188: =+'PF Restate'!$G188 -> 0 | E188: =+'PF Adj'!$G188 -> 0 | F188: 1211.28 | H188: Revenue | J188: 653.761718 | K188: 557.518282 | M188: Revenue | O188: 352.8094696 | P188: 92.55240924 | Q188: 108.4110228 | R188: 3.745380331
A189: =+'P&L - ITD3 (Acct #)'!$A$1011 -> 570050 0000 | B189: =+'P&L - ITD3 (Acct Desc)'!$A$1011 -> Scale Repairs | C189: =+VLOOKUP($B189,'P&L - ITD3 (Acct Desc)'!A$1:N$1438,2,FALSE) -> 0 | D189: =+'PF Restate'!$G189 -> 0 | E189: =+'PF Adj'!$G189 -> 0 | F189: 0 | H189: Revenue | J189: 0 | K189: 0 | M189: Revenue | O189: 0 | P189: 0 | Q189: 0 | R189: 0
A190: =+'P&L - ITD3 (Acct #)'!$A$1012 -> 570090 0000 | B190: =+'P&L - ITD3 (Acct Desc)'!$A$1012 -> Miscellaneous Facility Exp | C190: =+VLOOKUP($B190,'P&L - ITD3 (Acct Desc)'!A$1:N$1438,2,FALSE) -> 19012.41 | D190: =+'PF Restate'!$G190 -> 0 | E190: =+'PF Adj'!$G190 -> 0 | F190: 19012.41 | H190: Revenue | J190: 10261.52981 | K190: 8750.880192 | M190: Revenue | O190: 5537.743781 | P190: 1452.714774 | Q190: 1701.633656 | R190: 58.78798168
A191: =+'P&L - ITD3 (Acct #)'!$A$1013 -> 570990 0000 | B191: =+'P&L - ITD3 (Acct Desc)'!$A$1013 -> Occupancy/Facility contra | C191: =+VLOOKUP($B191,'P&L - ITD3 (Acct Desc)'!A$1:N$1438,2,FALSE) -> 0 | D191: =+'PF Restate'!$G191 -> 0 | E191: =+'PF Adj'!$G191 -> 0 | F191: 0 | H191: Revenue | J191: 0 | K191: 0 | M191: Revenue | O191: 0 | P191: 0 | Q191: 0 | R191: 0
A192: =+'P&L - ITD3 (Acct #)'!$A$1025 -> 570 570998 | B192: =+'P&L - ITD3 (Acct Desc)'!$A$1025 -> 570998 Facility Alloc-In | C192: =+VLOOKUP($B192,'P&L - ITD3 (Acct Desc)'!A$1:N$1438,2,FALSE) -> 86968.21 | D192: =+'PF Restate'!$G192 -> 0 | E192: =+'PF Adj'!$G192 -> 0 | F192: 86968.21 | H192: Revenue | J192: 46939.17706 | K192: 40029.03294 | M192: Revenue | O192: 25331.2265 | P192: 6645.133547 | Q192: 7783.759824 | R192: 268.9130697
A193: =+'P&L - ITD3 (Acct #)'!$A$1026 -> 570999 0000 | B193: =+'P&L - ITD3 (Acct Desc)'!$A$1026 -> Facility Alloc-Out | C193: =+VLOOKUP($B193,'P&L - ITD3 (Acct Desc)'!A$1:N$1438,2,FALSE) -> -155865.45 | D193: =+'PF Restate'!$G193 -> 0 | E193: =+'PF Adj'!$G193 -> 0 | F193: -155865.45 | H193: Revenue | J193: -84124.94582 | K193: -71740.50418 | M193: Revenue | O193: -45398.92241 | P193: -11909.48659 | Q193: -13950.14601 | R193: -481.94917
B194: =+'P&L - ITD3 (Acct Desc)'!$A$1027 -> Occupancy/Facility Expense | C194: =+VLOOKUP($B194,'P&L - ITD3 (Acct Desc)'!A$1:N$1438,2,FALSE) -> 87058.46 | D194: =SUM(D182:D193) -> 0 | E194: =SUM(E182:E193) -> 0 | F194: 87058.46 | J194: =SUM(J182:J193) -> 46987.88751 | K194: =SUM(K182:K193) -> 40070.57249 | O194: =SUM(O182:O193) -> 25357.51362 | P194: =SUM(P182:P193) -> 6652.029438 | Q194: =SUM(Q182:Q193) -> 7791.837308 | R194: =SUM(R182:R193) -> 269.1921304
A195: Check | C195: =+C194-SUM(C182:C193) -> 0
A196: =+'P&L - ITD3 (Acct #)'!$A$1028 -> 595010 0000 | B196: =+'P&L - ITD3 (Acct Desc)'!$A$1028 -> Permit Fees | C196: =+VLOOKUP($B196,'P&L - ITD3 (Acct Desc)'!A$1:N$1438,2,FALSE) -> 331273.47 | D196: =+'PF Restate'!$G196 -> -102829.808 | E196: =+'PF Adj'!$G196 -> 0 | F196: =SUM(C196:E196) -> 228443.662 | H196: Actual | J196: =F196-K196 -> 185248.3929 | K196: =K20*'Combined LG'!$H$16 -> 43195.26915 | M196: =H196 -> Actual | O196: =O20*'Combined LG'!$H$16 -> 27334.88836 | P196: =P20*'Combined LG'!$H$16 -> 7170.7536 | Q196: =Q20*'Combined LG'!$H$16 -> 8399.4435 | R196: =R20*'Combined LG'!$H$16 -> 290.1836885
A197: =+'P&L - ITD3 (Acct #)'!$A$1030 -> 595020 0000 | B197: =+'P&L - ITD3 (Acct Desc)'!$A$1030 -> Operations Communications Cost | C197: =+VLOOKUP($B197,'P&L - ITD3 (Acct Desc)'!A$1:N$1438,2,FALSE) -> 46.91 | D197: =+'PF Restate'!$G197 -> 0 | E197: =+'PF Adj'!$G197 -> 0 | F197: 46.91 | H197: Prev Alloc Costs | J197: 26.08450597 | K197: =F197*VLOOKUP(H197,$J$2:$K$6,2,FALSE) -> 20.82549403 | M197: Prev Alloc Costs | O197: =K197-SUM(P197:R197) -> 13.14266463 | P197: =$K197*VLOOKUP($M197,$J$2:$R$6,MATCH(P$9,$J$9:$R$9,0),FALSE) -> 3.563994797 | Q197: 3.952470683 | R197: 0.1663639227
A198: =+'P&L - ITD3 (Acct #)'!$A$1031 -> 595020 0010 | B198: =+'P&L - ITD3 (Acct Desc)'!$A$1031 -> Local/Long Distance-Ops | C198: =+VLOOKUP($B198,'P&L - ITD3 (Acct Desc)'!A$1:N$1438,2,FALSE) -> 0 | D198: =+'PF Restate'!$G198 -> 0 | E198: =+'PF Adj'!$G198 -> 0 | F198: 0 | H198: Prev Alloc Costs | J198: 0 | K198: 0 | M198: Prev Alloc Costs | O198: 0 | P198: 0 | Q198: 0 | R198: 0
A199: =+'P&L - ITD3 (Acct #)'!$A$1032 -> 595020 0011 | B199: =+'P&L - ITD3 (Acct Desc)'!$A$1032 -> SIP-Ops | C199: =+VLOOKUP($B199,'P&L - ITD3 (Acct Desc)'!A$1:N$1438,2,FALSE) -> 0 | D199: =+'PF Restate'!$G199 -> 0 | E199: =+'PF Adj'!$G199 -> 0 | F199: 0 | H199: Prev Alloc Costs | J199: 0 | K199: 0 | M199: Prev Alloc Costs | O199: 0 | P199: 0 | Q199: 0 | R199: 0
A200: =+'P&L - ITD3 (Acct #)'!$A$1033 -> 595020 0020 | B200: =+'P&L - ITD3 (Acct Desc)'!$A$1033 -> Smartphones-Ops | C200: =+VLOOKUP($B200,'P&L - ITD3 (Acct Desc)'!A$1:N$1438,2,FALSE) -> 0 | D200: =+'PF Restate'!$G200 -> 0 | E200: =+'PF Adj'!$G200 -> 0 | F200: 0 | H200: Prev Alloc Costs | J200: 0 | K200: 0 | M200: Prev Alloc Costs | O200: 0 | P200: 0 | Q200: 0 | R200: 0
A201: =+'P&L - ITD3 (Acct #)'!$A$1034 -> 595020 0021 | B201: =+'P&L - ITD3 (Acct Desc)'!$A$1034 -> Tablets-Ops | C201: =+VLOOKUP($B201,'P&L - ITD3 (Acct Desc)'!A$1:N$1438,2,FALSE) -> 0 | D201: =+'PF Restate'!$G201 -> 0 | E201: =+'PF Adj'!$G201 -> 0 | F201: 0 | H201: Prev Alloc Costs | J201: 0 | K201: 0 | M201: Prev Alloc Costs | O201: 0 | P201: 0 | Q201: 0 | R201: 0
A202: =+'P&L - ITD3 (Acct #)'!$A$1035 -> 595020 0022 | B202: =+'P&L - ITD3 (Acct Desc)'!$A$1035 -> Standard Phones-Ops | C202: =+VLOOKUP($B202,'P&L - ITD3 (Acct Desc)'!A$1:N$1438,2,FALSE) -> 0 | D202: =+'PF Restate'!$G202 -> 0 | E202: =+'PF Adj'!$G202 -> 0 | F202: 0 | H202: Prev Alloc Costs | J202: 0 | K202: 0 | M202: Prev Alloc Costs | O202: 0 | P202: 0 | Q202: 0 | R202: 0
A203: =+'P&L - ITD3 (Acct #)'!$A$1036 -> 595020 0023 | B203: =+'P&L - ITD3 (Acct Desc)'!$A$1036 -> Data Devices-Ops | C203: =+VLOOKUP($B203,'P&L - ITD3 (Acct Desc)'!A$1:N$1438,2,FALSE) -> 0 | D203: =+'PF Restate'!$G203 -> 0 | E203: =+'PF Adj'!$G203 -> 0 | F203: 0 | H203: Prev Alloc Costs | J203: 0 | K203: 0 | M203: Prev Alloc Costs | O203: 0 | P203: 0 | Q203: 0 | R203: 0
A204: =+'P&L - ITD3 (Acct #)'!$A$1037 -> 595020 0030 | B204: =+'P&L - ITD3 (Acct Desc)'!$A$1037 -> Conferencing-Ops | C204: =+VLOOKUP($B204,'P&L - ITD3 (Acct Desc)'!A$1:N$1438,2,FALSE) -> 0 | D204: =+'PF Restate'!$G204 -> 0 | E204: =+'PF Adj'!$G204 -> 0 | F204: 0 | H204: Prev Alloc Costs | J204: 0 | K204: 0 | M204: Prev Alloc Costs | O204: 0 | P204: 0 | Q204: 0 | R204: 0
A205: =+'P&L - ITD3 (Acct #)'!$A$1040 -> 595030 0000 | B205: =+'P&L - ITD3 (Acct Desc)'!$A$1040 -> Container Property Taxes | C205: =+VLOOKUP($B205,'P&L - ITD3 (Acct Desc)'!A$1:N$1438,2,FALSE) -> 8384.27 | D205: =+'PF Restate'!$G205 -> 0 | E205: =+'PF Adj'!$G205 -> 0 | F205: 8384.27 | H205: Container Count | J205: =F205-K205 -> 2646.075612 | K205: =F205*VLOOKUP(H205,$J$2:$K$6,2,FALSE) -> 5738.194388 | M205: Container Count | O205: 2290.224101 | P205: 2200.636599 | Q205: 1172.513356 | R205: 74.82033172
A206: =+'P&L - ITD3 (Acct #)'!$A$1041 -> 595040 0000 | B206: =+'P&L - ITD3 (Acct Desc)'!$A$1041 -> State Franchise Tax | C206: =+VLOOKUP($B206,'P&L - ITD3 (Acct Desc)'!A$1:N$1438,2,FALSE) -> 0 | D206: =+'PF Restate'!$G206 -> 0 | E206: =+'PF Adj'!$G206 -> 0 | F206: 0 | H206: Prev Alloc Costs | J206: 0 | K206: 0 | M206: Prev Alloc Costs | O206: 0 | P206: 0 | Q206: 0 | R206: 0
A207: =+'P&L - ITD3 (Acct #)'!$A$1042 -> 595080 0000 | B207: =+'P&L - ITD3 (Acct Desc)'!$A$1042 -> Towing Non-Maintenance | C207: =+VLOOKUP($B207,'P&L - ITD3 (Acct Desc)'!A$1:N$1438,2,FALSE) -> 1650.43 | D207: =+'PF Restate'!$G207 -> 0 | E207: =+'PF Adj'!$G207 -> 0 | F207: 1650.43 | H207: Prev Alloc Costs | J207: 917.7286545 | K207: 732.7013455 | M207: Prev Alloc Costs | O207: 462.3971005 | P207: 125.3916848 | Q207: 139.0593944 | R207: 5.853165828
A208: =+'P&L - ITD3 (Acct #)'!$A$1043 -> 595090 0000 | B208: =+'P&L - ITD3 (Acct Desc)'!$A$1043 -> Other Operating Misc | C208: =+VLOOKUP($B208,'P&L - ITD3 (Acct Desc)'!A$1:N$1438,2,FALSE) -> 39224.14 | D208: =+'PF Restate'!$G208 -> 0 | E208: =+'PF Adj'!$G208 -> 0 | F208: 39224.14 | H208: Prev Alloc Costs | J208: 21810.75067 | K208: 17413.38933 | M208: Prev Alloc Costs | O208: 10989.33527 | P208: 2980.060347 | Q208: 3304.887304 | R208: 139.1064122
A209: =+'P&L - ITD3 (Acct #)'!$A$1044 -> 595105 0000 | B209: =+'P&L - ITD3 (Acct Desc)'!$A$1044 -> GOE Vehicle Mileage | C209: =+VLOOKUP($B209,'P&L - ITD3 (Acct Desc)'!A$1:N$1438,2,FALSE) -> 1075.51 | D209: =+'PF Restate'!$G209 -> 0 | E209: =+'PF Adj'!$G209 -> 0 | F209: 1075.51 | H209: Prev Alloc Costs | J209: 598.0419316 | K209: 477.4680684 | M209: Prev Alloc Costs | O209: 301.3231131 | P209: 81.71204529 | Q209: 90.61866861 | R209: 3.814241367
... 161 more rows

Sheet PF Restate
A1: Proforma Revenue & Expense Restatement Worksheet
A2: General Rate Case
G7: Total
C8: Rev / Exp | D8: Non-WUTC | E8: Non-Recurring | G8: Restating
A9: Account # | B9: Account Description | C9: Reclass | D9: Expenses | E9: Rev / Exp | G9: Adjustments | H9: NOTES TO AUDITORS
A10: REVENUE
A11: 3011** | B11: =+'P&L - ITD3 (Acct Desc)'!$A$89 -> Ind O/S | C11: =+-C12 -> -1308069.19 | D11: =-E12 -> 700857.45 | E11: =-'SeaTac Contract Financials'!C5 -> -865408.79 | G11: =SUM(C11:F11) -> -1472620.53 | H11: Disposal Revenue Reclass; Back out 5 months of SeaTac revenue
B12: Disposal Pass Through | C12: =+'Disposal Summary (with IC)'!S107 -> 1308069.19 | E12: =-'SeaTac Contract Financials'!C6 -> -700857.45 | G12: =SUM(C12:F12) -> 607211.74 | H12: Revenue associated with Pass Through Disposal Fees
A13: 3012** | B13: =+'P&L - ITD3 (Acct Desc)'!$A$173 -> Com O/S | E13: =-'SeaTac Contract Financials'!C7 -> -761637.43 | G13: =SUM(C13:F13) -> -761637.43 | H13: Back out 5 months of SeaTac revenue
A14: 3013** | B14: =+'P&L - ITD3 (Acct Desc)'!$A$251 -> Resi O/S | E14: =-'SeaTac Contract Financials'!C8 -> -509273.1 | G14: =SUM(C14:F14) -> -509273.1 | H14: Back out 5 months of SeaTac revenue
A16: 3111** | B16: =+'P&L - ITD3 (Acct Desc)'!$A$430 -> Ind I/C | E16: =-'SeaTac Contract Financials'!C12 -> 0 | G16: =SUM(C16:F16) -> 0 | H16: Back out 5 months of SeaTac revenue
A17: 3112** | B17: =+'P&L - ITD3 (Acct Desc)'!$A$433 -> Com I/C | E17: =-'SeaTac Contract Financials'!C13 -> -8744.185787 | G17: =SUM(C17:F17) -> -8744.185787 | H17: Back out 5 months of SeaTac revenue
A18: 3113** | B18: =+'P&L - ITD3 (Acct Desc)'!$A$436 -> Resi I/C | E18: =-'SeaTac Contract Financials'!C14 -> -33341.34083 | G18: =SUM(C18:F18) -> -33341.34083 | H18: Back out 5 months of SeaTac revenue
B20: =+'P&L - ITD3 (Acct Desc)'!$A$444 -> Gross Revenue | C20: =SUM(C11:C19) -> 0 | D20: =SUM(D11:D19) -> 700857.45 | E20: =SUM(E11:E19) -> -2879262.297 | G20: =SUM(C20:F20) -> -2178404.847
B22: =+'P&L - ITD3 (Acct Desc)'!$A$445 -> Disposal O/S | E22: =-'SeaTac Contract Financials'!C19 -> -1264214.359 | G22: =SUM(C22:F22) -> -1264214.359 | H22: Back out 5 months of SeaTac expenses
B23: =+'P&L - ITD3 (Acct Desc)'!$A$447 -> Diverted O/S | C23: =-C29 -> 809805.45 | G23: =SUM(C23:F23) -> 809805.45 | H23: Correct re-categorization of (YW & RCY) Disposal Fees
A25: =+'P&L - ITD3 (Acct #)'!$A$464 -> 4X0 410000 | B25: Disposal I/C | G25: =SUM(C25:F25) -> 0
A27: Subtotal | B27: Total Tipping & Disposal Costs | C27: =SUM(C22:C26) -> 809805.45 | D27: =SUM(D22:D26) -> 0 | E27: =SUM(E22:E26) -> -1264214.359 | G27: =SUM(C27:F27) -> -454408.9095
A29: Subtotal | B29: =+'P&L - ITD3 (Acct Desc)'!$A$496 -> COGS SOM | C29: =-Proforma!C29 -> -809805.45 | G29: =SUM(C29:F29) -> -809805.45 | H29: Re-categorization of (YW & RCY) Disposal Fees
A30: Subtotal | B30: =+'P&L - ITD3 (Acct Desc)'!$A$516 -> Fees, Taxes, Royalties | E30: =-'SeaTac Contract Financials'!C20 -> -29669.3 | G30: =SUM(C30:F30) -> -29669.3 | H30: Back out 5 months of SeaTac expenses
A31: Subtotal | B31: =+'P&L - ITD3 (Acct Desc)'!$A$525 -> COGS Other | G31: =SUM(C31:F31) -> 0
B33: =+'P&L - ITD3 (Acct Desc)'!$A$526 -> Revenue Reduction | C33: =SUM(C27:C32) -> 0 | D33: =SUM(D27:D32) -> 0 | E33: =SUM(E27:E32) -> -1293883.659 | G33: =SUM(C33:F33) -> -1293883.659
B35: =+'P&L - ITD3 (Acct Desc)'!$A$527 -> NET REVENUE | C35: =C20-C33 -> 0 | D35: =D20-D33 -> 700857.45 | E35: =E20-E33 -> -1585378.637 | G35: =SUM(C35:F35) -> -884521.1871
A37: EXPENSES
A40: =+'P&L - ITD3 (Acct #)'!$A$538 -> 500 500010 | B40: =+'P&L - ITD3 (Acct Desc)'!$A$538 -> 500010 Drivers | E40: =-'SeaTac Contract Financials'!C26 -> -261730.603 | G40: =SUM(C40:F40) -> -261730.603 | H40: Back out 5 months of SeaTac Operating labor expenses
A41: =+'P&L - ITD3 (Acct #)'!$A$544 -> 500 500020 | B41: =+'P&L - ITD3 (Acct Desc)'!$A$544 -> 500020 Collection Helper | G41: 0
A42: =+'P&L - ITD3 (Acct #)'!$A$550 -> 500 500030 | B42: =+'P&L - ITD3 (Acct Desc)'!$A$550 -> 500030 Operators | G42: 0
A43: =+'P&L - ITD3 (Acct #)'!$A$556 -> 500 500040 | B43: =+'P&L - ITD3 (Acct Desc)'!$A$556 -> 500040 Secondary | G43: 0
A44: =+'P&L - ITD3 (Acct #)'!$A$562 -> 500 500050 | B44: =+'P&L - ITD3 (Acct Desc)'!$A$562 -> 500050 Container Delivery | G44: 0
A45: =+'P&L - ITD3 (Acct #)'!$A$563 -> 500055 0000 | B45: =+'P&L - ITD3 (Acct Desc)'!$A$563 -> Temp Labor-Oper Labor | G45: 0
A46: =+'P&L - ITD3 (Acct #)'!$A$566 -> 500170 0000 | B46: =+'P&L - ITD3 (Acct Desc)'!$A$566 -> Payroll Taxes - Oper Labor | G46: 0
A47: =+'P&L - ITD3 (Acct #)'!$A$567 -> 500172 0000 | B47: =+'P&L - ITD3 (Acct Desc)'!$A$567 -> Personal Time - Oper Labor | G47: 0
A48: =+'P&L - ITD3 (Acct #)'!$A$570 -> 500173 0000 | B48: =+'P&L - ITD3 (Acct Desc)'!$A$570 -> Holiday Pay - Oper Labor | G48: 0
A49: =+'P&L - ITD3 (Acct #)'!$A$571 -> 500174 0000 | B49: =+'P&L - ITD3 (Acct Desc)'!$A$571 -> Vacation/Sick - Oper Labor | G49: 0
A50: =+'P&L - ITD3 (Acct #)'!$A$577 -> 500 500175 | B50: =+'P&L - ITD3 (Acct Desc)'!$A$577 -> 500175 Benefits Non-Corp - Oper Labor | G50: 0
A51: =+'P&L - ITD3 (Acct #)'!$A$578 -> 500176 0000 | B51: =+'P&L - ITD3 (Acct Desc)'!$A$578 -> Benefits Corp - Oper Labor | G51: 0
A52: =+'P&L - ITD3 (Acct #)'!$A$581 -> 500188 0000 | B52: =+'P&L - ITD3 (Acct Desc)'!$A$581 -> Uniforms & Safety - Oper Labor | G52: 0
A53: =+'P&L - ITD3 (Acct #)'!$A$583 -> 500998 0000 | B53: =+'P&L - ITD3 (Acct Desc)'!$A$583 -> Oper Labor Alloc-In | G53: 0
A54: =+'P&L - ITD3 (Acct #)'!$A$587 -> 500999 0000 | B54: =+'P&L - ITD3 (Acct Desc)'!$A$587 -> Oper Labor Alloc-Out | G54: 0
A55: =+'P&L - ITD3 (Acct #)'!$A$588 -> Operating Labor | B55: =+'P&L - ITD3 (Acct Desc)'!$A$588 -> Operating Labor | C55: =SUM(C39:C54) -> 0 | D55: =SUM(D39:D54) -> 0 | E55: =SUM(E39:E54) -> -261730.603 | G55: =SUM(C55:F55) -> -261730.603
A57: =+'P&L - ITD3 (Acct #)'!$A$595 -> 510 510010 | B57: =+'P&L - ITD3 (Acct Desc)'!$A$595 -> 510010 Mgr/Supervision | G57: =SUM(C57:F57) -> 0
A58: =+'P&L - ITD3 (Acct #)'!$A$602 -> 510 510020 | B58: =+'P&L - ITD3 (Acct Desc)'!$A$602 -> 510020 Dispatchers | G58: 0
A59: =+'P&L - ITD3 (Acct #)'!$A$603 -> 510055 0000 | B59: =+'P&L - ITD3 (Acct Desc)'!$A$603 -> Temporary Labor - Sup Labor | G59: 0
A60: =+'P&L - ITD3 (Acct #)'!$A$605 -> 510061 0000 | B60: =+'P&L - ITD3 (Acct Desc)'!$A$605 -> Bonus Pay Corp - Sup Labor | D60: =-Proforma!C60 -> -24733.83 | G60: -24733.83 | H60: Bonus pay not an allowable expense per WUTC
A61: =+'P&L - ITD3 (Acct #)'!$A$606 -> 510170 0000 | B61: =+'P&L - ITD3 (Acct Desc)'!$A$606 -> Payroll Taxes - Sup Labor | G61: 0
A62: =+'P&L - ITD3 (Acct #)'!$A$607 -> 510172 0000 | B62: =+'P&L - ITD3 (Acct Desc)'!$A$607 -> Personal Time - Sup Labor | G62: 0
A63: =+'P&L - ITD3 (Acct #)'!$A$610 -> 510173 0000 | B63: =+'P&L - ITD3 (Acct Desc)'!$A$610 -> Holiday Pay - Sup Labor | G63: 0
A64: =+'P&L - ITD3 (Acct #)'!$A$611 -> 510174 0000 | B64: =+'P&L - ITD3 (Acct Desc)'!$A$611 -> Vacation/Sick - Sup Labor | G64: 0
A65: =+'P&L - ITD3 (Acct #)'!$A$617 -> 510176 0000 | B65: =+'P&L - ITD3 (Acct Desc)'!$A$617 -> Benefits Corp - Sup Labor | G65: 0
A66: =+'P&L - ITD3 (Acct #)'!$A$618 -> 510177 0000 | B66: =+'P&L - ITD3 (Acct Desc)'!$A$618 -> Employer 401k - Sup Labor | G66: 0
A67: =+'P&L - ITD3 (Acct #)'!$A$620 -> 510188 0000 | B67: =+'P&L - ITD3 (Acct Desc)'!$A$620 -> Uniforms & Safety - Sup Labor | G67: 0
A68: =+'P&L - ITD3 (Acct #)'!$A$632 -> 510 510998 | B68: =+'P&L - ITD3 (Acct Desc)'!$A$632 -> 510998 Ops Supv Alloc-In | G68: 0
A69: =+'P&L - ITD3 (Acct #)'!$A$633 -> 510999 0000 | B69: =+'P&L - ITD3 (Acct Desc)'!$A$633 -> Ops Supv Alloc-Out | G69: 0
B70: =+'P&L - ITD3 (Acct Desc)'!$A$634 -> Oper Supervisory Labor | C70: =SUM(C57:C69) -> 0 | D70: =SUM(D57:D69) -> -24733.83 | E70: =SUM(E57:E69) -> 0 | G70: =SUM(C70:F70) -> -24733.83
A72: =+'P&L - ITD3 (Acct #)'!$A$641 -> 520 520010 | B72: =+'P&L - ITD3 (Acct Desc)'!$A$641 -> 520010 TShop Mgr/Supv-Default | G72: =SUM(C72:F72) -> 0
A73: =+'P&L - ITD3 (Acct #)'!$A$648 -> 520 520020 | B73: =+'P&L - ITD3 (Acct Desc)'!$A$648 -> 520020 TShop Mech/Welder-Default | G73: 0
A74: =+'P&L - ITD3 (Acct #)'!$A$655 -> 520 520030 | B74: =+'P&L - ITD3 (Acct Desc)'!$A$655 -> 520030 TShop Support-Default | G74: 0
A75: =+'P&L - ITD3 (Acct #)'!$A$656 -> 520055 0000 | B75: =+'P&L - ITD3 (Acct Desc)'!$A$656 -> TShop Temp Labor | G75: 0
A76: =+'P&L - ITD3 (Acct #)'!$A$657 -> 520060 0000 | B76: =+'P&L - ITD3 (Acct Desc)'!$A$657 -> TShop Bonus Non-Corp | D76: =-Proforma!C76 -> 0 | G76: 0 | H76: Bonus pay not an allowable expense per WUTC
A77: =+'P&L - ITD3 (Acct #)'!$A$658 -> 520061 0000 | B77: =+'P&L - ITD3 (Acct Desc)'!$A$658 -> TShop Bonus Pay Corp | D77: =-Proforma!C77 -> -16853.73 | G77: -16853.73 | H77: Bonus pay not an allowable expense per WUTC
A78: =+'P&L - ITD3 (Acct #)'!$A$659 -> 520170 0000 | B78: =+'P&L - ITD3 (Acct Desc)'!$A$659 -> TShop Payroll Tax | G78: 0
A79: =+'P&L - ITD3 (Acct #)'!$A$660 -> 520172 0000 | B79: =+'P&L - ITD3 (Acct Desc)'!$A$660 -> TShop Personal Time | G79: 0
A80: =+'P&L - ITD3 (Acct #)'!$A$663 -> 520173 0000 | B80: =+'P&L - ITD3 (Acct Desc)'!$A$663 -> TShop Holiday Pay | G80: 0
A81: =+'P&L - ITD3 (Acct #)'!$A$664 -> 520174 0000 | B81: =+'P&L - ITD3 (Acct Desc)'!$A$664 -> TShop Vacation/Sick | G81: 0
A82: =+'P&L - ITD3 (Acct #)'!$A$669 -> 520 520175 | B82: =+'P&L - ITD3 (Acct Desc)'!$A$669 -> 520175 TShop Benefits Non-Corp | G82: 0
A83: =+'P&L - ITD3 (Acct #)'!$A$670 -> 520176 0000 | B83: =+'P&L - ITD3 (Acct Desc)'!$A$670 -> TShop Benefits Corp | G83: 0
A84: =+'P&L - ITD3 (Acct #)'!$A$671 -> 520177 0000 | B84: =+'P&L - ITD3 (Acct Desc)'!$A$671 -> TShop Employer 401k | G84: 0
A85: =+'P&L - ITD3 (Acct #)'!$A$673 -> 520188 0000 | B85: =+'P&L - ITD3 (Acct Desc)'!$A$673 -> TShop Uniforms & Safety | G85: 0
A86: =+'P&L - ITD3 (Acct #)'!$A$674 -> 520998 0000 | B86: =+'P&L - ITD3 (Acct Desc)'!$A$674 -> TShop Labor Alloc-In | G86: 0
A87: =+'P&L - ITD3 (Acct #)'!$A$675 -> 520999 0000 | B87: =+'P&L - ITD3 (Acct Desc)'!$A$675 -> TShop Labor Alloc-Out | G87: 0
B88: =+'P&L - ITD3 (Acct Desc)'!$A$676 -> Truck/Equipment Shop Labor | C88: =SUM(C72:C87) -> 0 | D88: =SUM(D72:D87) -> -16853.73 | E88: =SUM(E72:E87) -> 0 | G88: =SUM(C88:F88) -> -16853.73
A90: =+'P&L - ITD3 (Acct #)'!$A$690 -> 525 525020 | B90: =+'P&L - ITD3 (Acct Desc)'!$A$690 -> 525020 CShop Mech/Welder-Default | G90: =SUM(C90:F90) -> 0
A91: =+'P&L - ITD3 (Acct #)'!$A$697 -> 525 525030 | B91: =+'P&L - ITD3 (Acct Desc)'!$A$697 -> 525030 CShop Support-Default | G91: 0
A92: =+'P&L - ITD3 (Acct #)'!$A$698 -> 525055 0000 | B92: =+'P&L - ITD3 (Acct Desc)'!$A$698 -> CShop Temp Labor | G92: 0
A93: =+'P&L - ITD3 (Acct #)'!$A$699 -> 525060 0000 | B93: =+'P&L - ITD3 (Acct Desc)'!$A$699 -> CShop Bonus Pay Non-Corp | D93: =-Proforma!C93 -> 0 | G93: 0 | H93: Bonus pay not an allowable expense per WUTC
A94: =+'P&L - ITD3 (Acct #)'!$A$700 -> 525061 0000 | B94: =+'P&L - ITD3 (Acct Desc)'!$A$700 -> CShop Bonus Pay Corp | D94: =-Proforma!C94 -> 0 | G94: 0 | H94: Bonus pay not an allowable expense per WUTC
A95: =+'P&L - ITD3 (Acct #)'!$A$701 -> 525170 0000 | B95: =+'P&L - ITD3 (Acct Desc)'!$A$701 -> CShop Payroll Tax | G95: 0
A96: =+'P&L - ITD3 (Acct #)'!$A$702 -> 525172 0000 | B96: =+'P&L - ITD3 (Acct Desc)'!$A$702 -> CShop Personal Time | G96: 0
A97: =+'P&L - ITD3 (Acct #)'!$A$705 -> 525173 0000 | B97: =+'P&L - ITD3 (Acct Desc)'!$A$705 -> CShop Holiday Pay | G97: 0
A98: =+'P&L - ITD3 (Acct #)'!$A$706 -> 525174 0000 | B98: =+'P&L - ITD3 (Acct Desc)'!$A$706 -> CShop Vacation/Sick | G98: 0
A99: =+'P&L - ITD3 (Acct #)'!$A$711 -> 525 525175 | B99: =+'P&L - ITD3 (Acct Desc)'!$A$711 -> 525175 CShop Benefits Non-Corp | G99: 0
A100: =+'P&L - ITD3 (Acct #)'!$A$712 -> 525176 0000 | B100: =+'P&L - ITD3 (Acct Desc)'!$A$712 -> CShop Benefits Corp | G100: 0
A101: =+'P&L - ITD3 (Acct #)'!$A$715 -> 525188 0000 | B101: =+'P&L - ITD3 (Acct Desc)'!$A$715 -> CShop Uniforms & Safety | G101: 0
A102: =+'P&L - ITD3 (Acct #)'!$A$716 -> 525998 0000 | B102: =+'P&L - ITD3 (Acct Desc)'!$A$716 -> CShop Labor Alloc-In | G102: 0
A103: =+'P&L - ITD3 (Acct #)'!$A$717 -> 525999 0000 | B103: =+'P&L - ITD3 (Acct Desc)'!$A$717 -> CShop Labor Alloc-Out | G103: 0
B104: =+'P&L - ITD3 (Acct Desc)'!$A$718 -> Container Shop Labor | C104: =SUM(C90:C103) -> 0 | D104: =SUM(D90:D103) -> 0 | E104: =SUM(E90:E103) -> 0 | G104: =SUM(C104:F104) -> 0
A106: =+'P&L - ITD3 (Acct #)'!$A$719 -> 530010 0000 | B106: =+'P&L - ITD3 (Acct Desc)'!$A$719 -> Fuel | E106: =-'SeaTac Contract Financials'!C28 -> -50831.76159 | G106: =SUM(C106:F106) -> -50831.76159 | H106: Back out 5 months of SeaTac Truck Operating expenses
A107: =+'P&L - ITD3 (Acct #)'!$A$720 -> 530010 0010 | B107: =+'P&L - ITD3 (Acct Desc)'!$A$720 -> CNG/LNG | G107: 0
A108: =+'P&L - ITD3 (Acct #)'!$A$721 -> 530010 0020 | B108: =+'P&L - ITD3 (Acct Desc)'!$A$721 -> CNG/LNG Tax Credit | E108: =-'P&L - ITD3 (Acct Desc)'!$B$721 -> 53774.33 | G108: 53774.33 | H108: Federal CNG Tax Credit will not resume in 2015
A109: =+'P&L - ITD3 (Acct #)'!$A$723 -> 530015 0000 | B109: =+'P&L - ITD3 (Acct Desc)'!$A$723 -> Oil/Lubricants | G109: 0
A110: =+'P&L - ITD3 (Acct #)'!$A$724 -> 530030 0000 | B110: =+'P&L - ITD3 (Acct Desc)'!$A$724 -> Truck/Equip Licenses | G110: 0
A111: =+'P&L - ITD3 (Acct #)'!$A$727 -> 530060 0000 | B111: =+'P&L - ITD3 (Acct Desc)'!$A$727 -> Equip Rental-3rd Party | G111: 0
A112: =+'P&L - ITD3 (Acct #)'!$A$731 -> 530064 0000 | B112: =+'P&L - ITD3 (Acct Desc)'!$A$731 -> Truck/Equip Rental | G112: 0
B113: Rental Other
A114: =+'P&L - ITD3 (Acct #)'!$A$734 -> 530067 0000 | B114: =+'P&L - ITD3 (Acct Desc)'!$A$734 -> Lease Sales Tax Expense | G114: 0
A115: =+'P&L - ITD3 (Acct #)'!$A$736 -> 530070 0000 | B115: =+'P&L - ITD3 (Acct Desc)'!$A$736 -> Operating Taxes | G115: 0
B116: Other
A117: =+'P&L - ITD3 (Acct #)'!$A$774 -> 530 530998 | B117: =+'P&L - ITD3 (Acct Desc)'!$A$774 -> 530998 Operating Alloc-In | G117: 0
A118: =+'P&L - ITD3 (Acct #)'!$A$775 -> 530999 0000 | B118: =+'P&L - ITD3 (Acct Desc)'!$A$775 -> Operating Alloc-Out | G118: 0
B119: =+'P&L - ITD3 (Acct Desc)'!$A$778 -> Truck/Equipment Operating | C119: =SUM(C106:C118) -> 0 | D119: =SUM(D106:D118) -> 0 | E119: =SUM(E106:E118) -> 2942.568412 | G119: =SUM(C119:F119) -> 2942.568412
A121: =+'P&L - ITD3 (Acct #)'!$A$779 -> 540010 0000 | B121: =+'P&L - ITD3 (Acct Desc)'!$A$779 -> Parts & Matls | E121: =-'SeaTac Contract Financials'!C29 -> -60412.22277 | G121: =SUM(C121:F121) -> -60412.22277 | H121: Back out 5 months of SeaTac Truck R&M expenses
A122: =+'P&L - ITD3 (Acct #)'!$A$780 -> 540012 0000 | B122: =+'P&L - ITD3 (Acct Desc)'!$A$780 -> Parts X-Factor | G122: 0
A123: =+'P&L - ITD3 (Acct #)'!$A$781 -> 540014 0000 | B123: =+'P&L - ITD3 (Acct Desc)'!$A$781 -> Purchase Discounts | G123: 0
A124: =+'P&L - ITD3 (Acct #)'!$A$782 -> 540020 0000 | B124: =+'P&L - ITD3 (Acct Desc)'!$A$782 -> Truck/Equip Supplies | G124: 0
A125: =+'P&L - ITD3 (Acct #)'!$A$783 -> 540030 0000 | B125: =+'P&L - ITD3 (Acct Desc)'!$A$783 -> New Tire Expense | G125: 0
A126: =+'P&L - ITD3 (Acct #)'!$A$784 -> 540031 0000 | B126: =+'P&L - ITD3 (Acct Desc)'!$A$784 -> Tire Repair | G126: 0
A127: =+'P&L - ITD3 (Acct #)'!$A$785 -> 540032 0000 | B127: =+'P&L - ITD3 (Acct Desc)'!$A$785 -> Tires X-Factor | G127: 0
A128: =+'P&L - ITD3 (Acct #)'!$A$787 -> 540040 0000 | B128: =+'P&L - ITD3 (Acct Desc)'!$A$787 -> O/S Repair-Coll Equip | G128: 0
A129: =+'P&L - ITD3 (Acct #)'!$A$788 -> 540040 0010 | B129: =+'P&L - ITD3 (Acct Desc)'!$A$788 -> O/S Repair-Engine Rebuilds | G129: 0
A130: =+'P&L - ITD3 (Acct #)'!$A$790 -> 540050 0000 | B130: =+'P&L - ITD3 (Acct Desc)'!$A$790 -> Towing | G130: 0
A131: =+'P&L - ITD3 (Acct #)'!$A$791 -> 540060 0000 | B131: =+'P&L - ITD3 (Acct Desc)'!$A$791 -> O/S Repair-Heavy Equip | G131: 0
A132: =+'P&L - ITD3 (Acct #)'!$A$792 -> 540070 0000 | B132: =+'P&L - ITD3 (Acct Desc)'!$A$792 -> O/S Repair-Proc Equip | G132: 0
A133: =+'P&L - ITD3 (Acct #)'!$A$793 -> 540075 0000 | B133: =+'P&L - ITD3 (Acct Desc)'!$A$793 -> Warranty Recovery | G133: 0
A134: =+'P&L - ITD3 (Acct #)'!$A$794 -> 540090 0000 | B134: =+'P&L - ITD3 (Acct Desc)'!$A$794 -> Truck & Equip Washing | G134: 0
A135: =+'P&L - ITD3 (Acct #)'!$A$795 -> 540095 0000 | B135: =+'P&L - ITD3 (Acct Desc)'!$A$795 -> Other Repairs & Maint | G135: 0
A136: =+'P&L - ITD3 (Acct #)'!$A$797 -> 540991 0000 | B136: =+'P&L - ITD3 (Acct Desc)'!$A$797 -> T/E Damage-Acc/A&M Contra | G136: 0
A137: =+'P&L - ITD3 (Acct #)'!$A$828 -> 540 540997 | B137: =+'P&L - ITD3 (Acct Desc)'!$A$828 -> 540997 TShop Labor Alloc-In. | G137: 0
A138: =+'P&L - ITD3 (Acct #)'!$A$857 -> 540 540998 | B138: =+'P&L - ITD3 (Acct Desc)'!$A$857 -> 540998 Trk/Equip Expense Alloc-In | G138: 0
A139: =+'P&L - ITD3 (Acct #)'!$A$858 -> 540999 0000 | B139: =+'P&L - ITD3 (Acct Desc)'!$A$858 -> Trk/Equip Expense Alloc-Out | G139: 0
B140: =+'P&L - ITD3 (Acct Desc)'!$A$861 -> Truck/Equipment Maintenance | C140: =SUM(C121:C139) -> 0 | D140: =SUM(D121:D139) -> 0 | E140: =SUM(E121:E139) -> -60412.22277 | G140: =SUM(C140:F140) -> -60412.22277
A142: =+'P&L - ITD3 (Acct #)'!$A$862 -> 545010 0000 | B142: =+'P&L - ITD3 (Acct Desc)'!$A$862 -> Cont/Comp Parts & Matls | G142: =SUM(C142:F142) -> 0
A143: =+'P&L - ITD3 (Acct #)'!$A$863 -> 545015 0000 | B143: =+'P&L - ITD3 (Acct Desc)'!$A$863 -> Cont/Comp Lids | G143: 0
A144: =+'P&L - ITD3 (Acct #)'!$A$864 -> 545020 0000 | B144: =+'P&L - ITD3 (Acct Desc)'!$A$864 -> Cont/Comp Paint | G144: 0
A145: =+'P&L - ITD3 (Acct #)'!$A$865 -> 545025 0000 | B145: =+'P&L - ITD3 (Acct Desc)'!$A$865 -> Cont/Comp Steel | G145: 0
A146: =+'P&L - ITD3 (Acct #)'!$A$866 -> 545030 0000 | B146: =+'P&L - ITD3 (Acct Desc)'!$A$866 -> Cont/Comp Tires/Casters/Wheels | G146: 0
A147: =+'P&L - ITD3 (Acct #)'!$A$867 -> 545035 0000 | B147: =+'P&L - ITD3 (Acct Desc)'!$A$867 -> Cont/Comp Supplies | G147: 0
A148: =+'P&L - ITD3 (Acct #)'!$A$868 -> 545040 0000 | B148: =+'P&L - ITD3 (Acct Desc)'!$A$868 -> Cont/Comp O/S Repairs | G148: 0
A149: =+'P&L - ITD3 (Acct #)'!$A$869 -> 545041 0000 | B149: =+'P&L - ITD3 (Acct Desc)'!$A$869 -> Cont/Comp Repairs | G149: 0
A150: =+'P&L - ITD3 (Acct #)'!$A$870 -> 545041 5543 | B150: =+'P&L - ITD3 (Acct Desc)'!$A$870 -> Billed Cont/Comp Repairs | G150: 0
A151: =+'P&L - ITD3 (Acct #)'!$A$871 -> 545041 5593 | B151: =+'P&L - ITD3 (Acct Desc)'!$A$871 -> Offset Cont/Comp Repairs | G151: 0
A152: =+'P&L - ITD3 (Acct #)'!$A$872 -> 545 545041 | B152: =+'P&L - ITD3 (Acct Desc)'!$A$872 -> 545041 Billed C&C Repairs | G152: 0
A153: =+'P&L - ITD3 (Acct #)'!$A$873 -> 545050 0000 | B153: =+'P&L - ITD3 (Acct Desc)'!$A$873 -> Cont/Comp Equip Rental | G153: 0
A154: =+'P&L - ITD3 (Acct #)'!$A$874 -> 545075 0000 | B154: =+'P&L - ITD3 (Acct Desc)'!$A$874 -> Cont/Comp Warranty Recovery | G154: 0
A155: =+'P&L - ITD3 (Acct #)'!$A$875 -> 545090 0000 | B155: =+'P&L - ITD3 (Acct Desc)'!$A$875 -> Cont/Comp Equip Wash | G155: 0
A156: =+'P&L - ITD3 (Acct #)'!$A$876 -> 545095 0000 | B156: =+'P&L - ITD3 (Acct Desc)'!$A$876 -> Cont/Comp Other Maint | G156: 0
A157: =+'P&L - ITD3 (Acct #)'!$A$907 -> 545 545997 | B157: =+'P&L - ITD3 (Acct Desc)'!$A$907 -> 545997 CShop Labor Alloc-In | G157: 0
A158: =+'P&L - ITD3 (Acct #)'!$A$916 -> 545 545998 | B158: =+'P&L - ITD3 (Acct Desc)'!$A$916 -> 545998 Cont/Comp Expense Alloc-In | G158: 0
A159: =+'P&L - ITD3 (Acct #)'!$A$917 -> 545999 0000 | B159: =+'P&L - ITD3 (Acct Desc)'!$A$917 -> Cont/Comp Expense Alloc-Out | G159: 0
B160: =+'P&L - ITD3 (Acct Desc)'!$A$918 -> Cont/Comp Maintenance | C160: =SUM(C142:C159) -> 0 | D160: =SUM(D142:D159) -> 0 | E160: =SUM(E142:E159) -> 0 | G160: =SUM(C160:F160) -> 0
A162: =+'P&L - ITD3 (Acct #)'!$A$935 -> 565000 0000 | B162: =+'P&L - ITD3 (Acct Desc)'!$A$935 -> Corp Ins-Fixed W/C | G162: =SUM(C162:F162) -> 0
A163: =+'P&L - ITD3 (Acct #)'!$A$936 -> 565002 0000 | B163: =+'P&L - ITD3 (Acct Desc)'!$A$936 -> Corp Ins-Fixed AL/GL | G163: 0
A164: =+'P&L - ITD3 (Acct #)'!$A$945 -> 565006 0000 | B164: =+'P&L - ITD3 (Acct Desc)'!$A$945 -> AW Self Ins WC/Premium Exp | G164: 0
A165: =+'P&L - ITD3 (Acct #)'!$A$946 -> 565008 0000 | B165: =+'P&L - ITD3 (Acct Desc)'!$A$946 -> Corp Ins-Fixed Other | G165: 0
A166: =+'P&L - ITD3 (Acct #)'!$A$948 -> 565010 0000 | B166: =+'P&L - ITD3 (Acct Desc)'!$A$948 -> Corp Ins-Occur W/C | G166: 0
A167: =+'P&L - ITD3 (Acct #)'!$A$949 -> 565012 0000 | B167: =+'P&L - ITD3 (Acct Desc)'!$A$949 -> Corp Ins-Occur AL/GL | G167: 0
A168: =+'P&L - ITD3 (Acct #)'!$A$957 -> 565030 0000 | B168: =+'P&L - ITD3 (Acct Desc)'!$A$957 -> Non-Corp Ins-W/C | E168: =-'SeaTac Contract Financials'!C32 -> -102247.9353 | G168: -102247.9353 | H168: Back out 5 months of SeaTac Insurance expenses
A169: =+'P&L - ITD3 (Acct #)'!$A$958 -> 565032 0000 | B169: =+'P&L - ITD3 (Acct Desc)'!$A$958 -> Non-Corp Ins-AL/GL | G169: 0
A170: =+'P&L - ITD3 (Acct #)'!$A$959 -> 565040 0000 | B170: =+'P&L - ITD3 (Acct Desc)'!$A$959 -> Damage-RSG Prop Non-AM | G170: 0
A171: =+'P&L - ITD3 (Acct #)'!$A$960 -> 565041 0000 | B171: =+'P&L - ITD3 (Acct Desc)'!$A$960 -> Damage-RSG Prop AM | G171: 0
A172: =+'P&L - ITD3 (Acct #)'!$A$961 -> 565042 0000 | B172: =+'P&L - ITD3 (Acct Desc)'!$A$961 -> Damage-3rd Party Property | G172: 0
A173: =+'P&L - ITD3 (Acct #)'!$A$962 -> 565045 0000 | B173: =+'P&L - ITD3 (Acct Desc)'!$A$962 -> Surety Cost | G173: 0
A174: =+'P&L - ITD3 (Acct #)'!$A$963 -> 565080 0000 | B174: =+'P&L - ITD3 (Acct Desc)'!$A$963 -> Hiring, Training & Safety | G174: 0
A175: =+'P&L - ITD3 (Acct #)'!$A$964 -> 565081 0000 | B175: =+'P&L - ITD3 (Acct Desc)'!$A$964 -> Safety Equipment | G175: 0
A176: =+'P&L - ITD3 (Acct #)'!$A$965 -> 565082 0000 | B176: =+'P&L - ITD3 (Acct Desc)'!$A$965 -> Safety Incentive Program | G176: 0
A177: =+'P&L - ITD3 (Acct #)'!$A$966 -> 565083 0000 | B177: =+'P&L - ITD3 (Acct Desc)'!$A$966 -> Medical/Physicals | G177: 0
A178: =+'P&L - ITD3 (Acct #)'!$A$998 -> 565 565998 | B178: =+'P&L - ITD3 (Acct Desc)'!$A$998 -> 565998 Insurance Alloc-In | G178: 0
A179: =+'P&L - ITD3 (Acct #)'!$A$999 -> 565999 0000 | B179: =+'P&L - ITD3 (Acct Desc)'!$A$999 -> Insurance Alloc-Out | G179: 0
B180: =+'P&L - ITD3 (Acct Desc)'!$A$1002 -> Insurance/Risk Expense | C180: =SUM(C162:C179) -> 0 | D180: =SUM(D162:D179) -> 0 | E180: =SUM(E162:E179) -> -102247.9353 | G180: =SUM(C180:F180) -> -102247.9353
A182: =+'P&L - ITD3 (Acct #)'!$A$1003 -> 570000 0000 | B182: =+'P&L - ITD3 (Acct Desc)'!$A$1003 -> Fac Maint-Parts & Supplies | G182: =SUM(C182:F182) -> 0
A184: =+'P&L - ITD3 (Acct #)'!$A$1004 -> 570005 0000 | B184: =+'P&L - ITD3 (Acct Desc)'!$A$1004 -> Fac Maint-O/S Repair | G184: 0
A185: =+'P&L - ITD3 (Acct #)'!$A$1007 -> 570010 0000 | B185: =+'P&L - ITD3 (Acct Desc)'!$A$1007 -> Security | G185: 0
A186: =+'P&L - ITD3 (Acct #)'!$A$1008 -> 570020 0000 | B186: =+'P&L - ITD3 (Acct Desc)'!$A$1008 -> Lease/Rent | G186: 0
A187: =+'P&L - ITD3 (Acct #)'!$A$1009 -> 570030 0000 | B187: =+'P&L - ITD3 (Acct Desc)'!$A$1009 -> Utilities | G187: 0
A188: =+'P&L - ITD3 (Acct #)'!$A$1010 -> 570040 0000 | B188: =+'P&L - ITD3 (Acct Desc)'!$A$1010 -> Property Taxes | G188: 0
A189: =+'P&L - ITD3 (Acct #)'!$A$1011 -> 570050 0000 | B189: =+'P&L - ITD3 (Acct Desc)'!$A$1011 -> Scale Repairs | G189: 0
A190: =+'P&L - ITD3 (Acct #)'!$A$1012 -> 570090 0000 | B190: =+'P&L - ITD3 (Acct Desc)'!$A$1012 -> Miscellaneous Facility Exp | G190: 0
A191: =+'P&L - ITD3 (Acct #)'!$A$1013 -> 570990 0000 | B191: =+'P&L - ITD3 (Acct Desc)'!$A$1013 -> Occupancy/Facility contra | G191: 0
A192: =+'P&L - ITD3 (Acct #)'!$A$1025 -> 570 570998 | B192: =+'P&L - ITD3 (Acct Desc)'!$A$1025 -> 570998 Facility Alloc-In | G192: 0
A193: =+'P&L - ITD3 (Acct #)'!$A$1026 -> 570999 0000 | B193: =+'P&L - ITD3 (Acct Desc)'!$A$1026 -> Facility Alloc-Out | G193: 0
B194: =+'P&L - ITD3 (Acct Desc)'!$A$1027 -> Occupancy/Facility Expense | C194: =SUM(C182:C193) -> 0 | D194: =SUM(D182:D193) -> 0 | E194: =SUM(E182:E193) -> 0 | G194: =SUM(C194:F194) -> 0
A196: =+'P&L - ITD3 (Acct #)'!$A$1028 -> 595010 0000 | B196: =+'P&L - ITD3 (Acct Desc)'!$A$1028 -> Permit Fees | E196: =-'SeaTac Contract Financials'!C34 -> -102829.808 | G196: =SUM(C196:F196) -> -102829.808 | H196: Back out 5 months of SeaTac Other Operating expenses
A197: =+'P&L - ITD3 (Acct #)'!$A$1030 -> 595020 0000 | B197: =+'P&L - ITD3 (Acct Desc)'!$A$1030 -> Operations Communications Cost | G197: 0
A198: =+'P&L - ITD3 (Acct #)'!$A$1031 -> 595020 0010 | B198: =+'P&L - ITD3 (Acct Desc)'!$A$1031 -> Local/Long Distance-Ops | G198: 0
A199: =+'P&L - ITD3 (Acct #)'!$A$1032 -> 595020 0011 | B199: =+'P&L - ITD3 (Acct Desc)'!$A$1032 -> SIP-Ops | G199: 0
A200: =+'P&L - ITD3 (Acct #)'!$A$1033 -> 595020 0020 | B200: =+'P&L - ITD3 (Acct Desc)'!$A$1033 -> Smartphones-Ops | G200: 0
A201: =+'P&L - ITD3 (Acct #)'!$A$1034 -> 595020 0021 | B201: =+'P&L - ITD3 (Acct Desc)'!$A$1034 -> Tablets-Ops | G201: 0
A202: =+'P&L - ITD3 (Acct #)'!$A$1035 -> 595020 0022 | B202: =+'P&L - ITD3 (Acct Desc)'!$A$1035 -> Standard Phones-Ops | G202: 0
A203: =+'P&L - ITD3 (Acct #)'!$A$1036 -> 595020 0023 | B203: =+'P&L - ITD3 (Acct Desc)'!$A$1036 -> Data Devices-Ops | G203: 0
A204: =+'P&L - ITD3 (Acct #)'!$A$1037 -> 595020 0030 | B204: =+'P&L - ITD3 (Acct Desc)'!$A$1037 -> Conferencing-Ops | G204: 0
A205: =+'P&L - ITD3 (Acct #)'!$A$1040 -> 595030 0000 | B205: =+'P&L - ITD3 (Acct Desc)'!$A$1040 -> Container Property Taxes | G205: 0
A206: =+'P&L - ITD3 (Acct #)'!$A$1041 -> 595040 0000 | B206: =+'P&L - ITD3 (Acct Desc)'!$A$1041 -> State Franchise Tax | G206: 0
A207: =+'P&L - ITD3 (Acct #)'!$A$1042 -> 595080 0000 | B207: =+'P&L - ITD3 (Acct Desc)'!$A$1042 -> Towing Non-Maintenance | G207: 0
A208: =+'P&L - ITD3 (Acct #)'!$A$1043 -> 595090 0000 | B208: =+'P&L - ITD3 (Acct Desc)'!$A$1043 -> Other Operating Misc | G208: 0
A209: =+'P&L - ITD3 (Acct #)'!$A$1044 -> 595105 0000 | B209: =+'P&L - ITD3 (Acct Desc)'!$A$1044 -> GOE Vehicle Mileage | G209: 0
A210: =+'P&L - ITD3 (Acct #)'!$A$1045 -> 595106 0000 | B210: =+'P&L - ITD3 (Acct Desc)'!$A$1045 -> GOE Travel Expenses | G210: 0
A211: =+'P&L - ITD3 (Acct #)'!$A$1046 -> 595108 0000 | B211: =+'P&L - ITD3 (Acct Desc)'!$A$1046 -> GOE Meals & Entertainmnt(100%) | G211: 0
A212: =+'P&L - ITD3 (Acct #)'!$A$1047 -> 595109 0000 | B212: =+'P&L - ITD3 (Acct Desc)'!$A$1047 -> GOE Meals & Entertainment(50%) | G212: 0
A213: =+'P&L - ITD3 (Acct #)'!$A$1048 -> 595990 0000 | B213: =+'P&L - ITD3 (Acct Desc)'!$A$1048 -> Other Oper Contra | G213: 0
A214: =+'P&L - ITD3 (Acct #)'!$A$1090 -> 595 595998 | B214: =+'P&L - ITD3 (Acct Desc)'!$A$1090 -> 595998 Other Operating Alloc-In | G214: 0
A215: =+'P&L - ITD3 (Acct #)'!$A$1091 -> 595999 0000 | B215: =+'P&L - ITD3 (Acct Desc)'!$A$1091 -> Other Operating Alloc-Out | G215: 0
B216: =+'P&L - ITD3 (Acct Desc)'!$A$1094 -> Other Operating Expense | C216: =SUM(C196:C215) -> 0 | D216: =SUM(D196:D215) -> 0 | E216: =SUM(E196:E215) -> -102829.808 | G216: =SUM(C216:F216) -> -102829.808
B218: =+'P&L - ITD3 (Acct Desc)'!$A$1095 -> Gross Operating Expense | C218: =C55+C70+C88+C104+C119+C140+C160+C180+C194+C216 -> 0 | D218: =D55+D70+D88+D104+D119+D140+D160+D180+D194+D216 -> -41587.56 | E218: =E55+E70+E88+E104+E119+E140+E160+E180+E194+E216 -> -524278.0006 | G218: =SUM(C218:F218) -> -565865.5606
A220: =+'P&L - ITD3 (Acct #)'!$A$1097 -> 600010 0000 | B220: =+'P&L - ITD3 (Acct Desc)'!$A$1097 -> Depr-Vehicles | E220: =-'SeaTac Contract Financials'!C38 -> -14814.41168 | G220: =SUM(C220:F220) -> -14814.41168 | H220: Back out 5 months of SeaTac Truck Depreciation expenses
A221: =+'P&L - ITD3 (Acct #)'!$A$1098 -> 600020 0000 | B221: =+'P&L - ITD3 (Acct Desc)'!$A$1098 -> Depr-Cont/Comp | G221: 0
A222: =+'P&L - ITD3 (Acct #)'!$A$1099 -> 600030 0000 | B222: =+'P&L - ITD3 (Acct Desc)'!$A$1099 -> Depr-Heavy Mach & Equip | G222: 0
A223: =+'P&L - ITD3 (Acct #)'!$A$1100 -> 600040 0000 | B223: =+'P&L - ITD3 (Acct Desc)'!$A$1100 -> Depr-Shop Equip | G223: 0
A224: =+'P&L - ITD3 (Acct #)'!$A$1101 -> 600070 0000 | B224: =+'P&L - ITD3 (Acct Desc)'!$A$1101 -> Depr-Bldg & Imp | G224: 0
A225: =+'P&L - ITD3 (Acct #)'!$A$1102 -> 600080 0000 | B225: =+'P&L - ITD3 (Acct Desc)'!$A$1102 -> Depr-Furn & Fixtures | G225: 0
A226: =+'P&L - ITD3 (Acct #)'!$A$1103 -> 600090 0000 | B226: =+'P&L - ITD3 (Acct Desc)'!$A$1103 -> Depr-Computer Equip | G226: 0
A227: =+'P&L - ITD3 (Acct #)'!$A$1104 -> 600200 0000 | B227: =+'P&L - ITD3 (Acct Desc)'!$A$1104 -> Depr-HENS | G227: 0
... 135 more rows

Sheet PF Adj
A1: Proforma Revenue & Expense Restatement Worksheet
A2: General Rate Case
C6: Revenue / | D6: Payroll &
C7: Rev Reduc / | D7: Insurance | G7: Total
C8: Expense / | D8: Expense | G8: Restating
A9: Account # | B9: Account Description | C9: Inc or Dec | D9: Inc or Dec | E9: OTHER | G9: Adjustments | H9: NOTES TO AUDITORS
A10: REVENUE
A11: 3011** | B11: =+'P&L - ITD3 (Acct Desc)'!$A$89 -> Ind O/S | G11: =SUM(C11:F11) -> 0
B12: Disposal Pass Through | G12: =SUM(C12:F12) -> 0
A13: 3012** | B13: =+'P&L - ITD3 (Acct Desc)'!$A$173 -> Com O/S | G13: =SUM(C13:F13) -> 0
A14: 3013** | B14: =+'P&L - ITD3 (Acct Desc)'!$A$251 -> Resi O/S | G14: =SUM(C14:F14) -> 0
A16: 3111** | B16: =+'P&L - ITD3 (Acct Desc)'!$A$430 -> Ind I/C | G16: =SUM(C16:F16) -> 0
A17: 3112** | B17: =+'P&L - ITD3 (Acct Desc)'!$A$433 -> Com I/C | G17: =SUM(C17:F17) -> 0
A18: 3113** | B18: =+'P&L - ITD3 (Acct Desc)'!$A$436 -> Resi I/C | G18: =SUM(C18:F18) -> 0
B20: =+'P&L - ITD3 (Acct Desc)'!$A$444 -> Gross Revenue | C20: =SUM(C11:C19) -> 0 | D20: =SUM(D11:D19) -> 0 | E20: =SUM(E11:E19) -> 0 | G20: =SUM(C20:F20) -> 0
B22: =+'P&L - ITD3 (Acct Desc)'!$A$445 -> Disposal O/S | G22: =SUM(C22:F22) -> 0
B23: =+'P&L - ITD3 (Acct Desc)'!$A$447 -> Diverted O/S | G23: =SUM(C23:F23) -> 0
A25: =+'P&L - ITD3 (Acct #)'!$A$464 -> 4X0 410000 | B25: Disposal I/C | G25: =SUM(C25:F25) -> 0
A27: Subtotal | B27: Total Tipping & Disposal Costs | C27: =SUM(C22:C26) -> 0 | D27: =SUM(D22:D26) -> 0 | E27: =SUM(E22:E26) -> 0 | G27: =SUM(C27:F27) -> 0
A29: Subtotal | B29: =+'P&L - ITD3 (Acct Desc)'!$A$496 -> COGS SOM | G29: =SUM(C29:F29) -> 0
A30: Subtotal | B30: =+'P&L - ITD3 (Acct Desc)'!$A$516 -> Fees, Taxes, Royalties | G30: =SUM(C30:F30) -> 0
A31: Subtotal | B31: =+'P&L - ITD3 (Acct Desc)'!$A$525 -> COGS Other | G31: =SUM(C31:F31) -> 0
B33: =+'P&L - ITD3 (Acct Desc)'!$A$526 -> Revenue Reduction | C33: =SUM(C27:C32) -> 0 | D33: =SUM(D27:D32) -> 0 | E33: =SUM(E27:E32) -> 0 | G33: =SUM(C33:F33) -> 0
B35: =+'P&L - ITD3 (Acct Desc)'!$A$527 -> NET REVENUE | C35: =C20-C33 -> 0 | D35: =D20-D33 -> 0 | E35: =E20-E33 -> 0 | G35: =SUM(C35:F35) -> 0
A37: EXPENSES
A40: =+'P&L - ITD3 (Acct #)'!$A$538 -> 500 500010 | B40: =+'P&L - ITD3 (Acct Desc)'!$A$538 -> 500010 Drivers | D40: =+'Summary & PF'!$D$23 -> -205216.9241 | E40: =-'PF Restate'!E40 -> 261730.603 | G40: =SUM(C40:F40) -> 56513.67888 | H40: Payroll Increase - See Payroll Model; Less what we are already taking out for loss of City of SeaTac Contract
A41: =+'P&L - ITD3 (Acct #)'!$A$544 -> 500 500020 | B41: =+'P&L - ITD3 (Acct Desc)'!$A$544 -> 500020 Collection Helper | G41: 0
A42: =+'P&L - ITD3 (Acct #)'!$A$550 -> 500 500030 | B42: =+'P&L - ITD3 (Acct Desc)'!$A$550 -> 500030 Operators | G42: 0
A43: =+'P&L - ITD3 (Acct #)'!$A$556 -> 500 500040 | B43: =+'P&L - ITD3 (Acct Desc)'!$A$556 -> 500040 Secondary | G43: 0
A44: =+'P&L - ITD3 (Acct #)'!$A$562 -> 500 500050 | B44: =+'P&L - ITD3 (Acct Desc)'!$A$562 -> 500050 Container Delivery | G44: 0
A45: =+'P&L - ITD3 (Acct #)'!$A$563 -> 500055 0000 | B45: =+'P&L - ITD3 (Acct Desc)'!$A$563 -> Temp Labor-Oper Labor | G45: 0
A46: =+'P&L - ITD3 (Acct #)'!$A$566 -> 500170 0000 | B46: =+'P&L - ITD3 (Acct Desc)'!$A$566 -> Payroll Taxes - Oper Labor | D46: ='Summary & PF'!$E$23 -> -17029.8375 | G46: -17029.8375 | H46: Payroll Increase - See Payroll Model
A47: =+'P&L - ITD3 (Acct #)'!$A$567 -> 500172 0000 | B47: =+'P&L - ITD3 (Acct Desc)'!$A$567 -> Personal Time - Oper Labor | G47: 0
A48: =+'P&L - ITD3 (Acct #)'!$A$570 -> 500173 0000 | B48: =+'P&L - ITD3 (Acct Desc)'!$A$570 -> Holiday Pay - Oper Labor | G48: 0
A49: =+'P&L - ITD3 (Acct #)'!$A$571 -> 500174 0000 | B49: =+'P&L - ITD3 (Acct Desc)'!$A$571 -> Vacation/Sick - Oper Labor | G49: 0
A50: =+'P&L - ITD3 (Acct #)'!$A$577 -> 500 500175 | B50: =+'P&L - ITD3 (Acct Desc)'!$A$577 -> 500175 Benefits Non-Corp - Oper Labor | D50: ='Summary & PF'!$F$23 -> -28949.77416 | G50: -28949.77416 | H50: Payroll Increase - See Payroll Model
A51: =+'P&L - ITD3 (Acct #)'!$A$578 -> 500176 0000 | B51: =+'P&L - ITD3 (Acct Desc)'!$A$578 -> Benefits Corp - Oper Labor | G51: 0
A52: =+'P&L - ITD3 (Acct #)'!$A$581 -> 500188 0000 | B52: =+'P&L - ITD3 (Acct Desc)'!$A$581 -> Uniforms & Safety - Oper Labor | G52: 0
A53: =+'P&L - ITD3 (Acct #)'!$A$583 -> 500998 0000 | B53: =+'P&L - ITD3 (Acct Desc)'!$A$583 -> Oper Labor Alloc-In | G53: 0
A54: =+'P&L - ITD3 (Acct #)'!$A$587 -> 500999 0000 | B54: =+'P&L - ITD3 (Acct Desc)'!$A$587 -> Oper Labor Alloc-Out | G54: 0
A55: =+'P&L - ITD3 (Acct #)'!$A$588 -> Operating Labor | B55: =+'P&L - ITD3 (Acct Desc)'!$A$588 -> Operating Labor | C55: =SUM(C39:C54) -> 0 | D55: =SUM(D39:D54) -> -251196.5358 | E55: =SUM(E39:E54) -> 261730.603 | G55: 10534.06722
A57: =+'P&L - ITD3 (Acct #)'!$A$595 -> 510 510010 | B57: =+'P&L - ITD3 (Acct Desc)'!$A$595 -> 510010 Mgr/Supervision | D57: ='Summary & PF'!$D$24 -> 122245.9157 | E57: ='Alloc Impact'!$K$20 -> -81758.92715 | G57: =SUM(C57:F57) -> 40486.98856 | H57: Payroll Increase - See Payroll Model; Reduce Wage PF adjustment for division wage allocation out
A58: =+'P&L - ITD3 (Acct #)'!$A$602 -> 510 510020 | B58: =+'P&L - ITD3 (Acct Desc)'!$A$602 -> 510020 Dispatchers | G58: 0
A59: =+'P&L - ITD3 (Acct #)'!$A$603 -> 510055 0000 | B59: =+'P&L - ITD3 (Acct Desc)'!$A$603 -> Temporary Labor - Sup Labor | G59: 0
A60: =+'P&L - ITD3 (Acct #)'!$A$605 -> 510061 0000 | B60: =+'P&L - ITD3 (Acct Desc)'!$A$605 -> Bonus Pay Corp - Sup Labor | G60: 0
A61: =+'P&L - ITD3 (Acct #)'!$A$606 -> 510170 0000 | B61: =+'P&L - ITD3 (Acct Desc)'!$A$606 -> Payroll Taxes - Sup Labor | D61: ='Summary & PF'!$E$24 -> 10144.52433 | G61: 10144.52433 | H61: Payroll Increase - See Payroll Model
A62: =+'P&L - ITD3 (Acct #)'!$A$607 -> 510172 0000 | B62: =+'P&L - ITD3 (Acct Desc)'!$A$607 -> Personal Time - Sup Labor | G62: 0
A63: =+'P&L - ITD3 (Acct #)'!$A$610 -> 510173 0000 | B63: =+'P&L - ITD3 (Acct Desc)'!$A$610 -> Holiday Pay - Sup Labor | G63: 0
A64: =+'P&L - ITD3 (Acct #)'!$A$611 -> 510174 0000 | B64: =+'P&L - ITD3 (Acct Desc)'!$A$611 -> Vacation/Sick - Sup Labor | G64: 0
A65: =+'P&L - ITD3 (Acct #)'!$A$617 -> 510176 0000 | B65: =+'P&L - ITD3 (Acct Desc)'!$A$617 -> Benefits Corp - Sup Labor | D65: ='Summary & PF'!$F$24 -> 6261.32686 | G65: 6261.32686 | H65: Payroll Increase - See Payroll Model
A66: =+'P&L - ITD3 (Acct #)'!$A$618 -> 510177 0000 | B66: =+'P&L - ITD3 (Acct Desc)'!$A$618 -> Employer 401k - Sup Labor | G66: 0
A67: =+'P&L - ITD3 (Acct #)'!$A$620 -> 510188 0000 | B67: =+'P&L - ITD3 (Acct Desc)'!$A$620 -> Uniforms & Safety - Sup Labor | G67: 0
A68: =+'P&L - ITD3 (Acct #)'!$A$632 -> 510 510998 | B68: =+'P&L - ITD3 (Acct Desc)'!$A$632 -> 510998 Ops Supv Alloc-In | G68: 0
A69: =+'P&L - ITD3 (Acct #)'!$A$633 -> 510999 0000 | B69: =+'P&L - ITD3 (Acct Desc)'!$A$633 -> Ops Supv Alloc-Out | G69: 0
B70: =+'P&L - ITD3 (Acct Desc)'!$A$634 -> Oper Supervisory Labor | C70: =SUM(C57:C69) -> 0 | D70: =SUM(D57:D69) -> 138651.7669 | E70: =SUM(E57:E69) -> -81758.92715 | G70: 56892.83975
A72: =+'P&L - ITD3 (Acct #)'!$A$641 -> 520 520010 | B72: =+'P&L - ITD3 (Acct Desc)'!$A$641 -> 520010 TShop Mgr/Supv-Default | D72: ='Summary & PF'!$D$25 -> 139321.031 | E72: =+'Alloc Impact'!$K$19 -> -98413.57461 | G72: =SUM(C72:F72) -> 40907.45636 | H72: Payroll Increase - See Payroll Model; Reduce Wage PF adjustment for division wage allocation out
A73: =+'P&L - ITD3 (Acct #)'!$A$648 -> 520 520020 | B73: =+'P&L - ITD3 (Acct Desc)'!$A$648 -> 520020 TShop Mech/Welder-Default | G73: 0
A74: =+'P&L - ITD3 (Acct #)'!$A$655 -> 520 520030 | B74: =+'P&L - ITD3 (Acct Desc)'!$A$655 -> 520030 TShop Support-Default | G74: 0
A75: =+'P&L - ITD3 (Acct #)'!$A$656 -> 520055 0000 | B75: =+'P&L - ITD3 (Acct Desc)'!$A$656 -> TShop Temp Labor | G75: 0
A76: =+'P&L - ITD3 (Acct #)'!$A$657 -> 520060 0000 | B76: =+'P&L - ITD3 (Acct Desc)'!$A$657 -> TShop Bonus Non-Corp | G76: 0
A77: =+'P&L - ITD3 (Acct #)'!$A$658 -> 520061 0000 | B77: =+'P&L - ITD3 (Acct Desc)'!$A$658 -> TShop Bonus Pay Corp | G77: 0
A78: =+'P&L - ITD3 (Acct #)'!$A$659 -> 520170 0000 | B78: =+'P&L - ITD3 (Acct Desc)'!$A$659 -> TShop Payroll Tax | D78: ='Summary & PF'!$E$25 -> 11561.49537 | G78: 11561.49537 | H78: Payroll Increase - See Payroll Model
A79: =+'P&L - ITD3 (Acct #)'!$A$660 -> 520172 0000 | B79: =+'P&L - ITD3 (Acct Desc)'!$A$660 -> TShop Personal Time | G79: 0
A80: =+'P&L - ITD3 (Acct #)'!$A$663 -> 520173 0000 | B80: =+'P&L - ITD3 (Acct Desc)'!$A$663 -> TShop Holiday Pay | G80: 0
A81: =+'P&L - ITD3 (Acct #)'!$A$664 -> 520174 0000 | B81: =+'P&L - ITD3 (Acct Desc)'!$A$664 -> TShop Vacation/Sick | G81: 0
A82: =+'P&L - ITD3 (Acct #)'!$A$669 -> 520 520175 | B82: =+'P&L - ITD3 (Acct Desc)'!$A$669 -> 520175 TShop Benefits Non-Corp | D82: ='Summary & PF'!$F$25 -> 12966 | G82: 12966 | H82: Payroll Increase - See Payroll Model
A83: =+'P&L - ITD3 (Acct #)'!$A$670 -> 520176 0000 | B83: =+'P&L - ITD3 (Acct Desc)'!$A$670 -> TShop Benefits Corp | G83: 0
A84: =+'P&L - ITD3 (Acct #)'!$A$671 -> 520177 0000 | B84: =+'P&L - ITD3 (Acct Desc)'!$A$671 -> TShop Employer 401k | G84: 0
A85: =+'P&L - ITD3 (Acct #)'!$A$673 -> 520188 0000 | B85: =+'P&L - ITD3 (Acct Desc)'!$A$673 -> TShop Uniforms & Safety | G85: 0
A86: =+'P&L - ITD3 (Acct #)'!$A$674 -> 520998 0000 | B86: =+'P&L - ITD3 (Acct Desc)'!$A$674 -> TShop Labor Alloc-In | G86: 0
A87: =+'P&L - ITD3 (Acct #)'!$A$675 -> 520999 0000 | B87: =+'P&L - ITD3 (Acct Desc)'!$A$675 -> TShop Labor Alloc-Out | G87: 0
B88: =+'P&L - ITD3 (Acct Desc)'!$A$676 -> Truck/Equipment Shop Labor | C88: =SUM(C72:C87) -> 0 | D88: =SUM(D72:D87) -> 163848.5263 | E88: =SUM(E72:E87) -> -98413.57461 | G88: 65434.95173
A90: =+'P&L - ITD3 (Acct #)'!$A$690 -> 525 525020 | B90: =+'P&L - ITD3 (Acct Desc)'!$A$690 -> 525020 CShop Mech/Welder-Default | D90: ='Summary & PF'!$D$26 -> 0 | G90: =SUM(C90:F90) -> 0 | H90: Payroll Increase - See Payroll Model
